Workbook

Sheet Formato
E3: Resolución S.B.S N° 3661-2021 | AK3: Total General Valor declarado
D4: Detalle de Ubicaciones de Bienes Asegurables por Inmueble (DUBAI) | AK4: =Formato!$AK$13 -> Edificación (excluyendo el valor del terreno) | AL4: =Formato!$AL$13 -> SELECCIONAR OTRO (OPCIONAL) | AM4: =Formato!$AM$13 -> Total Edificación | AN4: =Formato!$AN$13 -> Existencias | AO4: =Formato!$AO$13 -> Equipos Electrónicos | AP4: =Formato!$AP$13 -> Maquinaria Fija | AQ4: =Formato!$AQ$13 -> Maquinaria y equipo móvil | AR4: =Formato!$AR$13 -> Contenido en general | AS4: =Formato!$AS$13 -> SELECCIONAR OTRO (OPCIONAL) | AT4: =Formato!$AT$13 -> Total Contenido | AU4: =Formato!$AU$13 -> Beneficio Bruto (margen de contribución) | AV4: =Formato!$AV$13 -> Total Lucro Cesante | AW4: =Formato!$AW$13 -> VALOR DECLARADO TOTAL (Edificación + Contenido + Lucro Cesante)
AK5: =SUM(Formato!AK14:AK19) -> 375,046.22 | AL5: =SUM(Formato!AL14:AL19) -> 0.00 | AM5: =SUM(Formato!AM14:AM19) -> 375,046.22 | AN5: =SUM(Formato!AN14:AN19) -> 97,613,548.48 | AO5: =SUM(Formato!AO14:AO19) -> 4,039,974.27 | AP5: =SUM(Formato!AP14:AP19) -> 199,941.02 | AQ5: =SUM(Formato!AQ14:AQ19) -> 28,582.29 | AR5: =SUM(Formato!AR14:AR19) -> 257,597.64 | AS5: =SUM(Formato!AS14:AS19) -> 0.00 | AT5: =SUM(Formato!AT14:AT19) -> 102,139,643.70 | AU5: =SUM(Formato!AU14:AU19) -> 0.00 | AV5: =SUM(Formato!AV14:AV19) -> 0.00 | AW5: =SUM(Formato!AW14:AW19) -> 102,514,689.92
D7: Tipo de documento: | E7: RUC N° | F7: S
D8: Número de Documento: | E8: 20538298485 | AV8: Período correspondiente al valor declarado de Lucro
D9: Nombre/ Razón Social: | E9: CENTRO NACIONAL DE ABASTECIMIENTO DE RECURSOS EN SALUD
D10: Moneda: | E10: Dólares | G10: nro de locales: | H10: 6
Z11: =SEARCH("Otros Otros",#REF!,1) -> 
C12: Dirección del riesgo | Z12: Características del Inmueble asegurado | AK12: Valores declarados
C13: N° | D13: Tipo de calle/vía | E13: Nombre de calle/vía | F13: Número | G13: Tipo Interior | H13: Interior | I13: Mz | J13: Lote | K13: KM | L13: Tipo Conjunto Habitacional | M13: Nombre del Conjunto Habitacional | N13: Subdivisión del Conjunto Habitacional | O13: Nombre de Subdivisión del Conjunto Habitacional | P13: Referencia | Q13: País | R13: Departamento/Región | S13: Provincia | T13: Distrito | U13: Ubigeo | V13: Latitud (x) | W13: Longitud (y) | X13: Registro Válido | Y13: Año de construcción | Z13: Año de reforzamiento estructural | AA13: Tipo de material de construcción predominante (TEP) | AB13: Tipo de Estructura Especial (TEE) | AC13: Número de Pisos de la edificación | AD13: Número de Sotanos de la edificación | AE13: Tipo de Bien asegurado | AF13: Tipo de uso (USO) | AG13: Giro del inmueble | AH13: Cód. CIIU de la Empresa o Actividad | AI13: Descripción CIIU | AJ13: Registro Válido | AK13: Edificación (excluyendo el valor del terreno) | AL13: SELECCIONAR OTRO (OPCIONAL) | AM13: Total Edificación | AN13: Existencias | AO13: Equipos Electrónicos | AP13: Maquinaria Fija | AQ13: Maquinaria y equipo móvil | AR13: Contenido en general | AS13: SELECCIONAR OTRO (OPCIONAL) | AT13: Total Contenido | AU13: Beneficio Bruto (margen de contribución) | AV13: Total Lucro Cesante | AW13: VALOR DECLARADO TOTAL (Edificación + Contenido + Lucro Cesante) | AX13: Registro Válido VD | AY13: Observaciones Adicionales
C14: 1 | D14: Jiron | E14: NAZCA | F14: 548 | Q14: PERU | R14: LIMA | S14: LIMA | T14: JESUS MARIA | U14: =IF(Q14="","",(IF(Q14<>"PERU","No Aplica", IF(Formato!$R14<>"",IFERROR(VLOOKUP(Q14&R14&S14&T14,Lista_Ubigeo!L:M,2,0)," "),"")))) -> 150113 | V14: =IFERROR(IF(AND(BA14<>"",IFERROR(SEARCH("Otros Otros",BA14,1),0)=0),ROUND(busquedalats(BA14),12),""),"No Aplica") -> -12.07057620 | W14: =IFERROR( IF(AND(BA14<>"",IFERROR(SEARCH("Otros Otros",BA14,1),0)=0),ROUND(busquedalons(BA14),12),""),"No Aplica") -> -77.04371100 | X14: =IF(COUNTA(Formato!$D14:$W14)>3,IF(Formato!$U14=" ",0,1)+IF(Formato!$D14<>"",1,0)+IF(Formato!$Q14<>"",1,0)+IF(Formato!$R14<>"",1,0)+IF(Formato!$S14<>"",1,0)+IF(Formato!$T14<>"",1,0),"") -> 6 | AA14: 3.0CA Porticos de concreto armado | AB14: No aplica | AE14: Estatal | AF14: 02 Oficina | AG14: PRODUCTOS FARMACÉUTICOS\OFICINA | AH14: 8411 | AI14: =IFERROR(VLOOKUP(AH14,Lista!H:I,2,0),"") -> Actividades De La Administración Pública En General | AJ14: =IF(COUNTA(Formato!$Y14:$AI14)>2,IF(Formato!$Y14<>"",1,0)+IF(Formato!$AA14<>"",1,0)+IF(Formato!$AC14<>"",1,0)+IF(Formato!$AD14<>"",1,0)+IF(Formato!$AF14<>"",1,0) +IF(Formato!$AH14<>"",1,0)+IF(Formato!$AE14<>"",1,0)+IFERROR(VLOOKUP(Formato!$AA14&Formato!$AC14,Matriz_Pisos!U:V,2,0)+VLOOKUP(Formato!$AA14&Formato!$AD14,Matriz_Pisos!Z:AA,2,0)+VLOOKUP(Formato!$AA14&MID(Formato!$AF14,4,LEN(Formato!$AF14)-3),Matriz_Pisos!AD:AE,2,0),0),"") -> 4 | AM14: =SUM(Formato!$AK14:$AL14) -> 0 | AO14: 2,451,128.06 | AQ14: 1,866.38 | AR14: 98,415.35 | AT14: =SUM(Formato!$AN14:$AS14) -> 2,551,409.79 | AV14: =Formato!$AU14 -> 0 | AW14: =AM14+AT14+Formato!$AV14 -> 2,551,409.79 | AX14: =IF(AJ14=0,"",IF(AND(Formato!$AW14>0,Formato!$AW14>Formato!$AV14),1,-1)) -> 1 | BA14: =IF(AND(Formato!$T14<>"",Formato!$R14<>"",Formato!$S14<>"",Formato!$Q14<>""),TRIM(CONCATENATE(Formato!$E14," ",Formato!$F14," ",Formato!$L14," ",Formato!$M14," ",Formato!$N14," ",Formato!$O14," ",IF(Formato!$I14<>"","Mz "&Formato!$I14,"")," ",IF(Formato!$J14<>"","Lote "&Formato!$J14,"")," ",IF(Formato!$K14<>"","Km "&Formato!$K14,"")," ",Formato!$T14," ",Formato!$S14," ",Formato!$R14," ",Formato!$Q14)),"") -> NAZCA 548 JESUS MARIA LIMA LIMA PERU
C15: 2 | D15: Jiron | E15: LLOQUE YUPANQUI | F15: 878 | Q15: PERU | R15: LIMA | S15: LIMA | T15: JESUS MARIA | U15: =IF(Q15="","",(IF(Q15<>"PERU","No Aplica", IF(Formato!$R15<>"",IFERROR(VLOOKUP(Q15&R15&S15&T15,Lista_Ubigeo!L:M,2,0)," "),"")))) -> 150113 | V15: =IFERROR(IF(AND(BA15<>"",IFERROR(SEARCH("Otros Otros",BA15,1),0)=0),ROUND(busquedalats(BA15),12),""),"No Aplica") -> -12.07059490 | W15: =IFERROR( IF(AND(BA15<>"",IFERROR(SEARCH("Otros Otros",BA15,1),0)=0),ROUND(busquedalons(BA15),12),""),"No Aplica") -> -77.04458450 | X15: =IF(COUNTA(Formato!$D15:$W15)>3,IF(Formato!$U15=" ",0,1)+IF(Formato!$D15<>"",1,0)+IF(Formato!$Q15<>"",1,0)+IF(Formato!$R15<>"",1,0)+IF(Formato!$S15<>"",1,0)+IF(Formato!$T15<>"",1,0),"") -> 6 | AA15: 3.0CA Porticos de concreto armado | AB15: No aplica | AE15: Estatal | AF15: 02 Oficina | AG15: PRODUCTOS FARMACÉUTICOS\OFICINA | AH15: 8411 | AI15: =IFERROR(VLOOKUP(AH15,Lista!H:I,2,0),"") -> Actividades De La Administración Pública En General | AJ15: =IF(COUNTA(Formato!$Y15:$AI15)>2,IF(Formato!$Y15<>"",1,0)+IF(Formato!$AA15<>"",1,0)+IF(Formato!$AC15<>"",1,0)+IF(Formato!$AD15<>"",1,0)+IF(Formato!$AF15<>"",1,0) +IF(Formato!$AH15<>"",1,0)+IF(Formato!$AE15<>"",1,0)+IFERROR(VLOOKUP(Formato!$AA15&Formato!$AC15,Matriz_Pisos!U:V,2,0)+VLOOKUP(Formato!$AA15&Formato!$AD15,Matriz_Pisos!Z:AA,2,0)+VLOOKUP(Formato!$AA15&MID(Formato!$AF15,4,LEN(Formato!$AF15)-3),Matriz_Pisos!AD:AE,2,0),0),"") -> 4 | AM15: =SUM(Formato!$AK15:$AL15) -> 0 | AO15: 335,339.75 | AQ15: 1,455.66 | AR15: 54,634.35 | AT15: =SUM(Formato!$AN15:$AS15) -> 391,429.76 | AV15: =Formato!$AU15 -> 0 | AW15: =AM15+AT15+Formato!$AV15 -> 391,429.76 | AX15: =IF(AJ15=0,"",IF(AND(Formato!$AW15>0,Formato!$AW15>Formato!$AV15),1,-1)) -> 1 | BA15: =IF(AND(Formato!$T15<>"",Formato!$R15<>"",Formato!$S15<>"",Formato!$Q15<>""),TRIM(CONCATENATE(Formato!$E15," ",Formato!$F15," ",Formato!$L15," ",Formato!$M15," ",Formato!$N15," ",Formato!$O15," ",IF(Formato!$I15<>"","Mz "&Formato!$I15,"")," ",IF(Formato!$J15<>"","Lote "&Formato!$J15,"")," ",IF(Formato!$K15<>"","Km "&Formato!$K15,"")," ",Formato!$T15," ",Formato!$S15," ",Formato!$R15," ",Formato!$Q15)),"") -> LLOQUE YUPANQUI 878 JESUS MARIA LIMA LIMA PERU
C16: 3 | D16: Avenida | E16: INDEPENDENCIA | F16: 1837 | Q16: PERU | R16: LIMA | S16: LIMA | T16: EL AGUSTINO | U16: =IF(Q16="","",(IF(Q16<>"PERU","No Aplica", IF(Formato!$R16<>"",IFERROR(VLOOKUP(Q16&R16&S16&T16,Lista_Ubigeo!L:M,2,0)," "),"")))) -> 150111 | V16: =IFERROR(IF(AND(BA16<>"",IFERROR(SEARCH("Otros Otros",BA16,1),0)=0),ROUND(busquedalats(BA16),12),""),"No Aplica") -> -12.05509270 | W16: =IFERROR( IF(AND(BA16<>"",IFERROR(SEARCH("Otros Otros",BA16,1),0)=0),ROUND(busquedalons(BA16),12),""),"No Aplica") -> -77.00136080 | X16: =IF(COUNTA(Formato!$D16:$W16)>3,IF(Formato!$U16=" ",0,1)+IF(Formato!$D16<>"",1,0)+IF(Formato!$Q16<>"",1,0)+IF(Formato!$R16<>"",1,0)+IF(Formato!$S16<>"",1,0)+IF(Formato!$T16<>"",1,0),"") -> 6 | AA16: 3.0CA Porticos de concreto armado | AB16: No aplica | AC16: 3 | AE16: Estatal | AF16: 02 Oficina | AG16: PRODUCTOS FARMACÉUTICOS\OFICINA | AH16: 8411 | AI16: =IFERROR(VLOOKUP(AH16,Lista!H:I,2,0),"") -> Actividades De La Administración Pública En General | AJ16: =IF(COUNTA(Formato!$Y16:$AI16)>2,IF(Formato!$Y16<>"",1,0)+IF(Formato!$AA16<>"",1,0)+IF(Formato!$AC16<>"",1,0)+IF(Formato!$AD16<>"",1,0)+IF(Formato!$AF16<>"",1,0) +IF(Formato!$AH16<>"",1,0)+IF(Formato!$AE16<>"",1,0)+IFERROR(VLOOKUP(Formato!$AA16&Formato!$AC16,Matriz_Pisos!U:V,2,0)+VLOOKUP(Formato!$AA16&Formato!$AD16,Matriz_Pisos!Z:AA,2,0)+VLOOKUP(Formato!$AA16&MID(Formato!$AF16,4,LEN(Formato!$AF16)-3),Matriz_Pisos!AD:AE,2,0),0),"") -> 5 | AK16: 375,046.22 | AM16: =SUM(Formato!$AK16:$AL16) -> 375,046.22 | AN16: 218,077.93 | AO16: 58,690.54 | AP16: 10,635.14 | AQ16: 1,698.05 | AR16: 38,861.97 | AT16: =SUM(Formato!$AN16:$AS16) -> 327,963.63 | AV16: =Formato!$AU16 -> 0 | AW16: =AM16+AT16+Formato!$AV16 -> 703,009.85 | AX16: =IF(AJ16=0,"",IF(AND(Formato!$AW16>0,Formato!$AW16>Formato!$AV16),1,-1)) -> 1 | BA16: =IF(AND(Formato!$T16<>"",Formato!$R16<>"",Formato!$S16<>"",Formato!$Q16<>""),TRIM(CONCATENATE(Formato!$E16," ",Formato!$F16," ",Formato!$L16," ",Formato!$M16," ",Formato!$N16," ",Formato!$O16," ",IF(Formato!$I16<>"","Mz "&Formato!$I16,"")," ",IF(Formato!$J16<>"","Lote "&Formato!$J16,"")," ",IF(Formato!$K16<>"","Km "&Formato!$K16,"")," ",Formato!$T16," ",Formato!$S16," ",Formato!$R16," ",Formato!$Q16)),"") -> INDEPENDENCIA 1837 EL AGUSTINO LIMA LIMA PERU
C17: 4 | D17: Calle | E17: LOS EUCALIPTOS | G17: Interior | H17: 6 | J17: B1 | P17: Sector Santa Genoveva | Q17: PERU | R17: LIMA | S17: LIMA | T17: LURIN | U17: =IF(Q17="","",(IF(Q17<>"PERU","No Aplica", IF(Formato!$R17<>"",IFERROR(VLOOKUP(Q17&R17&S17&T17,Lista_Ubigeo!L:M,2,0)," "),"")))) -> 150119 | V17: =IFERROR(IF(AND(BA17<>"",IFERROR(SEARCH("Otros Otros",BA17,1),0)=0),ROUND(busquedalats(BA17),12),""),"No Aplica") -> -12.22704050 | W17: =IFERROR( IF(AND(BA17<>"",IFERROR(SEARCH("Otros Otros",BA17,1),0)=0),ROUND(busquedalons(BA17),12),""),"No Aplica") -> -76.87030320 | X17: =IF(COUNTA(Formato!$D17:$W17)>3,IF(Formato!$U17=" ",0,1)+IF(Formato!$D17<>"",1,0)+IF(Formato!$Q17<>"",1,0)+IF(Formato!$R17<>"",1,0)+IF(Formato!$S17<>"",1,0)+IF(Formato!$T17<>"",1,0),"") -> 6 | AA17: 3.0CA Porticos de concreto armado | AB17: No aplica | AE17: Estatal | AF17: 07 Nave Industrial O Grandes Almacenes | AG17: PRODUCTOS FARMACÉUTICOS\OFICINA | AH17: 8411 | AI17: =IFERROR(VLOOKUP(AH17,Lista!H:I,2,0),"") -> Actividades De La Administración Pública En General | AJ17: =IF(COUNTA(Formato!$Y17:$AI17)>2,IF(Formato!$Y17<>"",1,0)+IF(Formato!$AA17<>"",1,0)+IF(Formato!$AC17<>"",1,0)+IF(Formato!$AD17<>"",1,0)+IF(Formato!$AF17<>"",1,0) +IF(Formato!$AH17<>"",1,0)+IF(Formato!$AE17<>"",1,0)+IFERROR(VLOOKUP(Formato!$AA17&Formato!$AC17,Matriz_Pisos!U:V,2,0)+VLOOKUP(Formato!$AA17&Formato!$AD17,Matriz_Pisos!Z:AA,2,0)+VLOOKUP(Formato!$AA17&MID(Formato!$AF17,4,LEN(Formato!$AF17)-3),Matriz_Pisos!AD:AE,2,0),0),"") -> 4 | AM17: =SUM(Formato!$AK17:$AL17) -> 0 | AN17: 51,159,240.29 | AO17: 186,161.20 | AP17: 111,709.90 | AQ17: 14,012.43 | AR17: 21,143.20 | AT17: =SUM(Formato!$AN17:$AS17) -> 51,492,267.02 | AV17: =Formato!$AU17 -> 0 | AW17: =AM17+AT17+Formato!$AV17 -> 51,492,267.02 | AX17: =IF(AJ17=0,"",IF(AND(Formato!$AW17>0,Formato!$AW17>Formato!$AV17),1,-1)) -> 1 | BA17: =IF(AND(Formato!$T17<>"",Formato!$R17<>"",Formato!$S17<>"",Formato!$Q17<>""),TRIM(CONCATENATE(Formato!$E17," ",Formato!$F17," ",Formato!$L17," ",Formato!$M17," ",Formato!$N17," ",Formato!$O17," ",IF(Formato!$I17<>"","Mz "&Formato!$I17,"")," ",IF(Formato!$J17<>"","Lote "&Formato!$J17,"")," ",IF(Formato!$K17<>"","Km "&Formato!$K17,"")," ",Formato!$T17," ",Formato!$S17," ",Formato!$R17," ",Formato!$Q17)),"") -> LOS EUCALIPTOS Lote B1 LURIN LIMA LIMA PERU
C18: 5 | D18: Jiron | E18: QUILCA | F18: 630 | Q18: PERU | R18: CALLAO | S18: CALLAO | T18: CALLAO | U18: =IF(Q18="","",(IF(Q18<>"PERU","No Aplica", IF(Formato!$R18<>"",IFERROR(VLOOKUP(Q18&R18&S18&T18,Lista_Ubigeo!L:M,2,0)," "),"")))) -> 070101 | V18: =IFERROR(IF(AND(BA18<>"",IFERROR(SEARCH("Otros Otros",BA18,1),0)=0),ROUND(busquedalats(BA18),12),""),"No Aplica") -> -12.03123450 | W18: =IFERROR( IF(AND(BA18<>"",IFERROR(SEARCH("Otros Otros",BA18,1),0)=0),ROUND(busquedalons(BA18),12),""),"No Aplica") -> -77.09534830 | X18: =IF(COUNTA(Formato!$D18:$W18)>3,IF(Formato!$U18=" ",0,1)+IF(Formato!$D18<>"",1,0)+IF(Formato!$Q18<>"",1,0)+IF(Formato!$R18<>"",1,0)+IF(Formato!$S18<>"",1,0)+IF(Formato!$T18<>"",1,0),"") -> 6 | AA18: 3.0CA Porticos de concreto armado | AB18: No aplica | AE18: Estatal | AF18: 02 Oficina | AG18: PRODUCTOS FARMACÉUTICOS\OFICINA | AH18: 8411 | AI18: =IFERROR(VLOOKUP(AH18,Lista!H:I,2,0),"") -> Actividades De La Administración Pública En General | AJ18: =IF(COUNTA(Formato!$Y18:$AI18)>2,IF(Formato!$Y18<>"",1,0)+IF(Formato!$AA18<>"",1,0)+IF(Formato!$AC18<>"",1,0)+IF(Formato!$AD18<>"",1,0)+IF(Formato!$AF18<>"",1,0) +IF(Formato!$AH18<>"",1,0)+IF(Formato!$AE18<>"",1,0)+IFERROR(VLOOKUP(Formato!$AA18&Formato!$AC18,Matriz_Pisos!U:V,2,0)+VLOOKUP(Formato!$AA18&Formato!$AD18,Matriz_Pisos!Z:AA,2,0)+VLOOKUP(Formato!$AA18&MID(Formato!$AF18,4,LEN(Formato!$AF18)-3),Matriz_Pisos!AD:AE,2,0),0),"") -> 4 | AM18: =SUM(Formato!$AK18:$AL18) -> 0 | AN18: 46,236,230.26 | AO18: 728,793.45 | AP18: 77,595.98 | AQ18: 9,451.66 | AR18: 16,000.35 | AT18: =SUM(Formato!$AN18:$AS18) -> 47,068,071.70 | AV18: =Formato!$AU18 -> 0 | AW18: =AM18+AT18+Formato!$AV18 -> 47,068,071.70 | AX18: =IF(AJ18=0,"",IF(AND(Formato!$AW18>0,Formato!$AW18>Formato!$AV18),1,-1)) -> 1 | BA18: =IF(AND(Formato!$T18<>"",Formato!$R18<>"",Formato!$S18<>"",Formato!$Q18<>""),TRIM(CONCATENATE(Formato!$E18," ",Formato!$F18," ",Formato!$L18," ",Formato!$M18," ",Formato!$N18," ",Formato!$O18," ",IF(Formato!$I18<>"","Mz "&Formato!$I18,"")," ",IF(Formato!$J18<>"","Lote "&Formato!$J18,"")," ",IF(Formato!$K18<>"","Km "&Formato!$K18,"")," ",Formato!$T18," ",Formato!$S18," ",Formato!$R18," ",Formato!$Q18)),"") -> QUILCA 630 CALLAO CALLAO CALLAO PERU
C19: 6 | D19: Jiron | E19: PACHACUTEC ESQUINA CON AV. TALARA | F19: 900 | Q19: PERU | R19: LIMA | S19: LIMA | T19: JESUS MARIA | U19: =IF(Q19="","",(IF(Q19<>"PERU","No Aplica", IF(Formato!$R19<>"",IFERROR(VLOOKUP(Q19&R19&S19&T19,Lista_Ubigeo!L:M,2,0)," "),"")))) -> 150113 | V19: =IFERROR(IF(AND(BA19<>"",IFERROR(SEARCH("Otros Otros",BA19,1),0)=0),ROUND(busquedalats(BA19),12),""),"No Aplica") -> -12.07185585 | W19: =IFERROR( IF(AND(BA19<>"",IFERROR(SEARCH("Otros Otros",BA19,1),0)=0),ROUND(busquedalons(BA19),12),""),"No Aplica") -> -77.04282170 | X19: =IF(COUNTA(Formato!$D19:$W19)>3,IF(Formato!$U19=" ",0,1)+IF(Formato!$D19<>"",1,0)+IF(Formato!$Q19<>"",1,0)+IF(Formato!$R19<>"",1,0)+IF(Formato!$S19<>"",1,0)+IF(Formato!$T19<>"",1,0),"") -> 6 | AA19: 3.0CA Porticos de concreto armado | AB19: No aplica | AE19: Estatal | AF19: 02 Oficina | AG19: PRODUCTOS FARMACÉUTICOS\OFICINA | AH19: 8411 | AI19: =IFERROR(VLOOKUP(AH19,Lista!H:I,2,0),"") -> Actividades De La Administración Pública En General | AJ19: =IF(COUNTA(Formato!$Y19:$AI19)>2,IF(Formato!$Y19<>"",1,0)+IF(Formato!$AA19<>"",1,0)+IF(Formato!$AC19<>"",1,0)+IF(Formato!$AD19<>"",1,0)+IF(Formato!$AF19<>"",1,0) +IF(Formato!$AH19<>"",1,0)+IF(Formato!$AE19<>"",1,0)+IFERROR(VLOOKUP(Formato!$AA19&Formato!$AC19,Matriz_Pisos!U:V,2,0)+VLOOKUP(Formato!$AA19&Formato!$AD19,Matriz_Pisos!Z:AA,2,0)+VLOOKUP(Formato!$AA19&MID(Formato!$AF19,4,LEN(Formato!$AF19)-3),Matriz_Pisos!AD:AE,2,0),0),"") -> 4 | AM19: =SUM(Formato!$AK19:$AL19) -> 0 | AO19: 279,861.27 | AQ19: 98.11 | AR19: 28,542.42 | AT19: =SUM(Formato!$AN19:$AS19) -> 308,501.80 | AV19: =Formato!$AU19 -> 0 | AW19: =AM19+AT19+Formato!$AV19 -> 308,501.80 | AX19: =IF(AJ19=0,"",IF(AND(Formato!$AW19>0,Formato!$AW19>Formato!$AV19),1,-1)) -> 1 | BA19: =IF(AND(Formato!$T19<>"",Formato!$R19<>"",Formato!$S19<>"",Formato!$Q19<>""),TRIM(CONCATENATE(Formato!$E19," ",Formato!$F19," ",Formato!$L19," ",Formato!$M19," ",Formato!$N19," ",Formato!$O19," ",IF(Formato!$I19<>"","Mz "&Formato!$I19,"")," ",IF(Formato!$J19<>"","Lote "&Formato!$J19,"")," ",IF(Formato!$K19<>"","Km "&Formato!$K19,"")," ",Formato!$T19," ",Formato!$S19," ",Formato!$R19," ",Formato!$Q19)),"") -> PACHACUTEC ESQUINA CON AV. TALARA 900 JESUS MARIA LIMA LIMA PERU

Sheet Glosario
B2: Sección | C2: Nombre de Campo | D2: # | E2: Tipo de Campo | F2: Llenado de Campo | G2: Descripción de campo
B3: Dirección de riesgo | C3: Tipo de calle/vía | D3: 1 | E3: Obligatorio | F3: Elegir opciones del desglosable | G3: Elegir el tipo de calle/vía en el desglosable de opciones, si no tuviera un tipo de calle/vía marcar "sin tipo" y completar los demás campos de dirección.
C4: Nombre de calle/vía | D4: 2 | E4: Obligatorio | F4: Alfanumérico (digitación) | G4: Escribir el nombre del tipo de calle/vía elegido, si no tuviera un tipo de calle/vía escribir el nombre de la zona referencial y completar los demás campos de dirección de tener la información.
C5: Número | D5: 3 | E5: Opcional | F5: Numérico (digitación) | G5: Escribir el número de calle/vía elegido. Si no tuviera, dejar en blanco.
C6: Tipo Interior | D6: 4 | E6: Opcional | F6: Elegir opciones del desglosable | G6: Elegir un tipo de interior en el desglosable de opciones, de no tenerlo puede quedar en blanco.
C7: Interior | D7: 5 | E7: Opcional | F7: Alfanumérico (digitación) | G7: Si se eligió un tipo de interior, escribir el tipo o número de interior que corresponda. Puede quedar en blanco si no se eligió algún tipo de interior.
C8: Mz | D8: 6 | E8: Opcional | F8: Alfanumérico (digitación) | G8: Escribir el número/letra de la manzana de la dirección, de no tenerlo puede quedar en blanco.
C9: Lote | D9: 7 | E9: Opcional | F9: Alfanumérico (digitación) | G9: Escribir el número/letra del lote de la dirección, de no tenerlo puede quedar en blanco.
C10: KM | D10: 8 | E10: Opcional | F10: Numérico (digitación) | G10: Escribir el número del kilómetro de la dirección, de no tenerlo puede quedar en blanco.
C11: Tipo Conjunto Habitacional | D11: 9 | E11: Opcional | F11: Elegir opciones del desglosable | G11: Elegir un tipo de conjunto habitacional en el desglosable de opciones, de no tenerlo puede quedar en blanco.
C12: Nombre del Conjunto Habitacional | D12: 10 | E12: Opcional | F12: Alfanumérico (digitación) | G12: Si se eligió un tipo de conjunto habitacional, escribir el nombre que corresponda. Puede quedar en blanco si no se eligió algún tipo de conjunto habitacional.
C13: Subdivisión del Conjunto Habitacional | D13: 11 | E13: Opcional | F13: Elegir opciones del desglosable | G13: Elegir un tipo de subdivisión de conjunto habitacional en el desglosable de opciones, de no tenerlo puede quedar en blanco.
C14: Nombre de Subdivisión del Conjunto Habitacional | D14: 12 | E14: Opcional | F14: Alfanumérico (digitación) | G14: Si se eligió un tipo de subdivisión de conjunto habitacional, escribir el nombre de la subdivisión que corresponda. Puede quedar en blanco si no se eligió algún tipo de subdivisión.
C15: Referencia | D15: 13 | E15: Opcional | F15: Alfanumérico (digitación) | G15: Escribir una referencia para llegar a la dirección indicada. De no tener una referencia puede quedar en blanco.
C16: País | D16: 14 | E16: Obligatorio | F16: Elegir opciones del desglosable | G16: Elegir el país de la dirección. Perú aparecerá como primera opción.
C17: Departamento | D17: 15 | E17: Obligatorio | F17: Elegir opciones del desglosable | G17: Elegir el departamento del Perú donde se ubica dirección según el desglosable de opciones. Si se eligió un país diferente a Perú, el campo se autocompletará con "No aplica".
C18: Provincia | D18: 16 | E18: Obligatorio | F18: Elegir opciones del desglosable | G18: Elegir la provincia del departamento elegido, donde se ubica dirección registrada, según el desglosable de opciones. Si se eligió un país diferente a Perú, el campo se autocompletará con "No aplica".
C19: Distrito | D19: 17 | E19: Obligatorio | F19: Elegir opciones del desglosable | G19: Elegir el distrito de la provincia elegida, donde se ubica dirección registrada, según el desglosable de opciones. Si se eligió un país diferente a Perú, el campo se autocompletará con "No aplica".
C20: Ubigeo | D20: 18 | E20: - | F20: No editable | G20: Este campo se autocompleta una vez se selecciona el país / departamento / provincia / distrito de la dirección. Si se marca en rojo deben corregirse los campos antes mencionados. Si se eligió un país diferente a Perú, el campo se autocompletará con "No aplica".
C21: Latitud (x) | D21: 19 | E21: - | F21: No editable | G21: Este campo se autocompleta una vez ingresada la dirección / país: Perú / departamento / provincia / distrito de la ubicación declarada. Es un número negativo (inicia con el signo menos "-") entre 0 y -20 según mapa Perú. Si se eligió un país diferente a Perú, el campo se autocompletará con "No aplica".
C22: Longitud (y) | D22: 20 | E22: - | F22: No editable | G22: Este campo se autocompleta una vez ingresada la dirección / país: Perú / departamento / provincia / distrito de la ubicación declarada. Es un número negativo (inicia con el signo menos "-") entre 0 y -20 según mapa Perú. Si se eligió un país diferente a Perú, el campo se autocompletará con "No aplica".
C23: Registro Válido | D23: 21 | E23: - | F23: No editable | G23: Mostrará un check (✓) verde al haber completado y al ser consistente la información de la primera sección: "Detalle de dirección de riesgo", caso contrario mostrará una equis (X) y debe ser revisada.
B24: Características del Inmueble asegurado | C24: Año de construcción de la edificación | D24: 22 | E24: Obligatorio | F24: Numérico (digitación) | G24: Digitar el año de construcción del inmueble con cuatro dígitos "xxxx" desde 1500 a la fecha.
C25: Año de reforzamiento estructural | D25: 23 | E25: Opcional | F25: Numérico (digitación) | G25: Digitar el año de reforzamiento estructural del inmueble en cuatro dígitos "xxxx" y remitir una copia del informe a la aseguradora.
C26: Tipo de material de construcción predominante (TEP) | D26: 24 | E26: Obligatorio | F26: Elegir opciones del desglosable | G26: Elegir el tipo de material predominante de la construcción del inmueble, elegir solo uno. Revisar la Tabla Material de construcción para un buen llenado. Si corresponde a una estructura especial, seleccionar la opción 12 y luego especificar tipo de estructura en el campo N°24 del glosario)
C27: Tipo de Estructura Especial (TEE) | D27: 25 | E27: Obligatorio | F27: Elegir opciones del desglosable | G27: Seleccionar el tipo de estructura especial del desglosable de opciones siempre y cuando se haya marcado la opción 12.0EE como material de construcción predominante. De no se el caso, este campo se autocompletará con "No aplica".
C28: Número de pisos de la edificación | D28: 26 | E28: Obligatorio | F28: Elegir opciones del desglosable | G28: Elegir el número de pisos total de la edificación del inmueble en las opciones del desglosable. Las opciones disponibles varían según el material de construcción predominante.
C29: Número de sótanos de la edificación | D29: 27 | E29: Obligatorio | F29: Elegir opciones del desglosable | G29: Elegir el número de sótanos total de la edificación del inmueble en las opciones del desglosable. Las opciones disponibles varían según el material de construcción predominante.
C30: Tipo de bien asegurado | D30: 28 | E30: Obligatorio | F30: Elegir opciones del desglosable | G30: Elegir el tipo de propiedad del inmueble, si es de propiedad pública o privada (dos opciones).
C31: Tipo de uso (USO) | D31: 29 | E31: Obligatorio | F31: Elegir opciones del desglosable | G31: Elegir el tipo de uso que mejor se adapte al uso del inmueble entre las opciones del desglosable.
C32: Giro del inmueble | D32: 30 | E32: Obligatorio | F32: Elegir opciones del desglosable | G32: Seleccionar el giro de inmueble que mejor se adapte, las opciones varían según el tipo de uso seleccionado en el campo N°28 del glosario.
C33: Cód. CIIU | D33: 31 | E33: Obligatorio | F33: Elegir opciones del desglosable | G33: Digitar o elegir entre las opciones del desglosable el código CIIU del inmueble declarado. Para saber cual es el código a elegir, revisar la tabla CIIU con el detalle de las actividades económicas SUNAT.
C34: Descripción CIIU | D34: 32 | E34: - | F34: No editable | G34: Este campo se autocompleta una vez se selecciona el código CIIU.
C35: Registro Válido | D35: 33 | E35: - | F35: No editable | G35: Mostrará un check (✓) verde al haber completado y al ser consistente la información de la segunda sección: "Características del Inmueble asegurado", caso contrario mostrará una equis (X) y debe ser revisada.
B36: Valores Declarados | C36: Edificación (excluyendo el valor del terreno) | D36: 34 | E36: Obligatorio | F36: Numérico (digitación) | G36: Digitar el valor declarado de la edificación, de no asegurar edificación dejar en blanco.
C37: Seleccionar otro valor de edificación (opcional) | D37: 35 | E37: Opcional (oculto) | F37: Numérico (digitación) | G37: Campo disponible para ingresar mayor detalle del valor de edificación solo de ser necesario. Se activa con el (+) en la parte superior de la columna de edificación. No activarlo de no ser necesario e ingresar toda la información de edificación en el campo N°33 del glosario.
C38: Total Edificación | D38: 36 | E38: - | F38: No editable | G38: Se autocompleta con el campo N° 33 + 34 (Valor edificación + "otro valor edificación" de ser el caso).
C39: Existencias | D39: 37 | E39: Opcional | F39: Numérico (digitación) | G39: Digitar el valor declarado de las existencias. De no asegurar existencias dejar en blanco.
C40: Equipos Electrónicos | D40: 38 | E40: Opcional | F40: Numérico (digitación) | G40: Digitar el valor declarado de equipos electrónicos. De no asegurar equipos electrónicos dejar en blanco.
C41: Maquinaria Fija | D41: 39 | E41: Opcional | F41: Numérico (digitación) | G41: Digitar el valor declarado de la maquinaria fija. De no asegurar maquinaria fija dejar en blanco.
C42: Maquinaria móvil y equipos | D42: 40 | E42: Opcional | F42: Numérico (digitación) | G42: Digitar el valor declarado de la maquinaria móvil y equipos. De no asegurar maquinaria móvil y equipos dejar en blanco.
C43: Contenido en general | D43: 41 | E43: Opcional | F43: Numérico (digitación) | G43: Digitar el valor declarado de contenido el general. De no asegurar contenido en general dejar en blanco.
C44: Seleccionar otro valor de contenido (opcional) | D44: 42 | E44: Opcional (oculto) | F44: Numérico (digitación) | G44: Campo disponible para ingresar mayor detalle del valor de contenido solo de ser necesario. Se activa con el (+) en la parte superior de la columna de edificación. No activarlo de no ser necesario e ingresar toda la información de edificación en el campo N°33 del glosario.
C45: Total Contenido | D45: 43 | E45: - | F45: No editable | G45: Se autocompleta Con la suma de los campos N° 36 + 37 + 38 + 39 + 40 +41 (Existencias + equipo electrónico + Maquinaria fija + maquinaria móvil y equipos + contenido en general + "otro valor contenido" de ser el caso )
C46: Gastos estables / beneficio bruto | D46: 44 | E46: Opcional | F46: Numérico (digitación) | G46: Digitar el valor declarado de Lucro Cesante. Se puede elegir entre "gastos estables" o "beneficio bruto" en título de la columna (desglosable de opciones).
C47: Periodo correspondiente al valor declarado de lucro al final | D47: 45 | F47: Elegir opciones del desglosable. | G47: Seleccionar el periodo al que corresponde el valor declarado de lucro cesante, puede ser 12, 18 o 24 meses según sea el caso.
C48: Total Lucro Cesante | D48: 46 | E48: - | F48: No editable | G48: Se autocompleta con el campo N° 43 (Lucro Cesante).
C49: VALOR DECLARADO TOTAL (Edificación + Contenido + Lucro Cesante) | D49: 47 | E49: - | F49: No editable | G49: Se autocompleta Con la suma de los campos N° 35 + 42 + 44 (Total Edificación + Total Contenido + Total Lucro Cesante)
C50: Registro Válido VD | D50: 48 | E50: - | F50: No editable | G50: Mostrará un check (✓) verde al haber completado y al ser consistente la información de la tercera sección: "Detalle de dirección de riesgo", caso contrario mostrará una equis (X) y debe ser revisada.
C51: Observaciones adicionales | D51: 49 | E51: Opcional | F51: Alfanumérico (digitación) | G51: Campo disponible para ingresar información adicional relevante de la ubicación (Por ejemplo: Nombre de empresa, sucursal, etc.).

Sheet Ayuda CIIU
B2: TABLA DE ACTIVIDADES ECONOMICAS CON LA CIIU REV. 4.0
B4: CIIU Rev.4 | C4: DESCRIPCION
B5: 111 | C5: CULTIVO DE CEREALES (EXCEPTO ARROZ), LEGUMBRES Y SEMILLAS OLEAGINOSAS
B6: 112 | C6: CULTIVO DE ARROZ
B7: 113 | C7: CULTIVO DE HORTALIZAS Y MELONES, RAÍCES Y TUBÉRCULOS.
B8: 114 | C8: CULTIVO DE CAÑA DE AZÚCAR
B9: 115 | C9: CULTIVO DE TABACO
B10: 116 | C10: CULTIVO DE PLANTAS DE FIBRA
B11: 119 | C11: CULTIVO DE OTRAS PLANTAS NO PERENNES
B12: 121 | C12: CULTIVO DE UVA
B13: 122 | C13: CULTIVO DE FRUTAS TROPICALES Y SUBTROPICALES
B14: 123 | C14: CULTIVO DE CÍTRICOS
B15: 124 | C15: CULTIVO DE FRUTAS DE PEPITA Y DE HUESO
B16: 125 | C16: CULTIVO DE OTROS FRUTOS Y NUECES DE ÁRBOLES Y ARBUSTOS
B17: 126 | C17: CULTIVO DE FRUTOS OLEAGINOSOS
B18: 127 | C18: CULTIVO DE PLANTAS CON LAS QUE SE PREPARAN BEBIDAS
B19: 128 | C19: CULTIVO DE ESPECIAS Y DE PLANTAS AROMÁTICAS, MEDICINALES Y FARMACEUTICAS
B20: 129 | C20: CULTIVO DE OTRAS PLANTAS NO PERENNES
B21: 130 | C21: PROPAGACIÓN DE PLANTAS
B22: 141 | C22: CRÍA DE GANADO BOVINO Y BÚFALOS
B23: 142 | C23: CRÍA DE CABALLOS Y OTROS EQUINOS
B24: 143 | C24: CRÍA DE CAMELLOS Y OTROS CAMÉLIDOS
B25: 144 | C25: CRÍA DE OVEJAS Y CABRAS
B26: 145 | C26: CRÍA DE CERDOS
B27: 146 | C27: CRÍA DE AVES DE CORRAL
B28: 149 | C28: CRÍA DE OTROS ANIMALES
B29: 150 | C29: CULTIVO DE PRODUCTOS AGRÌCOLAS EN COMBINACIÒN CON LA CRÌA DE ANIMALES
B30: 161 | C30: ACTIVIDADES DE APOYO A LA AGRICULTURA
B31: 162 | C31: ACTIVIDADES DE APOYO A LA GANADERÍA
B32: 163 | C32: ACTIVIDADES POSCOSECHA
B33: 164 | C33: TRATAMIENTO DE SEMILLAS PARA PROPAGACIÓN
B34: 170 | C34: CAZA ORDINARIA Y MEDIANTE TRAMPAS Y ACTIVIDADES DE SERVICIOS CONEXAS
B35: 210 | C35: SILVICULTURA Y OTRAS ACTIVIDADES FORESTALES
B36: 220 | C36: EXTRACCIÓN DE MADERA
B37: 230 | C37: RECOLECCIÓN DE PRODUCTOS FORESTALES DISTINTOS DE LA MADERA
B38: 240 | C38: SERVICIOS DE APOYO A LA SILVICULTURA
B39: 311 | C39: PESCA MARÍTIMA
B40: 312 | C40: PESCA DE AGUA DULCE
B41: 321 | C41: ACUICULTURA MARÍTIMA
B42: 322 | C42: ACUICULTURA DE AGUA DULCE
B43: 510 | C43: EXTRACCIÓN DE CARBÓN DE PIEDRA
B44: 520 | C44: EXTRACCIÓN DE LIGNITO
B45: 610 | C45: EXTRACCIÓN DE PETRÓLEO CRUDO
B46: 620 | C46: EXTRACCIÓN DE GAS NATURAL
B47: 710 | C47: EXTRACCIÓN DE MINERALES DE HIERRO
B48: 721 | C48: EXTRACCIÓN DE MINERALES DE URANIO Y TORIO
B49: 729 | C49: EXTRACCIÓN DE OTROS MINERALES METALÍFEROS NO FERROSOS
B50: 810 | C50: EXTRACCIÓN DE PIEDRA, ARENA Y ARCILLA
B51: 891 | C51: EXTRACCIÓN DE MINERALES PARA LA FABRICACIÓN DE ABONOS Y PRODUCTOS QUÍMICOS
B52: 892 | C52: EXTRACCIÓN DE TURBA
B53: 893 | C53: EXTRACCIÓN DE SAL
B54: 899 | C54: EXPLOTACIÓN DE OTRAS MINAS Y CANTERAS N.C.P.
B55: 910 | C55: ACTIVIDADES DE APOYO PARA LA EXTRACCIÓN DE PETRÓLEO Y GAS NATURAL
B56: 990 | C56: ACTIVIDADES DE APOYO PARA OTRAS ACTIVIDADES DE EXPLOTACIÓN DE MINAS Y CANTERAS
B57: 1010 | C57: ELABORACIÒN Y CONSERVACIÓN DE CARNE
B58: 1020 | C58: ELABORACIÒN Y CONSERVACIÓN DE PESCADOS, CRUSTÁCEOS Y MOLUSCOS
B59: 1030 | C59: ELABORACIÒN Y CONSERVACIÓN DE FRUTAS,LEGUMBRES Y HORTALIZAS
B60: 1040 | C60: ELABORACIÓN DE ACEITES Y GRASAS DE ORIGEN VEGETAL Y ANIMAL
B61: 1050 | C61: ELABORACIÓN DE PRODUCTOS LÁCTEOS
B62: 1061 | C62: ELABORACIÓN DE PRODUCTOS DE MOLINERÍA.
B63: 1062 | C63: ELABORACIÓN DE ALMIDONES Y PRODUCTOS DERIVADOS DEL ALMIDÓN.
B64: 1071 | C64: ELABORACIÓN DE PRODUCTOS DE PANADERÍA
B65: 1072 | C65: ELABORACIÓN DE AZÚCAR
B66: 1073 | C66: ELABORACIÓN DE CACAO Y CHOCOLATE Y DE PRODUCTOS DE CONFITERÍA
B67: 1074 | C67: ELABORACIÓN DE MACARRONES, FIDEOS, ALCUZCUS Y PRODUCTOS FARINÁCEOS SIMILARES
B68: 1075 | C68: ELABORACIÓN DE COMIDAS Y PLATOS PREPARADOS
B69: 1079 | C69: ELABORACIÓN DE OTROS PRODUCTOS ALIMENTICIOS N.C.P.
B70: 1080 | C70: ELABORACIÓN DE PIENSOS PREPARADOS PARA ANIMALES
B71: 1101 | C71: DESTILACIÓN, RECTIFICACIÓN Y MEZCLA DE BEBIDAS ALCOHÓLICAS
B72: 1102 | C72: ELABORACIÓN DE VINOS
B73: 1103 | C73: ELABORACIÓN DE BEBIDAS MALTEADAS Y DE MALTA
B74: 1104 | C74: ELABORACIÓN DE BEBIDAS NO ALCOHÓLICAS; PRODUCCIÓN DE AGUAS MINERALES Y OTRAS AGUAS EMBOTELLADAS
B75: 1200 | C75: ELABORACIÓN DE PRODUCTOS DE TABACO
B76: 1311 | C76: PREPARACIÓN E HILATURA DE FIBRAS TEXTILES
B77: 1312 | C77: TEJEDURA DE PRODUCTOS TEXTILES
B78: 1313 | C78: ACABADO DE PRODUCTOS TEXTILES
B79: 1391 | C79: FABRICACIÓN DE TEJIDOS DE PUNTO Y GANCHILLO
B80: 1392 | C80: FABRICACIÓN DE ARTÍCULOS CONFECCIONADOS DE MATERIALES TEXTILES, EXCEPTO PRENDAS DE VESTIR
B81: 1393 | C81: FABRICACIÓN DE TAPICES Y ALFOMBRAS
B82: 1394 | C82: FABRICACIÓN DE CUERDAS, CORDELES, BRAMANTES Y REDES
B83: 1399 | C83: FABRICACIÓN DE OTROS PRODUCTOS TEXTILES N.C.P.
B84: 1410 | C84: FABRICACIÓN DE PRENDAS DE VESTIR, EXCEPTO PRENDAS DE PIEL
B85: 1420 | C85: FABRICACIÓN DE ARTÍCULOS DE PIEL
B86: 1430 | C86: FABRICACIÓN DE ARTICULOS DE PUNTO Y GANCHILLO
B87: 1511 | C87: CURTIDO Y ADOBO DE CUEROS; ADOBO Y TEÑIDO DE PIELES
B88: 1512 | C88: FABRICACIÓN DE MALETAS, BOLSOS DE MANO, Y ARTÍCULOS SIMILARES,Y DE ARTICULOS DE TALABARTERÍA Y GUARNICIONERÍA
B89: 1520 | C89: FABRICACIÓN DE CALZADO
B90: 1610 | C90: ASERRADOS Y ACEPILLADURA DE MADERA
B91: 1621 | C91: FABRICACIÓN DE HOJAS DE MADERA PARA ENCHAPADO Y TABLEROS A BASE DE MADERA
B92: 1622 | C92: FABRICACIÓN DE PARTES Y PIEZAS DE CARPINTERÍA PARA EDIFICIOS Y CONSTRUCCIONES
B93: 1623 | C93: FABRICACIÓN DE RECIPIENTES DE MADERA
B94: 1629 | C94: FABRICACIÓN DE OTROS PRODUCTOS DE MADERA; FABRICACIÓN DE ARTÍCULOS DE CORCHO, PAJA Y MATERIALES TRENZABLES.
B95: 1701 | C95: FABRICACIÓN DE PASTA DE MADERA, PAPEL Y CARTÓN
B96: 1702 | C96: FABRICACIÓN DEL PAPEL Y CARTÓN ONDULADO Y DE ENVASES DE PAPEL Y CARTÓN
B97: 1709 | C97: FABRICACIÓN DE OTROS ARTÍCULOS DEL PAPEL Y CARTÓN
B98: 1811 | C98: IMPRESIÓN
B99: 1812 | C99: ACTIVIDADES DE SERVICIOS RELACIONADAS CON LA IMPRESIÓN
B100: 1820 | C100: REPRODUCCIÓN DE GRABACIONES
B101: 1910 | C101: FABRICACIÓN DE PRODUCTOS DE HORNOS DE COQUE
B102: 1920 | C102: FABRICACIÓN DE PRODUCTOS DE LA REFINACIÓN DEL PETRÓLEO
B103: 2011 | C103: FABRICACIÓN DE SUSTANCIAS QUÍMICAS BÁSICAS
B104: 2012 | C104: FABRICACIÓN ABONOS Y COMPUESTOS DE NITRÓGENO
B105: 2013 | C105: FABRICACIÓN DE PLÁSTICOS Y DE CAUCHO SINTÉTICO EN FORMAS PRIMARIAS
B106: 2021 | C106: FABRICACIÓN DE PLAGUICIDAS Y OTROS PRODUCTOS QUÍMICOS DE USO AGROPECUARIO
B107: 2022 | C107: FABRICACIÓN DE PINTURAS, BARNICES Y PRODUCTOS DE REVESTIMIENTO SIMILARES, TINTAS DE IMPRENTA Y MASILLAS
B108: 2023 | C108: FABRICACIÓN DE JABONES Y DETERGENTES, PREPARADOS PARA LIMPIAR Y PULIR, PERFUMES Y PREPARADOS DE TOCADOR.
B109: 2029 | C109: FABRICACIÓN DE OTROS PRODUCTOS QUÍMICOS N.C.P.
B110: 2030 | C110: FABRICACIÓN DE FIBRAS ARTIFICIALES
B111: 2100 | C111: FABRICACIÓN DE PRODUCTOS FARMACÉUTICOS, SUSTANCIAS QUÍMICAS MEDICINALES Y PRODUCTOS BOTÁNICOS DE USO FARMACÉUTICO
B112: 2211 | C112: FABRICACIÓN DE CUBIERTAS Y CÁMARAS DE CAUCHO; RECAUCHUTADO Y RENOVACIÓN DE CUBIERTAS DE CAUCHO
B113: 2219 | C113: FABRICACIÓN DE OTROS PRODUCTOS DE CAUCHO
B114: 2220 | C114: FABRICACIÓN DE PRODUCTOS DE PLÁSTICO
B115: 2310 | C115: FABRICACIÓN DE VIDRIO Y DE PRODUCTOS DE VIDRIO
B116: 2391 | C116: FABRICACIÓN DE PRODUCTOS REFRACTARIOS
B117: 2392 | C117: FABRICACIÓN DE MATERIALES DE CONSTRUCCIÓN DE ARCILLA
B118: 2393 | C118: FABRICACIÓN DE OTROS PRODUCTOS DE PORCELANA Y DE CERÁMICA
B119: 2394 | C119: FABRICACIÓN DE CEMENTO, CAL Y YESO
B120: 2395 | C120: FABRICACIÓN DE ARTÍCULOS DE HORMIGÓN, DE CEMENTO Y DE YESO
B121: 2396 | C121: CORTE, TALLA Y ACABADO DE LA PIEDRA
B122: 2399 | C122: FABRICACIÓN DE OTROS PRODUCTOS MINERALES NO METÁLICOS N.C.P.
B123: 2410 | C123: INDUSTRIAS BÁSICAS DE HIERRO Y ACERO
B124: 2420 | C124: FABRICACIÓN DE PRODUCTOS PRIMARIOS DE METALES PRECIOSOS Y OTROS METALES NO FERROSOS
B125: 2431 | C125: FUNDICIÓN DE HIERRO Y ACERO
B126: 2432 | C126: FUNDICIÓN DE METALES NO FERROSOS
B127: 2511 | C127: FABRICACIÓN DE PRODUCTOS METÁLICOS PARA USO ESTRUCTURAL
B128: 2512 | C128: FABRICACIÓN DE TANQUES, DEPÓSITOS Y RECIPIENTES DE METAL
B129: 2513 | C129: FABRICACIÓN DE LOS GENERADORES DEL VAPOR, EXCEPTO CALDERAS DE AGUA CALIENTE PARA CALEFACCIÓN CENTRAL
B130: 2520 | C130: FABRICACIÓN DE ARMAS Y MUNICIONES
B131: 2591 | C131: FORJA, PRENSADO, ESTAMPADO Y LAMINADO DE METALES; PULVIMETALURGIA
B132: 2592 | C132: TRATAMIENTO Y REVESTIMIENTO DE METALES; MAQUINADO
B133: 2593 | C133: FABRICACIÓN DE ARTÍCULOS DE CUCHILLERÍA, HERRAMIENTAS DE MANO Y ARTÍCULOS DE FERRETERÍA
B134: 2599 | C134: FABRICACIÓN DE OTROS PRODUCTOS ELABORADOS DE METAL N.C.P.
B135: 2610 | C135: FABRICACIÓN DE COMPONENTES Y TABLEROS ELECTRÓNICOS
B136: 2620 | C136: FABRICACIÓN DE ORDENADORES Y EQUIPO PERIFÉRICO
B137: 2630 | C137: FABRICACIÓN DE EQUIPOS DE COMUNICACIONES
B138: 2640 | C138: FABRICACIÓN DE APARATOS ELECTRÓNICOS DE CONSUMO
B139: 2651 | C139: FABRICACIÓN DE EQUIPO DE MEDICIÓN, PRUEBA, NAVEGACIÓN Y CONTROL
B140: 2652 | C140: FABRICACIÓN DE RELOJES
B141: 2660 | C141: FABRICACIÓN DE EQUIPO DE IRRADIACIÓN Y EQUIPO ELECTRÓNICO DE USO MÉDICO Y TERAPÉUTICO
B142: 2670 | C142: FABRICACIÓN DE INSTRUMENTOS ÓPTICOS Y EQUIPO FOTOGRÁFICO
B143: 2680 | C143: FABRICACIÓN DE SOPORTES MAGNÉTICOS Y ÓPTICOS
B144: 2710 | C144: FABRICACIÓN DE MOTORES, GENERADORES Y TRANSFORMADORES ELÉCTRICOS Y APARATOS DE DISTRIBUCIÓN Y CONTROL DE LA ENERGÍA ELÉCTRICA
B145: 2720 | C145: FABRICACIÓN DE PILAS, BATERÍAS Y ACUMULADORES
B146: 2731 | C146: FABRICACIÓN DE CABLES DE FIBRA ÓPTICA
B147: 2732 | C147: FABRICACIÓN DE OTROS HILOS Y CABLES ELÉCTRICOS
B148: 2733 | C148: FABRICACIÓN DE DISPOSITIVOS DE CABLEADO
B149: 2740 | C149: FABRICACIÓN DE EQUIPO ELÉCTRICO DE ILUMINACIÓN
B150: 2750 | C150: FABRICACIÓN DE APARATOS DE USO DOMÉSTICO
B151: 2790 | C151: FABRICACIÓN DE OTROS TIPOS DE EQUIPO ELÉCTRICO
B152: 2811 | C152: FABRICACIÓN DE MOTORES Y TURBINAS, EXCEPTO MOTORES PARA AERONAVES, VEHÍCULOS AUTOMOTORES Y MOTOCICLETAS
B153: 2812 | C153: FABRICACIÓN DE EQUIPO DE PROPULSIÓN DE FLUIDOS
B154: 2813 | C154: FABRICACIÓN DE BOMBAS, COMPRESORES, GRIFOS Y VÁLVULAS
B155: 2814 | C155: FABRICACIÓN DE COJINETES, ENGRANAJES, TRENES DE ENGRANAJES Y PIEZAS DE TRANSMISIÓN
B156: 2815 | C156: FABRICACIÓN DE HORNOS, HOGARES Y QUEMADORES
B157: 2816 | C157: FABRICACIÓN DE EQUIPO DE ELEVACIÓN Y MANIPULACIÓN
B158: 2817 | C158: FABRICACIÓN DE MAQUINARIA Y EQUIPO DE OFICINA (EXCEPTO ORDENADORES Y EQUIPO PERIFÉRICO)
B159: 2818 | C159: FABRICACIÓN DE HERRAMIENTAS DE MANO MOTORIZADAS
B160: 2819 | C160: FABRICACIÓN DE OTROS TIPOS DE MAQUINARIA DE USO GENERAL
B161: 2821 | C161: FABRICACIÓN DE MAQUINARIA AGROPECUARIA Y FORESTAL
B162: 2822 | C162: FABRICACIÓN DE MAQUINARIA PARA LA CONFORMACIÓN DE METALES Y DE MÁQUINAS HERRAMIENTA
B163: 2823 | C163: FABRICACIÓN DE MAQUINARIA METALÚRGICA
B164: 2824 | C164: FABRICACIÓN DE MAQUINARIA PARA EXPLOTACIÓN DE MINAS Y CANTERAS Y PARA OBRAS DE CONSTRUCCIÓN
B165: 2825 | C165: FABRICACIÓN DE MAQUINARIA PARA LA ELABORACIÓN DE ALIMENTOS, BEBIDAS Y TABACO
B166: 2826 | C166: FABRICACIÓN DE MAQUINARIA PARA LA ELABORACIÓN DE PRODUCTOS TEXTILES, PRENDAS DE VESTIR Y CUEROS
B167: 2829 | C167: FABRICACIÓN DE OTROS TIPOS DE MAQUINARIA DE USO ESPECIAL
B168: 2910 | C168: FABRICACIÓN DE VEHÍCULOS AUTOMOTORES
B169: 2920 | C169: FABRICACIÓN DE CARROCERÍAS PARA VEHÍCULOS AUTOMOTORES; FABRICACIÓN DE REMOLQUES Y SEMIRREMOLQUES
B170: 2930 | C170: FABRICACIÓN DE PARTES, PIEZAS Y ACCESORIOS PARA VEHÍCULOS DE AUTOMOTORES
B171: 3011 | C171: CONSTRUCCIÓN DE BUQUES Y ESTRUCTURAS FLOTANTES
B172: 3012 | C172: CONSTRUCCIÓN DE EMBARCACIONES DE RECREO Y DEPORTE
B173: 3020 | C173: FABRICACIÓN DE LOCOMOTORAS Y DE MATERIAL RODANTE
B174: 3030 | C174: FABRICACIÓN DE AERONAVES Y NAVES ESPACIALES Y MAQUINARIA CONEXA
B175: 3040 | C175: FABRICACIÓN DE VEHÍCULOS MILITARES DE COMBATE
B176: 3091 | C176: FABRICACIÓN DE MOTOCICLETAS
B177: 3092 | C177: FABRICACIÓN DE BICICLETAS Y DE SILLONES DE RUEDAS PARA INVÁLIDOS
B178: 3099 | C178: FABRICACIÓN DE OTROS TIPOS DE EQUIPO DE TRANSPORTE N.C.P.
B179: 3100 | C179: FABRICACIÓN DE MUEBLES
B180: 3211 | C180: FABRICACIÓN DE JOYAS Y ARTÍCULOS CONEXOS
B181: 3212 | C181: FABRICACIÓN DE BISUTERÍA Y ARTÍCULOS CONEXOS
B182: 3220 | C182: FABRICACIÓN DE INSTRUMENTOS DE MÚSICA
B183: 3230 | C183: FABRICACIÓN DE ARTÍCULOS DE DEPORTE
B184: 3240 | C184: FABRICACIÓN DE JUEGOS Y JUGUETES
B185: 3250 | C185: FABRICACIÓN DE INSTRUMENTOS Y MATERIALES MÉDICOS Y ODONTOLÓGICOS
B186: 3290 | C186: OTRAS INDUSTRIAS MANUFACTURERAS N.C.P.
B187: 3311 | C187: REPARACIÓN DE PRODUCTOS ELABORADOS DE METAL
B188: 3312 | C188: REPARACIÓN DE MAQUINARIA
B189: 3313 | C189: REPARACIÓN DE EQUIPO ELECTRÓNICO Y ÓPTICO
B190: 3314 | C190: REPARACIÓN DE EQUIPO ELÉCTRICO
B191: 3315 | C191: REPARACIÓN DE EQUIPO DE TRANSPORTE, EXCEPTO VEHÍCULOS AUTOMOTORES
B192: 3319 | C192: REPARACIÓN DE OTROS TIPOS DE EQUIPO
B193: 3320 | C193: INSTALACIÓN DE MAQUINARIA Y EQUIPO INDUSTRIALES
B194: 3510 | C194: GENERACIÓN, TRANSMISIÓN Y DISTRIBUCIÓN DE ENERGÍA ELÉCTRICA
B195: 3520 | C195: FABRICACIÓN DEL GAS; DISTRIBUCIÓN DE COMBUSTIBLES GASEOSOS POR TUBERÍAS
B196: 3530 | C196: SUMINISTRO DE VAPOR Y AIRE ACONDICIONADO
B197: 3600 | C197: CAPTACIÓN, TRATAMIENTO Y DISTRIBUCIÓN DE AGUA
B198: 3700 | C198: EVACUACIÓN DE AGUAS RESIDUALES
B199: 3811 | C199: RECOGIDA DE DESECHOS NO PELIGROSOS
B200: 3812 | C200: RECOGIDA DE DESECHOS PELIGROSOS
B201: 3821 | C201: TRATAMIENTO Y ELIMINACIÓN DE DESECHOS NO PELIGROSOS
B202: 3822 | C202: TRATAMIENTO Y ELIMINACIÓN DE DESECHOS PELIGROSOS
... 219 more rows

Sheet Ayuda Material
B2: COD MATERIAL | C2: MATERIAL DE CONSTRUCCION | D2: DEFINICIÓN DE TIPOS DE ESTRUCTURAS | E2: DEFINICIÓN AMIGABLE | F2: PISOS | H2: SOTANOS | J2: Imagen Referencial
F3: # MAXIMO | G3: #MINIMO | H3: # MAXIMO | I3: #MINIMO
B4: 1.0AC | C4: PÓRTICO DE ACERO ARRIOSTRADO CON DIAGONALES | D4: Edificio compuesto por pórticos ensamblados con vigas y columnas de acero y la inclusión de arriostres diagonales en los vanos. Los diafragmas son de losas de concreto vaciado in situ, sistema de placa colaborante (steel deck) con concreto apoyado sobre vigas de acero o entramados de acero con una rigidez relativamente mayor que la de los pórticos. Fuerza lateral es resistida por los pórticos de acero donde las diagonales concentraran la deformación inelástica. La cimentación de este sistema estructural con zapatas aisladas. | E4: Estuctura formada por columnas y vigas de acero con refuerzos diagonales del mismo material. | F4: 50 | G4: 1 | H4: 15 | I4: 0
B5: 2.0AQ | C5: ADOBE Y QUINCHA | D5: Construcción de uno o dos niveles, con posibles altillos. Típicamente muros de adobe de gran espesor en el primer nivel y estructura de quincha en el segundo. Techos y entrepisos de madera, en algunos casos con cielo rasos de yeso. Las fuerzas laterales son resistidas por los muros. Poseen diafragmas flexibles, constituidos por viguetas de madera y entablados. Utilizan una cimentación corrida de concreto ciclópeo. | E5: Construcción de uno o dos niveles, con posibles altillos. Típicamente muros de adobe de gran espesor en el primer nivel y estructura de quincha en el segundo. Techos y entrepisos de madera, en algunos casos con cielo rasos de yeso. | F5: 3 | G5: 1 | H5: 0 | I5: 0
B6: 3.0CA | C6: PÓRTICOS DE CONCRETO ARMADO | D6: Estructuras con pórticos de concreto armado, habitualmente para uso comercial o de vivienda. Los pisos y techos son por lo general losas aligeradas, que pueden ser con viguetas prefabricadas. Con menos frecuencia se emplean losas macizas, encasetonados y otros. Las cargas de gravedad son resistidas por las vigas y columnas que conforman los pórticos. Las cargas laterales son también resistidas por los pórticos, en los que puede tenerse un pequeño número de placas, tales como las de cajas de escaleras y de ascensores. Puede suponerse que los diafragmas son rígidos. En este sistema estructural se utiliza una cimentación con zapatas aisladas. Excepcionalmente se tienen estructuras cimentadas sobre pilotes, plateas de cimentación. | E6: Estuctura resistente formada por columnas y vigas de concreto armado, formando pórticos, las columnas pueden ser cuadradas o circulares. | F6: 20 | G6: 1 | H6: 15 | I6: 0
B7: 4.0CP | C7: PÓRTICOS DE CONCRETO ARMADO CON PLACAS (1) | D7: Similar a CA excepto porque prácticamente la totalidad de la fuerza lateral es resistida por placas de concreto armado de gran rigidez. | E7: Similar a CA, adicionalmente cuenta con muros de concreto armado (placas) que aumentan la rigidez. | F7: 50 | G7: 1 | H7: 15 | I7: 0
B8: 5.0DL | C8: MUROS DE CONCRETO ARMADO DE DUCTILIDAD LIMITADA | D8: Construcciones cuyo sistema estructural está basado en muros de pared delgada, entre 8 cm y 12 cm, que tienen como acero de refuerzo, malla electrosoldada con elementos de confinamiento de capacidad limitada o puede prescindirse de extremos confinados. De acuerdo a la Norma Técnica de Edificaciones – Diseño Sismorresistente, (NTE E030-2016), se pueden construir hasta ocho niveles. Sin embargo, existen una gran cantidad de edificios con muros de ductilidad limitada con mayor número de pisos construidos previos a esta norma, que incorporan a este tipo de muros, acero de refuerzo dúctil en el tercio inferior de su altura. | E8: Estructura resistente formada por muros de concreto armado de espesores reducidos, se prescinde de extremos confinados, con losas macizas o aligeradas. | F8: 20 | G8: 1 | H8: 0 | I8: 0
B9: 6.0EM | C9: ENTRAMADOS DE MADERA | D9: Construcciones de uno o más pisos, típicamente viviendas unifamiliares. Cargas moderadas. Luces relativamente cortas. Los pisos y techos están construidos a base de viguetas de madera, con separaciones del orden de 40 a 60 cm, que se apoyan sobre pie derechos o dinteles. Excepcionalmente pueden tenerse algunas columnas aisladas. Las acciones de sismo son soportadas por los muros, cuya rigidez depende del revestimiento. Los diafragmas son flexibles. Frecuentemente están constituidos por entablados de madera. | E9: Estructura resistente formada por elementos de madera tanto en vigas, columnas y muros. | F9: 3 | G9: 1 | H9: 0 | I9: 0
B10: 7.0M1 | C10: MAMPOSTERÍA DE ARCILLA SIN REFUERZO | D10: Muros portantes de mampostería sólida sin refuerzo ni elementos de confinamiento, típicamente con muros de cabeza o de mayor espesor. Las fuerzas laterales son resistidas por los muros. Los diafragmas de entrepiso son rígidos, con losas aligeradas o macizas. Su cimentación corrida de concreto ciclópeo, excepcionalmente zapatas aisladas. | E10: Muros portantes de ladrillos de arcilla que no tienen columnas de confinamiento, muros de mayor espesor. | F10: 6 | G10: 1 | H10: 0 | I10: 0
B11: 8.0M2R | C11: MAMPOSTERÍA ARMADA O CONFINADA CON DIAFRAGMAS RÍGIDOS | D11: Muros portantes de mampostería confinada, con unidades sólidas. Unidades de arcilla, concreto o sílico calcáreas. Puede tener algunas pequeñas columnas de acero o madera. Las fuerzas laterales son resistidas por los muros. Poseen diafragmas rígidos en pisos, con losas aligeradas o macizas. Utilizan cimentación corrida de concreto ciclópeo, excepcionalmente zapatas aisladas. | E11: Muros portantes de ladrillos de arcilla que tienen columnas de confinamiento en los extremos, o refuerzo interior de acero, con losas aligeradas o macizas. | F11: 6 | G11: 1 | H11: 1 | I11: 0
B12: 9.0M2F | C12: MAMPOSTERÍA ARMADA O CONFINADA CON DIAFRAGMAS FLEXIBLES | D12: Similar a M2R excepto por tener diafragmas de piso o techo flexibles, con viguetas de madera o de acero, incluyendo viguetas reticuladas. No deben incluirse en este grupo las construcciones de dos o más niveles en las que sólo el último nivel tenga un diafragma flexible; éstas deben ser clasificadas como M2R. | E12: Muros portantes de ladrillos de arcilla que tienen columnas de confinamiento en los extremos, o refuerzo interior de acero, con piso o techo flexible de vigas de madera o acero. | F12: 6 | G12: 1 | H12: 1 | I12: 0
B13: 10.0M3 | C13: CONSTRUCCION INFORMAL EN ALBAÑERÍA | D13: Similar a M2, pero con unidades tubulares (pandereta), o con insuficiente confinamiento | E13: Similar a M2, pero con ladrillos de menor espesor (pandereta), o con insuficiente confinamiento | F13: 3 | G13: 1 | H13: 0 | I13: 0
B14: 11.0IC | C14: ESTRUCTURAS INDUSTRIALES / COMERCIALES (2) | D14: Estructuras con áreas mayores a 500 m2 y de grandes luces, destinadas a la industria o el comercio con pocos muros estructurales interiores. Generalmente este tipo de estructura está definido como por pórticos de acero de alma llena o una combinación de pórticos de concreto perimetrales con estructura metálica en los techos. La estructura de techos o pisos se basa en Tijerales de madera o de acero, que se apoyan en columnas de acero y/o columnas de concreto y/o elementos de mampostería. | E14: Estructuras de grandes luces, pocas o nulas columnas intermedias y sin compartimentación por muros. | F14: 5 | G14: 1 | H14: 0 | I14: 0
B15: 12.0EE | C15: ESTRUCTURAS ESPECIALES | D15: Para los efectos de la presente Nota Técnica son aquellas estructuras que presentan tipologías estructurales y/o tipos de usos que no permiten la debida aplicación de la metodología señalada en el presente documento, al carecer de la información mínima requerida o por la dificultad para identificarla, conforme a lo dispuesto en el Reglamento aprobado por la SBS y sus modificatorias | E15: Minas, Carreteras, Puentes, Reservorios, Tanques De Agua, Silos, Vías Ferreas, Torres De Transmisión, Instalaciones Sanitarias, Instalaciones Eléctricas, Tuberías Enterradas, Muelles o Puertos, Estructuras Hidraulicas, Sist. De Drenaje, Riego o Alcantarillado, Represas de Agua, Aeropuertos, Sistemas De Gas Natural, Sist De Instalaciones Petroleras Y Petroquímicas, Plantas De Tratamiento De Agua, Centrales Electricas o Hidroeléctricas, Estaciones Telemétricas, Estaciones De Tren, Estructuras Especiales (Otros) | F15: 15 | G15: 1 | H15: 3 | I15: 0

Sheet Ayuda GEO
B5: Paso1: | C5: Buscar "Google maps" en el buscador de su preferencia. | F5: https://maps.google.com
B8: Paso2: | C8: Ingresar los puntos de georreferenciación arrojados en el formato (separados por una coma).
B11: Paso3: | C11: Verificar en el mapa que la ubicación (el marcado rojo) corresponde a la dirección de la edificación (acercar lo más posible).
B14: Paso4: | C14: Si no corresponde, editar el detalle de la dirección dentro de la pestaña formato (Nombre de la calle, número, etc.). Hasta lograr una mejor precisión.

Sheet Preguntas Frecuentes (hidden)
C3: Preguntas Frecuentes
C5: ¿El tipo de uso es del edificio o del piso que se está asegurando?
C6: El tipo de uso es hace referencia a la actividad económica desarrollada en el….
C7: ¿El número de pisos es de bien asegurado o del edificio?
C11: ¿Que campos son obligatorios?
C12: Los campos obligatorios son: tipo de calle/vía, nombre de calle/vía, País, dpto., provincia, distrito, año de construcción de la edificación, tipo de material de construcción predominante, número de pisos del edificio, número de sótanos del edificio, tipo de uso y tipo de propiedad asegurada.
C13: ¿Que sucede si la dirección no tiene número?
C14: Si no tiene número dejar en blanco y optar por otros campos que ayuden a la georeferenciación (Mz , Lote, Km, etc.)
C15: ¿Que sucede si la dirección no tiene tipo de vía, es decir la dirección no tiene calle, av., etc.?
C16: Se deberá seleccionar al final del desplegable la opción sin tipo y completar los otros campos del detalle de la dirección de riesgo.
C17: ¿Por que se pinta de rojo la columna de ubigeo?
C18: La columna de ubigeo se muestra en rojo cuando el distrito, la provincia y el departamento no muestran consistencia.
C19: ¿Qué sucede si es una esquina y tiene 2 direcciones?
C20: Se recomienda utilizar la dirección que contenga la avenida principal dado que el motor de búsqueda es Google maps.
C21: ¿Qué sucede si hay refacciones, qué año se debe considerar como año de construcción?
C22: Se debe de considerar el año de construcción de la edificiación. En caso de haber tenido un reforzamiento estructural, considerar el año en que este fue realizado
C23: ¿Qué sucede si no conozco el material de construcción?
C24: Debe guiarse de la pestaña ayuda material incluida dentro de este formato.
C25: ¿Qué sucede si el local tiene actividad diferente a la principal?
C26: Se debe considerar la actividad que se realiza en la ubicación declarada considerando los campos tipo de uso / giro negocio / CIIU
C27: ¿Qué sucede si hay líneas de transmisión?
C28: Se seleccionará dentro de la columna Tipo de material la opción de Estructuras especiales y en la columna tipo de uso la opción EE Torres de transmisión.

Sheet TipoBien (hidden)
B2: DESCRIPCIÓN DEL BIEN | C2: CLASE | E2: DESCRIPCIÓN DEL BIEN | F2: CLASE | H2: DESCRIPCIÓN DEL BIEN | I2: CLASE | K2: VD Lucro
B3: SELECCIONAR OTRO (OPCIONAL) | C3: EDIFICACIÓN | E3: SELECCIONAR OTRO (OPCIONAL) | F3: CONTENIDO | H3: SELECCIONAR OTRO (OPCIONAL) | I3: LUCRO CESANTE | K3: 12
B4: AVISOS LUMINOSOS Y/O PANELES DE PUBLICIDAD | C4: EDIFICACIÓN | E4: ACERVO DOCUMENTARIO | F4: CONTENIDO | H4: Gastos estables (fijos) | I4: LUCRO CESANTE | K4: 18
B5: CARRETERAS | C5: EDIFICACIÓN | E5: ANIMALES VIVOS | F5: CONTENIDO | H5: Beneficio Bruto (margen de contribución) | I5: LUCRO CESANTE | K5: 24
B6: EDIFICACION (CUANDO SE ASEGURA A VALOR COMERCIAL) | C6: EDIFICACIÓN | E6: BIENES REFRIGERADOS | F6: CONTENIDO
B7: INSTALACIONES FIJAS Y/O MEJORAS | C7: EDIFICACIÓN | E7: CUADROS Y/U OBRAS DE ARTE | F7: CONTENIDO
B8: LINEAS DE TRANSMISION | C8: EDIFICACIÓN | E8: DINERO Y/O VALORES | F8: CONTENIDO
B9: MUELLES Y/O EMBARCADEROS | C9: EDIFICACIÓN | E9: EMBARCACIONES EN DIQUE SECO | F9: CONTENIDO
B10: PISCINAS | C10: EDIFICACIÓN | E10: EQUIPOS ELECTRONICOS | F10: CONTENIDO
B11: PISTAS, CERCOS Y/O VEREDAS | C11: EDIFICACIÓN | E11: EQUIPOS MEDICOS | F11: CONTENIDO
B12: PUENTES | C12: EDIFICACIÓN | E12: JOYAS | F12: CONTENIDO
B13: TANQUES | C13: EDIFICACIÓN | E13: MAQUINARIA MOVIL Y EQUIPOS | F13: CONTENIDO
B14: TORRES DE ILUMINACION | C14: EDIFICACIÓN | E14: MOBILIARIO EN GENERAL | F14: CONTENIDO
E15: MUEBLES , UTILES Y ENSERES | F15: CONTENIDO
E16: OTROS CONTENIDOS | F16: CONTENIDO
E17: PLANTACIONES | F17: CONTENIDO
E18: REPUESTOS Y/O HERRAMIENTAS | F18: CONTENIDO
E19: VEHICULOS PROPIOS Y/O DE TERCEROS (COMO CONTENIDO) | F19: CONTENIDO

Sheet Matriz_Ubi (hidden)
B1: AMA_01 | C1: ANC_02 | D1: APU_03 | E1: ARE_04 | F1: AYA_05 | G1: CAJ_06 | H1: CAL_07 | I1: CUS_08 | J1: HUA_09 | K1: HUA_10 | L1: ICA_11 | M1: JUN_12 | N1: LIB_13 | O1: LAM_14 | P1: LIM_15 | Q1: LOR_16 | R1: MAD_17 | S1: MOQ_18 | T1: PAS_19 | U1: PIU_20 | V1: PUN_21 | W1: SAN_22 | X1: TAC_23 | Y1: TUM_24 | Z1: UCA_25 | AA1: Otros
A2: 01 | B2: =IFERROR(VLOOKUP(MID(B$1,5,2)&$A2,Lista_Ubigeo!$F:$G,2,0)," ") -> CHACHAPOYAS | C2: =IFERROR(VLOOKUP(MID(C$1,5,2)&$A2,Lista_Ubigeo!$F:$G,2,0)," ") -> HUARAZ | D2: =IFERROR(VLOOKUP(MID(D$1,5,2)&$A2,Lista_Ubigeo!$F:$G,2,0)," ") -> ABANCAY | E2: =IFERROR(VLOOKUP(MID(E$1,5,2)&$A2,Lista_Ubigeo!$F:$G,2,0)," ") -> AREQUIPA | F2: =IFERROR(VLOOKUP(MID(F$1,5,2)&$A2,Lista_Ubigeo!$F:$G,2,0)," ") -> HUAMANGA | G2: =IFERROR(VLOOKUP(MID(G$1,5,2)&$A2,Lista_Ubigeo!$F:$G,2,0)," ") -> CAJAMARCA | H2: =IFERROR(VLOOKUP(MID(H$1,5,2)&$A2,Lista_Ubigeo!$F:$G,2,0)," ") -> CALLAO | I2: =IFERROR(VLOOKUP(MID(I$1,5,2)&$A2,Lista_Ubigeo!$F:$G,2,0)," ") -> CUSCO | J2: =IFERROR(VLOOKUP(MID(J$1,5,2)&$A2,Lista_Ubigeo!$F:$G,2,0)," ") -> HUANCAVELICA | K2: =IFERROR(VLOOKUP(MID(K$1,5,2)&$A2,Lista_Ubigeo!$F:$G,2,0)," ") -> HUANUCO | L2: =IFERROR(VLOOKUP(MID(L$1,5,2)&$A2,Lista_Ubigeo!$F:$G,2,0)," ") -> ICA | M2: =IFERROR(VLOOKUP(MID(M$1,5,2)&$A2,Lista_Ubigeo!$F:$G,2,0)," ") -> HUANCAYO | N2: =IFERROR(VLOOKUP(MID(N$1,5,2)&$A2,Lista_Ubigeo!$F:$G,2,0)," ") -> TRUJILLO | O2: =IFERROR(VLOOKUP(MID(O$1,5,2)&$A2,Lista_Ubigeo!$F:$G,2,0)," ") -> CHICLAYO | P2: =IFERROR(VLOOKUP(MID(P$1,5,2)&$A2,Lista_Ubigeo!$F:$G,2,0)," ") -> LIMA | Q2: =IFERROR(VLOOKUP(MID(Q$1,5,2)&$A2,Lista_Ubigeo!$F:$G,2,0)," ") -> MAYNAS | R2: =IFERROR(VLOOKUP(MID(R$1,5,2)&$A2,Lista_Ubigeo!$F:$G,2,0)," ") -> TAMBOPATA | S2: =IFERROR(VLOOKUP(MID(S$1,5,2)&$A2,Lista_Ubigeo!$F:$G,2,0)," ") -> MARISCAL NIETO | T2: =IFERROR(VLOOKUP(MID(T$1,5,2)&$A2,Lista_Ubigeo!$F:$G,2,0)," ") -> PASCO | U2: =IFERROR(VLOOKUP(MID(U$1,5,2)&$A2,Lista_Ubigeo!$F:$G,2,0)," ") -> PIURA | V2: =IFERROR(VLOOKUP(MID(V$1,5,2)&$A2,Lista_Ubigeo!$F:$G,2,0)," ") -> PUNO | W2: =IFERROR(VLOOKUP(MID(W$1,5,2)&$A2,Lista_Ubigeo!$F:$G,2,0)," ") -> MOYOBAMBA | X2: =IFERROR(VLOOKUP(MID(X$1,5,2)&$A2,Lista_Ubigeo!$F:$G,2,0)," ") -> TACNA | Y2: =IFERROR(VLOOKUP(MID(Y$1,5,2)&$A2,Lista_Ubigeo!$F:$G,2,0)," ") -> TUMBES | Z2: =IFERROR(VLOOKUP(MID(Z$1,5,2)&$A2,Lista_Ubigeo!$F:$G,2,0)," ") -> CORONEL PORTILLO | AA2: Otros
A3: 02 | B3: =IFERROR(VLOOKUP(MID(B$1,5,2)&$A3,Lista_Ubigeo!$F:$G,2,0)," ") -> BAGUA | C3: =IFERROR(VLOOKUP(MID(C$1,5,2)&$A3,Lista_Ubigeo!$F:$G,2,0)," ") -> AIJA | D3: =IFERROR(VLOOKUP(MID(D$1,5,2)&$A3,Lista_Ubigeo!$F:$G,2,0)," ") -> ANDAHUAYLAS | E3: =IFERROR(VLOOKUP(MID(E$1,5,2)&$A3,Lista_Ubigeo!$F:$G,2,0)," ") -> CAMANA | F3: =IFERROR(VLOOKUP(MID(F$1,5,2)&$A3,Lista_Ubigeo!$F:$G,2,0)," ") -> CANGALLO | G3: =IFERROR(VLOOKUP(MID(G$1,5,2)&$A3,Lista_Ubigeo!$F:$G,2,0)," ") -> CAJABAMBA | H3: =IFERROR(VLOOKUP(MID(H$1,5,2)&$A3,Lista_Ubigeo!$F:$G,2,0)," ") ->  | I3: =IFERROR(VLOOKUP(MID(I$1,5,2)&$A3,Lista_Ubigeo!$F:$G,2,0)," ") -> ACOMAYO | J3: =IFERROR(VLOOKUP(MID(J$1,5,2)&$A3,Lista_Ubigeo!$F:$G,2,0)," ") -> ACOBAMBA | K3: =IFERROR(VLOOKUP(MID(K$1,5,2)&$A3,Lista_Ubigeo!$F:$G,2,0)," ") -> AMBO | L3: =IFERROR(VLOOKUP(MID(L$1,5,2)&$A3,Lista_Ubigeo!$F:$G,2,0)," ") -> CHINCHA | M3: =IFERROR(VLOOKUP(MID(M$1,5,2)&$A3,Lista_Ubigeo!$F:$G,2,0)," ") -> CONCEPCION | N3: =IFERROR(VLOOKUP(MID(N$1,5,2)&$A3,Lista_Ubigeo!$F:$G,2,0)," ") -> ASCOPE | O3: =IFERROR(VLOOKUP(MID(O$1,5,2)&$A3,Lista_Ubigeo!$F:$G,2,0)," ") -> FERREÑAFE | P3: =IFERROR(VLOOKUP(MID(P$1,5,2)&$A3,Lista_Ubigeo!$F:$G,2,0)," ") -> BARRANCA | Q3: =IFERROR(VLOOKUP(MID(Q$1,5,2)&$A3,Lista_Ubigeo!$F:$G,2,0)," ") -> ALTO AMAZONAS | R3: =IFERROR(VLOOKUP(MID(R$1,5,2)&$A3,Lista_Ubigeo!$F:$G,2,0)," ") -> MANU | S3: =IFERROR(VLOOKUP(MID(S$1,5,2)&$A3,Lista_Ubigeo!$F:$G,2,0)," ") -> GENERAL SANCHEZ CERRO | T3: =IFERROR(VLOOKUP(MID(T$1,5,2)&$A3,Lista_Ubigeo!$F:$G,2,0)," ") -> DANIEL ALCIDES CARRION | U3: =IFERROR(VLOOKUP(MID(U$1,5,2)&$A3,Lista_Ubigeo!$F:$G,2,0)," ") -> AYABACA | V3: =IFERROR(VLOOKUP(MID(V$1,5,2)&$A3,Lista_Ubigeo!$F:$G,2,0)," ") -> AZANGARO | W3: =IFERROR(VLOOKUP(MID(W$1,5,2)&$A3,Lista_Ubigeo!$F:$G,2,0)," ") -> BELLAVISTA | X3: =IFERROR(VLOOKUP(MID(X$1,5,2)&$A3,Lista_Ubigeo!$F:$G,2,0)," ") -> CANDARAVE | Y3: =IFERROR(VLOOKUP(MID(Y$1,5,2)&$A3,Lista_Ubigeo!$F:$G,2,0)," ") -> CONTRALMIRANTE VILLAR | Z3: =IFERROR(VLOOKUP(MID(Z$1,5,2)&$A3,Lista_Ubigeo!$F:$G,2,0)," ") -> ATALAYA
A4: 03 | B4: =IFERROR(VLOOKUP(MID(B$1,5,2)&$A4,Lista_Ubigeo!$F:$G,2,0)," ") -> BONGARA | C4: =IFERROR(VLOOKUP(MID(C$1,5,2)&$A4,Lista_Ubigeo!$F:$G,2,0)," ") -> ANTONIO RAYMONDI | D4: =IFERROR(VLOOKUP(MID(D$1,5,2)&$A4,Lista_Ubigeo!$F:$G,2,0)," ") -> ANTABAMBA | E4: =IFERROR(VLOOKUP(MID(E$1,5,2)&$A4,Lista_Ubigeo!$F:$G,2,0)," ") -> CARAVELI | F4: =IFERROR(VLOOKUP(MID(F$1,5,2)&$A4,Lista_Ubigeo!$F:$G,2,0)," ") -> HUANCA SANCOS | G4: =IFERROR(VLOOKUP(MID(G$1,5,2)&$A4,Lista_Ubigeo!$F:$G,2,0)," ") -> CELENDIN | H4: =IFERROR(VLOOKUP(MID(H$1,5,2)&$A4,Lista_Ubigeo!$F:$G,2,0)," ") ->  | I4: =IFERROR(VLOOKUP(MID(I$1,5,2)&$A4,Lista_Ubigeo!$F:$G,2,0)," ") -> ANTA | J4: =IFERROR(VLOOKUP(MID(J$1,5,2)&$A4,Lista_Ubigeo!$F:$G,2,0)," ") -> ANGARAES | K4: =IFERROR(VLOOKUP(MID(K$1,5,2)&$A4,Lista_Ubigeo!$F:$G,2,0)," ") -> DOS DE MAYO | L4: =IFERROR(VLOOKUP(MID(L$1,5,2)&$A4,Lista_Ubigeo!$F:$G,2,0)," ") -> NAZCA | M4: =IFERROR(VLOOKUP(MID(M$1,5,2)&$A4,Lista_Ubigeo!$F:$G,2,0)," ") -> CHANCHAMAYO | N4: =IFERROR(VLOOKUP(MID(N$1,5,2)&$A4,Lista_Ubigeo!$F:$G,2,0)," ") -> BOLIVAR | O4: =IFERROR(VLOOKUP(MID(O$1,5,2)&$A4,Lista_Ubigeo!$F:$G,2,0)," ") -> LAMBAYEQUE | P4: =IFERROR(VLOOKUP(MID(P$1,5,2)&$A4,Lista_Ubigeo!$F:$G,2,0)," ") -> CAJATAMBO | Q4: =IFERROR(VLOOKUP(MID(Q$1,5,2)&$A4,Lista_Ubigeo!$F:$G,2,0)," ") -> LORETO | R4: =IFERROR(VLOOKUP(MID(R$1,5,2)&$A4,Lista_Ubigeo!$F:$G,2,0)," ") -> TAHUAMANU | S4: =IFERROR(VLOOKUP(MID(S$1,5,2)&$A4,Lista_Ubigeo!$F:$G,2,0)," ") -> ILO | T4: =IFERROR(VLOOKUP(MID(T$1,5,2)&$A4,Lista_Ubigeo!$F:$G,2,0)," ") -> OXAPAMPA | U4: =IFERROR(VLOOKUP(MID(U$1,5,2)&$A4,Lista_Ubigeo!$F:$G,2,0)," ") -> HUANCABAMBA | V4: =IFERROR(VLOOKUP(MID(V$1,5,2)&$A4,Lista_Ubigeo!$F:$G,2,0)," ") -> CARABAYA | W4: =IFERROR(VLOOKUP(MID(W$1,5,2)&$A4,Lista_Ubigeo!$F:$G,2,0)," ") -> EL DORADO | X4: =IFERROR(VLOOKUP(MID(X$1,5,2)&$A4,Lista_Ubigeo!$F:$G,2,0)," ") -> JORGE BASADRE | Y4: =IFERROR(VLOOKUP(MID(Y$1,5,2)&$A4,Lista_Ubigeo!$F:$G,2,0)," ") -> ZARUMILLA | Z4: =IFERROR(VLOOKUP(MID(Z$1,5,2)&$A4,Lista_Ubigeo!$F:$G,2,0)," ") -> PADRE ABAD
A5: 04 | B5: =IFERROR(VLOOKUP(MID(B$1,5,2)&$A5,Lista_Ubigeo!$F:$G,2,0)," ") -> CONDORCANQUI | C5: =IFERROR(VLOOKUP(MID(C$1,5,2)&$A5,Lista_Ubigeo!$F:$G,2,0)," ") -> ASUNCION | D5: =IFERROR(VLOOKUP(MID(D$1,5,2)&$A5,Lista_Ubigeo!$F:$G,2,0)," ") -> AYMARAES | E5: =IFERROR(VLOOKUP(MID(E$1,5,2)&$A5,Lista_Ubigeo!$F:$G,2,0)," ") -> CASTILLA | F5: =IFERROR(VLOOKUP(MID(F$1,5,2)&$A5,Lista_Ubigeo!$F:$G,2,0)," ") -> HUANTA | G5: =IFERROR(VLOOKUP(MID(G$1,5,2)&$A5,Lista_Ubigeo!$F:$G,2,0)," ") -> CHOTA | H5: =IFERROR(VLOOKUP(MID(H$1,5,2)&$A5,Lista_Ubigeo!$F:$G,2,0)," ") ->  | I5: =IFERROR(VLOOKUP(MID(I$1,5,2)&$A5,Lista_Ubigeo!$F:$G,2,0)," ") -> CALCA | J5: =IFERROR(VLOOKUP(MID(J$1,5,2)&$A5,Lista_Ubigeo!$F:$G,2,0)," ") -> CASTROVIRREYNA | K5: =IFERROR(VLOOKUP(MID(K$1,5,2)&$A5,Lista_Ubigeo!$F:$G,2,0)," ") -> HUACAYBAMBA | L5: =IFERROR(VLOOKUP(MID(L$1,5,2)&$A5,Lista_Ubigeo!$F:$G,2,0)," ") -> PALPA | M5: =IFERROR(VLOOKUP(MID(M$1,5,2)&$A5,Lista_Ubigeo!$F:$G,2,0)," ") -> JAUJA | N5: =IFERROR(VLOOKUP(MID(N$1,5,2)&$A5,Lista_Ubigeo!$F:$G,2,0)," ") -> CHEPEN | P5: =IFERROR(VLOOKUP(MID(P$1,5,2)&$A5,Lista_Ubigeo!$F:$G,2,0)," ") -> CANTA | Q5: =IFERROR(VLOOKUP(MID(Q$1,5,2)&$A5,Lista_Ubigeo!$F:$G,2,0)," ") -> MARISCAL RAMON CASTILLA | U5: =IFERROR(VLOOKUP(MID(U$1,5,2)&$A5,Lista_Ubigeo!$F:$G,2,0)," ") -> MORROPON | V5: =IFERROR(VLOOKUP(MID(V$1,5,2)&$A5,Lista_Ubigeo!$F:$G,2,0)," ") -> CHUCUITO | W5: =IFERROR(VLOOKUP(MID(W$1,5,2)&$A5,Lista_Ubigeo!$F:$G,2,0)," ") -> HUALLAGA | X5: =IFERROR(VLOOKUP(MID(X$1,5,2)&$A5,Lista_Ubigeo!$F:$G,2,0)," ") -> TARATA | Z5: =IFERROR(VLOOKUP(MID(Z$1,5,2)&$A5,Lista_Ubigeo!$F:$G,2,0)," ") -> PURUS
A6: 05 | B6: =IFERROR(VLOOKUP(MID(B$1,5,2)&$A6,Lista_Ubigeo!$F:$G,2,0)," ") -> LUYA | C6: =IFERROR(VLOOKUP(MID(C$1,5,2)&$A6,Lista_Ubigeo!$F:$G,2,0)," ") -> BOLOGNESI | D6: =IFERROR(VLOOKUP(MID(D$1,5,2)&$A6,Lista_Ubigeo!$F:$G,2,0)," ") -> COTABAMBAS | E6: =IFERROR(VLOOKUP(MID(E$1,5,2)&$A6,Lista_Ubigeo!$F:$G,2,0)," ") -> CAYLLOMA | F6: =IFERROR(VLOOKUP(MID(F$1,5,2)&$A6,Lista_Ubigeo!$F:$G,2,0)," ") -> LA MAR | G6: =IFERROR(VLOOKUP(MID(G$1,5,2)&$A6,Lista_Ubigeo!$F:$G,2,0)," ") -> CONTUMAZA | H6: =IFERROR(VLOOKUP(MID(H$1,5,2)&$A6,Lista_Ubigeo!$F:$G,2,0)," ") ->  | I6: =IFERROR(VLOOKUP(MID(I$1,5,2)&$A6,Lista_Ubigeo!$F:$G,2,0)," ") -> CANAS | J6: =IFERROR(VLOOKUP(MID(J$1,5,2)&$A6,Lista_Ubigeo!$F:$G,2,0)," ") -> CHURCAMPA | K6: =IFERROR(VLOOKUP(MID(K$1,5,2)&$A6,Lista_Ubigeo!$F:$G,2,0)," ") -> HUAMALIES | L6: =IFERROR(VLOOKUP(MID(L$1,5,2)&$A6,Lista_Ubigeo!$F:$G,2,0)," ") -> PISCO | M6: =IFERROR(VLOOKUP(MID(M$1,5,2)&$A6,Lista_Ubigeo!$F:$G,2,0)," ") -> JUNIN | N6: =IFERROR(VLOOKUP(MID(N$1,5,2)&$A6,Lista_Ubigeo!$F:$G,2,0)," ") -> JULCAN | P6: =IFERROR(VLOOKUP(MID(P$1,5,2)&$A6,Lista_Ubigeo!$F:$G,2,0)," ") -> CAÑETE | Q6: =IFERROR(VLOOKUP(MID(Q$1,5,2)&$A6,Lista_Ubigeo!$F:$G,2,0)," ") -> REQUENA | U6: =IFERROR(VLOOKUP(MID(U$1,5,2)&$A6,Lista_Ubigeo!$F:$G,2,0)," ") -> PAITA | V6: =IFERROR(VLOOKUP(MID(V$1,5,2)&$A6,Lista_Ubigeo!$F:$G,2,0)," ") -> EL COLLAO | W6: =IFERROR(VLOOKUP(MID(W$1,5,2)&$A6,Lista_Ubigeo!$F:$G,2,0)," ") -> LAMAS
A7: 06 | B7: =IFERROR(VLOOKUP(MID(B$1,5,2)&$A7,Lista_Ubigeo!$F:$G,2,0)," ") -> RODRIGUEZ DE MENDOZA | C7: =IFERROR(VLOOKUP(MID(C$1,5,2)&$A7,Lista_Ubigeo!$F:$G,2,0)," ") -> CARHUAZ | D7: =IFERROR(VLOOKUP(MID(D$1,5,2)&$A7,Lista_Ubigeo!$F:$G,2,0)," ") -> CHINCHEROS | E7: =IFERROR(VLOOKUP(MID(E$1,5,2)&$A7,Lista_Ubigeo!$F:$G,2,0)," ") -> CONDESUYOS | F7: =IFERROR(VLOOKUP(MID(F$1,5,2)&$A7,Lista_Ubigeo!$F:$G,2,0)," ") -> LUCANAS | G7: =IFERROR(VLOOKUP(MID(G$1,5,2)&$A7,Lista_Ubigeo!$F:$G,2,0)," ") -> CUTERVO | H7: =IFERROR(VLOOKUP(MID(H$1,5,2)&$A7,Lista_Ubigeo!$F:$G,2,0)," ") ->  | I7: =IFERROR(VLOOKUP(MID(I$1,5,2)&$A7,Lista_Ubigeo!$F:$G,2,0)," ") -> CANCHIS | J7: =IFERROR(VLOOKUP(MID(J$1,5,2)&$A7,Lista_Ubigeo!$F:$G,2,0)," ") -> HUAYTARA | K7: =IFERROR(VLOOKUP(MID(K$1,5,2)&$A7,Lista_Ubigeo!$F:$G,2,0)," ") -> LEONCIO PRADO | M7: =IFERROR(VLOOKUP(MID(M$1,5,2)&$A7,Lista_Ubigeo!$F:$G,2,0)," ") -> SATIPO | N7: =IFERROR(VLOOKUP(MID(N$1,5,2)&$A7,Lista_Ubigeo!$F:$G,2,0)," ") -> OTUZCO | P7: =IFERROR(VLOOKUP(MID(P$1,5,2)&$A7,Lista_Ubigeo!$F:$G,2,0)," ") -> HUARAL | Q7: =IFERROR(VLOOKUP(MID(Q$1,5,2)&$A7,Lista_Ubigeo!$F:$G,2,0)," ") -> UCAYALI | U7: =IFERROR(VLOOKUP(MID(U$1,5,2)&$A7,Lista_Ubigeo!$F:$G,2,0)," ") -> SULLANA | V7: =IFERROR(VLOOKUP(MID(V$1,5,2)&$A7,Lista_Ubigeo!$F:$G,2,0)," ") -> HUANCANE | W7: =IFERROR(VLOOKUP(MID(W$1,5,2)&$A7,Lista_Ubigeo!$F:$G,2,0)," ") -> MARISCAL CACERES
A8: 07 | B8: =IFERROR(VLOOKUP(MID(B$1,5,2)&$A8,Lista_Ubigeo!$F:$G,2,0)," ") -> UTCUBAMBA | C8: =IFERROR(VLOOKUP(MID(C$1,5,2)&$A8,Lista_Ubigeo!$F:$G,2,0)," ") -> CARLOS FERMIN FITZCARRALD | D8: =IFERROR(VLOOKUP(MID(D$1,5,2)&$A8,Lista_Ubigeo!$F:$G,2,0)," ") -> GRAU | E8: =IFERROR(VLOOKUP(MID(E$1,5,2)&$A8,Lista_Ubigeo!$F:$G,2,0)," ") -> ISLAY | F8: =IFERROR(VLOOKUP(MID(F$1,5,2)&$A8,Lista_Ubigeo!$F:$G,2,0)," ") -> PARINACOCHAS | G8: =IFERROR(VLOOKUP(MID(G$1,5,2)&$A8,Lista_Ubigeo!$F:$G,2,0)," ") -> HUALGAYOC | H8: =IFERROR(VLOOKUP(MID(H$1,5,2)&$A8,Lista_Ubigeo!$F:$G,2,0)," ") ->  | I8: =IFERROR(VLOOKUP(MID(I$1,5,2)&$A8,Lista_Ubigeo!$F:$G,2,0)," ") -> CHUMBIVILCAS | J8: =IFERROR(VLOOKUP(MID(J$1,5,2)&$A8,Lista_Ubigeo!$F:$G,2,0)," ") -> TAYACAJA | K8: =IFERROR(VLOOKUP(MID(K$1,5,2)&$A8,Lista_Ubigeo!$F:$G,2,0)," ") -> MARAÑON | M8: =IFERROR(VLOOKUP(MID(M$1,5,2)&$A8,Lista_Ubigeo!$F:$G,2,0)," ") -> TARMA | N8: =IFERROR(VLOOKUP(MID(N$1,5,2)&$A8,Lista_Ubigeo!$F:$G,2,0)," ") -> PACASMAYO | P8: =IFERROR(VLOOKUP(MID(P$1,5,2)&$A8,Lista_Ubigeo!$F:$G,2,0)," ") -> HUAROCHIRI | Q8: =IFERROR(VLOOKUP(MID(Q$1,5,2)&$A8,Lista_Ubigeo!$F:$G,2,0)," ") -> DATEM DEL MARAÑON | U8: =IFERROR(VLOOKUP(MID(U$1,5,2)&$A8,Lista_Ubigeo!$F:$G,2,0)," ") -> TALARA | V8: =IFERROR(VLOOKUP(MID(V$1,5,2)&$A8,Lista_Ubigeo!$F:$G,2,0)," ") -> LAMPA | W8: =IFERROR(VLOOKUP(MID(W$1,5,2)&$A8,Lista_Ubigeo!$F:$G,2,0)," ") -> PICOTA
A9: 08 | B9: =IFERROR(VLOOKUP(MID(B$1,5,2)&$A9,Lista_Ubigeo!$F:$G,2,0)," ") ->  | C9: =IFERROR(VLOOKUP(MID(C$1,5,2)&$A9,Lista_Ubigeo!$F:$G,2,0)," ") -> CASMA | D9: =IFERROR(VLOOKUP(MID(D$1,5,2)&$A9,Lista_Ubigeo!$F:$G,2,0)," ") ->  | E9: =IFERROR(VLOOKUP(MID(E$1,5,2)&$A9,Lista_Ubigeo!$F:$G,2,0)," ") -> LA UNION | F9: =IFERROR(VLOOKUP(MID(F$1,5,2)&$A9,Lista_Ubigeo!$F:$G,2,0)," ") -> PAUCAR DEL SARA SARA | G9: =IFERROR(VLOOKUP(MID(G$1,5,2)&$A9,Lista_Ubigeo!$F:$G,2,0)," ") -> JAEN | H9: =IFERROR(VLOOKUP(MID(H$1,5,2)&$A9,Lista_Ubigeo!$F:$G,2,0)," ") ->  | I9: =IFERROR(VLOOKUP(MID(I$1,5,2)&$A9,Lista_Ubigeo!$F:$G,2,0)," ") -> ESPINAR | K9: =IFERROR(VLOOKUP(MID(K$1,5,2)&$A9,Lista_Ubigeo!$F:$G,2,0)," ") -> PACHITEA | M9: =IFERROR(VLOOKUP(MID(M$1,5,2)&$A9,Lista_Ubigeo!$F:$G,2,0)," ") -> YAULI | N9: =IFERROR(VLOOKUP(MID(N$1,5,2)&$A9,Lista_Ubigeo!$F:$G,2,0)," ") -> PATAZ | P9: =IFERROR(VLOOKUP(MID(P$1,5,2)&$A9,Lista_Ubigeo!$F:$G,2,0)," ") -> HUAURA | Q9: =IFERROR(VLOOKUP(MID(Q$1,5,2)&$A9,Lista_Ubigeo!$F:$G,2,0)," ") -> PUTUMAYO | U9: =IFERROR(VLOOKUP(MID(U$1,5,2)&$A9,Lista_Ubigeo!$F:$G,2,0)," ") -> SECHURA | V9: =IFERROR(VLOOKUP(MID(V$1,5,2)&$A9,Lista_Ubigeo!$F:$G,2,0)," ") -> MELGAR | W9: =IFERROR(VLOOKUP(MID(W$1,5,2)&$A9,Lista_Ubigeo!$F:$G,2,0)," ") -> RIOJA
A10: 09 | B10: =IFERROR(VLOOKUP(MID(B$1,5,2)&$A10,Lista_Ubigeo!$F:$G,2,0)," ") ->  | C10: =IFERROR(VLOOKUP(MID(C$1,5,2)&$A10,Lista_Ubigeo!$F:$G,2,0)," ") -> CORONGO | D10: =IFERROR(VLOOKUP(MID(D$1,5,2)&$A10,Lista_Ubigeo!$F:$G,2,0)," ") ->  | E10: =IFERROR(VLOOKUP(MID(E$1,5,2)&$A10,Lista_Ubigeo!$F:$G,2,0)," ") ->  | F10: =IFERROR(VLOOKUP(MID(F$1,5,2)&$A10,Lista_Ubigeo!$F:$G,2,0)," ") -> SUCRE | G10: =IFERROR(VLOOKUP(MID(G$1,5,2)&$A10,Lista_Ubigeo!$F:$G,2,0)," ") -> SAN IGNACIO | H10: =IFERROR(VLOOKUP(MID(H$1,5,2)&$A10,Lista_Ubigeo!$F:$G,2,0)," ") ->  | I10: =IFERROR(VLOOKUP(MID(I$1,5,2)&$A10,Lista_Ubigeo!$F:$G,2,0)," ") -> LA CONVENCION | K10: =IFERROR(VLOOKUP(MID(K$1,5,2)&$A10,Lista_Ubigeo!$F:$G,2,0)," ") -> PUERTO INCA | M10: =IFERROR(VLOOKUP(MID(M$1,5,2)&$A10,Lista_Ubigeo!$F:$G,2,0)," ") -> CHUPACA | N10: =IFERROR(VLOOKUP(MID(N$1,5,2)&$A10,Lista_Ubigeo!$F:$G,2,0)," ") -> SANCHEZ CARRION | P10: =IFERROR(VLOOKUP(MID(P$1,5,2)&$A10,Lista_Ubigeo!$F:$G,2,0)," ") -> OYON | V10: =IFERROR(VLOOKUP(MID(V$1,5,2)&$A10,Lista_Ubigeo!$F:$G,2,0)," ") -> MOHO | W10: =IFERROR(VLOOKUP(MID(W$1,5,2)&$A10,Lista_Ubigeo!$F:$G,2,0)," ") -> SAN MARTIN
A11: 10 | B11: =IFERROR(VLOOKUP(MID(B$1,5,2)&$A11,Lista_Ubigeo!$F:$G,2,0)," ") ->  | C11: =IFERROR(VLOOKUP(MID(C$1,5,2)&$A11,Lista_Ubigeo!$F:$G,2,0)," ") -> HUARI | D11: =IFERROR(VLOOKUP(MID(D$1,5,2)&$A11,Lista_Ubigeo!$F:$G,2,0)," ") ->  | E11: =IFERROR(VLOOKUP(MID(E$1,5,2)&$A11,Lista_Ubigeo!$F:$G,2,0)," ") ->  | F11: =IFERROR(VLOOKUP(MID(F$1,5,2)&$A11,Lista_Ubigeo!$F:$G,2,0)," ") -> VICTOR FAJARDO | G11: =IFERROR(VLOOKUP(MID(G$1,5,2)&$A11,Lista_Ubigeo!$F:$G,2,0)," ") -> SAN MARCOS | H11: =IFERROR(VLOOKUP(MID(H$1,5,2)&$A11,Lista_Ubigeo!$F:$G,2,0)," ") ->  | I11: =IFERROR(VLOOKUP(MID(I$1,5,2)&$A11,Lista_Ubigeo!$F:$G,2,0)," ") -> PARURO | K11: =IFERROR(VLOOKUP(MID(K$1,5,2)&$A11,Lista_Ubigeo!$F:$G,2,0)," ") -> LAURICOCHA | N11: =IFERROR(VLOOKUP(MID(N$1,5,2)&$A11,Lista_Ubigeo!$F:$G,2,0)," ") -> SANTIAGO DE CHUCO | P11: =IFERROR(VLOOKUP(MID(P$1,5,2)&$A11,Lista_Ubigeo!$F:$G,2,0)," ") -> YAUYOS | V11: =IFERROR(VLOOKUP(MID(V$1,5,2)&$A11,Lista_Ubigeo!$F:$G,2,0)," ") -> SAN ANTONIO DE PUTINA | W11: =IFERROR(VLOOKUP(MID(W$1,5,2)&$A11,Lista_Ubigeo!$F:$G,2,0)," ") -> TOCACHE
A12: 11 | B12: =IFERROR(VLOOKUP(MID(B$1,5,2)&$A12,Lista_Ubigeo!$F:$G,2,0)," ") ->  | C12: =IFERROR(VLOOKUP(MID(C$1,5,2)&$A12,Lista_Ubigeo!$F:$G,2,0)," ") -> HUARMEY | D12: =IFERROR(VLOOKUP(MID(D$1,5,2)&$A12,Lista_Ubigeo!$F:$G,2,0)," ") ->  | E12: =IFERROR(VLOOKUP(MID(E$1,5,2)&$A12,Lista_Ubigeo!$F:$G,2,0)," ") ->  | F12: =IFERROR(VLOOKUP(MID(F$1,5,2)&$A12,Lista_Ubigeo!$F:$G,2,0)," ") -> VILCAS HUAMAN | G12: =IFERROR(VLOOKUP(MID(G$1,5,2)&$A12,Lista_Ubigeo!$F:$G,2,0)," ") -> SAN MIGUEL | H12: =IFERROR(VLOOKUP(MID(H$1,5,2)&$A12,Lista_Ubigeo!$F:$G,2,0)," ") ->  | I12: =IFERROR(VLOOKUP(MID(I$1,5,2)&$A12,Lista_Ubigeo!$F:$G,2,0)," ") -> PAUCARTAMBO | K12: =IFERROR(VLOOKUP(MID(K$1,5,2)&$A12,Lista_Ubigeo!$F:$G,2,0)," ") -> YAROWILCA | N12: =IFERROR(VLOOKUP(MID(N$1,5,2)&$A12,Lista_Ubigeo!$F:$G,2,0)," ") -> GRAN CHIMU | V12: =IFERROR(VLOOKUP(MID(V$1,5,2)&$A12,Lista_Ubigeo!$F:$G,2,0)," ") -> SAN ROMAN
A13: 12 | B13: =IFERROR(VLOOKUP(MID(B$1,5,2)&$A13,Lista_Ubigeo!$F:$G,2,0)," ") ->  | C13: =IFERROR(VLOOKUP(MID(C$1,5,2)&$A13,Lista_Ubigeo!$F:$G,2,0)," ") -> HUAYLAS | D13: =IFERROR(VLOOKUP(MID(D$1,5,2)&$A13,Lista_Ubigeo!$F:$G,2,0)," ") ->  | E13: =IFERROR(VLOOKUP(MID(E$1,5,2)&$A13,Lista_Ubigeo!$F:$G,2,0)," ") ->  | F13: =IFERROR(VLOOKUP(MID(F$1,5,2)&$A13,Lista_Ubigeo!$F:$G,2,0)," ") ->  | G13: =IFERROR(VLOOKUP(MID(G$1,5,2)&$A13,Lista_Ubigeo!$F:$G,2,0)," ") -> SAN PABLO | H13: =IFERROR(VLOOKUP(MID(H$1,5,2)&$A13,Lista_Ubigeo!$F:$G,2,0)," ") ->  | I13: =IFERROR(VLOOKUP(MID(I$1,5,2)&$A13,Lista_Ubigeo!$F:$G,2,0)," ") -> QUISPICANCHI | K13: =IFERROR(VLOOKUP(MID(K$1,5,2)&$A13,Lista_Ubigeo!$F:$G,2,0)," ") ->  | N13: =IFERROR(VLOOKUP(MID(N$1,5,2)&$A13,Lista_Ubigeo!$F:$G,2,0)," ") -> VIRU | V13: =IFERROR(VLOOKUP(MID(V$1,5,2)&$A13,Lista_Ubigeo!$F:$G,2,0)," ") -> SANDIA
A14: 13 | B14: =IFERROR(VLOOKUP(MID(B$1,5,2)&$A14,Lista_Ubigeo!$F:$G,2,0)," ") ->  | C14: =IFERROR(VLOOKUP(MID(C$1,5,2)&$A14,Lista_Ubigeo!$F:$G,2,0)," ") -> MARISCAL LUZURIAGA | D14: =IFERROR(VLOOKUP(MID(D$1,5,2)&$A14,Lista_Ubigeo!$F:$G,2,0)," ") ->  | E14: =IFERROR(VLOOKUP(MID(E$1,5,2)&$A14,Lista_Ubigeo!$F:$G,2,0)," ") ->  | F14: =IFERROR(VLOOKUP(MID(F$1,5,2)&$A14,Lista_Ubigeo!$F:$G,2,0)," ") ->  | G14: =IFERROR(VLOOKUP(MID(G$1,5,2)&$A14,Lista_Ubigeo!$F:$G,2,0)," ") -> SANTA CRUZ | H14: =IFERROR(VLOOKUP(MID(H$1,5,2)&$A14,Lista_Ubigeo!$F:$G,2,0)," ") ->  | I14: =IFERROR(VLOOKUP(MID(I$1,5,2)&$A14,Lista_Ubigeo!$F:$G,2,0)," ") -> URUBAMBA | K14: =IFERROR(VLOOKUP(MID(K$1,5,2)&$A14,Lista_Ubigeo!$F:$G,2,0)," ") ->  | V14: =IFERROR(VLOOKUP(MID(V$1,5,2)&$A14,Lista_Ubigeo!$F:$G,2,0)," ") -> YUNGUYO
A15: 14 | B15: =IFERROR(VLOOKUP(MID(B$1,5,2)&$A15,Lista_Ubigeo!$F:$G,2,0)," ") ->  | C15: =IFERROR(VLOOKUP(MID(C$1,5,2)&$A15,Lista_Ubigeo!$F:$G,2,0)," ") -> OCROS | D15: =IFERROR(VLOOKUP(MID(D$1,5,2)&$A15,Lista_Ubigeo!$F:$G,2,0)," ") ->  | E15: =IFERROR(VLOOKUP(MID(E$1,5,2)&$A15,Lista_Ubigeo!$F:$G,2,0)," ") ->  | F15: =IFERROR(VLOOKUP(MID(F$1,5,2)&$A15,Lista_Ubigeo!$F:$G,2,0)," ") ->  | G15: =IFERROR(VLOOKUP(MID(G$1,5,2)&$A15,Lista_Ubigeo!$F:$G,2,0)," ") ->  | H15: =IFERROR(VLOOKUP(MID(H$1,5,2)&$A15,Lista_Ubigeo!$F:$G,2,0)," ") ->  | I15: =IFERROR(VLOOKUP(MID(I$1,5,2)&$A15,Lista_Ubigeo!$F:$G,2,0)," ") ->  | K15: =IFERROR(VLOOKUP(MID(K$1,5,2)&$A15,Lista_Ubigeo!$F:$G,2,0)," ") -> 
A16: 15 | B16: =IFERROR(VLOOKUP(MID(B$1,5,2)&$A16,Lista_Ubigeo!$F:$G,2,0)," ") ->  | C16: =IFERROR(VLOOKUP(MID(C$1,5,2)&$A16,Lista_Ubigeo!$F:$G,2,0)," ") -> PALLASCA | D16: =IFERROR(VLOOKUP(MID(D$1,5,2)&$A16,Lista_Ubigeo!$F:$G,2,0)," ") ->  | E16: =IFERROR(VLOOKUP(MID(E$1,5,2)&$A16,Lista_Ubigeo!$F:$G,2,0)," ") ->  | F16: =IFERROR(VLOOKUP(MID(F$1,5,2)&$A16,Lista_Ubigeo!$F:$G,2,0)," ") ->  | G16: =IFERROR(VLOOKUP(MID(G$1,5,2)&$A16,Lista_Ubigeo!$F:$G,2,0)," ") ->  | H16: =IFERROR(VLOOKUP(MID(H$1,5,2)&$A16,Lista_Ubigeo!$F:$G,2,0)," ") ->  | I16: =IFERROR(VLOOKUP(MID(I$1,5,2)&$A16,Lista_Ubigeo!$F:$G,2,0)," ") ->  | K16: =IFERROR(VLOOKUP(MID(K$1,5,2)&$A16,Lista_Ubigeo!$F:$G,2,0)," ") -> 
A17: 16 | B17: =IFERROR(VLOOKUP(MID(B$1,5,2)&$A17,Lista_Ubigeo!$F:$G,2,0)," ") ->  | C17: =IFERROR(VLOOKUP(MID(C$1,5,2)&$A17,Lista_Ubigeo!$F:$G,2,0)," ") -> POMABAMBA | D17: =IFERROR(VLOOKUP(MID(D$1,5,2)&$A17,Lista_Ubigeo!$F:$G,2,0)," ") ->  | E17: =IFERROR(VLOOKUP(MID(E$1,5,2)&$A17,Lista_Ubigeo!$F:$G,2,0)," ") ->  | F17: =IFERROR(VLOOKUP(MID(F$1,5,2)&$A17,Lista_Ubigeo!$F:$G,2,0)," ") ->  | G17: =IFERROR(VLOOKUP(MID(G$1,5,2)&$A17,Lista_Ubigeo!$F:$G,2,0)," ") ->  | H17: =IFERROR(VLOOKUP(MID(H$1,5,2)&$A17,Lista_Ubigeo!$F:$G,2,0)," ") ->  | I17: =IFERROR(VLOOKUP(MID(I$1,5,2)&$A17,Lista_Ubigeo!$F:$G,2,0)," ") ->  | K17: =IFERROR(VLOOKUP(MID(K$1,5,2)&$A17,Lista_Ubigeo!$F:$G,2,0)," ") -> 
A18: 17 | B18: =IFERROR(VLOOKUP(MID(B$1,5,2)&$A18,Lista_Ubigeo!$F:$G,2,0)," ") ->  | C18: =IFERROR(VLOOKUP(MID(C$1,5,2)&$A18,Lista_Ubigeo!$F:$G,2,0)," ") -> RECUAY | D18: =IFERROR(VLOOKUP(MID(D$1,5,2)&$A18,Lista_Ubigeo!$F:$G,2,0)," ") ->  | E18: =IFERROR(VLOOKUP(MID(E$1,5,2)&$A18,Lista_Ubigeo!$F:$G,2,0)," ") ->  | F18: =IFERROR(VLOOKUP(MID(F$1,5,2)&$A18,Lista_Ubigeo!$F:$G,2,0)," ") ->  | G18: =IFERROR(VLOOKUP(MID(G$1,5,2)&$A18,Lista_Ubigeo!$F:$G,2,0)," ") ->  | H18: =IFERROR(VLOOKUP(MID(H$1,5,2)&$A18,Lista_Ubigeo!$F:$G,2,0)," ") ->  | I18: =IFERROR(VLOOKUP(MID(I$1,5,2)&$A18,Lista_Ubigeo!$F:$G,2,0)," ") ->  | K18: =IFERROR(VLOOKUP(MID(K$1,5,2)&$A18,Lista_Ubigeo!$F:$G,2,0)," ") -> 
A19: 18 | B19: =IFERROR(VLOOKUP(MID(B$1,5,2)&$A19,Lista_Ubigeo!$F:$G,2,0)," ") ->  | C19: =IFERROR(VLOOKUP(MID(C$1,5,2)&$A19,Lista_Ubigeo!$F:$G,2,0)," ") -> SANTA | D19: =IFERROR(VLOOKUP(MID(D$1,5,2)&$A19,Lista_Ubigeo!$F:$G,2,0)," ") ->  | E19: =IFERROR(VLOOKUP(MID(E$1,5,2)&$A19,Lista_Ubigeo!$F:$G,2,0)," ") ->  | F19: =IFERROR(VLOOKUP(MID(F$1,5,2)&$A19,Lista_Ubigeo!$F:$G,2,0)," ") ->  | G19: =IFERROR(VLOOKUP(MID(G$1,5,2)&$A19,Lista_Ubigeo!$F:$G,2,0)," ") ->  | H19: =IFERROR(VLOOKUP(MID(H$1,5,2)&$A19,Lista_Ubigeo!$F:$G,2,0)," ") ->  | I19: =IFERROR(VLOOKUP(MID(I$1,5,2)&$A19,Lista_Ubigeo!$F:$G,2,0)," ") ->  | K19: =IFERROR(VLOOKUP(MID(K$1,5,2)&$A19,Lista_Ubigeo!$F:$G,2,0)," ") -> 
A20: 19 | B20: =IFERROR(VLOOKUP(MID(B$1,5,2)&$A20,Lista_Ubigeo!$F:$G,2,0)," ") ->  | C20: =IFERROR(VLOOKUP(MID(C$1,5,2)&$A20,Lista_Ubigeo!$F:$G,2,0)," ") -> SIHUAS | D20: =IFERROR(VLOOKUP(MID(D$1,5,2)&$A20,Lista_Ubigeo!$F:$G,2,0)," ") ->  | E20: =IFERROR(VLOOKUP(MID(E$1,5,2)&$A20,Lista_Ubigeo!$F:$G,2,0)," ") ->  | F20: =IFERROR(VLOOKUP(MID(F$1,5,2)&$A20,Lista_Ubigeo!$F:$G,2,0)," ") ->  | G20: =IFERROR(VLOOKUP(MID(G$1,5,2)&$A20,Lista_Ubigeo!$F:$G,2,0)," ") ->  | H20: =IFERROR(VLOOKUP(MID(H$1,5,2)&$A20,Lista_Ubigeo!$F:$G,2,0)," ") ->  | I20: =IFERROR(VLOOKUP(MID(I$1,5,2)&$A20,Lista_Ubigeo!$F:$G,2,0)," ") ->  | K20: =IFERROR(VLOOKUP(MID(K$1,5,2)&$A20,Lista_Ubigeo!$F:$G,2,0)," ") -> 
A21: 20 | B21: =IFERROR(VLOOKUP(MID(B$1,5,2)&$A21,Lista_Ubigeo!$F:$G,2,0)," ") ->  | C21: =IFERROR(VLOOKUP(MID(C$1,5,2)&$A21,Lista_Ubigeo!$F:$G,2,0)," ") -> YUNGAY | D21: =IFERROR(VLOOKUP(MID(D$1,5,2)&$A21,Lista_Ubigeo!$F:$G,2,0)," ") ->  | E21: =IFERROR(VLOOKUP(MID(E$1,5,2)&$A21,Lista_Ubigeo!$F:$G,2,0)," ") ->  | F21: =IFERROR(VLOOKUP(MID(F$1,5,2)&$A21,Lista_Ubigeo!$F:$G,2,0)," ") ->  | G21: =IFERROR(VLOOKUP(MID(G$1,5,2)&$A21,Lista_Ubigeo!$F:$G,2,0)," ") ->  | H21: =IFERROR(VLOOKUP(MID(H$1,5,2)&$A21,Lista_Ubigeo!$F:$G,2,0)," ") ->  | I21: =IFERROR(VLOOKUP(MID(I$1,5,2)&$A21,Lista_Ubigeo!$F:$G,2,0)," ") ->  | K21: =IFERROR(VLOOKUP(MID(K$1,5,2)&$A21,Lista_Ubigeo!$F:$G,2,0)," ") -> 
A22: 21 | C22: =IFERROR(VLOOKUP(MID(C$1,5,2)&$A22,Lista_Ubigeo!$F:$G,2,0)," ") ->  | D22: =IFERROR(VLOOKUP(MID(D$1,5,2)&$A22,Lista_Ubigeo!$F:$G,2,0)," ") ->  | E22: =IFERROR(VLOOKUP(MID(E$1,5,2)&$A22,Lista_Ubigeo!$F:$G,2,0)," ") ->  | F22: =IFERROR(VLOOKUP(MID(F$1,5,2)&$A22,Lista_Ubigeo!$F:$G,2,0)," ") ->  | G22: =IFERROR(VLOOKUP(MID(G$1,5,2)&$A22,Lista_Ubigeo!$F:$G,2,0)," ") ->  | H22: =IFERROR(VLOOKUP(MID(H$1,5,2)&$A22,Lista_Ubigeo!$F:$G,2,0)," ") ->  | I22: =IFERROR(VLOOKUP(MID(I$1,5,2)&$A22,Lista_Ubigeo!$F:$G,2,0)," ") ->  | K22: =IFERROR(VLOOKUP(MID(K$1,5,2)&$A22,Lista_Ubigeo!$F:$G,2,0)," ") -> 
B23: CHA_0101 | C23: BAG_0102 | D23: BON_0103 | E23: CON_0104 | F23: LUY_0105 | G23: ROD_0106 | H23: UTC_0107 | I23: HUA_0201 | J23: AIJ_0202 | K23: ANT_0203 | L23: ASU_0204 | M23: BOL_0205 | N23: CAR_0206 | O23: CAR_0207 | P23: CAS_0208 | Q23: COR_0209 | R23: HUA_0210 | S23: HUA_0211 | T23: HUA_0212 | U23: MAR_0213 | V23: OCR_0214 | W23: PAL_0215 | X23: POM_0216 | Y23: REC_0217 | Z23: SAN_0218 | AA23: SIH_0219 | AB23: YUN_0220 | AC23: ABA_0301 | AD23: AND_0302 | AE23: ANT_0303 | AF23: AYM_0304 | AG23: COT_0305 | AH23: CHI_0306 | AI23: GRA_0307 | AJ23: ARE_0401 | AK23: CAM_0402 | AL23: CAR_0403 | AM23: CAS_0404 | AN23: CAY_0405 | AO23: CON_0406 | AP23: ISL_0407 | AQ23: LA_0408 | AR23: HUA_0501 | AS23: CAN_0502 | AT23: HUA_0503 | AU23: HUA_0504 | AV23: LA _0505 | AW23: LUC_0506 | AX23: PAR_0507 | AY23: PÀU_0508 | AZ23: SUC_0509 | BA23: VÍC_0510 | BB23: VIL_0511 | BC23: CAJ_0601 | BD23: CAJ_0602 | BE23: CEL_0603 | BF23: CHO_0604 | BG23: CON_0605 | BH23: CUT_0606 | BI23: HUA_0607 | BJ23: JAÉ_0608 | BK23: SAN_0609 | BL23: SAN_0610 | BM23: SAN_0611 | BN23: SAN_0612 | BO23: SAN_0613 | BP23: PRO_0701 | BQ23: CUS_0801 | BR23: ACO_0802 | BS23: ANT_0803 | BT23: CAL_0804 | BU23: CAN_0805 | BV23: CAN_0806 | BW23: CHU_0807 | BX23: ESP_0808 | BY23: LA_0809 | BZ23: PAR_0810 | CA23: PAU_0811 | CB23: QUI_0812 | CC23: URU_0813 | CD23: HUA_0901 | CE23: ACO_0902 | CF23: ANG_0903 | CG23: CAS_0904 | CH23: CHU_0905 | CI23: HUA_0906 | CJ23: TAY_0907 | CK23: HUÁ_1001 | CL23: AMB_1002 | CM23: DOS_1003 | CN23: HUA_1004 | CO23: HUA_1005 | CP23: LEO_1006 | CQ23: MAR_1007 | CR23: PAC_1008 | CS23: PUE_1009 | CT23: LAU_1010 | CU23: YAR_1011 | CV23: ICA_1101 | CW23: CHI_1102 | CX23: NAS_1103 | CY23: PAL_1104 | CZ23: PIS_1105 | DA23: HUA_1201 | DB23: CON_1202 | DC23: CHA_1203 | DD23: JAU_1204 | DE23: JUN_1205 | DF23: SAT_1206 | DG23: TAR_1207 | DH23: YAU_1208 | DI23: CHU_1209 | DJ23: TRU_1301 | DK23: ASC_1302 | DL23: BOL_1303 | DM23: CHE_1304 | DN23: JUL_1305 | DO23: OTU_1306 | DP23: PAC_1307 | DQ23: PAT_1308 | DR23: SÁN_1309 | DS23: SAN_1310 | DT23: GRA_1311 | DU23: VIR_1312 | DV23: CHI_1401 | DW23: FER_1402 | DX23: LAM_1403 | DY23: LIM_1501 | DZ23: BAR_1502 | EA23: CAJ_1503 | EB23: CAN_1504 | EC23: CAÑ_1505 | ED23: HUA_1506 | EE23: HUA_1507 | EF23: HUA_1508 | EG23: OYÓ_1509 | EH23: YAU_1510 | EI23: MAY_1601 | EJ23: ALT_1602 | EK23: LOR_1603 | EL23: MAR_1604 | EM23: REQ_1605 | EN23: UCA_1606 | EO23: DAT_1607 | EP23: PUT_1608 | EQ23: TAM_1701 | ER23: MAN_1702 | ES23: TAH_1703 | ET23: MAR_1801 | EU23: GEN_1802 | EV23: ILO_1803 | EW23: PAS_1901 | EX23: DAN_1902 | EY23: OXA_1903 | EZ23: PIU_2001 | FA23: AYA_2002 | FB23: HUA_2003 | FC23: MOR_2004 | FD23: PAI_2005 | FE23: SUL_2006 | FF23: TAL_2007 | FG23: SEC_2008 | FH23: PUN_2101 | FI23: AZÁ_2102 | FJ23: CAR_2103 | FK23: CHU_2104 | FL23: EL _2105 | FM23: HUA_2106 | FN23: LAM_2107 | FO23: MEL_2108 | FP23: MOH_2109 | FQ23: SAN_2110 | FR23: SAN_2111 | FS23: SAN_2112 | FT23: YUN_2113 | FU23: MOY_2201 | FV23: BEL_2202 | FW23: EL _2203 | FX23: HUA_2204 | FY23: LAM_2205 | FZ23: MAR_2206 | GA23: PIC_2207 | GB23: RIO_2208 | GC23: SAN_2209 | GD23: TOC_2210 | GE23: TAC_2301 | GF23: CAN_2302 | GG23: JOR_2303 | GH23: TAR_2304 | GI23: TUM_2401 | GJ23: CON_2402 | GK23: ZAR_2403 | GL23: COR_2501 | GM23: ATA_2502 | GN23: PAD_2503 | GO23: PUR_2504 | GP23: AZA_2102
A24: 01 | B24: =IFERROR(VLOOKUP(MID(B$23,5,4)&$A24,Lista_Ubigeo!$J:$K,2,0)," ") -> CHACHAPOYAS | C24: =IFERROR(VLOOKUP(MID(C$23,5,4)&$A24,Lista_Ubigeo!$J:$K,2,0)," ") -> BAGUA | D24: =IFERROR(VLOOKUP(MID(D$23,5,4)&$A24,Lista_Ubigeo!$J:$K,2,0)," ") -> JUMBILLA | E24: =IFERROR(VLOOKUP(MID(E$23,5,4)&$A24,Lista_Ubigeo!$J:$K,2,0)," ") -> NIEVA | F24: =IFERROR(VLOOKUP(MID(F$23,5,4)&$A24,Lista_Ubigeo!$J:$K,2,0)," ") -> LAMUD | G24: =IFERROR(VLOOKUP(MID(G$23,5,4)&$A24,Lista_Ubigeo!$J:$K,2,0)," ") -> SAN NICOLAS | H24: =IFERROR(VLOOKUP(MID(H$23,5,4)&$A24,Lista_Ubigeo!$J:$K,2,0)," ") -> BAGUA GRANDE | I24: =IFERROR(VLOOKUP(MID(I$23,5,4)&$A24,Lista_Ubigeo!$J:$K,2,0)," ") -> HUARAZ | J24: =IFERROR(VLOOKUP(MID(J$23,5,4)&$A24,Lista_Ubigeo!$J:$K,2,0)," ") -> AIJA | K24: =IFERROR(VLOOKUP(MID(K$23,5,4)&$A24,Lista_Ubigeo!$J:$K,2,0)," ") -> LLAMELLIN | L24: =IFERROR(VLOOKUP(MID(L$23,5,4)&$A24,Lista_Ubigeo!$J:$K,2,0)," ") -> CHACAS | M24: =IFERROR(VLOOKUP(MID(M$23,5,4)&$A24,Lista_Ubigeo!$J:$K,2,0)," ") -> CHIQUIAN | N24: =IFERROR(VLOOKUP(MID(N$23,5,4)&$A24,Lista_Ubigeo!$J:$K,2,0)," ") -> CARHUAZ | O24: =IFERROR(VLOOKUP(MID(O$23,5,4)&$A24,Lista_Ubigeo!$J:$K,2,0)," ") -> SAN LUIS | P24: =IFERROR(VLOOKUP(MID(P$23,5,4)&$A24,Lista_Ubigeo!$J:$K,2,0)," ") -> CASMA | Q24: =IFERROR(VLOOKUP(MID(Q$23,5,4)&$A24,Lista_Ubigeo!$J:$K,2,0)," ") -> CORONGO | R24: =IFERROR(VLOOKUP(MID(R$23,5,4)&$A24,Lista_Ubigeo!$J:$K,2,0)," ") -> HUARI | S24: =IFERROR(VLOOKUP(MID(S$23,5,4)&$A24,Lista_Ubigeo!$J:$K,2,0)," ") -> HUARMEY | T24: =IFERROR(VLOOKUP(MID(T$23,5,4)&$A24,Lista_Ubigeo!$J:$K,2,0)," ") -> CARAZ | U24: =IFERROR(VLOOKUP(MID(U$23,5,4)&$A24,Lista_Ubigeo!$J:$K,2,0)," ") -> PISCOBAMBA | V24: =IFERROR(VLOOKUP(MID(V$23,5,4)&$A24,Lista_Ubigeo!$J:$K,2,0)," ") -> OCROS | W24: =IFERROR(VLOOKUP(MID(W$23,5,4)&$A24,Lista_Ubigeo!$J:$K,2,0)," ") -> CABANA | X24: =IFERROR(VLOOKUP(MID(X$23,5,4)&$A24,Lista_Ubigeo!$J:$K,2,0)," ") -> POMABAMBA | Y24: =IFERROR(VLOOKUP(MID(Y$23,5,4)&$A24,Lista_Ubigeo!$J:$K,2,0)," ") -> RECUAY | Z24: =IFERROR(VLOOKUP(MID(Z$23,5,4)&$A24,Lista_Ubigeo!$J:$K,2,0)," ") -> CHIMBOTE | AA24: =IFERROR(VLOOKUP(MID(AA$23,5,4)&$A24,Lista_Ubigeo!$J:$K,2,0)," ") -> SIHUAS | AB24: =IFERROR(VLOOKUP(MID(AB$23,5,4)&$A24,Lista_Ubigeo!$J:$K,2,0)," ") -> YUNGAY | AC24: =IFERROR(VLOOKUP(MID(AC$23,5,4)&$A24,Lista_Ubigeo!$J:$K,2,0)," ") -> ABANCAY | AD24: =IFERROR(VLOOKUP(MID(AD$23,5,4)&$A24,Lista_Ubigeo!$J:$K,2,0)," ") -> ANDAHUAYLAS | AE24: =IFERROR(VLOOKUP(MID(AE$23,5,4)&$A24,Lista_Ubigeo!$J:$K,2,0)," ") -> ANTABAMBA | AF24: =IFERROR(VLOOKUP(MID(AF$23,5,4)&$A24,Lista_Ubigeo!$J:$K,2,0)," ") -> CHALHUANCA | AG24: =IFERROR(VLOOKUP(MID(AG$23,5,4)&$A24,Lista_Ubigeo!$J:$K,2,0)," ") -> TAMBOBAMBA | AH24: =IFERROR(VLOOKUP(MID(AH$23,5,4)&$A24,Lista_Ubigeo!$J:$K,2,0)," ") -> CHINCHEROS | AI24: =IFERROR(VLOOKUP(MID(AI$23,5,4)&$A24,Lista_Ubigeo!$J:$K,2,0)," ") -> CHUQUIBAMBILLA | AJ24: =IFERROR(VLOOKUP(MID(AJ$23,5,4)&$A24,Lista_Ubigeo!$J:$K,2,0)," ") -> AREQUIPA | AK24: =IFERROR(VLOOKUP(MID(AK$23,5,4)&$A24,Lista_Ubigeo!$J:$K,2,0)," ") -> CAMANA | AL24: =IFERROR(VLOOKUP(MID(AL$23,5,4)&$A24,Lista_Ubigeo!$J:$K,2,0)," ") -> CARAVELI | AM24: =IFERROR(VLOOKUP(MID(AM$23,5,4)&$A24,Lista_Ubigeo!$J:$K,2,0)," ") -> APLAO | AN24: =IFERROR(VLOOKUP(MID(AN$23,5,4)&$A24,Lista_Ubigeo!$J:$K,2,0)," ") -> CHIVAY | AO24: =IFERROR(VLOOKUP(MID(AO$23,5,4)&$A24,Lista_Ubigeo!$J:$K,2,0)," ") -> CHUQUIBAMBA | AP24: =IFERROR(VLOOKUP(MID(AP$23,5,4)&$A24,Lista_Ubigeo!$J:$K,2,0)," ") -> MOLLENDO | AQ24: =IFERROR(VLOOKUP(MID(AQ$23,4,4)&$A24,Lista_Ubigeo!$J:$K,2,0)," ") -> COTAHUASI | AR24: =IFERROR(VLOOKUP(MID(AR$23,5,4)&$A24,Lista_Ubigeo!$J:$K,2,0)," ") -> AYACUCHO | AS24: =IFERROR(VLOOKUP(MID(AS$23,5,4)&$A24,Lista_Ubigeo!$J:$K,2,0)," ") -> CANGALLO | AT24: =IFERROR(VLOOKUP(MID(AT$23,5,4)&$A24,Lista_Ubigeo!$J:$K,2,0)," ") -> SANCOS | AU24: =IFERROR(VLOOKUP(MID(AU$23,5,4)&$A24,Lista_Ubigeo!$J:$K,2,0)," ") -> HUANTA | AV24: =IFERROR(VLOOKUP(MID(AV$23,5,4)&$A24,Lista_Ubigeo!$J:$K,2,0)," ") -> SAN MIGUEL | AW24: =IFERROR(VLOOKUP(MID(AW$23,5,4)&$A24,Lista_Ubigeo!$J:$K,2,0)," ") -> PUQUIO | AX24: =IFERROR(VLOOKUP(MID(AX$23,5,4)&$A24,Lista_Ubigeo!$J:$K,2,0)," ") -> CORACORA | AY24: =IFERROR(VLOOKUP(MID(AY$23,5,4)&$A24,Lista_Ubigeo!$J:$K,2,0)," ") -> PAUSA | AZ24: =IFERROR(VLOOKUP(MID(AZ$23,5,4)&$A24,Lista_Ubigeo!$J:$K,2,0)," ") -> QUEROBAMBA | BA24: =IFERROR(VLOOKUP(MID(BA$23,5,4)&$A24,Lista_Ubigeo!$J:$K,2,0)," ") -> HUANCAPI | BB24: =IFERROR(VLOOKUP(MID(BB$23,5,4)&$A24,Lista_Ubigeo!$J:$K,2,0)," ") -> VILCAS HUAMAN | BC24: =IFERROR(VLOOKUP(MID(BC$23,5,4)&$A24,Lista_Ubigeo!$J:$K,2,0)," ") -> CAJAMARCA | BD24: =IFERROR(VLOOKUP(MID(BD$23,5,4)&$A24,Lista_Ubigeo!$J:$K,2,0)," ") -> CAJABAMBA | BE24: =IFERROR(VLOOKUP(MID(BE$23,5,4)&$A24,Lista_Ubigeo!$J:$K,2,0)," ") -> CELENDIN | BF24: =IFERROR(VLOOKUP(MID(BF$23,5,4)&$A24,Lista_Ubigeo!$J:$K,2,0)," ") -> CHOTA | BG24: =IFERROR(VLOOKUP(MID(BG$23,5,4)&$A24,Lista_Ubigeo!$J:$K,2,0)," ") -> CONTUMAZA | BH24: =IFERROR(VLOOKUP(MID(BH$23,5,4)&$A24,Lista_Ubigeo!$J:$K,2,0)," ") -> CUTERVO | BI24: =IFERROR(VLOOKUP(MID(BI$23,5,4)&$A24,Lista_Ubigeo!$J:$K,2,0)," ") -> BAMBAMARCA | BJ24: =IFERROR(VLOOKUP(MID(BJ$23,5,4)&$A24,Lista_Ubigeo!$J:$K,2,0)," ") -> JAEN | BK24: =IFERROR(VLOOKUP(MID(BK$23,5,4)&$A24,Lista_Ubigeo!$J:$K,2,0)," ") -> SAN IGNACIO | BL24: =IFERROR(VLOOKUP(MID(BL$23,5,4)&$A24,Lista_Ubigeo!$J:$K,2,0)," ") -> PEDRO GALVEZ | BM24: =IFERROR(VLOOKUP(MID(BM$23,5,4)&$A24,Lista_Ubigeo!$J:$K,2,0)," ") -> SAN MIGUEL | BN24: =IFERROR(VLOOKUP(MID(BN$23,5,4)&$A24,Lista_Ubigeo!$J:$K,2,0)," ") -> SAN PABLO | BO24: =IFERROR(VLOOKUP(MID(BO$23,5,4)&$A24,Lista_Ubigeo!$J:$K,2,0)," ") -> SANTA CRUZ | BP24: =IFERROR(VLOOKUP(MID(BP$23,5,4)&$A24,Lista_Ubigeo!$J:$K,2,0)," ") -> CALLAO | BQ24: =IFERROR(VLOOKUP(MID(BQ$23,5,4)&$A24,Lista_Ubigeo!$J:$K,2,0)," ") -> CUSCO | BR24: =IFERROR(VLOOKUP(MID(BR$23,5,4)&$A24,Lista_Ubigeo!$J:$K,2,0)," ") -> ACOMAYO | BS24: =IFERROR(VLOOKUP(MID(BS$23,5,4)&$A24,Lista_Ubigeo!$J:$K,2,0)," ") -> ANTA | BT24: =IFERROR(VLOOKUP(MID(BT$23,5,4)&$A24,Lista_Ubigeo!$J:$K,2,0)," ") -> CALCA | BU24: =IFERROR(VLOOKUP(MID(BU$23,5,4)&$A24,Lista_Ubigeo!$J:$K,2,0)," ") -> YANAOCA | BV24: =IFERROR(VLOOKUP(MID(BV$23,5,4)&$A24,Lista_Ubigeo!$J:$K,2,0)," ") -> SICUANI | BW24: =IFERROR(VLOOKUP(MID(BW$23,5,4)&$A24,Lista_Ubigeo!$J:$K,2,0)," ") -> SANTO TOMAS | BX24: =IFERROR(VLOOKUP(MID(BX$23,5,4)&$A24,Lista_Ubigeo!$J:$K,2,0)," ") -> ESPINAR | BY24: =IFERROR(VLOOKUP(MID(BY$23,4,4)&$A24,Lista_Ubigeo!$J:$K,2,0)," ") -> SANTA ANA | BZ24: =IFERROR(VLOOKUP(MID(BZ$23,5,4)&$A24,Lista_Ubigeo!$J:$K,2,0)," ") -> PARURO | CA24: =IFERROR(VLOOKUP(MID(CA$23,5,4)&$A24,Lista_Ubigeo!$J:$K,2,0)," ") -> PAUCARTAMBO | CB24: =IFERROR(VLOOKUP(MID(CB$23,5,4)&$A24,Lista_Ubigeo!$J:$K,2,0)," ") -> URCOS | CC24: =IFERROR(VLOOKUP(MID(CC$23,5,4)&$A24,Lista_Ubigeo!$J:$K,2,0)," ") -> URUBAMBA | CD24: =IFERROR(VLOOKUP(MID(CD$23,5,4)&$A24,Lista_Ubigeo!$J:$K,2,0)," ") -> HUANCAVELICA | CE24: =IFERROR(VLOOKUP(MID(CE$23,5,4)&$A24,Lista_Ubigeo!$J:$K,2,0)," ") -> ACOBAMBA | CF24: =IFERROR(VLOOKUP(MID(CF$23,5,4)&$A24,Lista_Ubigeo!$J:$K,2,0)," ") -> LIRCAY | CG24: =IFERROR(VLOOKUP(MID(CG$23,5,4)&$A24,Lista_Ubigeo!$J:$K,2,0)," ") -> CASTROVIRREYNA | CH24: =IFERROR(VLOOKUP(MID(CH$23,5,4)&$A24,Lista_Ubigeo!$J:$K,2,0)," ") -> CHURCAMPA | CI24: =IFERROR(VLOOKUP(MID(CI$23,5,4)&$A24,Lista_Ubigeo!$J:$K,2,0)," ") -> HUAYTARA | CJ24: =IFERROR(VLOOKUP(MID(CJ$23,5,4)&$A24,Lista_Ubigeo!$J:$K,2,0)," ") -> PAMPAS | CK24: =IFERROR(VLOOKUP(MID(CK$23,5,4)&$A24,Lista_Ubigeo!$J:$K,2,0)," ") -> HUANUCO | CL24: =IFERROR(VLOOKUP(MID(CL$23,5,4)&$A24,Lista_Ubigeo!$J:$K,2,0)," ") -> AMBO | CM24: =IFERROR(VLOOKUP(MID(CM$23,5,4)&$A24,Lista_Ubigeo!$J:$K,2,0)," ") -> LA UNION | CN24: =IFERROR(VLOOKUP(MID(CN$23,5,4)&$A24,Lista_Ubigeo!$J:$K,2,0)," ") -> HUACAYBAMBA | CO24: =IFERROR(VLOOKUP(MID(CO$23,5,4)&$A24,Lista_Ubigeo!$J:$K,2,0)," ") -> LLATA | CP24: =IFERROR(VLOOKUP(MID(CP$23,5,4)&$A24,Lista_Ubigeo!$J:$K,2,0)," ") -> RUPA-RUPA | CQ24: =IFERROR(VLOOKUP(MID(CQ$23,5,4)&$A24,Lista_Ubigeo!$J:$K,2,0)," ") -> HUACRACHUCO | CR24: =IFERROR(VLOOKUP(MID(CR$23,5,4)&$A24,Lista_Ubigeo!$J:$K,2,0)," ") -> PANAO | CS24: =IFERROR(VLOOKUP(MID(CS$23,5,4)&$A24,Lista_Ubigeo!$J:$K,2,0)," ") -> PUERTO INCA | CT24: =IFERROR(VLOOKUP(MID(CT$23,5,4)&$A24,Lista_Ubigeo!$J:$K,2,0)," ") -> JESUS | CU24: =IFERROR(VLOOKUP(MID(CU$23,5,4)&$A24,Lista_Ubigeo!$J:$K,2,0)," ") -> CHAVINILLO | CV24: =IFERROR(VLOOKUP(MID(CV$23,5,4)&$A24,Lista_Ubigeo!$J:$K,2,0)," ") -> ICA | CW24: =IFERROR(VLOOKUP(MID(CW$23,5,4)&$A24,Lista_Ubigeo!$J:$K,2,0)," ") -> CHINCHA ALTA | CX24: =IFERROR(VLOOKUP(MID(CX$23,5,4)&$A24,Lista_Ubigeo!$J:$K,2,0)," ") -> NAZCA | CY24: =IFERROR(VLOOKUP(MID(CY$23,5,4)&$A24,Lista_Ubigeo!$J:$K,2,0)," ") -> PALPA | CZ24: =IFERROR(VLOOKUP(MID(CZ$23,5,4)&$A24,Lista_Ubigeo!$J:$K,2,0)," ") -> PISCO | DA24: =IFERROR(VLOOKUP(MID(DA$23,5,4)&$A24,Lista_Ubigeo!$J:$K,2,0)," ") -> HUANCAYO | DB24: =IFERROR(VLOOKUP(MID(DB$23,5,4)&$A24,Lista_Ubigeo!$J:$K,2,0)," ") -> CONCEPCION | DC24: =IFERROR(VLOOKUP(MID(DC$23,5,4)&$A24,Lista_Ubigeo!$J:$K,2,0)," ") -> CHANCHAMAYO | DD24: =IFERROR(VLOOKUP(MID(DD$23,5,4)&$A24,Lista_Ubigeo!$J:$K,2,0)," ") -> JAUJA | DE24: =IFERROR(VLOOKUP(MID(DE$23,5,4)&$A24,Lista_Ubigeo!$J:$K,2,0)," ") -> JUNIN | DF24: =IFERROR(VLOOKUP(MID(DF$23,5,4)&$A24,Lista_Ubigeo!$J:$K,2,0)," ") -> SATIPO | DG24: =IFERROR(VLOOKUP(MID(DG$23,5,4)&$A24,Lista_Ubigeo!$J:$K,2,0)," ") -> TARMA | DH24: =IFERROR(VLOOKUP(MID(DH$23,5,4)&$A24,Lista_Ubigeo!$J:$K,2,0)," ") -> LA OROYA | DI24: =IFERROR(VLOOKUP(MID(DI$23,5,4)&$A24,Lista_Ubigeo!$J:$K,2,0)," ") -> CHUPACA | DJ24: =IFERROR(VLOOKUP(MID(DJ$23,5,4)&$A24,Lista_Ubigeo!$J:$K,2,0)," ") -> TRUJILLO | DK24: =IFERROR(VLOOKUP(MID(DK$23,5,4)&$A24,Lista_Ubigeo!$J:$K,2,0)," ") -> ASCOPE | DL24: =IFERROR(VLOOKUP(MID(DL$23,5,4)&$A24,Lista_Ubigeo!$J:$K,2,0)," ") -> BOLIVAR | DM24: =IFERROR(VLOOKUP(MID(DM$23,5,4)&$A24,Lista_Ubigeo!$J:$K,2,0)," ") -> CHEPEN | DN24: =IFERROR(VLOOKUP(MID(DN$23,5,4)&$A24,Lista_Ubigeo!$J:$K,2,0)," ") -> JULCAN | DO24: =IFERROR(VLOOKUP(MID(DO$23,5,4)&$A24,Lista_Ubigeo!$J:$K,2,0)," ") -> OTUZCO | DP24: =IFERROR(VLOOKUP(MID(DP$23,5,4)&$A24,Lista_Ubigeo!$J:$K,2,0)," ") -> SAN PEDRO DE LLOC | DQ24: =IFERROR(VLOOKUP(MID(DQ$23,5,4)&$A24,Lista_Ubigeo!$J:$K,2,0)," ") -> TAYABAMBA | DR24: =IFERROR(VLOOKUP(MID(DR$23,5,4)&$A24,Lista_Ubigeo!$J:$K,2,0)," ") -> HUAMACHUCO | DS24: =IFERROR(VLOOKUP(MID(DS$23,5,4)&$A24,Lista_Ubigeo!$J:$K,2,0)," ") -> SANTIAGO DE CHUCO | DT24: =IFERROR(VLOOKUP(MID(DT$23,5,4)&$A24,Lista_Ubigeo!$J:$K,2,0)," ") -> CASCAS | DU24: =IFERROR(VLOOKUP(MID(DU$23,5,4)&$A24,Lista_Ubigeo!$J:$K,2,0)," ") -> VIRU | DV24: =IFERROR(VLOOKUP(MID(DV$23,5,4)&$A24,Lista_Ubigeo!$J:$K,2,0)," ") -> CHICLAYO | DW24: =IFERROR(VLOOKUP(MID(DW$23,5,4)&$A24,Lista_Ubigeo!$J:$K,2,0)," ") -> FERREÑAFE | DX24: =IFERROR(VLOOKUP(MID(DX$23,5,4)&$A24,Lista_Ubigeo!$J:$K,2,0)," ") -> LAMBAYEQUE | DY24: =IFERROR(VLOOKUP(MID(DY$23,5,4)&$A24,Lista_Ubigeo!$J:$K,2,0)," ") -> LIMA | DZ24: =IFERROR(VLOOKUP(MID(DZ$23,5,4)&$A24,Lista_Ubigeo!$J:$K,2,0)," ") -> BARRANCA | EA24: =IFERROR(VLOOKUP(MID(EA$23,5,4)&$A24,Lista_Ubigeo!$J:$K,2,0)," ") -> CAJATAMBO | EB24: =IFERROR(VLOOKUP(MID(EB$23,5,4)&$A24,Lista_Ubigeo!$J:$K,2,0)," ") -> CANTA | EC24: =IFERROR(VLOOKUP(MID(EC$23,5,4)&$A24,Lista_Ubigeo!$J:$K,2,0)," ") -> SAN VICENTE DE CAÑETE | ED24: =IFERROR(VLOOKUP(MID(ED$23,5,4)&$A24,Lista_Ubigeo!$J:$K,2,0)," ") -> HUARAL | EE24: =IFERROR(VLOOKUP(MID(EE$23,5,4)&$A24,Lista_Ubigeo!$J:$K,2,0)," ") -> MATUCANA | EF24: =IFERROR(VLOOKUP(MID(EF$23,5,4)&$A24,Lista_Ubigeo!$J:$K,2,0)," ") -> HUACHO | EG24: =IFERROR(VLOOKUP(MID(EG$23,5,4)&$A24,Lista_Ubigeo!$J:$K,2,0)," ") -> OYON | EH24: =IFERROR(VLOOKUP(MID(EH$23,5,4)&$A24,Lista_Ubigeo!$J:$K,2,0)," ") -> YAUYOS | EI24: =IFERROR(VLOOKUP(MID(EI$23,5,4)&$A24,Lista_Ubigeo!$J:$K,2,0)," ") -> IQUITOS | EJ24: =IFERROR(VLOOKUP(MID(EJ$23,5,4)&$A24,Lista_Ubigeo!$J:$K,2,0)," ") -> YURIMAGUAS | EK24: =IFERROR(VLOOKUP(MID(EK$23,5,4)&$A24,Lista_Ubigeo!$J:$K,2,0)," ") -> NAUTA | EL24: =IFERROR(VLOOKUP(MID(EL$23,5,4)&$A24,Lista_Ubigeo!$J:$K,2,0)," ") -> RAMON CASTILLA | EM24: =IFERROR(VLOOKUP(MID(EM$23,5,4)&$A24,Lista_Ubigeo!$J:$K,2,0)," ") -> REQUENA | EN24: =IFERROR(VLOOKUP(MID(EN$23,5,4)&$A24,Lista_Ubigeo!$J:$K,2,0)," ") -> CONTAMANA | EO24: =IFERROR(VLOOKUP(MID(EO$23,5,4)&$A24,Lista_Ubigeo!$J:$K,2,0)," ") -> BARRANCA | EP24: =IFERROR(VLOOKUP(MID(EP$23,5,4)&$A24,Lista_Ubigeo!$J:$K,2,0)," ") -> PUTUMAYO | EQ24: =IFERROR(VLOOKUP(MID(EQ$23,5,4)&$A24,Lista_Ubigeo!$J:$K,2,0)," ") -> TAMBOPATA | ER24: =IFERROR(VLOOKUP(MID(ER$23,5,4)&$A24,Lista_Ubigeo!$J:$K,2,0)," ") -> MANU | ES24: =IFERROR(VLOOKUP(MID(ES$23,5,4)&$A24,Lista_Ubigeo!$J:$K,2,0)," ") -> IÑAPARI | ET24: =IFERROR(VLOOKUP(MID(ET$23,5,4)&$A24,Lista_Ubigeo!$J:$K,2,0)," ") -> MOQUEGUA | EU24: =IFERROR(VLOOKUP(MID(EU$23,5,4)&$A24,Lista_Ubigeo!$J:$K,2,0)," ") -> OMATE | EV24: =IFERROR(VLOOKUP(MID(EV$23,5,4)&$A24,Lista_Ubigeo!$J:$K,2,0)," ") -> ILO | EW24: =IFERROR(VLOOKUP(MID(EW$23,5,4)&$A24,Lista_Ubigeo!$J:$K,2,0)," ") -> CHAUPIMARCA | EX24: =IFERROR(VLOOKUP(MID(EX$23,5,4)&$A24,Lista_Ubigeo!$J:$K,2,0)," ") -> YANAHUANCA | EY24: =IFERROR(VLOOKUP(MID(EY$23,5,4)&$A24,Lista_Ubigeo!$J:$K,2,0)," ") -> OXAPAMPA | EZ24: =IFERROR(VLOOKUP(MID(EZ$23,5,4)&$A24,Lista_Ubigeo!$J:$K,2,0)," ") -> PIURA | FA24: =IFERROR(VLOOKUP(MID(FA$23,5,4)&$A24,Lista_Ubigeo!$J:$K,2,0)," ") -> AYABACA | FB24: =IFERROR(VLOOKUP(MID(FB$23,5,4)&$A24,Lista_Ubigeo!$J:$K,2,0)," ") -> HUANCABAMBA | FC24: =IFERROR(VLOOKUP(MID(FC$23,5,4)&$A24,Lista_Ubigeo!$J:$K,2,0)," ") -> CHULUCANAS | FD24: =IFERROR(VLOOKUP(MID(FD$23,5,4)&$A24,Lista_Ubigeo!$J:$K,2,0)," ") -> PAITA | FE24: =IFERROR(VLOOKUP(MID(FE$23,5,4)&$A24,Lista_Ubigeo!$J:$K,2,0)," ") -> SULLANA | FF24: =IFERROR(VLOOKUP(MID(FF$23,5,4)&$A24,Lista_Ubigeo!$J:$K,2,0)," ") -> PARIÑAS | FG24: =IFERROR(VLOOKUP(MID(FG$23,5,4)&$A24,Lista_Ubigeo!$J:$K,2,0)," ") -> SECHURA | FH24: =IFERROR(VLOOKUP(MID(FH$23,5,4)&$A24,Lista_Ubigeo!$J:$K,2,0)," ") -> PUNO | FI24: =IFERROR(VLOOKUP(MID(FI$23,5,4)&$A24,Lista_Ubigeo!$J:$K,2,0)," ") -> AZANGARO | FJ24: =IFERROR(VLOOKUP(MID(FJ$23,5,4)&$A24,Lista_Ubigeo!$J:$K,2,0)," ") -> MACUSANI | FK24: =IFERROR(VLOOKUP(MID(FK$23,5,4)&$A24,Lista_Ubigeo!$J:$K,2,0)," ") -> JULI | FL24: =IFERROR(VLOOKUP(MID(FL$23,5,4)&$A24,Lista_Ubigeo!$J:$K,2,0)," ") -> ILAVE | FM24: =IFERROR(VLOOKUP(MID(FM$23,5,4)&$A24,Lista_Ubigeo!$J:$K,2,0)," ") -> HUANCANE | FN24: =IFERROR(VLOOKUP(MID(FN$23,5,4)&$A24,Lista_Ubigeo!$J:$K,2,0)," ") -> LAMPA | FO24: =IFERROR(VLOOKUP(MID(FO$23,5,4)&$A24,Lista_Ubigeo!$J:$K,2,0)," ") -> AYAVIRI | FP24: =IFERROR(VLOOKUP(MID(FP$23,5,4)&$A24,Lista_Ubigeo!$J:$K,2,0)," ") -> MOHO | FQ24: =IFERROR(VLOOKUP(MID(FQ$23,5,4)&$A24,Lista_Ubigeo!$J:$K,2,0)," ") -> PUTINA | FR24: =IFERROR(VLOOKUP(MID(FR$23,5,4)&$A24,Lista_Ubigeo!$J:$K,2,0)," ") -> JULIACA | FS24: =IFERROR(VLOOKUP(MID(FS$23,5,4)&$A24,Lista_Ubigeo!$J:$K,2,0)," ") -> SANDIA | FT24: =IFERROR(VLOOKUP(MID(FT$23,5,4)&$A24,Lista_Ubigeo!$J:$K,2,0)," ") -> YUNGUYO | FU24: =IFERROR(VLOOKUP(MID(FU$23,5,4)&$A24,Lista_Ubigeo!$J:$K,2,0)," ") -> MOYOBAMBA | FV24: =IFERROR(VLOOKUP(MID(FV$23,5,4)&$A24,Lista_Ubigeo!$J:$K,2,0)," ") -> BELLAVISTA | FW24: =IFERROR(VLOOKUP(MID(FW$23,5,4)&$A24,Lista_Ubigeo!$J:$K,2,0)," ") -> SAN JOSE DE SISA | FX24: =IFERROR(VLOOKUP(MID(FX$23,5,4)&$A24,Lista_Ubigeo!$J:$K,2,0)," ") -> SAPOSOA | FY24: =IFERROR(VLOOKUP(MID(FY$23,5,4)&$A24,Lista_Ubigeo!$J:$K,2,0)," ") -> LAMAS | FZ24: =IFERROR(VLOOKUP(MID(FZ$23,5,4)&$A24,Lista_Ubigeo!$J:$K,2,0)," ") -> JUANJUI | GA24: =IFERROR(VLOOKUP(MID(GA$23,5,4)&$A24,Lista_Ubigeo!$J:$K,2,0)," ") -> PICOTA | GB24: =IFERROR(VLOOKUP(MID(GB$23,5,4)&$A24,Lista_Ubigeo!$J:$K,2,0)," ") -> RIOJA | GC24: =IFERROR(VLOOKUP(MID(GC$23,5,4)&$A24,Lista_Ubigeo!$J:$K,2,0)," ") -> TARAPOTO | GD24: =IFERROR(VLOOKUP(MID(GD$23,5,4)&$A24,Lista_Ubigeo!$J:$K,2,0)," ") -> TOCACHE | GE24: =IFERROR(VLOOKUP(MID(GE$23,5,4)&$A24,Lista_Ubigeo!$J:$K,2,0)," ") -> TACNA | GF24: =IFERROR(VLOOKUP(MID(GF$23,5,4)&$A24,Lista_Ubigeo!$J:$K,2,0)," ") -> CANDARAVE | GG24: =IFERROR(VLOOKUP(MID(GG$23,5,4)&$A24,Lista_Ubigeo!$J:$K,2,0)," ") -> LOCUMBA | GH24: =IFERROR(VLOOKUP(MID(GH$23,5,4)&$A24,Lista_Ubigeo!$J:$K,2,0)," ") -> TARATA | GI24: =IFERROR(VLOOKUP(MID(GI$23,5,4)&$A24,Lista_Ubigeo!$J:$K,2,0)," ") -> TUMBES | GJ24: =IFERROR(VLOOKUP(MID(GJ$23,5,4)&$A24,Lista_Ubigeo!$J:$K,2,0)," ") -> ZORRITOS | GK24: =IFERROR(VLOOKUP(MID(GK$23,5,4)&$A24,Lista_Ubigeo!$J:$K,2,0)," ") -> ZARUMILLA | GL24: =IFERROR(VLOOKUP(MID(GL$23,5,4)&$A24,Lista_Ubigeo!$J:$K,2,0)," ") -> CALLERIA | GM24: =IFERROR(VLOOKUP(MID(GM$23,5,4)&$A24,Lista_Ubigeo!$J:$K,2,0)," ") -> RAYMONDI | GN24: =IFERROR(VLOOKUP(MID(GN$23,5,4)&$A24,Lista_Ubigeo!$J:$K,2,0)," ") -> PADRE ABAD | GO24: =IFERROR(VLOOKUP(MID(GO$23,5,4)&$A24,Lista_Ubigeo!$J:$K,2,0)," ") -> PURUS | GP24: =IFERROR(VLOOKUP(MID(GP$23,5,4)&$A24,Lista_Ubigeo!$J:$K,2,0)," ") -> AZANGARO
A25: 02 | B25: =IFERROR(VLOOKUP(MID(B$23,5,4)&$A25,Lista_Ubigeo!$J:$K,2,0)," ") -> ASUNCION | C25: =IFERROR(VLOOKUP(MID(C$23,5,4)&$A25,Lista_Ubigeo!$J:$K,2,0)," ") -> ARAMANGO | D25: =IFERROR(VLOOKUP(MID(D$23,5,4)&$A25,Lista_Ubigeo!$J:$K,2,0)," ") -> CHISQUILLA | E25: =IFERROR(VLOOKUP(MID(E$23,5,4)&$A25,Lista_Ubigeo!$J:$K,2,0)," ") -> EL CENEPA | F25: =IFERROR(VLOOKUP(MID(F$23,5,4)&$A25,Lista_Ubigeo!$J:$K,2,0)," ") -> CAMPORREDONDO | G25: =IFERROR(VLOOKUP(MID(G$23,5,4)&$A25,Lista_Ubigeo!$J:$K,2,0)," ") -> CHIRIMOTO | H25: =IFERROR(VLOOKUP(MID(H$23,5,4)&$A25,Lista_Ubigeo!$J:$K,2,0)," ") -> CAJARURO | I25: =IFERROR(VLOOKUP(MID(I$23,5,4)&$A25,Lista_Ubigeo!$J:$K,2,0)," ") -> COCHABAMBA | J25: =IFERROR(VLOOKUP(MID(J$23,5,4)&$A25,Lista_Ubigeo!$J:$K,2,0)," ") -> CORIS | K25: =IFERROR(VLOOKUP(MID(K$23,5,4)&$A25,Lista_Ubigeo!$J:$K,2,0)," ") -> ACZO | L25: =IFERROR(VLOOKUP(MID(L$23,5,4)&$A25,Lista_Ubigeo!$J:$K,2,0)," ") -> ACOCHACA | M25: =IFERROR(VLOOKUP(MID(M$23,5,4)&$A25,Lista_Ubigeo!$J:$K,2,0)," ") -> ABELARDO PARDO LEZAMETA | N25: =IFERROR(VLOOKUP(MID(N$23,5,4)&$A25,Lista_Ubigeo!$J:$K,2,0)," ") -> ACOPAMPA | O25: =IFERROR(VLOOKUP(MID(O$23,5,4)&$A25,Lista_Ubigeo!$J:$K,2,0)," ") -> SAN NICOLAS | P25: =IFERROR(VLOOKUP(MID(P$23,5,4)&$A25,Lista_Ubigeo!$J:$K,2,0)," ") -> BUENA VISTA ALTA | Q25: =IFERROR(VLOOKUP(MID(Q$23,5,4)&$A25,Lista_Ubigeo!$J:$K,2,0)," ") -> ACO | R25: =IFERROR(VLOOKUP(MID(R$23,5,4)&$A25,Lista_Ubigeo!$J:$K,2,0)," ") -> ANRA | S25: =IFERROR(VLOOKUP(MID(S$23,5,4)&$A25,Lista_Ubigeo!$J:$K,2,0)," ") -> COCHAPETI | T25: =IFERROR(VLOOKUP(MID(T$23,5,4)&$A25,Lista_Ubigeo!$J:$K,2,0)," ") -> HUALLANCA | U25: =IFERROR(VLOOKUP(MID(U$23,5,4)&$A25,Lista_Ubigeo!$J:$K,2,0)," ") -> CASCA | V25: =IFERROR(VLOOKUP(MID(V$23,5,4)&$A25,Lista_Ubigeo!$J:$K,2,0)," ") -> ACAS | W25: =IFERROR(VLOOKUP(MID(W$23,5,4)&$A25,Lista_Ubigeo!$J:$K,2,0)," ") -> BOLOGNESI | X25: =IFERROR(VLOOKUP(MID(X$23,5,4)&$A25,Lista_Ubigeo!$J:$K,2,0)," ") -> HUAYLLAN | Y25: =IFERROR(VLOOKUP(MID(Y$23,5,4)&$A25,Lista_Ubigeo!$J:$K,2,0)," ") -> CATAC | Z25: =IFERROR(VLOOKUP(MID(Z$23,5,4)&$A25,Lista_Ubigeo!$J:$K,2,0)," ") -> CACERES DEL PERU | AA25: =IFERROR(VLOOKUP(MID(AA$23,5,4)&$A25,Lista_Ubigeo!$J:$K,2,0)," ") -> ACOBAMBA | AB25: =IFERROR(VLOOKUP(MID(AB$23,5,4)&$A25,Lista_Ubigeo!$J:$K,2,0)," ") -> CASCAPARA | AC25: =IFERROR(VLOOKUP(MID(AC$23,5,4)&$A25,Lista_Ubigeo!$J:$K,2,0)," ") -> CHACOCHE | AD25: =IFERROR(VLOOKUP(MID(AD$23,5,4)&$A25,Lista_Ubigeo!$J:$K,2,0)," ") -> ANDARAPA | AE25: =IFERROR(VLOOKUP(MID(AE$23,5,4)&$A25,Lista_Ubigeo!$J:$K,2,0)," ") -> EL ORO | AF25: =IFERROR(VLOOKUP(MID(AF$23,5,4)&$A25,Lista_Ubigeo!$J:$K,2,0)," ") -> CAPAYA | AG25: =IFERROR(VLOOKUP(MID(AG$23,5,4)&$A25,Lista_Ubigeo!$J:$K,2,0)," ") -> COTABAMBAS | AH25: =IFERROR(VLOOKUP(MID(AH$23,5,4)&$A25,Lista_Ubigeo!$J:$K,2,0)," ") -> ANCO-HUALLO | AI25: =IFERROR(VLOOKUP(MID(AI$23,5,4)&$A25,Lista_Ubigeo!$J:$K,2,0)," ") -> CURPAHUASI | AJ25: =IFERROR(VLOOKUP(MID(AJ$23,5,4)&$A25,Lista_Ubigeo!$J:$K,2,0)," ") -> ALTO SELVA ALEGRE | AK25: =IFERROR(VLOOKUP(MID(AK$23,5,4)&$A25,Lista_Ubigeo!$J:$K,2,0)," ") -> JOSE MARIA QUIMPER | AL25: =IFERROR(VLOOKUP(MID(AL$23,5,4)&$A25,Lista_Ubigeo!$J:$K,2,0)," ") -> ACARI | AM25: =IFERROR(VLOOKUP(MID(AM$23,5,4)&$A25,Lista_Ubigeo!$J:$K,2,0)," ") -> ANDAGUA | AN25: =IFERROR(VLOOKUP(MID(AN$23,5,4)&$A25,Lista_Ubigeo!$J:$K,2,0)," ") -> ACHOMA | AO25: =IFERROR(VLOOKUP(MID(AO$23,5,4)&$A25,Lista_Ubigeo!$J:$K,2,0)," ") -> ANDARAY | AP25: =IFERROR(VLOOKUP(MID(AP$23,5,4)&$A25,Lista_Ubigeo!$J:$K,2,0)," ") -> COCACHACRA | AQ25: =IFERROR(VLOOKUP(MID(AQ$23,4,4)&$A25,Lista_Ubigeo!$J:$K,2,0)," ") -> ALCA | AR25: =IFERROR(VLOOKUP(MID(AR$23,5,4)&$A25,Lista_Ubigeo!$J:$K,2,0)," ") -> ACOCRO | AS25: =IFERROR(VLOOKUP(MID(AS$23,5,4)&$A25,Lista_Ubigeo!$J:$K,2,0)," ") -> CHUSCHI | AT25: =IFERROR(VLOOKUP(MID(AT$23,5,4)&$A25,Lista_Ubigeo!$J:$K,2,0)," ") -> CARAPO | AU25: =IFERROR(VLOOKUP(MID(AU$23,5,4)&$A25,Lista_Ubigeo!$J:$K,2,0)," ") -> AYAHUANCO | AV25: =IFERROR(VLOOKUP(MID(AV$23,5,4)&$A25,Lista_Ubigeo!$J:$K,2,0)," ") -> ANCO | AW25: =IFERROR(VLOOKUP(MID(AW$23,5,4)&$A25,Lista_Ubigeo!$J:$K,2,0)," ") -> AUCARA | AX25: =IFERROR(VLOOKUP(MID(AX$23,5,4)&$A25,Lista_Ubigeo!$J:$K,2,0)," ") -> CHUMPI | AY25: =IFERROR(VLOOKUP(MID(AY$23,5,4)&$A25,Lista_Ubigeo!$J:$K,2,0)," ") -> COLTA | AZ25: =IFERROR(VLOOKUP(MID(AZ$23,5,4)&$A25,Lista_Ubigeo!$J:$K,2,0)," ") -> BELEN | BA25: =IFERROR(VLOOKUP(MID(BA$23,5,4)&$A25,Lista_Ubigeo!$J:$K,2,0)," ") -> ALCAMENCA | BB25: =IFERROR(VLOOKUP(MID(BB$23,5,4)&$A25,Lista_Ubigeo!$J:$K,2,0)," ") -> ACCOMARCA | BC25: =IFERROR(VLOOKUP(MID(BC$23,5,4)&$A25,Lista_Ubigeo!$J:$K,2,0)," ") -> ASUNCION | BD25: =IFERROR(VLOOKUP(MID(BD$23,5,4)&$A25,Lista_Ubigeo!$J:$K,2,0)," ") -> CACHACHI | BE25: =IFERROR(VLOOKUP(MID(BE$23,5,4)&$A25,Lista_Ubigeo!$J:$K,2,0)," ") -> CHUMUCH | BF25: =IFERROR(VLOOKUP(MID(BF$23,5,4)&$A25,Lista_Ubigeo!$J:$K,2,0)," ") -> ANGUIA | BG25: =IFERROR(VLOOKUP(MID(BG$23,5,4)&$A25,Lista_Ubigeo!$J:$K,2,0)," ") -> CHILETE | BH25: =IFERROR(VLOOKUP(MID(BH$23,5,4)&$A25,Lista_Ubigeo!$J:$K,2,0)," ") -> CALLAYUC | BI25: =IFERROR(VLOOKUP(MID(BI$23,5,4)&$A25,Lista_Ubigeo!$J:$K,2,0)," ") -> CHUGUR | BJ25: =IFERROR(VLOOKUP(MID(BJ$23,5,4)&$A25,Lista_Ubigeo!$J:$K,2,0)," ") -> BELLAVISTA | BK25: =IFERROR(VLOOKUP(MID(BK$23,5,4)&$A25,Lista_Ubigeo!$J:$K,2,0)," ") -> CHIRINOS | BL25: =IFERROR(VLOOKUP(MID(BL$23,5,4)&$A25,Lista_Ubigeo!$J:$K,2,0)," ") -> CHANCAY | BM25: =IFERROR(VLOOKUP(MID(BM$23,5,4)&$A25,Lista_Ubigeo!$J:$K,2,0)," ") -> BOLIVAR | BN25: =IFERROR(VLOOKUP(MID(BN$23,5,4)&$A25,Lista_Ubigeo!$J:$K,2,0)," ") -> SAN BERNARDINO | BO25: =IFERROR(VLOOKUP(MID(BO$23,5,4)&$A25,Lista_Ubigeo!$J:$K,2,0)," ") -> ANDABAMBA | BP25: =IFERROR(VLOOKUP(MID(BP$23,5,4)&$A25,Lista_Ubigeo!$J:$K,2,0)," ") -> BELLAVISTA | BQ25: =IFERROR(VLOOKUP(MID(BQ$23,5,4)&$A25,Lista_Ubigeo!$J:$K,2,0)," ") -> CCORCA | BR25: =IFERROR(VLOOKUP(MID(BR$23,5,4)&$A25,Lista_Ubigeo!$J:$K,2,0)," ") -> ACOPIA | BS25: =IFERROR(VLOOKUP(MID(BS$23,5,4)&$A25,Lista_Ubigeo!$J:$K,2,0)," ") -> ANCAHUASI | BT25: =IFERROR(VLOOKUP(MID(BT$23,5,4)&$A25,Lista_Ubigeo!$J:$K,2,0)," ") -> COYA | BU25: =IFERROR(VLOOKUP(MID(BU$23,5,4)&$A25,Lista_Ubigeo!$J:$K,2,0)," ") -> CHECCA | BV25: =IFERROR(VLOOKUP(MID(BV$23,5,4)&$A25,Lista_Ubigeo!$J:$K,2,0)," ") -> CHECACUPE | BW25: =IFERROR(VLOOKUP(MID(BW$23,5,4)&$A25,Lista_Ubigeo!$J:$K,2,0)," ") -> CAPACMARCA | BX25: =IFERROR(VLOOKUP(MID(BX$23,5,4)&$A25,Lista_Ubigeo!$J:$K,2,0)," ") -> CONDOROMA | BY25: =IFERROR(VLOOKUP(MID(BY$23,4,4)&$A25,Lista_Ubigeo!$J:$K,2,0)," ") -> ECHARATE | BZ25: =IFERROR(VLOOKUP(MID(BZ$23,5,4)&$A25,Lista_Ubigeo!$J:$K,2,0)," ") -> ACCHA | CA25: =IFERROR(VLOOKUP(MID(CA$23,5,4)&$A25,Lista_Ubigeo!$J:$K,2,0)," ") -> CAICAY | CB25: =IFERROR(VLOOKUP(MID(CB$23,5,4)&$A25,Lista_Ubigeo!$J:$K,2,0)," ") -> ANDAHUAYLILLAS | CC25: =IFERROR(VLOOKUP(MID(CC$23,5,4)&$A25,Lista_Ubigeo!$J:$K,2,0)," ") -> CHINCHERO | CD25: =IFERROR(VLOOKUP(MID(CD$23,5,4)&$A25,Lista_Ubigeo!$J:$K,2,0)," ") -> ACOBAMBILLA | CE25: =IFERROR(VLOOKUP(MID(CE$23,5,4)&$A25,Lista_Ubigeo!$J:$K,2,0)," ") -> ANDABAMBA | CF25: =IFERROR(VLOOKUP(MID(CF$23,5,4)&$A25,Lista_Ubigeo!$J:$K,2,0)," ") -> ANCHONGA | CG25: =IFERROR(VLOOKUP(MID(CG$23,5,4)&$A25,Lista_Ubigeo!$J:$K,2,0)," ") -> ARMA | CH25: =IFERROR(VLOOKUP(MID(CH$23,5,4)&$A25,Lista_Ubigeo!$J:$K,2,0)," ") -> ANCO | CI25: =IFERROR(VLOOKUP(MID(CI$23,5,4)&$A25,Lista_Ubigeo!$J:$K,2,0)," ") -> AYAVI | CJ25: =IFERROR(VLOOKUP(MID(CJ$23,5,4)&$A25,Lista_Ubigeo!$J:$K,2,0)," ") -> ACOSTAMBO | CK25: =IFERROR(VLOOKUP(MID(CK$23,5,4)&$A25,Lista_Ubigeo!$J:$K,2,0)," ") -> AMARILIS | CL25: =IFERROR(VLOOKUP(MID(CL$23,5,4)&$A25,Lista_Ubigeo!$J:$K,2,0)," ") -> CAYNA | CM25: =IFERROR(VLOOKUP(MID(CM$23,5,4)&$A30,Lista_Ubigeo!$J:$K,2,0)," ") -> CHUQUIS | CN25: =IFERROR(VLOOKUP(MID(CN$23,5,4)&$A25,Lista_Ubigeo!$J:$K,2,0)," ") -> CANCHABAMBA | CO25: =IFERROR(VLOOKUP(MID(CO$23,5,4)&$A25,Lista_Ubigeo!$J:$K,2,0)," ") -> ARANCAY | CP25: =IFERROR(VLOOKUP(MID(CP$23,5,4)&$A25,Lista_Ubigeo!$J:$K,2,0)," ") -> DANIEL ALOMIA ROBLES | CQ25: =IFERROR(VLOOKUP(MID(CQ$23,5,4)&$A25,Lista_Ubigeo!$J:$K,2,0)," ") -> CHOLON | CR25: =IFERROR(VLOOKUP(MID(CR$23,5,4)&$A25,Lista_Ubigeo!$J:$K,2,0)," ") -> CHAGLLA | CS25: =IFERROR(VLOOKUP(MID(CS$23,5,4)&$A25,Lista_Ubigeo!$J:$K,2,0)," ") -> CODO DEL POZUZO | CT25: =IFERROR(VLOOKUP(MID(CT$23,5,4)&$A25,Lista_Ubigeo!$J:$K,2,0)," ") -> BAÑOS | CU25: =IFERROR(VLOOKUP(MID(CU$23,5,4)&$A25,Lista_Ubigeo!$J:$K,2,0)," ") -> CAHUAC | CV25: =IFERROR(VLOOKUP(MID(CV$23,5,4)&$A25,Lista_Ubigeo!$J:$K,2,0)," ") -> LA TINGUIÑA | CW25: =IFERROR(VLOOKUP(MID(CW$23,5,4)&$A25,Lista_Ubigeo!$J:$K,2,0)," ") -> ALTO LARAN | CX25: =IFERROR(VLOOKUP(MID(CX$23,5,4)&$A25,Lista_Ubigeo!$J:$K,2,0)," ") -> CHANGUILLO | CY25: =IFERROR(VLOOKUP(MID(CY$23,5,4)&$A25,Lista_Ubigeo!$J:$K,2,0)," ") -> LLIPATA | CZ25: =IFERROR(VLOOKUP(MID(CZ$23,5,4)&$A25,Lista_Ubigeo!$J:$K,2,0)," ") -> HUANCANO | DA25: =IFERROR(VLOOKUP(MID(DA$23,5,4)&$A25,Lista_Ubigeo!$J:$K,2,0)," ") ->  | DB25: =IFERROR(VLOOKUP(MID(DB$23,5,4)&$A25,Lista_Ubigeo!$J:$K,2,0)," ") -> ACO | DC25: =IFERROR(VLOOKUP(MID(DC$23,5,4)&$A25,Lista_Ubigeo!$J:$K,2,0)," ") -> PERENE | DD25: =IFERROR(VLOOKUP(MID(DD$23,5,4)&$A25,Lista_Ubigeo!$J:$K,2,0)," ") -> ACOLLA | DE25: =IFERROR(VLOOKUP(MID(DE$23,5,4)&$A25,Lista_Ubigeo!$J:$K,2,0)," ") -> CARHUAMAYO | DF25: =IFERROR(VLOOKUP(MID(DF$23,5,4)&$A25,Lista_Ubigeo!$J:$K,2,0)," ") -> COVIRIALI | DG25: =IFERROR(VLOOKUP(MID(DG$23,5,4)&$A25,Lista_Ubigeo!$J:$K,2,0)," ") -> ACOBAMBA | DH25: =IFERROR(VLOOKUP(MID(DH$23,5,4)&$A25,Lista_Ubigeo!$J:$K,2,0)," ") -> CHACAPALPA | DI25: =IFERROR(VLOOKUP(MID(DI$23,5,4)&$A25,Lista_Ubigeo!$J:$K,2,0)," ") -> AHUAC | DJ25: =IFERROR(VLOOKUP(MID(DJ$23,5,4)&$A25,Lista_Ubigeo!$J:$K,2,0)," ") -> EL PORVENIR | DK25: =IFERROR(VLOOKUP(MID(DK$23,5,4)&$A25,Lista_Ubigeo!$J:$K,2,0)," ") -> CHICAMA | DL25: =IFERROR(VLOOKUP(MID(DL$23,5,4)&$A25,Lista_Ubigeo!$J:$K,2,0)," ") -> BAMBAMARCA | DM25: =IFERROR(VLOOKUP(MID(DM$23,5,4)&$A25,Lista_Ubigeo!$J:$K,2,0)," ") -> PACANGA | DN25: =IFERROR(VLOOKUP(MID(DN$23,5,4)&$A25,Lista_Ubigeo!$J:$K,2,0)," ") -> CALAMARCA | DO25: =IFERROR(VLOOKUP(MID(DO$23,5,4)&$A25,Lista_Ubigeo!$J:$K,2,0)," ") -> AGALLPAMPA | DP25: =IFERROR(VLOOKUP(MID(DP$23,5,4)&$A25,Lista_Ubigeo!$J:$K,2,0)," ") -> GUADALUPE | DQ25: =IFERROR(VLOOKUP(MID(DQ$23,5,4)&$A25,Lista_Ubigeo!$J:$K,2,0)," ") -> BULDIBUYO | DR25: =IFERROR(VLOOKUP(MID(DR$23,5,4)&$A25,Lista_Ubigeo!$J:$K,2,0)," ") -> CHUGAY | DS25: =IFERROR(VLOOKUP(MID(DS$23,5,4)&$A25,Lista_Ubigeo!$J:$K,2,0)," ") -> ANGASMARCA | DT25: =IFERROR(VLOOKUP(MID(DT$23,5,4)&$A25,Lista_Ubigeo!$J:$K,2,0)," ") -> LUCMA | DU25: =IFERROR(VLOOKUP(MID(DU$23,5,4)&$A25,Lista_Ubigeo!$J:$K,2,0)," ") -> CHAO | DV25: =IFERROR(VLOOKUP(MID(DV$23,5,4)&$A25,Lista_Ubigeo!$J:$K,2,0)," ") -> CHONGOYAPE | DW25: =IFERROR(VLOOKUP(MID(DW$23,5,4)&$A25,Lista_Ubigeo!$J:$K,2,0)," ") -> CAÑARIS | DX25: =IFERROR(VLOOKUP(MID(DX$23,5,4)&$A25,Lista_Ubigeo!$J:$K,2,0)," ") -> CHOCHOPE | DY25: =IFERROR(VLOOKUP(MID(DY$23,5,4)&$A25,Lista_Ubigeo!$J:$K,2,0)," ") -> ANCON | DZ25: =IFERROR(VLOOKUP(MID(DZ$23,5,4)&$A25,Lista_Ubigeo!$J:$K,2,0)," ") -> PARAMONGA | EA25: =IFERROR(VLOOKUP(MID(EA$23,5,4)&$A25,Lista_Ubigeo!$J:$K,2,0)," ") -> COPA | EB25: =IFERROR(VLOOKUP(MID(EB$23,5,4)&$A25,Lista_Ubigeo!$J:$K,2,0)," ") -> ARAHUAY | EC25: =IFERROR(VLOOKUP(MID(EC$23,5,4)&$A25,Lista_Ubigeo!$J:$K,2,0)," ") -> ASIA | ED25: =IFERROR(VLOOKUP(MID(ED$23,5,4)&$A25,Lista_Ubigeo!$J:$K,2,0)," ") -> ATAVILLOS ALTO | EE25: =IFERROR(VLOOKUP(MID(EE$23,5,4)&$A25,Lista_Ubigeo!$J:$K,2,0)," ") -> ANTIOQUIA | EF25: =IFERROR(VLOOKUP(MID(EF$23,5,4)&$A25,Lista_Ubigeo!$J:$K,2,0)," ") -> AMBAR | EG25: =IFERROR(VLOOKUP(MID(EG$23,5,4)&$A25,Lista_Ubigeo!$J:$K,2,0)," ") -> ANDAJES | EH25: =IFERROR(VLOOKUP(MID(EH$23,5,4)&$A25,Lista_Ubigeo!$J:$K,2,0)," ") -> ALIS | EI25: =IFERROR(VLOOKUP(MID(EI$23,5,4)&$A25,Lista_Ubigeo!$J:$K,2,0)," ") -> ALTO NANAY | EJ25: =IFERROR(VLOOKUP(MID(EJ$23,5,4)&$A25,Lista_Ubigeo!$J:$K,2,0)," ") -> BALSAPUERTO | EK25: =IFERROR(VLOOKUP(MID(EK$23,5,4)&$A25,Lista_Ubigeo!$J:$K,2,0)," ") -> PARINARI | EL25: =IFERROR(VLOOKUP(MID(EL$23,5,4)&$A25,Lista_Ubigeo!$J:$K,2,0)," ") -> PEBAS | EM25: =IFERROR(VLOOKUP(MID(EM$23,5,4)&$A25,Lista_Ubigeo!$J:$K,2,0)," ") -> ALTO TAPICHE | EN25: =IFERROR(VLOOKUP(MID(EN$23,5,4)&$A25,Lista_Ubigeo!$J:$K,2,0)," ") -> INAHUAYA | EO25: =IFERROR(VLOOKUP(MID(EO$23,5,4)&$A25,Lista_Ubigeo!$J:$K,2,0)," ") -> CAHUAPANAS | EP25: =IFERROR(VLOOKUP(MID(EP$23,5,4)&$A25,Lista_Ubigeo!$J:$K,2,0)," ") -> ROSA PANDURO | EQ25: =IFERROR(VLOOKUP(MID(EQ$23,5,4)&$A25,Lista_Ubigeo!$J:$K,2,0)," ") -> INAMBARI | ER25: =IFERROR(VLOOKUP(MID(ER$23,5,4)&$A25,Lista_Ubigeo!$J:$K,2,0)," ") -> FITZCARRALD | ES25: =IFERROR(VLOOKUP(MID(ES$23,5,4)&$A25,Lista_Ubigeo!$J:$K,2,0)," ") -> IBERIA | ET25: =IFERROR(VLOOKUP(MID(ET$23,5,4)&$A25,Lista_Ubigeo!$J:$K,2,0)," ") -> CARUMAS | EU25: =IFERROR(VLOOKUP(MID(EU$23,5,4)&$A25,Lista_Ubigeo!$J:$K,2,0)," ") -> CHOJATA | EV25: =IFERROR(VLOOKUP(MID(EV$23,5,4)&$A25,Lista_Ubigeo!$J:$K,2,0)," ") -> EL ALGARROBAL | EW25: =IFERROR(VLOOKUP(MID(EW$23,5,4)&$A25,Lista_Ubigeo!$J:$K,2,0)," ") -> HUACHON | EX25: =IFERROR(VLOOKUP(MID(EX$23,5,4)&$A25,Lista_Ubigeo!$J:$K,2,0)," ") -> CHACAYAN | EY25: =IFERROR(VLOOKUP(MID(EY$23,5,4)&$A25,Lista_Ubigeo!$J:$K,2,0)," ") -> CHONTABAMBA | EZ25: =IFERROR(VLOOKUP(MID(EZ$23,5,4)&$A27,Lista_Ubigeo!$J:$K,2,0)," ") -> CASTILLA | FA25: =IFERROR(VLOOKUP(MID(FA$23,5,4)&$A25,Lista_Ubigeo!$J:$K,2,0)," ") -> FRIAS | FB25: =IFERROR(VLOOKUP(MID(FB$23,5,4)&$A25,Lista_Ubigeo!$J:$K,2,0)," ") -> CANCHAQUE | FC25: =IFERROR(VLOOKUP(MID(FC$23,5,4)&$A25,Lista_Ubigeo!$J:$K,2,0)," ") -> BUENOS AIRES | FD25: =IFERROR(VLOOKUP(MID(FD$23,5,4)&$A25,Lista_Ubigeo!$J:$K,2,0)," ") -> AMOTAPE | FE25: =IFERROR(VLOOKUP(MID(FE$23,5,4)&$A25,Lista_Ubigeo!$J:$K,2,0)," ") -> BELLAVISTA | FF25: =IFERROR(VLOOKUP(MID(FF$23,5,4)&$A25,Lista_Ubigeo!$J:$K,2,0)," ") -> EL ALTO | FG25: =IFERROR(VLOOKUP(MID(FG$23,5,4)&$A25,Lista_Ubigeo!$J:$K,2,0)," ") -> BELLAVISTA DE LA UNION | FH25: =IFERROR(VLOOKUP(MID(FH$23,5,4)&$A25,Lista_Ubigeo!$J:$K,2,0)," ") -> ACORA | FI25: =IFERROR(VLOOKUP(MID(FI$23,5,4)&$A25,Lista_Ubigeo!$J:$K,2,0)," ") -> ACHAYA | FJ25: =IFERROR(VLOOKUP(MID(FJ$23,5,4)&$A25,Lista_Ubigeo!$J:$K,2,0)," ") -> AJOYANI | FK25: =IFERROR(VLOOKUP(MID(FK$23,5,4)&$A25,Lista_Ubigeo!$J:$K,2,0)," ") -> DESAGUADERO | FL25: =IFERROR(VLOOKUP(MID(FL$23,5,4)&$A25,Lista_Ubigeo!$J:$K,2,0)," ") -> CAPAZO | FM25: =IFERROR(VLOOKUP(MID(FM$23,5,4)&$A25,Lista_Ubigeo!$J:$K,2,0)," ") -> COJATA | FN25: =IFERROR(VLOOKUP(MID(FN$23,5,4)&$A25,Lista_Ubigeo!$J:$K,2,0)," ") -> CABANILLA | FO25: =IFERROR(VLOOKUP(MID(FO$23,5,4)&$A25,Lista_Ubigeo!$J:$K,2,0)," ") -> ANTAUTA | FP25: =IFERROR(VLOOKUP(MID(FP$23,5,4)&$A25,Lista_Ubigeo!$J:$K,2,0)," ") -> CONIMA | FQ25: =IFERROR(VLOOKUP(MID(FQ$23,5,4)&$A25,Lista_Ubigeo!$J:$K,2,0)," ") -> ANANEA | FR25: =IFERROR(VLOOKUP(MID(FR$23,5,4)&$A25,Lista_Ubigeo!$J:$K,2,0)," ") -> CABANA | FS25: =IFERROR(VLOOKUP(MID(FS$23,5,4)&$A25,Lista_Ubigeo!$J:$K,2,0)," ") -> CUYOCUYO | FT25: =IFERROR(VLOOKUP(MID(FT$23,5,4)&$A25,Lista_Ubigeo!$J:$K,2,0)," ") -> ANAPIA | FU25: =IFERROR(VLOOKUP(MID(FU$23,5,4)&$A25,Lista_Ubigeo!$J:$K,2,0)," ") -> CALZADA | FV25: =IFERROR(VLOOKUP(MID(FV$23,5,4)&$A25,Lista_Ubigeo!$J:$K,2,0)," ") -> ALTO BIAVO | FW25: =IFERROR(VLOOKUP(MID(FW$23,5,4)&$A25,Lista_Ubigeo!$J:$K,2,0)," ") -> AGUA BLANCA | FX25: =IFERROR(VLOOKUP(MID(FX$23,5,4)&$A25,Lista_Ubigeo!$J:$K,2,0)," ") -> ALTO SAPOSOA | FY25: =IFERROR(VLOOKUP(MID(FY$23,5,4)&$A25,Lista_Ubigeo!$J:$K,2,0)," ") -> ALONSO DE ALVARADO | FZ25: =IFERROR(VLOOKUP(MID(FZ$23,5,4)&$A25,Lista_Ubigeo!$J:$K,2,0)," ") -> CAMPANILLA | GA25: =IFERROR(VLOOKUP(MID(GA$23,5,4)&$A25,Lista_Ubigeo!$J:$K,2,0)," ") -> BUENOS AIRES | GB25: =IFERROR(VLOOKUP(MID(GB$23,5,4)&$A25,Lista_Ubigeo!$J:$K,2,0)," ") -> AWAJUN | GC25: =IFERROR(VLOOKUP(MID(GC$23,5,4)&$A25,Lista_Ubigeo!$J:$K,2,0)," ") -> ALBERTO LEVEAU | GD25: =IFERROR(VLOOKUP(MID(GD$23,5,4)&$A25,Lista_Ubigeo!$J:$K,2,0)," ") -> NUEVO PROGRESO | GE25: =IFERROR(VLOOKUP(MID(GE$23,5,4)&$A25,Lista_Ubigeo!$J:$K,2,0)," ") -> ALTO DE LA ALIANZA | GF25: =IFERROR(VLOOKUP(MID(GF$23,5,4)&$A25,Lista_Ubigeo!$J:$K,2,0)," ") -> CAIRANI | GG25: =IFERROR(VLOOKUP(MID(GG$23,5,4)&$A25,Lista_Ubigeo!$J:$K,2,0)," ") -> ILABAYA | GH25: =IFERROR(VLOOKUP(MID(GH$23,5,4)&$A25,Lista_Ubigeo!$J:$K,2,0)," ") -> HEROES ALBARRACIN | GI25: =IFERROR(VLOOKUP(MID(GI$23,5,4)&$A25,Lista_Ubigeo!$J:$K,2,0)," ") -> CORRALES | GJ25: =IFERROR(VLOOKUP(MID(GJ$23,5,4)&$A25,Lista_Ubigeo!$J:$K,2,0)," ") -> CASITAS | GK25: =IFERROR(VLOOKUP(MID(GK$23,5,4)&$A25,Lista_Ubigeo!$J:$K,2,0)," ") -> AGUAS VERDES | GL25: =IFERROR(VLOOKUP(MID(GL$23,5,4)&$A25,Lista_Ubigeo!$J:$K,2,0)," ") -> CAMPOVERDE | GM25: =IFERROR(VLOOKUP(MID(GM$23,5,4)&$A25,Lista_Ubigeo!$J:$K,2,0)," ") -> SEPAHUA | GN25: =IFERROR(VLOOKUP(MID(GN$23,5,4)&$A25,Lista_Ubigeo!$J:$K,2,0)," ") -> IRAZOLA | GO25: =IFERROR(VLOOKUP(MID(GO$23,5,4)&$A25,Lista_Ubigeo!$J:$K,2,0)," ") ->  | GP25: =IFERROR(VLOOKUP(MID(GP$23,5,4)&$A25,Lista_Ubigeo!$J:$K,2,0)," ") -> ACHAYA
A26: 03 | B26: =IFERROR(VLOOKUP(MID(B$23,5,4)&$A26,Lista_Ubigeo!$J:$K,2,0)," ") -> BALSAS | C26: =IFERROR(VLOOKUP(MID(C$23,5,4)&$A26,Lista_Ubigeo!$J:$K,2,0)," ") -> COPALLIN | D26: =IFERROR(VLOOKUP(MID(D$23,5,4)&$A26,Lista_Ubigeo!$J:$K,2,0)," ") -> CHURUJA | E26: =IFERROR(VLOOKUP(MID(E$23,5,4)&$A26,Lista_Ubigeo!$J:$K,2,0)," ") -> RIO SANTIAGO | F26: =IFERROR(VLOOKUP(MID(F$23,5,4)&$A26,Lista_Ubigeo!$J:$K,2,0)," ") -> COCABAMBA | G26: =IFERROR(VLOOKUP(MID(G$23,5,4)&$A26,Lista_Ubigeo!$J:$K,2,0)," ") -> COCHAMAL | H26: =IFERROR(VLOOKUP(MID(H$23,5,4)&$A26,Lista_Ubigeo!$J:$K,2,0)," ") -> CUMBA | I26: =IFERROR(VLOOKUP(MID(I$23,5,4)&$A26,Lista_Ubigeo!$J:$K,2,0)," ") -> COLCABAMBA | J26: =IFERROR(VLOOKUP(MID(J$23,5,4)&$A26,Lista_Ubigeo!$J:$K,2,0)," ") -> HUACLLAN | K26: =IFERROR(VLOOKUP(MID(K$23,5,4)&$A26,Lista_Ubigeo!$J:$K,2,0)," ") -> CHACCHO | L26: =IFERROR(VLOOKUP(MID(L$23,5,4)&$A26,Lista_Ubigeo!$J:$K,2,0)," ") ->  | M26: =IFERROR(VLOOKUP(MID(M$23,5,4)&$A26,Lista_Ubigeo!$J:$K,2,0)," ") -> ANTONIO RAYMONDI | N26: =IFERROR(VLOOKUP(MID(N$23,5,4)&$A26,Lista_Ubigeo!$J:$K,2,0)," ") -> AMASHCA | O26: =IFERROR(VLOOKUP(MID(O$23,5,4)&$A26,Lista_Ubigeo!$J:$K,2,0)," ") -> YAUYA | P26: =IFERROR(VLOOKUP(MID(P$23,5,4)&$A26,Lista_Ubigeo!$J:$K,2,0)," ") -> COMANDANTE NOEL | Q26: =IFERROR(VLOOKUP(MID(Q$23,5,4)&$A26,Lista_Ubigeo!$J:$K,2,0)," ") -> BAMBAS | R26: =IFERROR(VLOOKUP(MID(R$23,5,4)&$A26,Lista_Ubigeo!$J:$K,2,0)," ") -> CAJAY | S26: =IFERROR(VLOOKUP(MID(S$23,5,4)&$A26,Lista_Ubigeo!$J:$K,2,0)," ") -> CULEBRAS | T26: =IFERROR(VLOOKUP(MID(T$23,5,4)&$A26,Lista_Ubigeo!$J:$K,2,0)," ") -> HUATA | U26: =IFERROR(VLOOKUP(MID(U$23,5,4)&$A26,Lista_Ubigeo!$J:$K,2,0)," ") -> ELEAZAR GUZMAN BARRON | V26: =IFERROR(VLOOKUP(MID(V$23,5,4)&$A26,Lista_Ubigeo!$J:$K,2,0)," ") -> CAJAMARQUILLA | W26: =IFERROR(VLOOKUP(MID(W$23,5,4)&$A26,Lista_Ubigeo!$J:$K,2,0)," ") -> CONCHUCOS | X26: =IFERROR(VLOOKUP(MID(X$23,5,4)&$A26,Lista_Ubigeo!$J:$K,2,0)," ") -> PAROBAMBA | Y26: =IFERROR(VLOOKUP(MID(Y$23,5,4)&$A26,Lista_Ubigeo!$J:$K,2,0)," ") -> COTAPARACO | Z26: =IFERROR(VLOOKUP(MID(Z$23,5,4)&$A26,Lista_Ubigeo!$J:$K,2,0)," ") -> COISHCO | AA26: =IFERROR(VLOOKUP(MID(AA$23,5,4)&$A26,Lista_Ubigeo!$J:$K,2,0)," ") -> ALFONSO UGARTE | AB26: =IFERROR(VLOOKUP(MID(AB$23,5,4)&$A26,Lista_Ubigeo!$J:$K,2,0)," ") -> MANCOS | AC26: =IFERROR(VLOOKUP(MID(AC$23,5,4)&$A26,Lista_Ubigeo!$J:$K,2,0)," ") -> CIRCA | AD26: =IFERROR(VLOOKUP(MID(AD$23,5,4)&$A26,Lista_Ubigeo!$J:$K,2,0)," ") -> CHIARA | AE26: =IFERROR(VLOOKUP(MID(AE$23,5,4)&$A26,Lista_Ubigeo!$J:$K,2,0)," ") -> HUAQUIRCA | AF26: =IFERROR(VLOOKUP(MID(AF$23,5,4)&$A26,Lista_Ubigeo!$J:$K,2,0)," ") -> CARAYBAMBA | AG26: =IFERROR(VLOOKUP(MID(AG$23,5,4)&$A26,Lista_Ubigeo!$J:$K,2,0)," ") -> COYLLURQUI | AH26: =IFERROR(VLOOKUP(MID(AH$23,5,4)&$A26,Lista_Ubigeo!$J:$K,2,0)," ") -> COCHARCAS | AI26: =IFERROR(VLOOKUP(MID(AI$23,5,4)&$A26,Lista_Ubigeo!$J:$K,2,0)," ") -> GAMARRA | AJ26: =IFERROR(VLOOKUP(MID(AJ$23,5,4)&$A26,Lista_Ubigeo!$J:$K,2,0)," ") -> CAYMA | AK26: =IFERROR(VLOOKUP(MID(AK$23,5,4)&$A26,Lista_Ubigeo!$J:$K,2,0)," ") -> MARIANO NICOLAS VALCARCEL | AL26: =IFERROR(VLOOKUP(MID(AL$23,5,4)&$A26,Lista_Ubigeo!$J:$K,2,0)," ") -> ATICO | AM26: =IFERROR(VLOOKUP(MID(AM$23,5,4)&$A26,Lista_Ubigeo!$J:$K,2,0)," ") -> AYO | AN26: =IFERROR(VLOOKUP(MID(AN$23,5,4)&$A26,Lista_Ubigeo!$J:$K,2,0)," ") -> CABANACONDE | AO26: =IFERROR(VLOOKUP(MID(AO$23,5,4)&$A26,Lista_Ubigeo!$J:$K,2,0)," ") -> CAYARANI | AP26: =IFERROR(VLOOKUP(MID(AP$23,5,4)&$A26,Lista_Ubigeo!$J:$K,2,0)," ") -> DEAN VALDIVIA | AQ26: =IFERROR(VLOOKUP(MID(AQ$23,4,4)&$A26,Lista_Ubigeo!$J:$K,2,0)," ") -> CHARCANA | AR26: =IFERROR(VLOOKUP(MID(AR$23,5,4)&$A26,Lista_Ubigeo!$J:$K,2,0)," ") -> ACOS VINCHOS | AS26: =IFERROR(VLOOKUP(MID(AS$23,5,4)&$A26,Lista_Ubigeo!$J:$K,2,0)," ") -> LOS MOROCHUCOS | AT26: =IFERROR(VLOOKUP(MID(AT$23,5,4)&$A26,Lista_Ubigeo!$J:$K,2,0)," ") -> SACSAMARCA | AU26: =IFERROR(VLOOKUP(MID(AU$23,5,4)&$A26,Lista_Ubigeo!$J:$K,2,0)," ") -> HUAMANGUILLA | AV26: =IFERROR(VLOOKUP(MID(AV$23,5,4)&$A26,Lista_Ubigeo!$J:$K,2,0)," ") -> AYNA | AW26: =IFERROR(VLOOKUP(MID(AW$23,5,4)&$A26,Lista_Ubigeo!$J:$K,2,0)," ") -> CABANA | AX26: =IFERROR(VLOOKUP(MID(AX$23,5,4)&$A26,Lista_Ubigeo!$J:$K,2,0)," ") -> CORONEL CASTAÑEDA | AY26: =IFERROR(VLOOKUP(MID(AY$23,5,4)&$A26,Lista_Ubigeo!$J:$K,2,0)," ") -> CORCULLA | AZ26: =IFERROR(VLOOKUP(MID(AZ$23,5,4)&$A26,Lista_Ubigeo!$J:$K,2,0)," ") -> CHALCOS | BA26: =IFERROR(VLOOKUP(MID(BA$23,5,4)&$A26,Lista_Ubigeo!$J:$K,2,0)," ") -> APONGO | BB26: =IFERROR(VLOOKUP(MID(BB$23,5,4)&$A26,Lista_Ubigeo!$J:$K,2,0)," ") -> CARHUANCA | BC26: =IFERROR(VLOOKUP(MID(BC$23,5,4)&$A26,Lista_Ubigeo!$J:$K,2,0)," ") -> CHETILLA | BD26: =IFERROR(VLOOKUP(MID(BD$23,5,4)&$A26,Lista_Ubigeo!$J:$K,2,0)," ") -> CONDEBAMBA | BE26: =IFERROR(VLOOKUP(MID(BE$23,5,4)&$A26,Lista_Ubigeo!$J:$K,2,0)," ") -> CORTEGANA | BF26: =IFERROR(VLOOKUP(MID(BF$23,5,4)&$A26,Lista_Ubigeo!$J:$K,2,0)," ") -> CHADIN | BG26: =IFERROR(VLOOKUP(MID(BG$23,5,4)&$A26,Lista_Ubigeo!$J:$K,2,0)," ") -> CUPISNIQUE | BH26: =IFERROR(VLOOKUP(MID(BH$23,5,4)&$A26,Lista_Ubigeo!$J:$K,2,0)," ") -> CHOROS | BI26: =IFERROR(VLOOKUP(MID(BI$23,5,4)&$A26,Lista_Ubigeo!$J:$K,2,0)," ") -> HUALGAYOC | BJ26: =IFERROR(VLOOKUP(MID(BJ$23,5,4)&$A26,Lista_Ubigeo!$J:$K,2,0)," ") -> CHONTALI | BK26: =IFERROR(VLOOKUP(MID(BK$23,5,4)&$A26,Lista_Ubigeo!$J:$K,2,0)," ") -> HUARANGO | BL26: =IFERROR(VLOOKUP(MID(BL$23,5,4)&$A26,Lista_Ubigeo!$J:$K,2,0)," ") -> EDUARDO VILLANUEVA | BM26: =IFERROR(VLOOKUP(MID(BM$23,5,4)&$A26,Lista_Ubigeo!$J:$K,2,0)," ") -> CALQUIS | BN26: =IFERROR(VLOOKUP(MID(BN$23,5,4)&$A26,Lista_Ubigeo!$J:$K,2,0)," ") -> SAN LUIS | BO26: =IFERROR(VLOOKUP(MID(BO$23,5,4)&$A26,Lista_Ubigeo!$J:$K,2,0)," ") -> CATACHE | BP26: =IFERROR(VLOOKUP(MID(BP$23,5,4)&$A26,Lista_Ubigeo!$J:$K,2,0)," ") -> CARMEN DE LA LEGUA REYNOSO | BQ26: =IFERROR(VLOOKUP(MID(BQ$23,5,4)&$A26,Lista_Ubigeo!$J:$K,2,0)," ") -> POROY | BR26: =IFERROR(VLOOKUP(MID(BR$23,5,4)&$A26,Lista_Ubigeo!$J:$K,2,0)," ") -> ACOS | BS26: =IFERROR(VLOOKUP(MID(BS$23,5,4)&$A26,Lista_Ubigeo!$J:$K,2,0)," ") -> CACHIMAYO | BT26: =IFERROR(VLOOKUP(MID(BT$23,5,4)&$A26,Lista_Ubigeo!$J:$K,2,0)," ") -> LAMAY | BU26: =IFERROR(VLOOKUP(MID(BU$23,5,4)&$A26,Lista_Ubigeo!$J:$K,2,0)," ") -> KUNTURKANKI | BV26: =IFERROR(VLOOKUP(MID(BV$23,5,4)&$A26,Lista_Ubigeo!$J:$K,2,0)," ") -> COMBAPATA | BW26: =IFERROR(VLOOKUP(MID(BW$23,5,4)&$A26,Lista_Ubigeo!$J:$K,2,0)," ") -> CHAMACA | BX26: =IFERROR(VLOOKUP(MID(BX$23,5,4)&$A26,Lista_Ubigeo!$J:$K,2,0)," ") -> COPORAQUE | BY26: =IFERROR(VLOOKUP(MID(BY$23,4,4)&$A26,Lista_Ubigeo!$J:$K,2,0)," ") -> HUAYOPATA | BZ26: =IFERROR(VLOOKUP(MID(BZ$23,5,4)&$A26,Lista_Ubigeo!$J:$K,2,0)," ") -> CCAPI | CA26: =IFERROR(VLOOKUP(MID(CA$23,5,4)&$A26,Lista_Ubigeo!$J:$K,2,0)," ") -> CHALLABAMBA | CB26: =IFERROR(VLOOKUP(MID(CB$23,5,4)&$A26,Lista_Ubigeo!$J:$K,2,0)," ") -> CAMANTI | CC26: =IFERROR(VLOOKUP(MID(CC$23,5,4)&$A26,Lista_Ubigeo!$J:$K,2,0)," ") -> HUAYLLABAMBA | CD26: =IFERROR(VLOOKUP(MID(CD$23,5,4)&$A26,Lista_Ubigeo!$J:$K,2,0)," ") -> ACORIA | CE26: =IFERROR(VLOOKUP(MID(CE$23,5,4)&$A26,Lista_Ubigeo!$J:$K,2,0)," ") -> ANTA | CF26: =IFERROR(VLOOKUP(MID(CF$23,5,4)&$A26,Lista_Ubigeo!$J:$K,2,0)," ") -> CALLANMARCA | CG26: =IFERROR(VLOOKUP(MID(CG$23,5,4)&$A26,Lista_Ubigeo!$J:$K,2,0)," ") -> AURAHUA | CH26: =IFERROR(VLOOKUP(MID(CH$23,5,4)&$A26,Lista_Ubigeo!$J:$K,2,0)," ") -> CHINCHIHUASI | CI26: =IFERROR(VLOOKUP(MID(CI$23,5,4)&$A26,Lista_Ubigeo!$J:$K,2,0)," ") -> CORDOVA | CJ26: =IFERROR(VLOOKUP(MID(CJ$23,5,4)&$A26,Lista_Ubigeo!$J:$K,2,0)," ") -> ACRAQUIA | CK26: =IFERROR(VLOOKUP(MID(CK$23,5,4)&$A26,Lista_Ubigeo!$J:$K,2,0)," ") -> CHINCHAO | CL26: =IFERROR(VLOOKUP(MID(CL$23,5,4)&$A26,Lista_Ubigeo!$J:$K,2,0)," ") -> COLPAS | CM26: =IFERROR(VLOOKUP(MID(CM$23,5,4)&$A34,Lista_Ubigeo!$J:$K,2,0)," ") -> MARIAS | CN26: =IFERROR(VLOOKUP(MID(CN$23,5,4)&$A26,Lista_Ubigeo!$J:$K,2,0)," ") -> COCHABAMBA | CO26: =IFERROR(VLOOKUP(MID(CO$23,5,4)&$A26,Lista_Ubigeo!$J:$K,2,0)," ") -> CHAVIN DE PARIARCA | CP26: =IFERROR(VLOOKUP(MID(CP$23,5,4)&$A26,Lista_Ubigeo!$J:$K,2,0)," ") -> HERMILIO VALDIZAN | CQ26: =IFERROR(VLOOKUP(MID(CQ$23,5,4)&$A26,Lista_Ubigeo!$J:$K,2,0)," ") -> SAN BUENAVENTURA | CR26: =IFERROR(VLOOKUP(MID(CR$23,5,4)&$A26,Lista_Ubigeo!$J:$K,2,0)," ") -> MOLINO | CS26: =IFERROR(VLOOKUP(MID(CS$23,5,4)&$A26,Lista_Ubigeo!$J:$K,2,0)," ") -> HONORIA | CT26: =IFERROR(VLOOKUP(MID(CT$23,5,4)&$A26,Lista_Ubigeo!$J:$K,2,0)," ") -> JIVIA | CU26: =IFERROR(VLOOKUP(MID(CU$23,5,4)&$A26,Lista_Ubigeo!$J:$K,2,0)," ") -> CHACABAMBA | CV26: =IFERROR(VLOOKUP(MID(CV$23,5,4)&$A26,Lista_Ubigeo!$J:$K,2,0)," ") -> LOS AQUIJES | CW26: =IFERROR(VLOOKUP(MID(CW$23,5,4)&$A26,Lista_Ubigeo!$J:$K,2,0)," ") -> CHAVIN | CX26: =IFERROR(VLOOKUP(MID(CX$23,5,4)&$A26,Lista_Ubigeo!$J:$K,2,0)," ") -> EL INGENIO | CY26: =IFERROR(VLOOKUP(MID(CY$23,5,4)&$A26,Lista_Ubigeo!$J:$K,2,0)," ") -> RIO GRANDE | CZ26: =IFERROR(VLOOKUP(MID(CZ$23,5,4)&$A26,Lista_Ubigeo!$J:$K,2,0)," ") -> HUMAY | DA26: =IFERROR(VLOOKUP(MID(DA$23,5,4)&$A26,Lista_Ubigeo!$J:$K,2,0)," ") ->  | DB26: =IFERROR(VLOOKUP(MID(DB$23,5,4)&$A26,Lista_Ubigeo!$J:$K,2,0)," ") -> ANDAMARCA | DC26: =IFERROR(VLOOKUP(MID(DC$23,5,4)&$A26,Lista_Ubigeo!$J:$K,2,0)," ") -> PICHANAQUI | DD26: =IFERROR(VLOOKUP(MID(DD$23,5,4)&$A26,Lista_Ubigeo!$J:$K,2,0)," ") -> APATA | DE26: =IFERROR(VLOOKUP(MID(DE$23,5,4)&$A26,Lista_Ubigeo!$J:$K,2,0)," ") -> ONDORES | DF26: =IFERROR(VLOOKUP(MID(DF$23,5,4)&$A26,Lista_Ubigeo!$J:$K,2,0)," ") -> LLAYLLA | DG26: =IFERROR(VLOOKUP(MID(DG$23,5,4)&$A26,Lista_Ubigeo!$J:$K,2,0)," ") -> HUARICOLCA | DH26: =IFERROR(VLOOKUP(MID(DH$23,5,4)&$A26,Lista_Ubigeo!$J:$K,2,0)," ") -> HUAY-HUAY | DI26: =IFERROR(VLOOKUP(MID(DI$23,5,4)&$A26,Lista_Ubigeo!$J:$K,2,0)," ") -> CHONGOS BAJO | DJ26: =IFERROR(VLOOKUP(MID(DJ$23,5,4)&$A26,Lista_Ubigeo!$J:$K,2,0)," ") -> FLORENCIA DE MORA | DK26: =IFERROR(VLOOKUP(MID(DK$23,5,4)&$A26,Lista_Ubigeo!$J:$K,2,0)," ") -> CHOCOPE | DL26: =IFERROR(VLOOKUP(MID(DL$23,5,4)&$A26,Lista_Ubigeo!$J:$K,2,0)," ") -> CONDORMARCA | DM26: =IFERROR(VLOOKUP(MID(DM$23,5,4)&$A26,Lista_Ubigeo!$J:$K,2,0)," ") -> PUEBLO NUEVO | DN26: =IFERROR(VLOOKUP(MID(DN$23,5,4)&$A26,Lista_Ubigeo!$J:$K,2,0)," ") -> CARABAMBA | DO26: =IFERROR(VLOOKUP(MID(DO$23,5,4)&$A27,Lista_Ubigeo!$J:$K,2,0)," ") -> CHARAT | DP26: =IFERROR(VLOOKUP(MID(DP$23,5,4)&$A26,Lista_Ubigeo!$J:$K,2,0)," ") -> JEQUETEPEQUE | DQ26: =IFERROR(VLOOKUP(MID(DQ$23,5,4)&$A26,Lista_Ubigeo!$J:$K,2,0)," ") -> CHILLIA | DR26: =IFERROR(VLOOKUP(MID(DR$23,5,4)&$A26,Lista_Ubigeo!$J:$K,2,0)," ") -> COCHORCO | DS26: =IFERROR(VLOOKUP(MID(DS$23,5,4)&$A26,Lista_Ubigeo!$J:$K,2,0)," ") -> CACHICADAN | DT26: =IFERROR(VLOOKUP(MID(DT$23,5,4)&$A26,Lista_Ubigeo!$J:$K,2,0)," ") -> MARMOT | DU26: =IFERROR(VLOOKUP(MID(DU$23,5,4)&$A26,Lista_Ubigeo!$J:$K,2,0)," ") -> GUADALUPITO | DV26: =IFERROR(VLOOKUP(MID(DV$23,5,4)&$A26,Lista_Ubigeo!$J:$K,2,0)," ") -> ETEN | DW26: =IFERROR(VLOOKUP(MID(DW$23,5,4)&$A26,Lista_Ubigeo!$J:$K,2,0)," ") -> INCAHUASI | DX26: =IFERROR(VLOOKUP(MID(DX$23,5,4)&$A26,Lista_Ubigeo!$J:$K,2,0)," ") -> ILLIMO | DY26: =IFERROR(VLOOKUP(MID(DY$23,5,4)&$A26,Lista_Ubigeo!$J:$K,2,0)," ") -> ATE | DZ26: =IFERROR(VLOOKUP(MID(DZ$23,5,4)&$A26,Lista_Ubigeo!$J:$K,2,0)," ") -> PATIVILCA | EA26: =IFERROR(VLOOKUP(MID(EA$23,5,4)&$A26,Lista_Ubigeo!$J:$K,2,0)," ") -> GORGOR | EB26: =IFERROR(VLOOKUP(MID(EB$23,5,4)&$A26,Lista_Ubigeo!$J:$K,2,0)," ") -> HUAMANTANGA | EC26: =IFERROR(VLOOKUP(MID(EC$23,5,4)&$A26,Lista_Ubigeo!$J:$K,2,0)," ") -> CALANGO | ED26: =IFERROR(VLOOKUP(MID(ED$23,5,4)&$A26,Lista_Ubigeo!$J:$K,2,0)," ") -> ATAVILLOS BAJO | EE26: =IFERROR(VLOOKUP(MID(EE$23,5,4)&$A26,Lista_Ubigeo!$J:$K,2,0)," ") -> CALLAHUANCA | EF26: =IFERROR(VLOOKUP(MID(EF$23,5,4)&$A26,Lista_Ubigeo!$J:$K,2,0)," ") -> CALETA DE CARQUIN | EG26: =IFERROR(VLOOKUP(MID(EG$23,5,4)&$A26,Lista_Ubigeo!$J:$K,2,0)," ") -> CAUJUL | EH26: =IFERROR(VLOOKUP(MID(EH$23,5,4)&$A26,Lista_Ubigeo!$J:$K,2,0)," ") -> AYAUCA | EI26: =IFERROR(VLOOKUP(MID(EI$23,5,4)&$A26,Lista_Ubigeo!$J:$K,2,0)," ") -> FERNANDO LORES | EJ26: =IFERROR(VLOOKUP(MID(EJ$23,5,4)&$A28,Lista_Ubigeo!$J:$K,2,0)," ") -> JEBEROS | EK26: =IFERROR(VLOOKUP(MID(EK$23,5,4)&$A26,Lista_Ubigeo!$J:$K,2,0)," ") -> TIGRE | EL26: =IFERROR(VLOOKUP(MID(EL$23,5,4)&$A26,Lista_Ubigeo!$J:$K,2,0)," ") -> YAVARI | EM26: =IFERROR(VLOOKUP(MID(EM$23,5,4)&$A26,Lista_Ubigeo!$J:$K,2,0)," ") -> CAPELO | EN26: =IFERROR(VLOOKUP(MID(EN$23,5,4)&$A26,Lista_Ubigeo!$J:$K,2,0)," ") -> PADRE MARQUEZ | EO26: =IFERROR(VLOOKUP(MID(EO$23,5,4)&$A26,Lista_Ubigeo!$J:$K,2,0)," ") -> MANSERICHE | EP26: =IFERROR(VLOOKUP(MID(EP$23,5,4)&$A26,Lista_Ubigeo!$J:$K,2,0)," ") -> TENIENTE MANUEL CLAVERO | EQ26: =IFERROR(VLOOKUP(MID(EQ$23,5,4)&$A26,Lista_Ubigeo!$J:$K,2,0)," ") -> LAS PIEDRAS | ER26: =IFERROR(VLOOKUP(MID(ER$23,5,4)&$A26,Lista_Ubigeo!$J:$K,2,0)," ") -> MADRE DE DIOS | ES26: =IFERROR(VLOOKUP(MID(ES$23,5,4)&$A26,Lista_Ubigeo!$J:$K,2,0)," ") -> TAHUAMANU | ET26: =IFERROR(VLOOKUP(MID(ET$23,5,4)&$A26,Lista_Ubigeo!$J:$K,2,0)," ") -> CUCHUMBAYA | EU26: =IFERROR(VLOOKUP(MID(EU$23,5,4)&$A26,Lista_Ubigeo!$J:$K,2,0)," ") -> COALAQUE | EV26: =IFERROR(VLOOKUP(MID(EV$23,5,4)&$A26,Lista_Ubigeo!$J:$K,2,0)," ") -> PACOCHA | EW26: =IFERROR(VLOOKUP(MID(EW$23,5,4)&$A26,Lista_Ubigeo!$J:$K,2,0)," ") -> HUARIACA | EX26: =IFERROR(VLOOKUP(MID(EX$23,5,4)&$A26,Lista_Ubigeo!$J:$K,2,0)," ") -> GOYLLARISQUIZGA | EY26: =IFERROR(VLOOKUP(MID(EY$23,5,4)&$A26,Lista_Ubigeo!$J:$K,2,0)," ") -> HUANCABAMBA | EZ26: =IFERROR(VLOOKUP(MID(EZ$23,5,4)&$A28,Lista_Ubigeo!$J:$K,2,0)," ") -> CATACAOS | FA26: =IFERROR(VLOOKUP(MID(FA$23,5,4)&$A26,Lista_Ubigeo!$J:$K,2,0)," ") -> JILILI | FB26: =IFERROR(VLOOKUP(MID(FB$23,5,4)&$A26,Lista_Ubigeo!$J:$K,2,0)," ") -> EL CARMEN DE LA FRONTERA | FC26: =IFERROR(VLOOKUP(MID(FC$23,5,4)&$A26,Lista_Ubigeo!$J:$K,2,0)," ") -> CHALACO | FD26: =IFERROR(VLOOKUP(MID(FD$23,5,4)&$A26,Lista_Ubigeo!$J:$K,2,0)," ") -> ARENAL | FE26: =IFERROR(VLOOKUP(MID(FE$23,5,4)&$A26,Lista_Ubigeo!$J:$K,2,0)," ") -> IGNACIO ESCUDERO | FF26: =IFERROR(VLOOKUP(MID(FF$23,5,4)&$A26,Lista_Ubigeo!$J:$K,2,0)," ") -> LA BREA | FG26: =IFERROR(VLOOKUP(MID(FG$23,5,4)&$A26,Lista_Ubigeo!$J:$K,2,0)," ") -> BERNAL | FH26: =IFERROR(VLOOKUP(MID(FH$23,5,4)&$A26,Lista_Ubigeo!$J:$K,2,0)," ") -> AMANTANI | FI26: =IFERROR(VLOOKUP(MID(FI$23,5,4)&$A26,Lista_Ubigeo!$J:$K,2,0)," ") -> ARAPA | FJ26: =IFERROR(VLOOKUP(MID(FJ$23,5,4)&$A26,Lista_Ubigeo!$J:$K,2,0)," ") -> AYAPATA | FK26: =IFERROR(VLOOKUP(MID(FK$23,5,4)&$A26,Lista_Ubigeo!$J:$K,2,0)," ") -> HUACULLANI | FL26: =IFERROR(VLOOKUP(MID(FL$23,5,4)&$A26,Lista_Ubigeo!$J:$K,2,0)," ") -> PILCUYO | FM26: =IFERROR(VLOOKUP(MID(FM$23,5,4)&$A26,Lista_Ubigeo!$J:$K,2,0)," ") -> HUATASANI | FN26: =IFERROR(VLOOKUP(MID(FN$23,5,4)&$A26,Lista_Ubigeo!$J:$K,2,0)," ") -> CALAPUJA | FO26: =IFERROR(VLOOKUP(MID(FO$23,5,4)&$A26,Lista_Ubigeo!$J:$K,2,0)," ") -> CUPI | FP26: =IFERROR(VLOOKUP(MID(FP$23,5,4)&$A26,Lista_Ubigeo!$J:$K,2,0)," ") -> HUAYRAPATA | FQ26: =IFERROR(VLOOKUP(MID(FQ$23,5,4)&$A26,Lista_Ubigeo!$J:$K,2,0)," ") -> PEDRO VILCA APAZA | FR26: =IFERROR(VLOOKUP(MID(FR$23,5,4)&$A26,Lista_Ubigeo!$J:$K,2,0)," ") -> CABANILLAS | FS26: =IFERROR(VLOOKUP(MID(FS$23,5,4)&$A26,Lista_Ubigeo!$J:$K,2,0)," ") -> LIMBANI | FT26: =IFERROR(VLOOKUP(MID(FT$23,5,4)&$A26,Lista_Ubigeo!$J:$K,2,0)," ") -> COPANI | FU26: =IFERROR(VLOOKUP(MID(FU$23,5,4)&$A26,Lista_Ubigeo!$J:$K,2,0)," ") -> HABANA | FV26: =IFERROR(VLOOKUP(MID(FV$23,5,4)&$A26,Lista_Ubigeo!$J:$K,2,0)," ") -> BAJO BIAVO | FW26: =IFERROR(VLOOKUP(MID(FW$23,5,4)&$A26,Lista_Ubigeo!$J:$K,2,0)," ") -> SAN MARTIN | FX26: =IFERROR(VLOOKUP(MID(FX$23,5,4)&$A26,Lista_Ubigeo!$J:$K,2,0)," ") -> EL ESLABON | FY26: =IFERROR(VLOOKUP(MID(FY$23,5,4)&$A26,Lista_Ubigeo!$J:$K,2,0)," ") -> BARRANQUITA | FZ26: =IFERROR(VLOOKUP(MID(FZ$23,5,4)&$A26,Lista_Ubigeo!$J:$K,2,0)," ") -> HUICUNGO | GA26: =IFERROR(VLOOKUP(MID(GA$23,5,4)&$A26,Lista_Ubigeo!$J:$K,2,0)," ") -> CASPISAPA | GB26: =IFERROR(VLOOKUP(MID(GB$23,5,4)&$A26,Lista_Ubigeo!$J:$K,2,0)," ") -> ELIAS SOPLIN VARGAS | GC26: =IFERROR(VLOOKUP(MID(GC$23,5,4)&$A26,Lista_Ubigeo!$J:$K,2,0)," ") -> CACATACHI | GD26: =IFERROR(VLOOKUP(MID(GD$23,5,4)&$A26,Lista_Ubigeo!$J:$K,2,0)," ") -> POLVORA | GE26: =IFERROR(VLOOKUP(MID(GE$23,5,4)&$A26,Lista_Ubigeo!$J:$K,2,0)," ") -> CALANA | GF26: =IFERROR(VLOOKUP(MID(GF$23,5,4)&$A26,Lista_Ubigeo!$J:$K,2,0)," ") -> CAMILACA | GG26: =IFERROR(VLOOKUP(MID(GG$23,5,4)&$A26,Lista_Ubigeo!$J:$K,2,0)," ") -> ITE | GH26: =IFERROR(VLOOKUP(MID(GH$23,5,4)&$A26,Lista_Ubigeo!$J:$K,2,0)," ") -> ESTIQUE | GI26: =IFERROR(VLOOKUP(MID(GI$23,5,4)&$A26,Lista_Ubigeo!$J:$K,2,0)," ") -> LA CRUZ | GJ26: =IFERROR(VLOOKUP(MID(GJ$23,5,4)&$A26,Lista_Ubigeo!$J:$K,2,0)," ") -> CANOAS DE PUNTA SAL | GK26: =IFERROR(VLOOKUP(MID(GK$23,5,4)&$A26,Lista_Ubigeo!$J:$K,2,0)," ") -> MATAPALO | GL26: =IFERROR(VLOOKUP(MID(GL$23,5,4)&$A26,Lista_Ubigeo!$J:$K,2,0)," ") -> IPARIA | GM26: =IFERROR(VLOOKUP(MID(GM$23,5,4)&$A26,Lista_Ubigeo!$J:$K,2,0)," ") -> TAHUANIA | GN26: =IFERROR(VLOOKUP(MID(GN$23,5,4)&$A26,Lista_Ubigeo!$J:$K,2,0)," ") -> CURIMANA | GO26: =IFERROR(VLOOKUP(MID(GO$23,5,4)&$A26,Lista_Ubigeo!$J:$K,2,0)," ") ->  | GP26: =IFERROR(VLOOKUP(MID(GP$23,5,4)&$A26,Lista_Ubigeo!$J:$K,2,0)," ") -> ARAPA
A27: 04 | B27: =IFERROR(VLOOKUP(MID(B$23,5,4)&$A27,Lista_Ubigeo!$J:$K,2,0)," ") -> CHETO | C27: =IFERROR(VLOOKUP(MID(C$23,5,4)&$A27,Lista_Ubigeo!$J:$K,2,0)," ") -> EL PARCO | D27: =IFERROR(VLOOKUP(MID(D$23,5,4)&$A27,Lista_Ubigeo!$J:$K,2,0)," ") -> COROSHA | E27: =IFERROR(VLOOKUP(MID(E$23,5,4)&$A27,Lista_Ubigeo!$J:$K,2,0)," ") ->  | F27: =IFERROR(VLOOKUP(MID(F$23,5,4)&$A27,Lista_Ubigeo!$J:$K,2,0)," ") -> COLCAMAR | G27: =IFERROR(VLOOKUP(MID(G$23,5,4)&$A27,Lista_Ubigeo!$J:$K,2,0)," ") -> HUAMBO | H27: =IFERROR(VLOOKUP(MID(H$23,5,4)&$A27,Lista_Ubigeo!$J:$K,2,0)," ") -> EL MILAGRO | I27: =IFERROR(VLOOKUP(MID(I$23,5,4)&$A27,Lista_Ubigeo!$J:$K,2,0)," ") -> HUANCHAY | J27: =IFERROR(VLOOKUP(MID(J$23,5,4)&$A27,Lista_Ubigeo!$J:$K,2,0)," ") -> LA MERCED | K27: =IFERROR(VLOOKUP(MID(K$23,5,4)&$A27,Lista_Ubigeo!$J:$K,2,0)," ") -> CHINGAS | L27: =IFERROR(VLOOKUP(MID(L$23,5,4)&$A27,Lista_Ubigeo!$J:$K,2,0)," ") ->  | M27: =IFERROR(VLOOKUP(MID(M$23,5,4)&$A27,Lista_Ubigeo!$J:$K,2,0)," ") -> AGUIA | N27: =IFERROR(VLOOKUP(MID(N$23,5,4)&$A27,Lista_Ubigeo!$J:$K,2,0)," ") -> ANTA | O27: =IFERROR(VLOOKUP(MID(O$23,5,4)&$A27,Lista_Ubigeo!$J:$K,2,0)," ") ->  | P27: =IFERROR(VLOOKUP(MID(P$23,5,4)&$A27,Lista_Ubigeo!$J:$K,2,0)," ") -> YAUTAN | Q27: =IFERROR(VLOOKUP(MID(Q$23,5,4)&$A27,Lista_Ubigeo!$J:$K,2,0)," ") -> CUSCA | R27: =IFERROR(VLOOKUP(MID(R$23,5,4)&$A27,Lista_Ubigeo!$J:$K,2,0)," ") -> CHAVIN DE HUANTAR | S27: =IFERROR(VLOOKUP(MID(S$23,5,4)&$A27,Lista_Ubigeo!$J:$K,2,0)," ") -> HUAYAN | T27: =IFERROR(VLOOKUP(MID(T$23,5,4)&$A27,Lista_Ubigeo!$J:$K,2,0)," ") -> HUAYLAS | U27: =IFERROR(VLOOKUP(MID(U$23,5,4)&$A27,Lista_Ubigeo!$J:$K,2,0)," ") -> FIDEL OLIVAS ESCUDERO | V27: =IFERROR(VLOOKUP(MID(V$23,5,4)&$A27,Lista_Ubigeo!$J:$K,2,0)," ") -> CARHUAPAMPA | W27: =IFERROR(VLOOKUP(MID(W$23,5,4)&$A27,Lista_Ubigeo!$J:$K,2,0)," ") -> HUACASCHUQUE | X27: =IFERROR(VLOOKUP(MID(X$23,5,4)&$A27,Lista_Ubigeo!$J:$K,2,0)," ") -> QUINUABAMBA | Y27: =IFERROR(VLOOKUP(MID(Y$23,5,4)&$A27,Lista_Ubigeo!$J:$K,2,0)," ") -> HUAYLLAPAMPA | Z27: =IFERROR(VLOOKUP(MID(Z$23,5,4)&$A27,Lista_Ubigeo!$J:$K,2,0)," ") -> MACATE | AA27: =IFERROR(VLOOKUP(MID(AA$23,5,4)&$A27,Lista_Ubigeo!$J:$K,2,0)," ") -> CASHAPAMPA | AB27: =IFERROR(VLOOKUP(MID(AB$23,5,4)&$A27,Lista_Ubigeo!$J:$K,2,0)," ") -> MATACOTO | AC27: =IFERROR(VLOOKUP(MID(AC$23,5,4)&$A27,Lista_Ubigeo!$J:$K,2,0)," ") -> CURAHUASI | AD27: =IFERROR(VLOOKUP(MID(AD$23,5,4)&$A27,Lista_Ubigeo!$J:$K,2,0)," ") -> HUANCARAMA | AE27: =IFERROR(VLOOKUP(MID(AE$23,5,4)&$A27,Lista_Ubigeo!$J:$K,2,0)," ") -> JUAN ESPINOZA MEDRANO | AF27: =IFERROR(VLOOKUP(MID(AF$23,5,4)&$A27,Lista_Ubigeo!$J:$K,2,0)," ") -> CHAPIMARCA | AG27: =IFERROR(VLOOKUP(MID(AG$23,5,4)&$A27,Lista_Ubigeo!$J:$K,2,0)," ") -> HAQUIRA | AH27: =IFERROR(VLOOKUP(MID(AH$23,5,4)&$A27,Lista_Ubigeo!$J:$K,2,0)," ") -> HUACCANA | AI27: =IFERROR(VLOOKUP(MID(AI$23,5,4)&$A27,Lista_Ubigeo!$J:$K,2,0)," ") -> HUAYLLATI | AJ27: =IFERROR(VLOOKUP(MID(AJ$23,5,4)&$A27,Lista_Ubigeo!$J:$K,2,0)," ") -> CERRO COLORADO | AK27: =IFERROR(VLOOKUP(MID(AK$23,5,4)&$A27,Lista_Ubigeo!$J:$K,2,0)," ") -> MARISCAL CACERES | AL27: =IFERROR(VLOOKUP(MID(AL$23,5,4)&$A27,Lista_Ubigeo!$J:$K,2,0)," ") -> ATIQUIPA | AM27: =IFERROR(VLOOKUP(MID(AM$23,5,4)&$A27,Lista_Ubigeo!$J:$K,2,0)," ") -> CHACHAS | AN27: =IFERROR(VLOOKUP(MID(AN$23,5,4)&$A27,Lista_Ubigeo!$J:$K,2,0)," ") -> CALLALLI | AO27: =IFERROR(VLOOKUP(MID(AO$23,5,4)&$A27,Lista_Ubigeo!$J:$K,2,0)," ") -> CHICHAS | AP27: =IFERROR(VLOOKUP(MID(AP$23,5,4)&$A27,Lista_Ubigeo!$J:$K,2,0)," ") -> ISLAY | AQ27: =IFERROR(VLOOKUP(MID(AQ$23,4,4)&$A27,Lista_Ubigeo!$J:$K,2,0)," ") -> HUAYNACOTAS | AR27: =IFERROR(VLOOKUP(MID(AR$23,5,4)&$A27,Lista_Ubigeo!$J:$K,2,0)," ") -> CARMEN ALTO | AS27: =IFERROR(VLOOKUP(MID(AS$23,5,4)&$A27,Lista_Ubigeo!$J:$K,2,0)," ") -> MARIA PARADO DE BELLIDO | AT27: =IFERROR(VLOOKUP(MID(AT$23,5,4)&$A27,Lista_Ubigeo!$J:$K,2,0)," ") -> SANTIAGO DE LUCANAMARCA | AU27: =IFERROR(VLOOKUP(MID(AU$23,5,4)&$A27,Lista_Ubigeo!$J:$K,2,0)," ") -> IGUAIN | AV27: =IFERROR(VLOOKUP(MID(AV$23,5,4)&$A27,Lista_Ubigeo!$J:$K,2,0)," ") -> CHILCAS | AW27: =IFERROR(VLOOKUP(MID(AW$23,5,4)&$A27,Lista_Ubigeo!$J:$K,2,0)," ") -> CARMEN SALCEDO | AX27: =IFERROR(VLOOKUP(MID(AX$23,5,4)&$A27,Lista_Ubigeo!$J:$K,2,0)," ") -> PACAPAUSA | AY27: =IFERROR(VLOOKUP(MID(AY$23,5,4)&$A27,Lista_Ubigeo!$J:$K,2,0)," ") -> LAMPA | AZ27: =IFERROR(VLOOKUP(MID(AZ$23,5,4)&$A27,Lista_Ubigeo!$J:$K,2,0)," ") -> CHILCAYOC | BA27: =IFERROR(VLOOKUP(MID(BA$23,5,4)&$A27,Lista_Ubigeo!$J:$K,2,0)," ") -> ASQUIPATA | BB27: =IFERROR(VLOOKUP(MID(BB$23,5,4)&$A27,Lista_Ubigeo!$J:$K,2,0)," ") -> CONCEPCION | BC27: =IFERROR(VLOOKUP(MID(BC$23,5,4)&$A27,Lista_Ubigeo!$J:$K,2,0)," ") -> COSPAN | BD27: =IFERROR(VLOOKUP(MID(BD$23,5,4)&$A27,Lista_Ubigeo!$J:$K,2,0)," ") -> SITACOCHA | BE27: =IFERROR(VLOOKUP(MID(BE$23,5,4)&$A27,Lista_Ubigeo!$J:$K,2,0)," ") -> HUASMIN | BF27: =IFERROR(VLOOKUP(MID(BF$23,5,4)&$A27,Lista_Ubigeo!$J:$K,2,0)," ") -> CHIGUIRIP | BG27: =IFERROR(VLOOKUP(MID(BG$23,5,4)&$A27,Lista_Ubigeo!$J:$K,2,0)," ") -> GUZMANGO | BH27: =IFERROR(VLOOKUP(MID(BH$23,5,4)&$A27,Lista_Ubigeo!$J:$K,2,0)," ") -> CUJILLO | BI27: =IFERROR(VLOOKUP(MID(BI$23,5,4)&$A27,Lista_Ubigeo!$J:$K,2,0)," ") ->  | BJ27: =IFERROR(VLOOKUP(MID(BJ$23,5,4)&$A27,Lista_Ubigeo!$J:$K,2,0)," ") -> COLASAY | BK27: =IFERROR(VLOOKUP(MID(BK$23,5,4)&$A27,Lista_Ubigeo!$J:$K,2,0)," ") -> LA COIPA | BL27: =IFERROR(VLOOKUP(MID(BL$23,5,4)&$A27,Lista_Ubigeo!$J:$K,2,0)," ") -> GREGORIO PITA | BM27: =IFERROR(VLOOKUP(MID(BM$23,5,4)&$A27,Lista_Ubigeo!$J:$K,2,0)," ") -> CATILLUC | BN27: =IFERROR(VLOOKUP(MID(BN$23,5,4)&$A27,Lista_Ubigeo!$J:$K,2,0)," ") -> TUMBADEN | BO27: =IFERROR(VLOOKUP(MID(BO$23,5,4)&$A27,Lista_Ubigeo!$J:$K,2,0)," ") -> CHANCAYBAÑOS | BP27: =IFERROR(VLOOKUP(MID(BP$23,5,4)&$A27,Lista_Ubigeo!$J:$K,2,0)," ") -> LA PERLA | BQ27: =IFERROR(VLOOKUP(MID(BQ$23,5,4)&$A27,Lista_Ubigeo!$J:$K,2,0)," ") -> SAN JERONIMO | BR27: =IFERROR(VLOOKUP(MID(BR$23,5,4)&$A27,Lista_Ubigeo!$J:$K,2,0)," ") -> MOSOC LLACTA | BS27: =IFERROR(VLOOKUP(MID(BS$23,5,4)&$A27,Lista_Ubigeo!$J:$K,2,0)," ") -> CHINCHAYPUJIO | BT27: =IFERROR(VLOOKUP(MID(BT$23,5,4)&$A27,Lista_Ubigeo!$J:$K,2,0)," ") -> LARES | BU27: =IFERROR(VLOOKUP(MID(BU$23,5,4)&$A27,Lista_Ubigeo!$J:$K,2,0)," ") -> LANGUI | BV27: =IFERROR(VLOOKUP(MID(BV$23,5,4)&$A27,Lista_Ubigeo!$J:$K,2,0)," ") -> MARANGANI | BW27: =IFERROR(VLOOKUP(MID(BW$23,5,4)&$A27,Lista_Ubigeo!$J:$K,2,0)," ") -> COLQUEMARCA | BX27: =IFERROR(VLOOKUP(MID(BX$23,5,4)&$A27,Lista_Ubigeo!$J:$K,2,0)," ") -> OCORURO | BY27: =IFERROR(VLOOKUP(MID(BY$23,4,4)&$A27,Lista_Ubigeo!$J:$K,2,0)," ") -> MARANURA | BZ27: =IFERROR(VLOOKUP(MID(BZ$23,5,4)&$A27,Lista_Ubigeo!$J:$K,2,0)," ") -> COLCHA | CA27: =IFERROR(VLOOKUP(MID(CA$23,5,4)&$A27,Lista_Ubigeo!$J:$K,2,0)," ") -> COLQUEPATA | CB27: =IFERROR(VLOOKUP(MID(CB$23,5,4)&$A27,Lista_Ubigeo!$J:$K,2,0)," ") -> CCARHUAYO | CC27: =IFERROR(VLOOKUP(MID(CC$23,5,4)&$A27,Lista_Ubigeo!$J:$K,2,0)," ") -> MACHUPICCHU | CD27: =IFERROR(VLOOKUP(MID(CD$23,5,4)&$A27,Lista_Ubigeo!$J:$K,2,0)," ") -> CONAYCA | CE27: =IFERROR(VLOOKUP(MID(CE$23,5,4)&$A27,Lista_Ubigeo!$J:$K,2,0)," ") -> CAJA | CF27: =IFERROR(VLOOKUP(MID(CF$23,5,4)&$A27,Lista_Ubigeo!$J:$K,2,0)," ") -> CCOCHACCASA | CG27: =IFERROR(VLOOKUP(MID(CG$23,5,4)&$A27,Lista_Ubigeo!$J:$K,2,0)," ") -> CAPILLAS | CH27: =IFERROR(VLOOKUP(MID(CH$23,5,4)&$A27,Lista_Ubigeo!$J:$K,2,0)," ") -> EL CARMEN | CI27: =IFERROR(VLOOKUP(MID(CI$23,5,4)&$A27,Lista_Ubigeo!$J:$K,2,0)," ") -> HUAYACUNDO ARMA | CJ27: =IFERROR(VLOOKUP(MID(CJ$23,5,4)&$A27,Lista_Ubigeo!$J:$K,2,0)," ") -> AHUAYCHA | CK27: =IFERROR(VLOOKUP(MID(CK$23,5,4)&$A27,Lista_Ubigeo!$J:$K,2,0)," ") -> CHURUBAMBA | CL27: =IFERROR(VLOOKUP(MID(CL$23,5,4)&$A27,Lista_Ubigeo!$J:$K,2,0)," ") -> CONCHAMARCA | CM27: =IFERROR(VLOOKUP(MID(CM$23,5,4)&$A36,Lista_Ubigeo!$J:$K,2,0)," ") -> PACHAS | CN27: =IFERROR(VLOOKUP(MID(CN$23,5,4)&$A27,Lista_Ubigeo!$J:$K,2,0)," ") -> PINRA | CO27: =IFERROR(VLOOKUP(MID(CO$23,5,4)&$A27,Lista_Ubigeo!$J:$K,2,0)," ") -> JACAS GRANDE | CP27: =IFERROR(VLOOKUP(MID(CP$23,5,4)&$A27,Lista_Ubigeo!$J:$K,2,0)," ") -> JOSE CRESPO Y CASTILLO | CQ27: =IFERROR(VLOOKUP(MID(CQ$23,5,4)&$A27,Lista_Ubigeo!$J:$K,2,0)," ") -> LA MORADA | CR27: =IFERROR(VLOOKUP(MID(CR$23,5,4)&$A27,Lista_Ubigeo!$J:$K,2,0)," ") -> UMARI | CS27: =IFERROR(VLOOKUP(MID(CS$23,5,4)&$A27,Lista_Ubigeo!$J:$K,2,0)," ") -> TOURNAVISTA | CT27: =IFERROR(VLOOKUP(MID(CT$23,5,4)&$A27,Lista_Ubigeo!$J:$K,2,0)," ") -> QUEROPALCA | CU27: =IFERROR(VLOOKUP(MID(CU$23,5,4)&$A27,Lista_Ubigeo!$J:$K,2,0)," ") -> APARICIO POMARES | CV27: =IFERROR(VLOOKUP(MID(CV$23,5,4)&$A27,Lista_Ubigeo!$J:$K,2,0)," ") -> OCUCAJE | CW27: =IFERROR(VLOOKUP(MID(CW$23,5,4)&$A27,Lista_Ubigeo!$J:$K,2,0)," ") -> CHINCHA BAJA | CX27: =IFERROR(VLOOKUP(MID(CX$23,5,4)&$A27,Lista_Ubigeo!$J:$K,2,0)," ") -> MARCONA | CY27: =IFERROR(VLOOKUP(MID(CY$23,5,4)&$A27,Lista_Ubigeo!$J:$K,2,0)," ") -> SANTA CRUZ | CZ27: =IFERROR(VLOOKUP(MID(CZ$23,5,4)&$A27,Lista_Ubigeo!$J:$K,2,0)," ") -> INDEPENDENCIA | DA27: =IFERROR(VLOOKUP(MID(DA$23,5,4)&$A27,Lista_Ubigeo!$J:$K,2,0)," ") -> CARHUACALLANGA | DB27: =IFERROR(VLOOKUP(MID(DB$23,5,4)&$A27,Lista_Ubigeo!$J:$K,2,0)," ") -> CHAMBARA | DC27: =IFERROR(VLOOKUP(MID(DC$23,5,4)&$A27,Lista_Ubigeo!$J:$K,2,0)," ") -> SAN LUIS DE SHUARO | DD27: =IFERROR(VLOOKUP(MID(DD$23,5,4)&$A27,Lista_Ubigeo!$J:$K,2,0)," ") -> ATAURA | DE27: =IFERROR(VLOOKUP(MID(DE$23,5,4)&$A27,Lista_Ubigeo!$J:$K,2,0)," ") -> ULCUMAYO | DF27: =IFERROR(VLOOKUP(MID(DF$23,5,4)&$A27,Lista_Ubigeo!$J:$K,2,0)," ") -> MAZAMARI | DG27: =IFERROR(VLOOKUP(MID(DG$23,5,4)&$A27,Lista_Ubigeo!$J:$K,2,0)," ") -> HUASAHUASI | DH27: =IFERROR(VLOOKUP(MID(DH$23,5,4)&$A27,Lista_Ubigeo!$J:$K,2,0)," ") -> MARCAPOMACOCHA | DI27: =IFERROR(VLOOKUP(MID(DI$23,5,4)&$A27,Lista_Ubigeo!$J:$K,2,0)," ") -> HUACHAC | DJ27: =IFERROR(VLOOKUP(MID(DJ$23,5,4)&$A27,Lista_Ubigeo!$J:$K,2,0)," ") -> HUANCHACO | DK27: =IFERROR(VLOOKUP(MID(DK$23,5,4)&$A27,Lista_Ubigeo!$J:$K,2,0)," ") -> MAGDALENA DE CAO | DL27: =IFERROR(VLOOKUP(MID(DL$23,5,4)&$A27,Lista_Ubigeo!$J:$K,2,0)," ") -> LONGOTEA | DM27: =IFERROR(VLOOKUP(MID(DM$23,5,4)&$A27,Lista_Ubigeo!$J:$K,2,0)," ") ->  | DN27: =IFERROR(VLOOKUP(MID(DN$23,5,4)&$A27,Lista_Ubigeo!$J:$K,2,0)," ") -> HUASO | DO27: =IFERROR(VLOOKUP(MID(DO$23,5,4)&$A28,Lista_Ubigeo!$J:$K,2,0)," ") -> HUARANCHAL | DP27: =IFERROR(VLOOKUP(MID(DP$23,5,4)&$A27,Lista_Ubigeo!$J:$K,2,0)," ") -> PACASMAYO | DQ27: =IFERROR(VLOOKUP(MID(DQ$23,5,4)&$A27,Lista_Ubigeo!$J:$K,2,0)," ") -> HUANCASPATA | DR27: =IFERROR(VLOOKUP(MID(DR$23,5,4)&$A27,Lista_Ubigeo!$J:$K,2,0)," ") -> CURGOS | DS27: =IFERROR(VLOOKUP(MID(DS$23,5,4)&$A27,Lista_Ubigeo!$J:$K,2,0)," ") -> MOLLEBAMBA | DT27: =IFERROR(VLOOKUP(MID(DT$23,5,4)&$A27,Lista_Ubigeo!$J:$K,2,0)," ") -> SAYAPULLO | DV27: =IFERROR(VLOOKUP(MID(DV$23,5,4)&$A27,Lista_Ubigeo!$J:$K,2,0)," ") -> ETEN PUERTO | DW27: =IFERROR(VLOOKUP(MID(DW$23,5,4)&$A27,Lista_Ubigeo!$J:$K,2,0)," ") -> MANUEL ANTONIO MESONES MURO | DX27: =IFERROR(VLOOKUP(MID(DX$23,5,4)&$A27,Lista_Ubigeo!$J:$K,2,0)," ") -> JAYANCA | DY27: =IFERROR(VLOOKUP(MID(DY$23,5,4)&$A27,Lista_Ubigeo!$J:$K,2,0)," ") -> BARRANCO | DZ27: =IFERROR(VLOOKUP(MID(DZ$23,5,4)&$A27,Lista_Ubigeo!$J:$K,2,0)," ") -> SUPE | EA27: =IFERROR(VLOOKUP(MID(EA$23,5,4)&$A27,Lista_Ubigeo!$J:$K,2,0)," ") -> HUANCAPON | EB27: =IFERROR(VLOOKUP(MID(EB$23,5,4)&$A27,Lista_Ubigeo!$J:$K,2,0)," ") -> HUAROS | EC27: =IFERROR(VLOOKUP(MID(EC$23,5,4)&$A27,Lista_Ubigeo!$J:$K,2,0)," ") -> CERRO AZUL | ED27: =IFERROR(VLOOKUP(MID(ED$23,5,4)&$A27,Lista_Ubigeo!$J:$K,2,0)," ") -> AUCALLAMA | EE27: =IFERROR(VLOOKUP(MID(EE$23,5,4)&$A27,Lista_Ubigeo!$J:$K,2,0)," ") -> CARAMPOMA | EF27: =IFERROR(VLOOKUP(MID(EF$23,5,4)&$A27,Lista_Ubigeo!$J:$K,2,0)," ") -> CHECRAS | EG27: =IFERROR(VLOOKUP(MID(EG$23,5,4)&$A27,Lista_Ubigeo!$J:$K,2,0)," ") -> COCHAMARCA | EH27: =IFERROR(VLOOKUP(MID(EH$23,5,4)&$A27,Lista_Ubigeo!$J:$K,2,0)," ") -> AYAVIRI | EI27: =IFERROR(VLOOKUP(MID(EI$23,5,4)&$A27,Lista_Ubigeo!$J:$K,2,0)," ") -> INDIANA | EJ27: =IFERROR(VLOOKUP(MID(EJ$23,5,4)&$A29,Lista_Ubigeo!$J:$K,2,0)," ") -> LAGUNAS | EK27: =IFERROR(VLOOKUP(MID(EK$23,5,4)&$A27,Lista_Ubigeo!$J:$K,2,0)," ") -> TROMPETEROS | EL27: =IFERROR(VLOOKUP(MID(EL$23,5,4)&$A27,Lista_Ubigeo!$J:$K,2,0)," ") -> SAN PABLO | EM27: =IFERROR(VLOOKUP(MID(EM$23,5,4)&$A27,Lista_Ubigeo!$J:$K,2,0)," ") -> EMILIO SAN MARTIN | EN27: =IFERROR(VLOOKUP(MID(EN$23,5,4)&$A27,Lista_Ubigeo!$J:$K,2,0)," ") -> PAMPA HERMOSA | EO27: =IFERROR(VLOOKUP(MID(EO$23,5,4)&$A27,Lista_Ubigeo!$J:$K,2,0)," ") -> MORONA | EP27: =IFERROR(VLOOKUP(MID(EP$23,5,4)&$A27,Lista_Ubigeo!$J:$K,2,0)," ") -> YAGUAS | EQ27: =IFERROR(VLOOKUP(MID(EQ$23,5,4)&$A27,Lista_Ubigeo!$J:$K,2,0)," ") -> LABERINTO | ER27: =IFERROR(VLOOKUP(MID(ER$23,5,4)&$A27,Lista_Ubigeo!$J:$K,2,0)," ") -> HUEPETUHE | ES27: =IFERROR(VLOOKUP(MID(ES$23,5,4)&$A27,Lista_Ubigeo!$J:$K,2,0)," ") ->  | ET27: =IFERROR(VLOOKUP(MID(ET$23,5,4)&$A27,Lista_Ubigeo!$J:$K,2,0)," ") -> SAMEGUA | EU27: =IFERROR(VLOOKUP(MID(EU$23,5,4)&$A27,Lista_Ubigeo!$J:$K,2,0)," ") -> ICHUÑA | EV27: =IFERROR(VLOOKUP(MID(EV$23,5,4)&$A27,Lista_Ubigeo!$J:$K,2,0)," ") ->  | EW27: =IFERROR(VLOOKUP(MID(EW$23,5,4)&$A27,Lista_Ubigeo!$J:$K,2,0)," ") -> HUAYLLAY | EX27: =IFERROR(VLOOKUP(MID(EX$23,5,4)&$A27,Lista_Ubigeo!$J:$K,2,0)," ") -> PAUCAR | EY27: =IFERROR(VLOOKUP(MID(EY$23,5,4)&$A27,Lista_Ubigeo!$J:$K,2,0)," ") -> PALCAZU | EZ27: =IFERROR(VLOOKUP(MID(EZ$23,5,4)&$A30,Lista_Ubigeo!$J:$K,2,0)," ") -> CURA MORI | FA27: =IFERROR(VLOOKUP(MID(FA$23,5,4)&$A27,Lista_Ubigeo!$J:$K,2,0)," ") -> LAGUNAS | FB27: =IFERROR(VLOOKUP(MID(FB$23,5,4)&$A27,Lista_Ubigeo!$J:$K,2,0)," ") -> HUARMACA | FC27: =IFERROR(VLOOKUP(MID(FC$23,5,4)&$A27,Lista_Ubigeo!$J:$K,2,0)," ") -> LA MATANZA | FD27: =IFERROR(VLOOKUP(MID(FD$23,5,4)&$A27,Lista_Ubigeo!$J:$K,2,0)," ") -> COLAN | FE27: =IFERROR(VLOOKUP(MID(FE$23,5,4)&$A27,Lista_Ubigeo!$J:$K,2,0)," ") -> LANCONES | FF27: =IFERROR(VLOOKUP(MID(FF$23,5,4)&$A27,Lista_Ubigeo!$J:$K,2,0)," ") -> LOBITOS | FG27: =IFERROR(VLOOKUP(MID(FG$23,5,4)&$A27,Lista_Ubigeo!$J:$K,2,0)," ") -> CRISTO NOS VALGA | FH27: =IFERROR(VLOOKUP(MID(FH$23,5,4)&$A27,Lista_Ubigeo!$J:$K,2,0)," ") -> ATUNCOLLA | FI27: =IFERROR(VLOOKUP(MID(FI$23,5,4)&$A27,Lista_Ubigeo!$J:$K,2,0)," ") -> ASILLO | FJ27: =IFERROR(VLOOKUP(MID(FJ$23,5,4)&$A27,Lista_Ubigeo!$J:$K,2,0)," ") -> COASA | FK27: =IFERROR(VLOOKUP(MID(FK$23,5,4)&$A27,Lista_Ubigeo!$J:$K,2,0)," ") -> KELLUYO | FL27: =IFERROR(VLOOKUP(MID(FL$23,5,4)&$A27,Lista_Ubigeo!$J:$K,2,0)," ") -> SANTA ROSA | FM27: =IFERROR(VLOOKUP(MID(FM$23,5,4)&$A27,Lista_Ubigeo!$J:$K,2,0)," ") -> INCHUPALLA | FN27: =IFERROR(VLOOKUP(MID(FN$23,5,4)&$A27,Lista_Ubigeo!$J:$K,2,0)," ") -> NICASIO | FO27: =IFERROR(VLOOKUP(MID(FO$23,5,4)&$A27,Lista_Ubigeo!$J:$K,2,0)," ") -> LLALLI | FP27: =IFERROR(VLOOKUP(MID(FP$23,5,4)&$A27,Lista_Ubigeo!$J:$K,2,0)," ") -> TILALI | FQ27: =IFERROR(VLOOKUP(MID(FQ$23,5,4)&$A27,Lista_Ubigeo!$J:$K,2,0)," ") -> QUILCAPUNCU | FR27: =IFERROR(VLOOKUP(MID(FR$23,5,4)&$A27,Lista_Ubigeo!$J:$K,2,0)," ") -> CARACOTO | FS27: =IFERROR(VLOOKUP(MID(FS$23,5,4)&$A27,Lista_Ubigeo!$J:$K,2,0)," ") -> PATAMBUCO | FT27: =IFERROR(VLOOKUP(MID(FT$23,5,4)&$A27,Lista_Ubigeo!$J:$K,2,0)," ") -> CUTURAPI | FU27: =IFERROR(VLOOKUP(MID(FU$23,5,4)&$A27,Lista_Ubigeo!$J:$K,2,0)," ") -> JEPELACIO | FV27: =IFERROR(VLOOKUP(MID(FV$23,5,4)&$A27,Lista_Ubigeo!$J:$K,2,0)," ") -> HUALLAGA | FW27: =IFERROR(VLOOKUP(MID(FW$23,5,4)&$A27,Lista_Ubigeo!$J:$K,2,0)," ") -> SANTA ROSA | FX27: =IFERROR(VLOOKUP(MID(FX$23,5,4)&$A27,Lista_Ubigeo!$J:$K,2,0)," ") -> PISCOYACU | FY27: =IFERROR(VLOOKUP(MID(FY$23,5,4)&$A27,Lista_Ubigeo!$J:$K,2,0)," ") -> CAYNARACHI | FZ27: =IFERROR(VLOOKUP(MID(FZ$23,5,4)&$A27,Lista_Ubigeo!$J:$K,2,0)," ") -> PACHIZA | GA27: =IFERROR(VLOOKUP(MID(GA$23,5,4)&$A27,Lista_Ubigeo!$J:$K,2,0)," ") -> PILLUANA | GB27: =IFERROR(VLOOKUP(MID(GB$23,5,4)&$A27,Lista_Ubigeo!$J:$K,2,0)," ") -> NUEVA CAJAMARCA | GC27: =IFERROR(VLOOKUP(MID(GC$23,5,4)&$A27,Lista_Ubigeo!$J:$K,2,0)," ") -> CHAZUTA | GD27: =IFERROR(VLOOKUP(MID(GD$23,5,4)&$A27,Lista_Ubigeo!$J:$K,2,0)," ") -> SHUNTE | GE27: =IFERROR(VLOOKUP(MID(GE$23,5,4)&$A27,Lista_Ubigeo!$J:$K,2,0)," ") -> CIUDAD NUEVA | GF27: =IFERROR(VLOOKUP(MID(GF$23,5,4)&$A27,Lista_Ubigeo!$J:$K,2,0)," ") -> CURIBAYA | GG27: =IFERROR(VLOOKUP(MID(GG$23,5,4)&$A27,Lista_Ubigeo!$J:$K,2,0)," ") ->  | GH27: =IFERROR(VLOOKUP(MID(GH$23,5,4)&$A27,Lista_Ubigeo!$J:$K,2,0)," ") -> ESTIQUE-PAMPA | GI27: =IFERROR(VLOOKUP(MID(GI$23,5,4)&$A27,Lista_Ubigeo!$J:$K,2,0)," ") -> PAMPAS DE HOSPITAL | GJ27: =IFERROR(VLOOKUP(MID(GJ$23,5,4)&$A27,Lista_Ubigeo!$J:$K,2,0)," ") ->  | GK27: =IFERROR(VLOOKUP(MID(GK$23,5,4)&$A27,Lista_Ubigeo!$J:$K,2,0)," ") -> PAPAYAL | GL27: =IFERROR(VLOOKUP(MID(GL$23,5,4)&$A27,Lista_Ubigeo!$J:$K,2,0)," ") -> MASISEA | GM27: =IFERROR(VLOOKUP(MID(GM$23,5,4)&$A27,Lista_Ubigeo!$J:$K,2,0)," ") -> YURUA | GN27: =IFERROR(VLOOKUP(MID(GN$23,5,4)&$A27,Lista_Ubigeo!$J:$K,2,0)," ") -> NESHUYA | GO27: =IFERROR(VLOOKUP(MID(GO$23,5,4)&$A27,Lista_Ubigeo!$J:$K,2,0)," ") ->  | GP27: =IFERROR(VLOOKUP(MID(GP$23,5,4)&$A27,Lista_Ubigeo!$J:$K,2,0)," ") -> ASILLO
A28: 05 | B28: =IFERROR(VLOOKUP(MID(B$23,5,4)&$A28,Lista_Ubigeo!$J:$K,2,0)," ") -> CHILIQUIN | C28: =IFERROR(VLOOKUP(MID(C$23,5,4)&$A28,Lista_Ubigeo!$J:$K,2,0)," ") -> IMAZA | D28: =IFERROR(VLOOKUP(MID(D$23,5,4)&$A28,Lista_Ubigeo!$J:$K,2,0)," ") -> CUISPES | E28: =IFERROR(VLOOKUP(MID(E$23,5,4)&$A28,Lista_Ubigeo!$J:$K,2,0)," ") ->  | F28: =IFERROR(VLOOKUP(MID(F$23,5,4)&$A28,Lista_Ubigeo!$J:$K,2,0)," ") -> CONILA | G28: =IFERROR(VLOOKUP(MID(G$23,5,4)&$A28,Lista_Ubigeo!$J:$K,2,0)," ") -> LIMABAMBA | H28: =IFERROR(VLOOKUP(MID(H$23,5,4)&$A28,Lista_Ubigeo!$J:$K,2,0)," ") -> JAMALCA | I28: =IFERROR(VLOOKUP(MID(I$23,5,4)&$A28,Lista_Ubigeo!$J:$K,2,0)," ") -> INDEPENDENCIA | J28: =IFERROR(VLOOKUP(MID(J$23,5,4)&$A28,Lista_Ubigeo!$J:$K,2,0)," ") -> SUCCHA | K28: =IFERROR(VLOOKUP(MID(K$23,5,4)&$A28,Lista_Ubigeo!$J:$K,2,0)," ") -> MIRGAS | L28: =IFERROR(VLOOKUP(MID(L$23,5,4)&$A28,Lista_Ubigeo!$J:$K,2,0)," ") ->  | M28: =IFERROR(VLOOKUP(MID(M$23,5,4)&$A28,Lista_Ubigeo!$J:$K,2,0)," ") -> CAJACAY | N28: =IFERROR(VLOOKUP(MID(N$23,5,4)&$A28,Lista_Ubigeo!$J:$K,2,0)," ") -> ATAQUERO | O28: =IFERROR(VLOOKUP(MID(O$23,5,4)&$A28,Lista_Ubigeo!$J:$K,2,0)," ") ->  | P28: =IFERROR(VLOOKUP(MID(P$23,5,4)&$A28,Lista_Ubigeo!$J:$K,2,0)," ") ->  | Q28: =IFERROR(VLOOKUP(MID(Q$23,5,4)&$A28,Lista_Ubigeo!$J:$K,2,0)," ") -> LA PAMPA | R28: =IFERROR(VLOOKUP(MID(R$23,5,4)&$A28,Lista_Ubigeo!$J:$K,2,0)," ") -> HUACACHI | S28: =IFERROR(VLOOKUP(MID(S$23,5,4)&$A28,Lista_Ubigeo!$J:$K,2,0)," ") -> MALVAS | T28: =IFERROR(VLOOKUP(MID(T$23,5,4)&$A28,Lista_Ubigeo!$J:$K,2,0)," ") -> MATO | U28: =IFERROR(VLOOKUP(MID(U$23,5,4)&$A28,Lista_Ubigeo!$J:$K,2,0)," ") -> LLAMA | V28: =IFERROR(VLOOKUP(MID(V$23,5,4)&$A28,Lista_Ubigeo!$J:$K,2,0)," ") -> COCHAS | W28: =IFERROR(VLOOKUP(MID(W$23,5,4)&$A28,Lista_Ubigeo!$J:$K,2,0)," ") -> HUANDOVAL | X28: =IFERROR(VLOOKUP(MID(X$23,5,4)&$A28,Lista_Ubigeo!$J:$K,2,0)," ") ->  | Y28: =IFERROR(VLOOKUP(MID(Y$23,5,4)&$A28,Lista_Ubigeo!$J:$K,2,0)," ") -> LLACLLIN | Z28: =IFERROR(VLOOKUP(MID(Z$23,5,4)&$A28,Lista_Ubigeo!$J:$K,2,0)," ") -> MORO | AA28: =IFERROR(VLOOKUP(MID(AA$23,5,4)&$A28,Lista_Ubigeo!$J:$K,2,0)," ") -> CHINGALPO | AB28: =IFERROR(VLOOKUP(MID(AB$23,5,4)&$A28,Lista_Ubigeo!$J:$K,2,0)," ") -> QUILLO | AC28: =IFERROR(VLOOKUP(MID(AC$23,5,4)&$A28,Lista_Ubigeo!$J:$K,2,0)," ") -> HUANIPACA | AD28: =IFERROR(VLOOKUP(MID(AD$23,5,4)&$A28,Lista_Ubigeo!$J:$K,2,0)," ") -> HUANCARAY | AE28: =IFERROR(VLOOKUP(MID(AE$23,5,4)&$A28,Lista_Ubigeo!$J:$K,2,0)," ") -> OROPESA | AF28: =IFERROR(VLOOKUP(MID(AF$23,5,4)&$A28,Lista_Ubigeo!$J:$K,2,0)," ") -> COLCABAMBA | AG28: =IFERROR(VLOOKUP(MID(AG$23,5,4)&$A28,Lista_Ubigeo!$J:$K,2,0)," ") -> MARA | AH28: =IFERROR(VLOOKUP(MID(AH$23,5,4)&$A28,Lista_Ubigeo!$J:$K,2,0)," ") -> OCOBAMBA | AI28: =IFERROR(VLOOKUP(MID(AI$23,5,4)&$A28,Lista_Ubigeo!$J:$K,2,0)," ") -> MAMARA | AJ28: =IFERROR(VLOOKUP(MID(AJ$23,5,4)&$A28,Lista_Ubigeo!$J:$K,2,0)," ") -> CHARACATO | AK28: =IFERROR(VLOOKUP(MID(AK$23,5,4)&$A28,Lista_Ubigeo!$J:$K,2,0)," ") -> NICOLAS DE PIEROLA | AL28: =IFERROR(VLOOKUP(MID(AL$23,5,4)&$A28,Lista_Ubigeo!$J:$K,2,0)," ") -> BELLA UNION | AM28: =IFERROR(VLOOKUP(MID(AM$23,5,4)&$A28,Lista_Ubigeo!$J:$K,2,0)," ") -> CHILCAYMARCA | AN28: =IFERROR(VLOOKUP(MID(AN$23,5,4)&$A28,Lista_Ubigeo!$J:$K,2,0)," ") -> CAYLLOMA | AO28: =IFERROR(VLOOKUP(MID(AO$23,5,4)&$A28,Lista_Ubigeo!$J:$K,2,0)," ") -> IRAY | AP28: =IFERROR(VLOOKUP(MID(AP$23,5,4)&$A28,Lista_Ubigeo!$J:$K,2,0)," ") -> MEJIA | AQ28: =IFERROR(VLOOKUP(MID(AQ$23,4,4)&$A28,Lista_Ubigeo!$J:$K,2,0)," ") -> PAMPAMARCA | AR28: =IFERROR(VLOOKUP(MID(AR$23,5,4)&$A28,Lista_Ubigeo!$J:$K,2,0)," ") -> CHIARA | AS28: =IFERROR(VLOOKUP(MID(AS$23,5,4)&$A28,Lista_Ubigeo!$J:$K,2,0)," ") -> PARAS | AT28: =IFERROR(VLOOKUP(MID(AT$23,5,4)&$A28,Lista_Ubigeo!$J:$K,2,0)," ") ->  | AU28: =IFERROR(VLOOKUP(MID(AU$23,5,4)&$A28,Lista_Ubigeo!$J:$K,2,0)," ") -> LURICOCHA | AV28: =IFERROR(VLOOKUP(MID(AV$23,5,4)&$A28,Lista_Ubigeo!$J:$K,2,0)," ") -> CHUNGUI | AW28: =IFERROR(VLOOKUP(MID(AW$23,5,4)&$A28,Lista_Ubigeo!$J:$K,2,0)," ") -> CHAVIÑA | AX28: =IFERROR(VLOOKUP(MID(AX$23,5,4)&$A28,Lista_Ubigeo!$J:$K,2,0)," ") -> PULLO | AY28: =IFERROR(VLOOKUP(MID(AY$23,5,4)&$A28,Lista_Ubigeo!$J:$K,2,0)," ") -> MARCABAMBA | AZ28: =IFERROR(VLOOKUP(MID(AZ$23,5,4)&$A28,Lista_Ubigeo!$J:$K,2,0)," ") -> HUACAÑA | BA28: =IFERROR(VLOOKUP(MID(BA$23,5,4)&$A28,Lista_Ubigeo!$J:$K,2,0)," ") -> CANARIA | BB28: =IFERROR(VLOOKUP(MID(BB$23,5,4)&$A28,Lista_Ubigeo!$J:$K,2,0)," ") -> HUAMBALPA | BC28: =IFERROR(VLOOKUP(MID(BC$23,5,4)&$A28,Lista_Ubigeo!$J:$K,2,0)," ") -> ENCAÑADA | BD28: =IFERROR(VLOOKUP(MID(BD$23,5,4)&$A28,Lista_Ubigeo!$J:$K,2,0)," ") ->  | BE28: =IFERROR(VLOOKUP(MID(BE$23,5,4)&$A28,Lista_Ubigeo!$J:$K,2,0)," ") -> JORGE CHAVEZ | BF28: =IFERROR(VLOOKUP(MID(BF$23,5,4)&$A28,Lista_Ubigeo!$J:$K,2,0)," ") -> CHIMBAN | BG28: =IFERROR(VLOOKUP(MID(BG$23,5,4)&$A28,Lista_Ubigeo!$J:$K,2,0)," ") -> SAN BENITO | BH28: =IFERROR(VLOOKUP(MID(BH$23,5,4)&$A28,Lista_Ubigeo!$J:$K,2,0)," ") -> LA RAMADA | BI28: =IFERROR(VLOOKUP(MID(BI$23,5,4)&$A28,Lista_Ubigeo!$J:$K,2,0)," ") ->  | BJ28: =IFERROR(VLOOKUP(MID(BJ$23,5,4)&$A28,Lista_Ubigeo!$J:$K,2,0)," ") -> HUABAL | BK28: =IFERROR(VLOOKUP(MID(BK$23,5,4)&$A28,Lista_Ubigeo!$J:$K,2,0)," ") -> NAMBALLE | BL28: =IFERROR(VLOOKUP(MID(BL$23,5,4)&$A28,Lista_Ubigeo!$J:$K,2,0)," ") -> ICHOCAN | BM28: =IFERROR(VLOOKUP(MID(BM$23,5,4)&$A28,Lista_Ubigeo!$J:$K,2,0)," ") -> EL PRADO | BN28: =IFERROR(VLOOKUP(MID(BN$23,5,4)&$A28,Lista_Ubigeo!$J:$K,2,0)," ") ->  | BO28: =IFERROR(VLOOKUP(MID(BO$23,5,4)&$A28,Lista_Ubigeo!$J:$K,2,0)," ") -> LA ESPERANZA | BP28: =IFERROR(VLOOKUP(MID(BP$23,5,4)&$A28,Lista_Ubigeo!$J:$K,2,0)," ") -> LA PUNTA | BQ28: =IFERROR(VLOOKUP(MID(BQ$23,5,4)&$A28,Lista_Ubigeo!$J:$K,2,0)," ") -> SAN SEBASTIAN | BR28: =IFERROR(VLOOKUP(MID(BR$23,5,4)&$A28,Lista_Ubigeo!$J:$K,2,0)," ") -> POMACANCHI | BS28: =IFERROR(VLOOKUP(MID(BS$23,5,4)&$A28,Lista_Ubigeo!$J:$K,2,0)," ") -> HUAROCONDO | BT28: =IFERROR(VLOOKUP(MID(BT$23,5,4)&$A28,Lista_Ubigeo!$J:$K,2,0)," ") -> PISAC | BU28: =IFERROR(VLOOKUP(MID(BU$23,5,4)&$A28,Lista_Ubigeo!$J:$K,2,0)," ") -> LAYO | BV28: =IFERROR(VLOOKUP(MID(BV$23,5,4)&$A28,Lista_Ubigeo!$J:$K,2,0)," ") -> PITUMARCA | BW28: =IFERROR(VLOOKUP(MID(BW$23,5,4)&$A28,Lista_Ubigeo!$J:$K,2,0)," ") -> LIVITACA | BX28: =IFERROR(VLOOKUP(MID(BX$23,5,4)&$A28,Lista_Ubigeo!$J:$K,2,0)," ") -> PALLPATA | BY28: =IFERROR(VLOOKUP(MID(BY$23,4,4)&$A28,Lista_Ubigeo!$J:$K,2,0)," ") -> OCOBAMBA | BZ28: =IFERROR(VLOOKUP(MID(BZ$23,5,4)&$A28,Lista_Ubigeo!$J:$K,2,0)," ") -> HUANOQUITE | CA28: =IFERROR(VLOOKUP(MID(CA$23,5,4)&$A28,Lista_Ubigeo!$J:$K,2,0)," ") -> HUANCARANI | CB28: =IFERROR(VLOOKUP(MID(CB$23,5,4)&$A28,Lista_Ubigeo!$J:$K,2,0)," ") -> CCATCA | CC28: =IFERROR(VLOOKUP(MID(CC$23,5,4)&$A28,Lista_Ubigeo!$J:$K,2,0)," ") -> MARAS | CD28: =IFERROR(VLOOKUP(MID(CD$23,5,4)&$A28,Lista_Ubigeo!$J:$K,2,0)," ") -> CUENCA | CE28: =IFERROR(VLOOKUP(MID(CE$23,5,4)&$A28,Lista_Ubigeo!$J:$K,2,0)," ") -> MARCAS | CF28: =IFERROR(VLOOKUP(MID(CF$23,5,4)&$A28,Lista_Ubigeo!$J:$K,2,0)," ") -> CHINCHO | CG28: =IFERROR(VLOOKUP(MID(CG$23,5,4)&$A28,Lista_Ubigeo!$J:$K,2,0)," ") -> CHUPAMARCA | CH28: =IFERROR(VLOOKUP(MID(CH$23,5,4)&$A28,Lista_Ubigeo!$J:$K,2,0)," ") -> LA MERCED | CI28: =IFERROR(VLOOKUP(MID(CI$23,5,4)&$A28,Lista_Ubigeo!$J:$K,2,0)," ") -> LARAMARCA | CJ28: =IFERROR(VLOOKUP(MID(CJ$23,5,4)&$A28,Lista_Ubigeo!$J:$K,2,0)," ") -> COLCABAMBA | CK28: =IFERROR(VLOOKUP(MID(CK$23,5,4)&$A28,Lista_Ubigeo!$J:$K,2,0)," ") -> MARGOS | CL28: =IFERROR(VLOOKUP(MID(CL$23,5,4)&$A28,Lista_Ubigeo!$J:$K,2,0)," ") -> HUACAR | CM28: =IFERROR(VLOOKUP(MID(CM$23,5,4)&$A39,Lista_Ubigeo!$J:$K,2,0)," ") -> QUIVILLA | CN28: =IFERROR(VLOOKUP(MID(CN$23,5,4)&$A28,Lista_Ubigeo!$J:$K,2,0)," ") ->  | CO28: =IFERROR(VLOOKUP(MID(CO$23,5,4)&$A28,Lista_Ubigeo!$J:$K,2,0)," ") -> JIRCAN | CP28: =IFERROR(VLOOKUP(MID(CP$23,5,4)&$A28,Lista_Ubigeo!$J:$K,2,0)," ") -> LUYANDO | CQ28: =IFERROR(VLOOKUP(MID(CQ$23,5,4)&$A28,Lista_Ubigeo!$J:$K,2,0)," ") -> SANTA ROSA DE ALTO YANAJANCA | CR28: =IFERROR(VLOOKUP(MID(CR$23,5,4)&$A28,Lista_Ubigeo!$J:$K,2,0)," ") ->  | CS28: =IFERROR(VLOOKUP(MID(CS$23,5,4)&$A28,Lista_Ubigeo!$J:$K,2,0)," ") -> YUYAPICHIS | CT28: =IFERROR(VLOOKUP(MID(CT$23,5,4)&$A28,Lista_Ubigeo!$J:$K,2,0)," ") -> RONDOS | CU28: =IFERROR(VLOOKUP(MID(CU$23,5,4)&$A28,Lista_Ubigeo!$J:$K,2,0)," ") -> JACAS CHICO | CV28: =IFERROR(VLOOKUP(MID(CV$23,5,4)&$A28,Lista_Ubigeo!$J:$K,2,0)," ") -> PACHACUTEC | CW28: =IFERROR(VLOOKUP(MID(CW$23,5,4)&$A28,Lista_Ubigeo!$J:$K,2,0)," ") -> EL CARMEN | CX28: =IFERROR(VLOOKUP(MID(CX$23,5,4)&$A28,Lista_Ubigeo!$J:$K,2,0)," ") -> VISTA ALEGRE | CY28: =IFERROR(VLOOKUP(MID(CY$23,5,4)&$A28,Lista_Ubigeo!$J:$K,2,0)," ") -> TIBILLO | CZ28: =IFERROR(VLOOKUP(MID(CZ$23,5,4)&$A28,Lista_Ubigeo!$J:$K,2,0)," ") -> PARACAS | DA28: =IFERROR(VLOOKUP(MID(DA$23,5,4)&$A28,Lista_Ubigeo!$J:$K,2,0)," ") -> CHACAPAMPA | DB28: =IFERROR(VLOOKUP(MID(DB$23,5,4)&$A28,Lista_Ubigeo!$J:$K,2,0)," ") -> COCHAS | DC28: =IFERROR(VLOOKUP(MID(DC$23,5,4)&$A28,Lista_Ubigeo!$J:$K,2,0)," ") -> SAN RAMON | DD28: =IFERROR(VLOOKUP(MID(DD$23,5,4)&$A28,Lista_Ubigeo!$J:$K,2,0)," ") -> CANCHAYLLO | DE28: =IFERROR(VLOOKUP(MID(DE$23,5,4)&$A28,Lista_Ubigeo!$J:$K,2,0)," ") ->  | DF28: =IFERROR(VLOOKUP(MID(DF$23,5,4)&$A28,Lista_Ubigeo!$J:$K,2,0)," ") -> PAMPA HERMOSA | DG28: =IFERROR(VLOOKUP(MID(DG$23,5,4)&$A28,Lista_Ubigeo!$J:$K,2,0)," ") -> LA UNION | DH28: =IFERROR(VLOOKUP(MID(DH$23,5,4)&$A28,Lista_Ubigeo!$J:$K,2,0)," ") -> MOROCOCHA | DI28: =IFERROR(VLOOKUP(MID(DI$23,5,4)&$A28,Lista_Ubigeo!$J:$K,2,0)," ") -> HUAMANCACA CHICO | DJ28: =IFERROR(VLOOKUP(MID(DJ$23,5,4)&$A28,Lista_Ubigeo!$J:$K,2,0)," ") -> LA ESPERANZA | DK28: =IFERROR(VLOOKUP(MID(DK$23,5,4)&$A28,Lista_Ubigeo!$J:$K,2,0)," ") -> PAIJAN | DL28: =IFERROR(VLOOKUP(MID(DL$23,5,4)&$A28,Lista_Ubigeo!$J:$K,2,0)," ") -> UCHUMARCA | DM28: =IFERROR(VLOOKUP(MID(DM$23,5,4)&$A28,Lista_Ubigeo!$J:$K,2,0)," ") ->  | DN28: =IFERROR(VLOOKUP(MID(DN$23,5,4)&$A28,Lista_Ubigeo!$J:$K,2,0)," ") ->  | DO28: =IFERROR(VLOOKUP(MID(DO$23,5,4)&$A29,Lista_Ubigeo!$J:$K,2,0)," ") -> LA CUESTA | DP28: =IFERROR(VLOOKUP(MID(DP$23,5,4)&$A28,Lista_Ubigeo!$J:$K,2,0)," ") -> SAN JOSE | DQ28: =IFERROR(VLOOKUP(MID(DQ$23,5,4)&$A28,Lista_Ubigeo!$J:$K,2,0)," ") -> HUAYLILLAS | DR28: =IFERROR(VLOOKUP(MID(DR$23,5,4)&$A28,Lista_Ubigeo!$J:$K,2,0)," ") -> MARCABAL | DS28: =IFERROR(VLOOKUP(MID(DS$23,5,4)&$A28,Lista_Ubigeo!$J:$K,2,0)," ") -> MOLLEPATA | DV28: =IFERROR(VLOOKUP(MID(DV$23,5,4)&$A28,Lista_Ubigeo!$J:$K,2,0)," ") -> JOSE LEONARDO ORTIZ | DW28: =IFERROR(VLOOKUP(MID(DW$23,5,4)&$A28,Lista_Ubigeo!$J:$K,2,0)," ") -> PITIPO | DX28: =IFERROR(VLOOKUP(MID(DX$23,5,4)&$A28,Lista_Ubigeo!$J:$K,2,0)," ") -> MOCHUMI | DY28: =IFERROR(VLOOKUP(MID(DY$23,5,4)&$A28,Lista_Ubigeo!$J:$K,2,0)," ") -> BREÑA | DZ28: =IFERROR(VLOOKUP(MID(DZ$23,5,4)&$A28,Lista_Ubigeo!$J:$K,2,0)," ") -> SUPE PUERTO | EA28: =IFERROR(VLOOKUP(MID(EA$23,5,4)&$A28,Lista_Ubigeo!$J:$K,2,0)," ") -> MANAS | EB28: =IFERROR(VLOOKUP(MID(EB$23,5,4)&$A28,Lista_Ubigeo!$J:$K,2,0)," ") -> LACHAQUI | EC28: =IFERROR(VLOOKUP(MID(EC$23,5,4)&$A28,Lista_Ubigeo!$J:$K,2,0)," ") -> CHILCA | ED28: =IFERROR(VLOOKUP(MID(ED$23,5,4)&$A28,Lista_Ubigeo!$J:$K,2,0)," ") -> CHANCAY | EE28: =IFERROR(VLOOKUP(MID(EE$23,5,4)&$A28,Lista_Ubigeo!$J:$K,2,0)," ") -> CHICLA | EF28: =IFERROR(VLOOKUP(MID(EF$23,5,4)&$A28,Lista_Ubigeo!$J:$K,2,0)," ") -> HUALMAY | EG28: =IFERROR(VLOOKUP(MID(EG$23,5,4)&$A28,Lista_Ubigeo!$J:$K,2,0)," ") -> NAVAN | EH28: =IFERROR(VLOOKUP(MID(EH$23,5,4)&$A28,Lista_Ubigeo!$J:$K,2,0)," ") -> AZANGARO | EI28: =IFERROR(VLOOKUP(MID(EI$23,5,4)&$A28,Lista_Ubigeo!$J:$K,2,0)," ") -> AMAZONAS | EJ28: =IFERROR(VLOOKUP(MID(EJ$23,5,4)&$A33,Lista_Ubigeo!$J:$K,2,0)," ") -> SANTA CRUZ | EK28: =IFERROR(VLOOKUP(MID(EK$23,5,4)&$A28,Lista_Ubigeo!$J:$K,2,0)," ") -> URARINAS | EL28: =IFERROR(VLOOKUP(MID(EL$23,5,4)&$A28,Lista_Ubigeo!$J:$K,2,0)," ") ->  | EM28: =IFERROR(VLOOKUP(MID(EM$23,5,4)&$A28,Lista_Ubigeo!$J:$K,2,0)," ") -> MAQUIA | EN28: =IFERROR(VLOOKUP(MID(EN$23,5,4)&$A28,Lista_Ubigeo!$J:$K,2,0)," ") -> SARAYACU | EO28: =IFERROR(VLOOKUP(MID(EO$23,5,4)&$A28,Lista_Ubigeo!$J:$K,2,0)," ") -> PASTAZA | EP28: =IFERROR(VLOOKUP(MID(EP$23,5,4)&$A28,Lista_Ubigeo!$J:$K,2,0)," ") ->  | EQ28: =IFERROR(VLOOKUP(MID(EQ$23,5,4)&$A28,Lista_Ubigeo!$J:$K,2,0)," ") ->  | ER28: =IFERROR(VLOOKUP(MID(ER$23,5,4)&$A28,Lista_Ubigeo!$J:$K,2,0)," ") ->  | ES28: =IFERROR(VLOOKUP(MID(ES$23,5,4)&$A28,Lista_Ubigeo!$J:$K,2,0)," ") ->  | ET28: =IFERROR(VLOOKUP(MID(ET$23,5,4)&$A28,Lista_Ubigeo!$J:$K,2,0)," ") -> SAN CRISTOBAL | EU28: =IFERROR(VLOOKUP(MID(EU$23,5,4)&$A28,Lista_Ubigeo!$J:$K,2,0)," ") -> LA CAPILLA | EV28: =IFERROR(VLOOKUP(MID(EV$23,5,4)&$A28,Lista_Ubigeo!$J:$K,2,0)," ") ->  | EW28: =IFERROR(VLOOKUP(MID(EW$23,5,4)&$A28,Lista_Ubigeo!$J:$K,2,0)," ") -> NINACACA | EX28: =IFERROR(VLOOKUP(MID(EX$23,5,4)&$A28,Lista_Ubigeo!$J:$K,2,0)," ") -> SAN PEDRO DE PILLAO | EY28: =IFERROR(VLOOKUP(MID(EY$23,5,4)&$A28,Lista_Ubigeo!$J:$K,2,0)," ") -> POZUZO | EZ28: =IFERROR(VLOOKUP(MID(EZ$23,5,4)&$A31,Lista_Ubigeo!$J:$K,2,0)," ") -> EL TALLAN | FA28: =IFERROR(VLOOKUP(MID(FA$23,5,4)&$A28,Lista_Ubigeo!$J:$K,2,0)," ") -> MONTERO | FB28: =IFERROR(VLOOKUP(MID(FB$23,5,4)&$A28,Lista_Ubigeo!$J:$K,2,0)," ") -> LALAQUIZ | FC28: =IFERROR(VLOOKUP(MID(FC$23,5,4)&$A28,Lista_Ubigeo!$J:$K,2,0)," ") -> MORROPON | FD28: =IFERROR(VLOOKUP(MID(FD$23,5,4)&$A28,Lista_Ubigeo!$J:$K,2,0)," ") -> LA HUACA | FE28: =IFERROR(VLOOKUP(MID(FE$23,5,4)&$A28,Lista_Ubigeo!$J:$K,2,0)," ") -> MARCAVELICA | FF28: =IFERROR(VLOOKUP(MID(FF$23,5,4)&$A28,Lista_Ubigeo!$J:$K,2,0)," ") -> LOS ORGANOS | FG28: =IFERROR(VLOOKUP(MID(FG$23,5,4)&$A28,Lista_Ubigeo!$J:$K,2,0)," ") -> VICE | FH28: =IFERROR(VLOOKUP(MID(FH$23,5,4)&$A28,Lista_Ubigeo!$J:$K,2,0)," ") -> CAPACHICA | FI28: =IFERROR(VLOOKUP(MID(FI$23,5,4)&$A28,Lista_Ubigeo!$J:$K,2,0)," ") -> CAMINACA | FJ28: =IFERROR(VLOOKUP(MID(FJ$23,5,4)&$A28,Lista_Ubigeo!$J:$K,2,0)," ") -> CORANI | FK28: =IFERROR(VLOOKUP(MID(FK$23,5,4)&$A28,Lista_Ubigeo!$J:$K,2,0)," ") -> PISACOMA | FL28: =IFERROR(VLOOKUP(MID(FL$23,5,4)&$A28,Lista_Ubigeo!$J:$K,2,0)," ") -> CONDURIRI | FM28: =IFERROR(VLOOKUP(MID(FM$23,5,4)&$A28,Lista_Ubigeo!$J:$K,2,0)," ") -> PUSI | FN28: =IFERROR(VLOOKUP(MID(FN$23,5,4)&$A28,Lista_Ubigeo!$J:$K,2,0)," ") -> OCUVIRI | FO28: =IFERROR(VLOOKUP(MID(FO$23,5,4)&$A28,Lista_Ubigeo!$J:$K,2,0)," ") -> MACARI | FP28: =IFERROR(VLOOKUP(MID(FP$23,5,4)&$A28,Lista_Ubigeo!$J:$K,2,0)," ") ->  | FQ28: =IFERROR(VLOOKUP(MID(FQ$23,5,4)&$A28,Lista_Ubigeo!$J:$K,2,0)," ") -> SINA | FR28: =IFERROR(VLOOKUP(MID(FR$23,5,4)&$A28,Lista_Ubigeo!$J:$K,2,0)," ") -> SAN MIGUEL | FS28: =IFERROR(VLOOKUP(MID(FS$23,5,4)&$A28,Lista_Ubigeo!$J:$K,2,0)," ") -> PHARA | FT28: =IFERROR(VLOOKUP(MID(FT$23,5,4)&$A28,Lista_Ubigeo!$J:$K,2,0)," ") -> OLLARAYA | FU28: =IFERROR(VLOOKUP(MID(FU$23,5,4)&$A28,Lista_Ubigeo!$J:$K,2,0)," ") -> SORITOR | FV28: =IFERROR(VLOOKUP(MID(FV$23,5,4)&$A28,Lista_Ubigeo!$J:$K,2,0)," ") -> SAN PABLO | FW28: =IFERROR(VLOOKUP(MID(FW$23,5,4)&$A28,Lista_Ubigeo!$J:$K,2,0)," ") -> SHATOJA | FX28: =IFERROR(VLOOKUP(MID(FX$23,5,4)&$A28,Lista_Ubigeo!$J:$K,2,0)," ") -> SACANCHE | FY28: =IFERROR(VLOOKUP(MID(FY$23,5,4)&$A28,Lista_Ubigeo!$J:$K,2,0)," ") -> CUÑUMBUQUI | FZ28: =IFERROR(VLOOKUP(MID(FZ$23,5,4)&$A28,Lista_Ubigeo!$J:$K,2,0)," ") -> PAJARILLO | GA28: =IFERROR(VLOOKUP(MID(GA$23,5,4)&$A28,Lista_Ubigeo!$J:$K,2,0)," ") -> PUCACACA | GB28: =IFERROR(VLOOKUP(MID(GB$23,5,4)&$A28,Lista_Ubigeo!$J:$K,2,0)," ") -> PARDO MIGUEL | GC28: =IFERROR(VLOOKUP(MID(GC$23,5,4)&$A28,Lista_Ubigeo!$J:$K,2,0)," ") -> CHIPURANA | GD28: =IFERROR(VLOOKUP(MID(GD$23,5,4)&$A28,Lista_Ubigeo!$J:$K,2,0)," ") -> UCHIZA | GE28: =IFERROR(VLOOKUP(MID(GE$23,5,4)&$A28,Lista_Ubigeo!$J:$K,2,0)," ") -> INCLAN | GF28: =IFERROR(VLOOKUP(MID(GF$23,5,4)&$A28,Lista_Ubigeo!$J:$K,2,0)," ") -> HUANUARA | GG28: =IFERROR(VLOOKUP(MID(GG$23,5,4)&$A28,Lista_Ubigeo!$J:$K,2,0)," ") ->  | GH28: =IFERROR(VLOOKUP(MID(GH$23,5,4)&$A28,Lista_Ubigeo!$J:$K,2,0)," ") -> SITAJARA | GI28: =IFERROR(VLOOKUP(MID(GI$23,5,4)&$A28,Lista_Ubigeo!$J:$K,2,0)," ") -> SAN JACINTO | GJ28: =IFERROR(VLOOKUP(MID(GJ$23,5,4)&$A28,Lista_Ubigeo!$J:$K,2,0)," ") ->  | GK28: =IFERROR(VLOOKUP(MID(GK$23,5,4)&$A28,Lista_Ubigeo!$J:$K,2,0)," ") ->  | GL28: =IFERROR(VLOOKUP(MID(GL$23,5,4)&$A28,Lista_Ubigeo!$J:$K,2,0)," ") -> YARINACOCHA | GM28: =IFERROR(VLOOKUP(MID(GM$23,5,4)&$A28,Lista_Ubigeo!$J:$K,2,0)," ") ->  | GN28: =IFERROR(VLOOKUP(MID(GN$23,5,4)&$A28,Lista_Ubigeo!$J:$K,2,0)," ") -> ALEXANDER VON HUMBOLDT | GO28: =IFERROR(VLOOKUP(MID(GO$23,5,4)&$A28,Lista_Ubigeo!$J:$K,2,0)," ") ->  | GP28: =IFERROR(VLOOKUP(MID(GP$23,5,4)&$A28,Lista_Ubigeo!$J:$K,2,0)," ") -> CAMINACA
A29: 06 | B29: =IFERROR(VLOOKUP(MID(B$23,5,4)&$A29,Lista_Ubigeo!$J:$K,2,0)," ") -> CHUQUIBAMBA | C29: =IFERROR(VLOOKUP(MID(C$23,5,4)&$A29,Lista_Ubigeo!$J:$K,2,0)," ") -> LA PECA | D29: =IFERROR(VLOOKUP(MID(D$23,5,4)&$A29,Lista_Ubigeo!$J:$K,2,0)," ") -> FLORIDA | E29: =IFERROR(VLOOKUP(MID(E$23,5,4)&$A29,Lista_Ubigeo!$J:$K,2,0)," ") ->  | F29: =IFERROR(VLOOKUP(MID(F$23,5,4)&$A29,Lista_Ubigeo!$J:$K,2,0)," ") -> INGUILPATA | G29: =IFERROR(VLOOKUP(MID(G$23,5,4)&$A29,Lista_Ubigeo!$J:$K,2,0)," ") -> LONGAR | H29: =IFERROR(VLOOKUP(MID(H$23,5,4)&$A29,Lista_Ubigeo!$J:$K,2,0)," ") -> LONYA GRANDE | I29: =IFERROR(VLOOKUP(MID(I$23,5,4)&$A29,Lista_Ubigeo!$J:$K,2,0)," ") -> JANGAS | J29: =IFERROR(VLOOKUP(MID(J$23,5,4)&$A29,Lista_Ubigeo!$J:$K,2,0)," ") ->  | K29: =IFERROR(VLOOKUP(MID(K$23,5,4)&$A29,Lista_Ubigeo!$J:$K,2,0)," ") -> SAN JUAN DE RONTOY | L29: =IFERROR(VLOOKUP(MID(L$23,5,4)&$A29,Lista_Ubigeo!$J:$K,2,0)," ") ->  | M29: =IFERROR(VLOOKUP(MID(M$23,5,4)&$A29,Lista_Ubigeo!$J:$K,2,0)," ") -> CANIS | N29: =IFERROR(VLOOKUP(MID(N$23,5,4)&$A29,Lista_Ubigeo!$J:$K,2,0)," ") -> MARCARA | O29: =IFERROR(VLOOKUP(MID(O$23,5,4)&$A29,Lista_Ubigeo!$J:$K,2,0)," ") ->  | P29: =IFERROR(VLOOKUP(MID(P$23,5,4)&$A29,Lista_Ubigeo!$J:$K,2,0)," ") ->  | Q29: =IFERROR(VLOOKUP(MID(Q$23,5,4)&$A29,Lista_Ubigeo!$J:$K,2,0)," ") -> YANAC | R29: =IFERROR(VLOOKUP(MID(R$23,5,4)&$A29,Lista_Ubigeo!$J:$K,2,0)," ") -> HUACCHIS | S29: =IFERROR(VLOOKUP(MID(S$23,5,4)&$A29,Lista_Ubigeo!$J:$K,2,0)," ") ->  | T29: =IFERROR(VLOOKUP(MID(T$23,5,4)&$A29,Lista_Ubigeo!$J:$K,2,0)," ") -> PAMPAROMAS | U29: =IFERROR(VLOOKUP(MID(U$23,5,4)&$A29,Lista_Ubigeo!$J:$K,2,0)," ") -> LLUMPA | V29: =IFERROR(VLOOKUP(MID(V$23,5,4)&$A29,Lista_Ubigeo!$J:$K,2,0)," ") -> CONGAS | W29: =IFERROR(VLOOKUP(MID(W$23,5,4)&$A29,Lista_Ubigeo!$J:$K,2,0)," ") -> LACABAMBA | X29: =IFERROR(VLOOKUP(MID(X$23,5,4)&$A29,Lista_Ubigeo!$J:$K,2,0)," ") ->  | Y29: =IFERROR(VLOOKUP(MID(Y$23,5,4)&$A29,Lista_Ubigeo!$J:$K,2,0)," ") -> MARCA | Z29: =IFERROR(VLOOKUP(MID(Z$23,5,4)&$A29,Lista_Ubigeo!$J:$K,2,0)," ") -> NEPEÑA | AA29: =IFERROR(VLOOKUP(MID(AA$23,5,4)&$A29,Lista_Ubigeo!$J:$K,2,0)," ") -> HUAYLLABAMBA | AB29: =IFERROR(VLOOKUP(MID(AB$23,5,4)&$A29,Lista_Ubigeo!$J:$K,2,0)," ") -> RANRAHIRCA | AC29: =IFERROR(VLOOKUP(MID(AC$23,5,4)&$A29,Lista_Ubigeo!$J:$K,2,0)," ") -> LAMBRAMA | AD29: =IFERROR(VLOOKUP(MID(AD$23,5,4)&$A29,Lista_Ubigeo!$J:$K,2,0)," ") -> HUAYANA | AE29: =IFERROR(VLOOKUP(MID(AE$23,5,4)&$A29,Lista_Ubigeo!$J:$K,2,0)," ") -> PACHACONAS | AF29: =IFERROR(VLOOKUP(MID(AF$23,5,4)&$A29,Lista_Ubigeo!$J:$K,2,0)," ") -> COTARUSE | AG29: =IFERROR(VLOOKUP(MID(AG$23,5,4)&$A29,Lista_Ubigeo!$J:$K,2,0)," ") -> CHALLHUAHUACHO | AH29: =IFERROR(VLOOKUP(MID(AH$23,5,4)&$A29,Lista_Ubigeo!$J:$K,2,0)," ") -> ONGOY | AI29: =IFERROR(VLOOKUP(MID(AI$23,5,4)&$A29,Lista_Ubigeo!$J:$K,2,0)," ") -> MICAELA BASTIDAS | AJ29: =IFERROR(VLOOKUP(MID(AJ$23,5,4)&$A29,Lista_Ubigeo!$J:$K,2,0)," ") -> CHIGUATA | AK29: =IFERROR(VLOOKUP(MID(AK$23,5,4)&$A29,Lista_Ubigeo!$J:$K,2,0)," ") -> OCOÑA | AL29: =IFERROR(VLOOKUP(MID(AL$23,5,4)&$A29,Lista_Ubigeo!$J:$K,2,0)," ") -> CAHUACHO | AM29: =IFERROR(VLOOKUP(MID(AM$23,5,4)&$A29,Lista_Ubigeo!$J:$K,2,0)," ") -> CHOCO | AN29: =IFERROR(VLOOKUP(MID(AN$23,5,4)&$A29,Lista_Ubigeo!$J:$K,2,0)," ") -> COPORAQUE | AO29: =IFERROR(VLOOKUP(MID(AO$23,5,4)&$A29,Lista_Ubigeo!$J:$K,2,0)," ") -> RIO GRANDE | AP29: =IFERROR(VLOOKUP(MID(AP$23,5,4)&$A29,Lista_Ubigeo!$J:$K,2,0)," ") -> PUNTA DE BOMBON | AQ29: =IFERROR(VLOOKUP(MID(AQ$23,4,4)&$A29,Lista_Ubigeo!$J:$K,2,0)," ") -> PUYCA | AR29: =IFERROR(VLOOKUP(MID(AR$23,5,4)&$A29,Lista_Ubigeo!$J:$K,2,0)," ") -> OCROS | AS29: =IFERROR(VLOOKUP(MID(AS$23,5,4)&$A29,Lista_Ubigeo!$J:$K,2,0)," ") -> TOTOS | AT29: =IFERROR(VLOOKUP(MID(AT$23,5,4)&$A29,Lista_Ubigeo!$J:$K,2,0)," ") ->  | AU29: =IFERROR(VLOOKUP(MID(AU$23,5,4)&$A29,Lista_Ubigeo!$J:$K,2,0)," ") -> SANTILLANA | AV29: =IFERROR(VLOOKUP(MID(AV$23,5,4)&$A29,Lista_Ubigeo!$J:$K,2,0)," ") -> LUIS CARRANZA | AW29: =IFERROR(VLOOKUP(MID(AW$23,5,4)&$A29,Lista_Ubigeo!$J:$K,2,0)," ") -> CHIPAO | AX29: =IFERROR(VLOOKUP(MID(AX$23,5,4)&$A29,Lista_Ubigeo!$J:$K,2,0)," ") -> PUYUSCA | AY29: =IFERROR(VLOOKUP(MID(AY$23,5,4)&$A29,Lista_Ubigeo!$J:$K,2,0)," ") -> OYOLO | AZ29: =IFERROR(VLOOKUP(MID(AZ$23,5,4)&$A29,Lista_Ubigeo!$J:$K,2,0)," ") -> MORCOLLA | BA29: =IFERROR(VLOOKUP(MID(BA$23,5,4)&$A29,Lista_Ubigeo!$J:$K,2,0)," ") -> CAYARA | BB29: =IFERROR(VLOOKUP(MID(BB$23,5,4)&$A29,Lista_Ubigeo!$J:$K,2,0)," ") -> INDEPENDENCIA | BC29: =IFERROR(VLOOKUP(MID(BC$23,5,4)&$A29,Lista_Ubigeo!$J:$K,2,0)," ") -> JESUS | BD29: =IFERROR(VLOOKUP(MID(BD$23,5,4)&$A29,Lista_Ubigeo!$J:$K,2,0)," ") ->  | BE29: =IFERROR(VLOOKUP(MID(BE$23,5,4)&$A29,Lista_Ubigeo!$J:$K,2,0)," ") -> JOSE GALVEZ | BF29: =IFERROR(VLOOKUP(MID(BF$23,5,4)&$A29,Lista_Ubigeo!$J:$K,2,0)," ") -> CHOROPAMPA | BG29: =IFERROR(VLOOKUP(MID(BG$23,5,4)&$A29,Lista_Ubigeo!$J:$K,2,0)," ") -> SANTA CRUZ DE TOLED | BH29: =IFERROR(VLOOKUP(MID(BH$23,5,4)&$A29,Lista_Ubigeo!$J:$K,2,0)," ") -> PIMPINGOS | BI29: =IFERROR(VLOOKUP(MID(BI$23,5,4)&$A29,Lista_Ubigeo!$J:$K,2,0)," ") ->  | BJ29: =IFERROR(VLOOKUP(MID(BJ$23,5,4)&$A29,Lista_Ubigeo!$J:$K,2,0)," ") -> LAS PIRIAS | BK29: =IFERROR(VLOOKUP(MID(BK$23,5,4)&$A29,Lista_Ubigeo!$J:$K,2,0)," ") -> SAN JOSE DE LOURDES | BL29: =IFERROR(VLOOKUP(MID(BL$23,5,4)&$A29,Lista_Ubigeo!$J:$K,2,0)," ") -> JOSE MANUEL QUIROZ | BM29: =IFERROR(VLOOKUP(MID(BM$23,5,4)&$A29,Lista_Ubigeo!$J:$K,2,0)," ") -> LA FLORIDA | BN29: =IFERROR(VLOOKUP(MID(BN$23,5,4)&$A29,Lista_Ubigeo!$J:$K,2,0)," ") ->  | BO29: =IFERROR(VLOOKUP(MID(BO$23,5,4)&$A29,Lista_Ubigeo!$J:$K,2,0)," ") -> NINABAMBA | BP29: =IFERROR(VLOOKUP(MID(BP$23,5,4)&$A29,Lista_Ubigeo!$J:$K,2,0)," ") -> VENTANILLA | BQ29: =IFERROR(VLOOKUP(MID(BQ$23,5,4)&$A29,Lista_Ubigeo!$J:$K,2,0)," ") -> SANTIAGO | BR29: =IFERROR(VLOOKUP(MID(BR$23,5,4)&$A29,Lista_Ubigeo!$J:$K,2,0)," ") -> RONDOCAN | BS29: =IFERROR(VLOOKUP(MID(BS$23,5,4)&$A29,Lista_Ubigeo!$J:$K,2,0)," ") -> LIMATAMBO | BT29: =IFERROR(VLOOKUP(MID(BT$23,5,4)&$A29,Lista_Ubigeo!$J:$K,2,0)," ") -> SAN SALVADOR | BU29: =IFERROR(VLOOKUP(MID(BU$23,5,4)&$A29,Lista_Ubigeo!$J:$K,2,0)," ") -> PAMPAMARCA | BV29: =IFERROR(VLOOKUP(MID(BV$23,5,4)&$A29,Lista_Ubigeo!$J:$K,2,0)," ") -> SAN PABLO | BW29: =IFERROR(VLOOKUP(MID(BW$23,5,4)&$A29,Lista_Ubigeo!$J:$K,2,0)," ") -> LLUSCO | BX29: =IFERROR(VLOOKUP(MID(BX$23,5,4)&$A29,Lista_Ubigeo!$J:$K,2,0)," ") -> PICHIGUA | BY29: =IFERROR(VLOOKUP(MID(BY$23,4,4)&$A29,Lista_Ubigeo!$J:$K,2,0)," ") -> QUELLOUNO | BZ29: =IFERROR(VLOOKUP(MID(BZ$23,5,4)&$A29,Lista_Ubigeo!$J:$K,2,0)," ") -> OMACHA | CA29: =IFERROR(VLOOKUP(MID(CA$23,5,4)&$A29,Lista_Ubigeo!$J:$K,2,0)," ") -> KOSÑIPATA | CB29: =IFERROR(VLOOKUP(MID(CB$23,5,4)&$A29,Lista_Ubigeo!$J:$K,2,0)," ") -> CUSIPATA | CC29: =IFERROR(VLOOKUP(MID(CC$23,5,4)&$A29,Lista_Ubigeo!$J:$K,2,0)," ") -> OLLANTAYTAMBO | CD29: =IFERROR(VLOOKUP(MID(CD$23,5,4)&$A29,Lista_Ubigeo!$J:$K,2,0)," ") -> HUACHOCOLPA | CE29: =IFERROR(VLOOKUP(MID(CE$23,5,4)&$A29,Lista_Ubigeo!$J:$K,2,0)," ") -> PAUCARA | CF29: =IFERROR(VLOOKUP(MID(CF$23,5,4)&$A29,Lista_Ubigeo!$J:$K,2,0)," ") -> CONGALLA | CG29: =IFERROR(VLOOKUP(MID(CG$23,5,4)&$A29,Lista_Ubigeo!$J:$K,2,0)," ") -> COCAS | CH29: =IFERROR(VLOOKUP(MID(CH$23,5,4)&$A29,Lista_Ubigeo!$J:$K,2,0)," ") -> LACROJA | CI29: =IFERROR(VLOOKUP(MID(CI$23,5,4)&$A29,Lista_Ubigeo!$J:$K,2,0)," ") -> OCOYO | CJ29: =IFERROR(VLOOKUP(MID(CJ$23,5,4)&$A29,Lista_Ubigeo!$J:$K,2,0)," ") -> DANIEL HERNANDEZ | CK29: =IFERROR(VLOOKUP(MID(CK$23,5,4)&$A29,Lista_Ubigeo!$J:$K,2,0)," ") -> QUISQUI | CL29: =IFERROR(VLOOKUP(MID(CL$23,5,4)&$A29,Lista_Ubigeo!$J:$K,2,0)," ") -> SAN FRANCISCO | CM29: =IFERROR(VLOOKUP(MID(CM$23,5,4)&$A40,Lista_Ubigeo!$J:$K,2,0)," ") -> RIPAN | CN29: =IFERROR(VLOOKUP(MID(CN$23,5,4)&$A29,Lista_Ubigeo!$J:$K,2,0)," ") ->  | CO29: =IFERROR(VLOOKUP(MID(CO$23,5,4)&$A29,Lista_Ubigeo!$J:$K,2,0)," ") -> MIRAFLORES | CP29: =IFERROR(VLOOKUP(MID(CP$23,5,4)&$A29,Lista_Ubigeo!$J:$K,2,0)," ") -> MARINO DAMASO BERAUN | CQ29: =IFERROR(VLOOKUP(MID(CQ$23,5,4)&$A29,Lista_Ubigeo!$J:$K,2,0)," ") ->  | CR29: =IFERROR(VLOOKUP(MID(CR$23,5,4)&$A29,Lista_Ubigeo!$J:$K,2,0)," ") ->  | CS29: =IFERROR(VLOOKUP(MID(CS$23,5,4)&$A29,Lista_Ubigeo!$J:$K,2,0)," ") ->  | CT29: =IFERROR(VLOOKUP(MID(CT$23,5,4)&$A29,Lista_Ubigeo!$J:$K,2,0)," ") -> SAN FRANCISCO DE ASIS | CU29: =IFERROR(VLOOKUP(MID(CU$23,5,4)&$A29,Lista_Ubigeo!$J:$K,2,0)," ") -> OBAS | CV29: =IFERROR(VLOOKUP(MID(CV$23,5,4)&$A29,Lista_Ubigeo!$J:$K,2,0)," ") -> PARCONA | CW29: =IFERROR(VLOOKUP(MID(CW$23,5,4)&$A29,Lista_Ubigeo!$J:$K,2,0)," ") -> GROCIO PRADO | CX29: =IFERROR(VLOOKUP(MID(CX$23,5,4)&$A29,Lista_Ubigeo!$J:$K,2,0)," ") ->  | CY29: =IFERROR(VLOOKUP(MID(CY$23,5,4)&$A29,Lista_Ubigeo!$J:$K,2,0)," ") ->  | CZ29: =IFERROR(VLOOKUP(MID(CZ$23,5,4)&$A29,Lista_Ubigeo!$J:$K,2,0)," ") -> SAN ANDRES | DA29: =IFERROR(VLOOKUP(MID(DA$23,5,4)&$A29,Lista_Ubigeo!$J:$K,2,0)," ") -> CHICCHE | DB29: =IFERROR(VLOOKUP(MID(DB$23,5,4)&$A29,Lista_Ubigeo!$J:$K,2,0)," ") -> COMAS | DC29: =IFERROR(VLOOKUP(MID(DC$23,5,4)&$A29,Lista_Ubigeo!$J:$K,2,0)," ") -> VITOC | DD29: =IFERROR(VLOOKUP(MID(DD$23,5,4)&$A29,Lista_Ubigeo!$J:$K,2,0)," ") -> CURICACA | DE29: =IFERROR(VLOOKUP(MID(DE$23,5,4)&$A29,Lista_Ubigeo!$J:$K,2,0)," ") ->  | DF29: =IFERROR(VLOOKUP(MID(DF$23,5,4)&$A29,Lista_Ubigeo!$J:$K,2,0)," ") -> PANGOA | DG29: =IFERROR(VLOOKUP(MID(DG$23,5,4)&$A29,Lista_Ubigeo!$J:$K,2,0)," ") -> PALCA | DH29: =IFERROR(VLOOKUP(MID(DH$23,5,4)&$A29,Lista_Ubigeo!$J:$K,2,0)," ") -> PACCHA | DI29: =IFERROR(VLOOKUP(MID(DI$23,5,4)&$A29,Lista_Ubigeo!$J:$K,2,0)," ") -> SAN JUAN DE ISCOS | DJ29: =IFERROR(VLOOKUP(MID(DJ$23,5,4)&$A29,Lista_Ubigeo!$J:$K,2,0)," ") -> LAREDO | DK29: =IFERROR(VLOOKUP(MID(DK$23,5,4)&$A29,Lista_Ubigeo!$J:$K,2,0)," ") -> RAZURI | DL29: =IFERROR(VLOOKUP(MID(DL$23,5,4)&$A29,Lista_Ubigeo!$J:$K,2,0)," ") -> UCUNCHA | DM29: =IFERROR(VLOOKUP(MID(DM$23,5,4)&$A29,Lista_Ubigeo!$J:$K,2,0)," ") ->  | DN29: =IFERROR(VLOOKUP(MID(DN$23,5,4)&$A29,Lista_Ubigeo!$J:$K,2,0)," ") ->  | DO29: =IFERROR(VLOOKUP(MID(DO$23,5,4)&$A30,Lista_Ubigeo!$J:$K,2,0)," ") ->  | DP29: =IFERROR(VLOOKUP(MID(DP$23,5,4)&$A29,Lista_Ubigeo!$J:$K,2,0)," ") ->  | DQ29: =IFERROR(VLOOKUP(MID(DQ$23,5,4)&$A29,Lista_Ubigeo!$J:$K,2,0)," ") -> HUAYO | DR29: =IFERROR(VLOOKUP(MID(DR$23,5,4)&$A29,Lista_Ubigeo!$J:$K,2,0)," ") -> SANAGORAN | DS29: =IFERROR(VLOOKUP(MID(DS$23,5,4)&$A29,Lista_Ubigeo!$J:$K,2,0)," ") -> QUIRUVILCA | DV29: =IFERROR(VLOOKUP(MID(DV$23,5,4)&$A29,Lista_Ubigeo!$J:$K,2,0)," ") -> LA VICTORIA | DW29: =IFERROR(VLOOKUP(MID(DW$23,5,4)&$A29,Lista_Ubigeo!$J:$K,2,0)," ") -> PUEBLO NUEVO | DX29: =IFERROR(VLOOKUP(MID(DX$23,5,4)&$A29,Lista_Ubigeo!$J:$K,2,0)," ") -> MORROPE | DY29: =IFERROR(VLOOKUP(MID(DY$23,5,4)&$A29,Lista_Ubigeo!$J:$K,2,0)," ") -> CARABAYLLO | DZ29: =IFERROR(VLOOKUP(MID(DZ$23,5,4)&$A29,Lista_Ubigeo!$J:$K,2,0)," ") ->  | EA29: =IFERROR(VLOOKUP(MID(EA$23,5,4)&$A29,Lista_Ubigeo!$J:$K,2,0)," ") ->  | EB29: =IFERROR(VLOOKUP(MID(EB$23,5,4)&$A29,Lista_Ubigeo!$J:$K,2,0)," ") -> SAN BUENAVENTURA | EC29: =IFERROR(VLOOKUP(MID(EC$23,5,4)&$A29,Lista_Ubigeo!$J:$K,2,0)," ") -> COAYLLO | ED29: =IFERROR(VLOOKUP(MID(ED$23,5,4)&$A29,Lista_Ubigeo!$J:$K,2,0)," ") -> IHUARI | EE29: =IFERROR(VLOOKUP(MID(EE$23,5,4)&$A29,Lista_Ubigeo!$J:$K,2,0)," ") -> CUENCA | EF29: =IFERROR(VLOOKUP(MID(EF$23,5,4)&$A29,Lista_Ubigeo!$J:$K,2,0)," ") -> HUAURA | EG29: =IFERROR(VLOOKUP(MID(EG$23,5,4)&$A29,Lista_Ubigeo!$J:$K,2,0)," ") -> PACHANGARA | EH29: =IFERROR(VLOOKUP(MID(EH$23,5,4)&$A29,Lista_Ubigeo!$J:$K,2,0)," ") -> CACRA | EI29: =IFERROR(VLOOKUP(MID(EI$23,5,4)&$A29,Lista_Ubigeo!$J:$K,2,0)," ") -> MAZAN | EJ29: =IFERROR(VLOOKUP(MID(EJ$23,5,4)&$A34,Lista_Ubigeo!$J:$K,2,0)," ") -> TENIENTE CESAR LOPEZ ROJAS | EK29: =IFERROR(VLOOKUP(MID(EK$23,5,4)&$A29,Lista_Ubigeo!$J:$K,2,0)," ") ->  | EL29: =IFERROR(VLOOKUP(MID(EL$23,5,4)&$A29,Lista_Ubigeo!$J:$K,2,0)," ") ->  | EM29: =IFERROR(VLOOKUP(MID(EM$23,5,4)&$A29,Lista_Ubigeo!$J:$K,2,0)," ") -> PUINAHUA | EN29: =IFERROR(VLOOKUP(MID(EN$23,5,4)&$A29,Lista_Ubigeo!$J:$K,2,0)," ") -> VARGAS GUERRA | EO29: =IFERROR(VLOOKUP(MID(EO$23,5,4)&$A29,Lista_Ubigeo!$J:$K,2,0)," ") -> ANDOAS | EP29: =IFERROR(VLOOKUP(MID(EP$23,5,4)&$A29,Lista_Ubigeo!$J:$K,2,0)," ") ->  | EQ29: =IFERROR(VLOOKUP(MID(EQ$23,5,4)&$A29,Lista_Ubigeo!$J:$K,2,0)," ") ->  | ER29: =IFERROR(VLOOKUP(MID(ER$23,5,4)&$A29,Lista_Ubigeo!$J:$K,2,0)," ") ->  | ES29: =IFERROR(VLOOKUP(MID(ES$23,5,4)&$A29,Lista_Ubigeo!$J:$K,2,0)," ") ->  | ET29: =IFERROR(VLOOKUP(MID(ET$23,5,4)&$A29,Lista_Ubigeo!$J:$K,2,0)," ") -> TORATA | EU29: =IFERROR(VLOOKUP(MID(EU$23,5,4)&$A29,Lista_Ubigeo!$J:$K,2,0)," ") -> LLOQUE | EV29: =IFERROR(VLOOKUP(MID(EV$23,5,4)&$A29,Lista_Ubigeo!$J:$K,2,0)," ") ->  | EW29: =IFERROR(VLOOKUP(MID(EW$23,5,4)&$A29,Lista_Ubigeo!$J:$K,2,0)," ") -> PALLANCHACRA | EX29: =IFERROR(VLOOKUP(MID(EX$23,5,4)&$A29,Lista_Ubigeo!$J:$K,2,0)," ") -> SANTA ANA DE TUSI | EY29: =IFERROR(VLOOKUP(MID(EY$23,5,4)&$A29,Lista_Ubigeo!$J:$K,2,0)," ") -> PUERTO BERMUDEZ | EZ29: =IFERROR(VLOOKUP(MID(EZ$23,5,4)&$A32,Lista_Ubigeo!$J:$K,2,0)," ") -> LA ARENA | FA29: =IFERROR(VLOOKUP(MID(FA$23,5,4)&$A29,Lista_Ubigeo!$J:$K,2,0)," ") -> PACAIPAMPA | FB29: =IFERROR(VLOOKUP(MID(FB$23,5,4)&$A29,Lista_Ubigeo!$J:$K,2,0)," ") -> SAN MIGUEL DE EL FAIQUE | FC29: =IFERROR(VLOOKUP(MID(FC$23,5,4)&$A29,Lista_Ubigeo!$J:$K,2,0)," ") -> SALITRAL | FD29: =IFERROR(VLOOKUP(MID(FD$23,5,4)&$A29,Lista_Ubigeo!$J:$K,2,0)," ") -> TAMARINDO | FE29: =IFERROR(VLOOKUP(MID(FE$23,5,4)&$A29,Lista_Ubigeo!$J:$K,2,0)," ") -> MIGUEL CHECA | FF29: =IFERROR(VLOOKUP(MID(FF$23,5,4)&$A29,Lista_Ubigeo!$J:$K,2,0)," ") -> MANCORA | FG29: =IFERROR(VLOOKUP(MID(FG$23,5,4)&$A29,Lista_Ubigeo!$J:$K,2,0)," ") -> RINCONADA LLICUAR | FH29: =IFERROR(VLOOKUP(MID(FH$23,5,4)&$A29,Lista_Ubigeo!$J:$K,2,0)," ") -> CHUCUITO | FI29: =IFERROR(VLOOKUP(MID(FI$23,5,4)&$A29,Lista_Ubigeo!$J:$K,2,0)," ") -> CHUPA | FJ29: =IFERROR(VLOOKUP(MID(FJ$23,5,4)&$A29,Lista_Ubigeo!$J:$K,2,0)," ") -> CRUCERO | FK29: =IFERROR(VLOOKUP(MID(FK$23,5,4)&$A29,Lista_Ubigeo!$J:$K,2,0)," ") -> POMATA | FL29: =IFERROR(VLOOKUP(MID(FL$23,5,4)&$A29,Lista_Ubigeo!$J:$K,2,0)," ") ->  | FM29: =IFERROR(VLOOKUP(MID(FM$23,5,4)&$A29,Lista_Ubigeo!$J:$K,2,0)," ") -> ROSASPATA | FN29: =IFERROR(VLOOKUP(MID(FN$23,5,4)&$A29,Lista_Ubigeo!$J:$K,2,0)," ") -> PALCA | FO29: =IFERROR(VLOOKUP(MID(FO$23,5,4)&$A29,Lista_Ubigeo!$J:$K,2,0)," ") -> NUNOA | FP29: =IFERROR(VLOOKUP(MID(FP$23,5,4)&$A29,Lista_Ubigeo!$J:$K,2,0)," ") ->  | FQ29: =IFERROR(VLOOKUP(MID(FQ$23,5,4)&$A29,Lista_Ubigeo!$J:$K,2,0)," ") ->  | FR29: =IFERROR(VLOOKUP(MID(FR$23,5,4)&$A29,Lista_Ubigeo!$J:$K,2,0)," ") ->  | FS29: =IFERROR(VLOOKUP(MID(FS$23,5,4)&$A29,Lista_Ubigeo!$J:$K,2,0)," ") -> QUIACA | FT29: =IFERROR(VLOOKUP(MID(FT$23,5,4)&$A29,Lista_Ubigeo!$J:$K,2,0)," ") -> TINICACHI | FU29: =IFERROR(VLOOKUP(MID(FU$23,5,4)&$A29,Lista_Ubigeo!$J:$K,2,0)," ") -> YANTALO | FV29: =IFERROR(VLOOKUP(MID(FV$23,5,4)&$A29,Lista_Ubigeo!$J:$K,2,0)," ") -> SAN RAFAEL | FW29: =IFERROR(VLOOKUP(MID(FW$23,5,4)&$A29,Lista_Ubigeo!$J:$K,2,0)," ") ->  | FX29: =IFERROR(VLOOKUP(MID(FX$23,5,4)&$A29,Lista_Ubigeo!$J:$K,2,0)," ") -> TINGO DE SAPOSOA | FY29: =IFERROR(VLOOKUP(MID(FY$23,5,4)&$A29,Lista_Ubigeo!$J:$K,2,0)," ") -> PINTO RECODO | FZ29: =IFERROR(VLOOKUP(MID(FZ$23,5,4)&$A29,Lista_Ubigeo!$J:$K,2,0)," ") ->  | GA29: =IFERROR(VLOOKUP(MID(GA$23,5,4)&$A29,Lista_Ubigeo!$J:$K,2,0)," ") -> SAN CRISTOBAL | GB29: =IFERROR(VLOOKUP(MID(GB$23,5,4)&$A29,Lista_Ubigeo!$J:$K,2,0)," ") -> POSIC | GC29: =IFERROR(VLOOKUP(MID(GC$23,5,4)&$A29,Lista_Ubigeo!$J:$K,2,0)," ") -> EL PORVENIR | GD29: =IFERROR(VLOOKUP(MID(GD$23,5,4)&$A29,Lista_Ubigeo!$J:$K,2,0)," ") ->  | GE29: =IFERROR(VLOOKUP(MID(GE$23,5,4)&$A29,Lista_Ubigeo!$J:$K,2,0)," ") -> PACHIA | GF29: =IFERROR(VLOOKUP(MID(GF$23,5,4)&$A29,Lista_Ubigeo!$J:$K,2,0)," ") -> QUILAHUANI | GG29: =IFERROR(VLOOKUP(MID(GG$23,5,4)&$A29,Lista_Ubigeo!$J:$K,2,0)," ") ->  | GH29: =IFERROR(VLOOKUP(MID(GH$23,5,4)&$A29,Lista_Ubigeo!$J:$K,2,0)," ") -> SUSAPAYA | GI29: =IFERROR(VLOOKUP(MID(GI$23,5,4)&$A29,Lista_Ubigeo!$J:$K,2,0)," ") -> SAN JUAN DE LA VIRGEN | GJ29: =IFERROR(VLOOKUP(MID(GJ$23,5,4)&$A29,Lista_Ubigeo!$J:$K,2,0)," ") ->  | GK29: =IFERROR(VLOOKUP(MID(GK$23,5,4)&$A29,Lista_Ubigeo!$J:$K,2,0)," ") ->  | GL29: =IFERROR(VLOOKUP(MID(GL$23,5,4)&$A29,Lista_Ubigeo!$J:$K,2,0)," ") -> NUEVA REQUENA | GM29: =IFERROR(VLOOKUP(MID(GM$23,5,4)&$A29,Lista_Ubigeo!$J:$K,2,0)," ") ->  | GN29: =IFERROR(VLOOKUP(MID(GN$23,5,4)&$A29,Lista_Ubigeo!$J:$K,2,0)," ") ->  | GO29: =IFERROR(VLOOKUP(MID(GO$23,5,4)&$A29,Lista_Ubigeo!$J:$K,2,0)," ") ->  | GP29: =IFERROR(VLOOKUP(MID(GP$23,5,4)&$A29,Lista_Ubigeo!$J:$K,2,0)," ") -> CHUPA
A30: 07 | B30: =IFERROR(VLOOKUP(MID(B$23,5,4)&$A30,Lista_Ubigeo!$J:$K,2,0)," ") -> GRANADA | C30: =IFERROR(VLOOKUP(MID(C$23,5,4)&$A30,Lista_Ubigeo!$J:$K,2,0)," ") ->  | D30: =IFERROR(VLOOKUP(MID(D$23,5,4)&$A30,Lista_Ubigeo!$J:$K,2,0)," ") -> JAZAN | E30: =IFERROR(VLOOKUP(MID(E$23,5,4)&$A30,Lista_Ubigeo!$J:$K,2,0)," ") ->  | F30: =IFERROR(VLOOKUP(MID(F$23,5,4)&$A30,Lista_Ubigeo!$J:$K,2,0)," ") -> LONGUITA | G30: =IFERROR(VLOOKUP(MID(G$23,5,4)&$A30,Lista_Ubigeo!$J:$K,2,0)," ") -> MARISCAL BENAVIDES | H30: =IFERROR(VLOOKUP(MID(H$23,5,4)&$A30,Lista_Ubigeo!$J:$K,2,0)," ") -> YAMON | I30: =IFERROR(VLOOKUP(MID(I$23,5,4)&$A30,Lista_Ubigeo!$J:$K,2,0)," ") -> LA LIBERTAD | J30: =IFERROR(VLOOKUP(MID(J$23,5,4)&$A30,Lista_Ubigeo!$J:$K,2,0)," ") ->  | K30: =IFERROR(VLOOKUP(MID(K$23,5,4)&$A30,Lista_Ubigeo!$J:$K,2,0)," ") ->  | L30: =IFERROR(VLOOKUP(MID(L$23,5,4)&$A30,Lista_Ubigeo!$J:$K,2,0)," ") ->  | M30: =IFERROR(VLOOKUP(MID(M$23,5,4)&$A30,Lista_Ubigeo!$J:$K,2,0)," ") -> COLQUIOC | N30: =IFERROR(VLOOKUP(MID(N$23,5,4)&$A30,Lista_Ubigeo!$J:$K,2,0)," ") -> PARIAHUANCA | O30: =IFERROR(VLOOKUP(MID(O$23,5,4)&$A30,Lista_Ubigeo!$J:$K,2,0)," ") ->  | P30: =IFERROR(VLOOKUP(MID(P$23,5,4)&$A30,Lista_Ubigeo!$J:$K,2,0)," ") ->  | Q30: =IFERROR(VLOOKUP(MID(Q$23,5,4)&$A30,Lista_Ubigeo!$J:$K,2,0)," ") -> YUPAN | R30: =IFERROR(VLOOKUP(MID(R$23,5,4)&$A30,Lista_Ubigeo!$J:$K,2,0)," ") -> HUACHIS | S30: =IFERROR(VLOOKUP(MID(S$23,5,4)&$A30,Lista_Ubigeo!$J:$K,2,0)," ") ->  | T30: =IFERROR(VLOOKUP(MID(T$23,5,4)&$A30,Lista_Ubigeo!$J:$K,2,0)," ") -> PUEBLO LIBRE | U30: =IFERROR(VLOOKUP(MID(U$23,5,4)&$A30,Lista_Ubigeo!$J:$K,2,0)," ") -> LUCMA | V30: =IFERROR(VLOOKUP(MID(V$23,5,4)&$A30,Lista_Ubigeo!$J:$K,2,0)," ") -> LLIPA | W30: =IFERROR(VLOOKUP(MID(W$23,5,4)&$A30,Lista_Ubigeo!$J:$K,2,0)," ") -> LLAPO | X30: =IFERROR(VLOOKUP(MID(X$23,5,4)&$A30,Lista_Ubigeo!$J:$K,2,0)," ") ->  | Y30: =IFERROR(VLOOKUP(MID(Y$23,5,4)&$A30,Lista_Ubigeo!$J:$K,2,0)," ") -> PAMPAS CHICO | Z30: =IFERROR(VLOOKUP(MID(Z$23,5,4)&$A30,Lista_Ubigeo!$J:$K,2,0)," ") -> SAMANCO | AA30: =IFERROR(VLOOKUP(MID(AA$23,5,4)&$A30,Lista_Ubigeo!$J:$K,2,0)," ") -> QUICHES | AB30: =IFERROR(VLOOKUP(MID(AB$23,5,4)&$A30,Lista_Ubigeo!$J:$K,2,0)," ") -> SHUPLUY | AC30: =IFERROR(VLOOKUP(MID(AC$23,5,4)&$A30,Lista_Ubigeo!$J:$K,2,0)," ") -> PICHIRHUA | AD30: =IFERROR(VLOOKUP(MID(AD$23,5,4)&$A30,Lista_Ubigeo!$J:$K,2,0)," ") -> KISHUARA | AE30: =IFERROR(VLOOKUP(MID(AE$23,5,4)&$A30,Lista_Ubigeo!$J:$K,2,0)," ") -> SABAINO | AF30: =IFERROR(VLOOKUP(MID(AF$23,5,4)&$A30,Lista_Ubigeo!$J:$K,2,0)," ") -> HUAYLLO | AG30: =IFERROR(VLOOKUP(MID(AG$23,5,4)&$A30,Lista_Ubigeo!$J:$K,2,0)," ") ->  | AH30: =IFERROR(VLOOKUP(MID(AH$23,5,4)&$A30,Lista_Ubigeo!$J:$K,2,0)," ") -> URANMARCA | AI30: =IFERROR(VLOOKUP(MID(AI$23,5,4)&$A30,Lista_Ubigeo!$J:$K,2,0)," ") -> PATAYPAMPA | AJ30: =IFERROR(VLOOKUP(MID(AJ$23,5,4)&$A30,Lista_Ubigeo!$J:$K,2,0)," ") -> JACOBO HUNTER | AK30: =IFERROR(VLOOKUP(MID(AK$23,5,4)&$A30,Lista_Ubigeo!$J:$K,2,0)," ") -> QUILCA | AL30: =IFERROR(VLOOKUP(MID(AL$23,5,4)&$A30,Lista_Ubigeo!$J:$K,2,0)," ") -> CHALA | AM30: =IFERROR(VLOOKUP(MID(AM$23,5,4)&$A30,Lista_Ubigeo!$J:$K,2,0)," ") -> HUANCARQUI | AN30: =IFERROR(VLOOKUP(MID(AN$23,5,4)&$A30,Lista_Ubigeo!$J:$K,2,0)," ") -> HUAMBO | AO30: =IFERROR(VLOOKUP(MID(AO$23,5,4)&$A30,Lista_Ubigeo!$J:$K,2,0)," ") -> SALAMANCA | AP30: =IFERROR(VLOOKUP(MID(AP$23,5,4)&$A30,Lista_Ubigeo!$J:$K,2,0)," ") ->  | AQ30: =IFERROR(VLOOKUP(MID(AQ$23,4,4)&$A30,Lista_Ubigeo!$J:$K,2,0)," ") -> QUECHUALLA | AR30: =IFERROR(VLOOKUP(MID(AR$23,5,4)&$A30,Lista_Ubigeo!$J:$K,2,0)," ") -> PACAYCASA | AS30: =IFERROR(VLOOKUP(MID(AS$23,5,4)&$A30,Lista_Ubigeo!$J:$K,2,0)," ") ->  | AT30: =IFERROR(VLOOKUP(MID(AT$23,5,4)&$A30,Lista_Ubigeo!$J:$K,2,0)," ") ->  | AU30: =IFERROR(VLOOKUP(MID(AU$23,5,4)&$A30,Lista_Ubigeo!$J:$K,2,0)," ") -> SIVIA | AV30: =IFERROR(VLOOKUP(MID(AV$23,5,4)&$A30,Lista_Ubigeo!$J:$K,2,0)," ") -> SANTA ROSA | AW30: =IFERROR(VLOOKUP(MID(AW$23,5,4)&$A30,Lista_Ubigeo!$J:$K,2,0)," ") -> HUAC-HUAS | AX30: =IFERROR(VLOOKUP(MID(AX$23,5,4)&$A30,Lista_Ubigeo!$J:$K,2,0)," ") -> SAN FRANCISCO DE RAVACAYCO | AY30: =IFERROR(VLOOKUP(MID(AY$23,5,4)&$A30,Lista_Ubigeo!$J:$K,2,0)," ") -> PARARCA | AZ30: =IFERROR(VLOOKUP(MID(AZ$23,5,4)&$A30,Lista_Ubigeo!$J:$K,2,0)," ") -> PAICO | BA30: =IFERROR(VLOOKUP(MID(BA$23,5,4)&$A30,Lista_Ubigeo!$J:$K,2,0)," ") -> COLCA | BB30: =IFERROR(VLOOKUP(MID(BB$23,5,4)&$A30,Lista_Ubigeo!$J:$K,2,0)," ") -> SAURAMA | BC30: =IFERROR(VLOOKUP(MID(BC$23,5,4)&$A30,Lista_Ubigeo!$J:$K,2,0)," ") -> LLACANORA | BD30: =IFERROR(VLOOKUP(MID(BD$23,5,4)&$A30,Lista_Ubigeo!$J:$K,2,0)," ") ->  | BE30: =IFERROR(VLOOKUP(MID(BE$23,5,4)&$A30,Lista_Ubigeo!$J:$K,2,0)," ") -> MIGUEL IGLESIAS | BF30: =IFERROR(VLOOKUP(MID(BF$23,5,4)&$A30,Lista_Ubigeo!$J:$K,2,0)," ") -> COCHABAMBA | BG30: =IFERROR(VLOOKUP(MID(BG$23,5,4)&$A30,Lista_Ubigeo!$J:$K,2,0)," ") -> TANTARICA | BH30: =IFERROR(VLOOKUP(MID(BH$23,5,4)&$A30,Lista_Ubigeo!$J:$K,2,0)," ") -> QUEROCOTILLO | BI30: =IFERROR(VLOOKUP(MID(BI$23,5,4)&$A30,Lista_Ubigeo!$J:$K,2,0)," ") ->  | BJ30: =IFERROR(VLOOKUP(MID(BJ$23,5,4)&$A30,Lista_Ubigeo!$J:$K,2,0)," ") -> POMAHUACA | BK30: =IFERROR(VLOOKUP(MID(BK$23,5,4)&$A30,Lista_Ubigeo!$J:$K,2,0)," ") -> TABACONAS | BL30: =IFERROR(VLOOKUP(MID(BL$23,5,4)&$A30,Lista_Ubigeo!$J:$K,2,0)," ") -> JOSE SABOGAL | BM30: =IFERROR(VLOOKUP(MID(BM$23,5,4)&$A30,Lista_Ubigeo!$J:$K,2,0)," ") -> LLAPA | BN30: =IFERROR(VLOOKUP(MID(BN$23,5,4)&$A30,Lista_Ubigeo!$J:$K,2,0)," ") ->  | BO30: =IFERROR(VLOOKUP(MID(BO$23,5,4)&$A30,Lista_Ubigeo!$J:$K,2,0)," ") -> PULAN | BP30: =IFERROR(VLOOKUP(MID(BP$23,5,4)&$A30,Lista_Ubigeo!$J:$K,2,0)," ") -> MI PERU | BQ30: =IFERROR(VLOOKUP(MID(BQ$23,5,4)&$A30,Lista_Ubigeo!$J:$K,2,0)," ") -> SAYLLA | BR30: =IFERROR(VLOOKUP(MID(BR$23,5,4)&$A30,Lista_Ubigeo!$J:$K,2,0)," ") -> SANGARARA | BS30: =IFERROR(VLOOKUP(MID(BS$23,5,4)&$A30,Lista_Ubigeo!$J:$K,2,0)," ") -> MOLLEPATA | BT30: =IFERROR(VLOOKUP(MID(BT$23,5,4)&$A30,Lista_Ubigeo!$J:$K,2,0)," ") -> TARAY | BU30: =IFERROR(VLOOKUP(MID(BU$23,5,4)&$A30,Lista_Ubigeo!$J:$K,2,0)," ") -> QUEHUE | BV30: =IFERROR(VLOOKUP(MID(BV$23,5,4)&$A30,Lista_Ubigeo!$J:$K,2,0)," ") -> SAN PEDRO | BW30: =IFERROR(VLOOKUP(MID(BW$23,5,4)&$A30,Lista_Ubigeo!$J:$K,2,0)," ") -> QUINOTA | BX30: =IFERROR(VLOOKUP(MID(BX$23,5,4)&$A30,Lista_Ubigeo!$J:$K,2,0)," ") -> SUYCKUTAMBO | BY30: =IFERROR(VLOOKUP(MID(BY$23,4,4)&$A30,Lista_Ubigeo!$J:$K,2,0)," ") -> KIMBIRI | BZ30: =IFERROR(VLOOKUP(MID(BZ$23,5,4)&$A30,Lista_Ubigeo!$J:$K,2,0)," ") -> PACCARITAMBO | CA30: =IFERROR(VLOOKUP(MID(CA$23,5,4)&$A30,Lista_Ubigeo!$J:$K,2,0)," ") ->  | CB30: =IFERROR(VLOOKUP(MID(CB$23,5,4)&$A30,Lista_Ubigeo!$J:$K,2,0)," ") -> HUARO | CC30: =IFERROR(VLOOKUP(MID(CC$23,5,4)&$A30,Lista_Ubigeo!$J:$K,2,0)," ") -> YUCAY | CD30: =IFERROR(VLOOKUP(MID(CD$23,5,4)&$A30,Lista_Ubigeo!$J:$K,2,0)," ") -> HUAYLLAHUARA | CE30: =IFERROR(VLOOKUP(MID(CE$23,5,4)&$A30,Lista_Ubigeo!$J:$K,2,0)," ") -> POMACOCHA | CF30: =IFERROR(VLOOKUP(MID(CF$23,5,4)&$A30,Lista_Ubigeo!$J:$K,2,0)," ") -> HUANCA-HUANCA | CG30: =IFERROR(VLOOKUP(MID(CG$23,5,4)&$A30,Lista_Ubigeo!$J:$K,2,0)," ") -> HUACHOS | CH30: =IFERROR(VLOOKUP(MID(CH$23,5,4)&$A30,Lista_Ubigeo!$J:$K,2,0)," ") -> PAUCARBAMBA | CI30: =IFERROR(VLOOKUP(MID(CI$23,5,4)&$A30,Lista_Ubigeo!$J:$K,2,0)," ") -> PILPICHACA | CJ30: =IFERROR(VLOOKUP(MID(CJ$23,5,4)&$A30,Lista_Ubigeo!$J:$K,2,0)," ") -> HUACHOCOLPA | CK30: =IFERROR(VLOOKUP(MID(CK$23,5,4)&$A30,Lista_Ubigeo!$J:$K,2,0)," ") -> SAN FRANCISCO DE CAYRAN | CL30: =IFERROR(VLOOKUP(MID(CL$23,5,4)&$A30,Lista_Ubigeo!$J:$K,2,0)," ") -> SAN RAFAEL | CM30: =IFERROR(VLOOKUP(MID(CM$23,5,4)&$A41,Lista_Ubigeo!$J:$K,2,0)," ") ->  | CN30: =IFERROR(VLOOKUP(MID(CN$23,5,4)&$A30,Lista_Ubigeo!$J:$K,2,0)," ") ->  | CO30: =IFERROR(VLOOKUP(MID(CO$23,5,4)&$A30,Lista_Ubigeo!$J:$K,2,0)," ") -> MONZON | CP30: =IFERROR(VLOOKUP(MID(CP$23,5,4)&$A30,Lista_Ubigeo!$J:$K,2,0)," ") -> PUCAYACU | CQ30: =IFERROR(VLOOKUP(MID(CQ$23,5,4)&$A30,Lista_Ubigeo!$J:$K,2,0)," ") ->  | CR30: =IFERROR(VLOOKUP(MID(CR$23,5,4)&$A30,Lista_Ubigeo!$J:$K,2,0)," ") ->  | CS30: =IFERROR(VLOOKUP(MID(CS$23,5,4)&$A30,Lista_Ubigeo!$J:$K,2,0)," ") ->  | CT30: =IFERROR(VLOOKUP(MID(CT$23,5,4)&$A30,Lista_Ubigeo!$J:$K,2,0)," ") -> SAN MIGUEL DE CAURI | CU30: =IFERROR(VLOOKUP(MID(CU$23,5,4)&$A30,Lista_Ubigeo!$J:$K,2,0)," ") -> PAMPAMARCA | CV30: =IFERROR(VLOOKUP(MID(CV$23,5,4)&$A30,Lista_Ubigeo!$J:$K,2,0)," ") -> PUEBLO NUEVO | CW30: =IFERROR(VLOOKUP(MID(CW$23,5,4)&$A30,Lista_Ubigeo!$J:$K,2,0)," ") -> PUEBLO NUEVO | CX30: =IFERROR(VLOOKUP(MID(CX$23,5,4)&$A30,Lista_Ubigeo!$J:$K,2,0)," ") ->  | CY30: =IFERROR(VLOOKUP(MID(CY$23,5,4)&$A30,Lista_Ubigeo!$J:$K,2,0)," ") ->  | CZ30: =IFERROR(VLOOKUP(MID(CZ$23,5,4)&$A30,Lista_Ubigeo!$J:$K,2,0)," ") -> SAN CLEMENTE | DA30: =IFERROR(VLOOKUP(MID(DA$23,5,4)&$A30,Lista_Ubigeo!$J:$K,2,0)," ") -> CHILCA | DB30: =IFERROR(VLOOKUP(MID(DB$23,5,4)&$A30,Lista_Ubigeo!$J:$K,2,0)," ") -> HEROINAS TOLEDO | DC30: =IFERROR(VLOOKUP(MID(DC$23,5,4)&$A30,Lista_Ubigeo!$J:$K,2,0)," ") ->  | DD30: =IFERROR(VLOOKUP(MID(DD$23,5,4)&$A30,Lista_Ubigeo!$J:$K,2,0)," ") -> EL MANTARO | DE30: =IFERROR(VLOOKUP(MID(DE$23,5,4)&$A30,Lista_Ubigeo!$J:$K,2,0)," ") ->  | DF30: =IFERROR(VLOOKUP(MID(DF$23,5,4)&$A30,Lista_Ubigeo!$J:$K,2,0)," ") -> RIO NEGRO | DG30: =IFERROR(VLOOKUP(MID(DG$23,5,4)&$A30,Lista_Ubigeo!$J:$K,2,0)," ") -> PALCAMAYO | DH30: =IFERROR(VLOOKUP(MID(DH$23,5,4)&$A30,Lista_Ubigeo!$J:$K,2,0)," ") -> SANTA BARBARA DE CARHUACAYAN | DI30: =IFERROR(VLOOKUP(MID(DI$23,5,4)&$A30,Lista_Ubigeo!$J:$K,2,0)," ") -> SAN JUAN DE JARPA | DJ30: =IFERROR(VLOOKUP(MID(DJ$23,5,4)&$A30,Lista_Ubigeo!$J:$K,2,0)," ") -> MOCHE | DK30: =IFERROR(VLOOKUP(MID(DK$23,5,4)&$A30,Lista_Ubigeo!$J:$K,2,0)," ") -> SANTIAGO DE CAO | DL30: =IFERROR(VLOOKUP(MID(DL$23,5,4)&$A30,Lista_Ubigeo!$J:$K,2,0)," ") ->  | DM30: =IFERROR(VLOOKUP(MID(DM$23,5,4)&$A30,Lista_Ubigeo!$J:$K,2,0)," ") ->  | DN30: =IFERROR(VLOOKUP(MID(DN$23,5,4)&$A30,Lista_Ubigeo!$J:$K,2,0)," ") ->  | DO30: =IFERROR(VLOOKUP(MID(DO$23,5,4)&$A31,Lista_Ubigeo!$J:$K,2,0)," ") -> MACHE | DP30: =IFERROR(VLOOKUP(MID(DP$23,5,4)&$A30,Lista_Ubigeo!$J:$K,2,0)," ") ->  | DQ30: =IFERROR(VLOOKUP(MID(DQ$23,5,4)&$A30,Lista_Ubigeo!$J:$K,2,0)," ") -> ONGON | DR30: =IFERROR(VLOOKUP(MID(DR$23,5,4)&$A30,Lista_Ubigeo!$J:$K,2,0)," ") -> SARIN | DS30: =IFERROR(VLOOKUP(MID(DS$23,5,4)&$A30,Lista_Ubigeo!$J:$K,2,0)," ") -> SANTA CRUZ DE CHUCA | DV30: =IFERROR(VLOOKUP(MID(DV$23,5,4)&$A30,Lista_Ubigeo!$J:$K,2,0)," ") -> LAGUNAS | DW30: =IFERROR(VLOOKUP(MID(DW$23,5,4)&$A30,Lista_Ubigeo!$J:$K,2,0)," ") ->  | DX30: =IFERROR(VLOOKUP(MID(DX$23,5,4)&$A30,Lista_Ubigeo!$J:$K,2,0)," ") -> MOTUPE | DY30: =IFERROR(VLOOKUP(MID(DY$23,5,4)&$A30,Lista_Ubigeo!$J:$K,2,0)," ") -> CHACLACAYO | DZ30: =IFERROR(VLOOKUP(MID(DZ$23,5,4)&$A30,Lista_Ubigeo!$J:$K,2,0)," ") ->  | EA30: =IFERROR(VLOOKUP(MID(EA$23,5,4)&$A30,Lista_Ubigeo!$J:$K,2,0)," ") ->  | EB30: =IFERROR(VLOOKUP(MID(EB$23,5,4)&$A30,Lista_Ubigeo!$J:$K,2,0)," ") -> SANTA ROSA DE QUIVES | EC30: =IFERROR(VLOOKUP(MID(EC$23,5,4)&$A30,Lista_Ubigeo!$J:$K,2,0)," ") -> IMPERIAL | ED30: =IFERROR(VLOOKUP(MID(ED$23,5,4)&$A30,Lista_Ubigeo!$J:$K,2,0)," ") -> LAMPIAN | EE30: =IFERROR(VLOOKUP(MID(EE$23,5,4)&$A30,Lista_Ubigeo!$J:$K,2,0)," ") -> HUACHUPAMPA | EF30: =IFERROR(VLOOKUP(MID(EF$23,5,4)&$A30,Lista_Ubigeo!$J:$K,2,0)," ") -> LEONCIO PRADO | EG30: =IFERROR(VLOOKUP(MID(EG$23,5,4)&$A30,Lista_Ubigeo!$J:$K,2,0)," ") ->  | EH30: =IFERROR(VLOOKUP(MID(EH$23,5,4)&$A30,Lista_Ubigeo!$J:$K,2,0)," ") -> CARANIA | EI30: =IFERROR(VLOOKUP(MID(EI$23,5,4)&$A30,Lista_Ubigeo!$J:$K,2,0)," ") -> NAPO | EJ30: =IFERROR(VLOOKUP(MID(EJ$23,5,4)&$A35,Lista_Ubigeo!$J:$K,2,0)," ") ->  | EK30: =IFERROR(VLOOKUP(MID(EK$23,5,4)&$A30,Lista_Ubigeo!$J:$K,2,0)," ") ->  | EL30: =IFERROR(VLOOKUP(MID(EL$23,5,4)&$A30,Lista_Ubigeo!$J:$K,2,0)," ") ->  | EM30: =IFERROR(VLOOKUP(MID(EM$23,5,4)&$A30,Lista_Ubigeo!$J:$K,2,0)," ") -> SAQUENA | EN30: =IFERROR(VLOOKUP(MID(EN$23,5,4)&$A30,Lista_Ubigeo!$J:$K,2,0)," ") ->  | EO30: =IFERROR(VLOOKUP(MID(EO$23,5,4)&$A30,Lista_Ubigeo!$J:$K,2,0)," ") ->  | EP30: =IFERROR(VLOOKUP(MID(EP$23,5,4)&$A30,Lista_Ubigeo!$J:$K,2,0)," ") ->  | EQ30: =IFERROR(VLOOKUP(MID(EQ$23,5,4)&$A30,Lista_Ubigeo!$J:$K,2,0)," ") ->  | ER30: =IFERROR(VLOOKUP(MID(ER$23,5,4)&$A30,Lista_Ubigeo!$J:$K,2,0)," ") ->  | ES30: =IFERROR(VLOOKUP(MID(ES$23,5,4)&$A30,Lista_Ubigeo!$J:$K,2,0)," ") ->  | ET30: =IFERROR(VLOOKUP(MID(ET$23,5,4)&$A30,Lista_Ubigeo!$J:$K,2,0)," ") ->  | EU30: =IFERROR(VLOOKUP(MID(EU$23,5,4)&$A30,Lista_Ubigeo!$J:$K,2,0)," ") -> MATALAQUE | EV30: =IFERROR(VLOOKUP(MID(EV$23,5,4)&$A30,Lista_Ubigeo!$J:$K,2,0)," ") ->  | EW30: =IFERROR(VLOOKUP(MID(EW$23,5,4)&$A30,Lista_Ubigeo!$J:$K,2,0)," ") -> PAUCARTAMBO | EX30: =IFERROR(VLOOKUP(MID(EX$23,5,4)&$A30,Lista_Ubigeo!$J:$K,2,0)," ") -> TAPUC | EY30: =IFERROR(VLOOKUP(MID(EY$23,5,4)&$A30,Lista_Ubigeo!$J:$K,2,0)," ") -> VILLA RICA | EZ30: =IFERROR(VLOOKUP(MID(EZ$23,5,4)&$A33,Lista_Ubigeo!$J:$K,2,0)," ") -> LA UNION | FA30: =IFERROR(VLOOKUP(MID(FA$23,5,4)&$A30,Lista_Ubigeo!$J:$K,2,0)," ") -> PAIMAS | FB30: =IFERROR(VLOOKUP(MID(FB$23,5,4)&$A30,Lista_Ubigeo!$J:$K,2,0)," ") -> SONDOR | FC30: =IFERROR(VLOOKUP(MID(FC$23,5,4)&$A30,Lista_Ubigeo!$J:$K,2,0)," ") -> SAN JUAN DE BIGOTE | FD30: =IFERROR(VLOOKUP(MID(FD$23,5,4)&$A30,Lista_Ubigeo!$J:$K,2,0)," ") -> VICHAYAL | FE30: =IFERROR(VLOOKUP(MID(FE$23,5,4)&$A30,Lista_Ubigeo!$J:$K,2,0)," ") -> QUERECOTILLO | FF30: =IFERROR(VLOOKUP(MID(FF$23,5,4)&$A30,Lista_Ubigeo!$J:$K,2,0)," ") -> TALARA | FG30: =IFERROR(VLOOKUP(MID(FG$23,5,4)&$A30,Lista_Ubigeo!$J:$K,2,0)," ") ->  | FH30: =IFERROR(VLOOKUP(MID(FH$23,5,4)&$A30,Lista_Ubigeo!$J:$K,2,0)," ") -> COATA | FI30: =IFERROR(VLOOKUP(MID(FI$23,5,4)&$A30,Lista_Ubigeo!$J:$K,2,0)," ") -> JOSE DIEGO CHOQUEHUANCA | FJ30: =IFERROR(VLOOKUP(MID(FJ$23,5,4)&$A30,Lista_Ubigeo!$J:$K,2,0)," ") -> ITUATA | FK30: =IFERROR(VLOOKUP(MID(FK$23,5,4)&$A30,Lista_Ubigeo!$J:$K,2,0)," ") -> ZEPITA | FL30: =IFERROR(VLOOKUP(MID(FL$23,5,4)&$A30,Lista_Ubigeo!$J:$K,2,0)," ") ->  | FM30: =IFERROR(VLOOKUP(MID(FM$23,5,4)&$A30,Lista_Ubigeo!$J:$K,2,0)," ") -> TARACO | FN30: =IFERROR(VLOOKUP(MID(FN$23,5,4)&$A30,Lista_Ubigeo!$J:$K,2,0)," ") -> PARATIA | FO30: =IFERROR(VLOOKUP(MID(FO$23,5,4)&$A30,Lista_Ubigeo!$J:$K,2,0)," ") -> ORURILLO | FP30: =IFERROR(VLOOKUP(MID(FP$23,5,4)&$A30,Lista_Ubigeo!$J:$K,2,0)," ") ->  | FQ30: =IFERROR(VLOOKUP(MID(FQ$23,5,4)&$A30,Lista_Ubigeo!$J:$K,2,0)," ") ->  | FR30: =IFERROR(VLOOKUP(MID(FR$23,5,4)&$A30,Lista_Ubigeo!$J:$K,2,0)," ") ->  | FS30: =IFERROR(VLOOKUP(MID(FS$23,5,4)&$A30,Lista_Ubigeo!$J:$K,2,0)," ") -> SAN JUAN DEL ORO | FT30: =IFERROR(VLOOKUP(MID(FT$23,5,4)&$A30,Lista_Ubigeo!$J:$K,2,0)," ") -> UNICACHI | FU30: =IFERROR(VLOOKUP(MID(FU$23,5,4)&$A30,Lista_Ubigeo!$J:$K,2,0)," ") ->  | FV30: =IFERROR(VLOOKUP(MID(FV$23,5,4)&$A30,Lista_Ubigeo!$J:$K,2,0)," ") ->  | FW30: =IFERROR(VLOOKUP(MID(FW$23,5,4)&$A30,Lista_Ubigeo!$J:$K,2,0)," ") ->  | FX30: =IFERROR(VLOOKUP(MID(FX$23,5,4)&$A30,Lista_Ubigeo!$J:$K,2,0)," ") ->  | FY30: =IFERROR(VLOOKUP(MID(FY$23,5,4)&$A30,Lista_Ubigeo!$J:$K,2,0)," ") -> RUMISAPA | FZ30: =IFERROR(VLOOKUP(MID(FZ$23,5,4)&$A30,Lista_Ubigeo!$J:$K,2,0)," ") ->  | GA30: =IFERROR(VLOOKUP(MID(GA$23,5,4)&$A30,Lista_Ubigeo!$J:$K,2,0)," ") -> SAN HILARION | GB30: =IFERROR(VLOOKUP(MID(GB$23,5,4)&$A30,Lista_Ubigeo!$J:$K,2,0)," ") -> SAN FERNANDO | GC30: =IFERROR(VLOOKUP(MID(GC$23,5,4)&$A30,Lista_Ubigeo!$J:$K,2,0)," ") -> HUIMBAYOC | GD30: =IFERROR(VLOOKUP(MID(GD$23,5,4)&$A30,Lista_Ubigeo!$J:$K,2,0)," ") ->  | GE30: =IFERROR(VLOOKUP(MID(GE$23,5,4)&$A30,Lista_Ubigeo!$J:$K,2,0)," ") -> PALCA | GF30: =IFERROR(VLOOKUP(MID(GF$23,5,4)&$A30,Lista_Ubigeo!$J:$K,2,0)," ") ->  | GG30: =IFERROR(VLOOKUP(MID(GG$23,5,4)&$A30,Lista_Ubigeo!$J:$K,2,0)," ") ->  | GH30: =IFERROR(VLOOKUP(MID(GH$23,5,4)&$A30,Lista_Ubigeo!$J:$K,2,0)," ") -> TARUCACHI | GI30: =IFERROR(VLOOKUP(MID(GI$23,5,4)&$A30,Lista_Ubigeo!$J:$K,2,0)," ") ->  | GJ30: =IFERROR(VLOOKUP(MID(GJ$23,5,4)&$A30,Lista_Ubigeo!$J:$K,2,0)," ") ->  | GK30: =IFERROR(VLOOKUP(MID(GK$23,5,4)&$A30,Lista_Ubigeo!$J:$K,2,0)," ") ->  | GL30: =IFERROR(VLOOKUP(MID(GL$23,5,4)&$A30,Lista_Ubigeo!$J:$K,2,0)," ") -> MANANTAY | GM30: =IFERROR(VLOOKUP(MID(GM$23,5,4)&$A30,Lista_Ubigeo!$J:$K,2,0)," ") ->  | GN30: =IFERROR(VLOOKUP(MID(GN$23,5,4)&$A30,Lista_Ubigeo!$J:$K,2,0)," ") ->  | GO30: =IFERROR(VLOOKUP(MID(GO$23,5,4)&$A30,Lista_Ubigeo!$J:$K,2,0)," ") ->  | GP30: =IFERROR(VLOOKUP(MID(GP$23,5,4)&$A30,Lista_Ubigeo!$J:$K,2,0)," ") -> JOSE DIEGO CHOQUEHUANCA
A31: 08 | B31: =IFERROR(VLOOKUP(MID(B$23,5,4)&$A31,Lista_Ubigeo!$J:$K,2,0)," ") -> HUANCAS | C31: =IFERROR(VLOOKUP(MID(C$23,5,4)&$A31,Lista_Ubigeo!$J:$K,2,0)," ") ->  | D31: =IFERROR(VLOOKUP(MID(D$23,5,4)&$A31,Lista_Ubigeo!$J:$K,2,0)," ") -> RECTA | E31: =IFERROR(VLOOKUP(MID(E$23,5,4)&$A31,Lista_Ubigeo!$J:$K,2,0)," ") ->  | F31: =IFERROR(VLOOKUP(MID(F$23,5,4)&$A31,Lista_Ubigeo!$J:$K,2,0)," ") -> LONYA CHICO | G31: =IFERROR(VLOOKUP(MID(G$23,5,4)&$A31,Lista_Ubigeo!$J:$K,2,0)," ") -> MILPUC | H31: =IFERROR(VLOOKUP(MID(H$23,5,4)&$A31,Lista_Ubigeo!$J:$K,2,0)," ") ->  | I31: =IFERROR(VLOOKUP(MID(I$23,5,4)&$A31,Lista_Ubigeo!$J:$K,2,0)," ") -> OLLEROS | J31: =IFERROR(VLOOKUP(MID(J$23,5,4)&$A31,Lista_Ubigeo!$J:$K,2,0)," ") ->  | K31: =IFERROR(VLOOKUP(MID(K$23,5,4)&$A31,Lista_Ubigeo!$J:$K,2,0)," ") ->  | L31: =IFERROR(VLOOKUP(MID(L$23,5,4)&$A31,Lista_Ubigeo!$J:$K,2,0)," ") ->  | M31: =IFERROR(VLOOKUP(MID(M$23,5,4)&$A31,Lista_Ubigeo!$J:$K,2,0)," ") -> HUALLANCA | N31: =IFERROR(VLOOKUP(MID(N$23,5,4)&$A31,Lista_Ubigeo!$J:$K,2,0)," ") -> SAN MIGUEL DE ACO | O31: =IFERROR(VLOOKUP(MID(O$23,5,4)&$A31,Lista_Ubigeo!$J:$K,2,0)," ") ->  | P31: =IFERROR(VLOOKUP(MID(P$23,5,4)&$A31,Lista_Ubigeo!$J:$K,2,0)," ") ->  | Q31: =IFERROR(VLOOKUP(MID(Q$23,5,4)&$A31,Lista_Ubigeo!$J:$K,2,0)," ") ->  | R31: =IFERROR(VLOOKUP(MID(R$23,5,4)&$A31,Lista_Ubigeo!$J:$K,2,0)," ") -> HUANTAR | S31: =IFERROR(VLOOKUP(MID(S$23,5,4)&$A31,Lista_Ubigeo!$J:$K,2,0)," ") ->  | T31: =IFERROR(VLOOKUP(MID(T$23,5,4)&$A31,Lista_Ubigeo!$J:$K,2,0)," ") -> SANTA CRUZ | U31: =IFERROR(VLOOKUP(MID(U$23,5,4)&$A31,Lista_Ubigeo!$J:$K,2,0)," ") -> MUSGA | V31: =IFERROR(VLOOKUP(MID(V$23,5,4)&$A31,Lista_Ubigeo!$J:$K,2,0)," ") -> SAN CRISTOBAL DE RAJAN | W31: =IFERROR(VLOOKUP(MID(W$23,5,4)&$A31,Lista_Ubigeo!$J:$K,2,0)," ") -> PALLASCA | X31: =IFERROR(VLOOKUP(MID(X$23,5,4)&$A31,Lista_Ubigeo!$J:$K,2,0)," ") ->  | Y31: =IFERROR(VLOOKUP(MID(Y$23,5,4)&$A31,Lista_Ubigeo!$J:$K,2,0)," ") -> PARARIN | Z31: =IFERROR(VLOOKUP(MID(Z$23,5,4)&$A31,Lista_Ubigeo!$J:$K,2,0)," ") -> SANTA | AA31: =IFERROR(VLOOKUP(MID(AA$23,5,4)&$A31,Lista_Ubigeo!$J:$K,2,0)," ") -> RAGASH | AB31: =IFERROR(VLOOKUP(MID(AB$23,5,4)&$A31,Lista_Ubigeo!$J:$K,2,0)," ") -> YANAMA | AC31: =IFERROR(VLOOKUP(MID(AC$23,5,4)&$A31,Lista_Ubigeo!$J:$K,2,0)," ") -> SAN PEDRO DE CACHORA | AD31: =IFERROR(VLOOKUP(MID(AD$23,5,4)&$A31,Lista_Ubigeo!$J:$K,2,0)," ") -> PACOBAMBA | AE31: =IFERROR(VLOOKUP(MID(AE$23,5,4)&$A31,Lista_Ubigeo!$J:$K,2,0)," ") ->  | AF31: =IFERROR(VLOOKUP(MID(AF$23,5,4)&$A31,Lista_Ubigeo!$J:$K,2,0)," ") -> JUSTO APU SAHUARAURA | AG31: =IFERROR(VLOOKUP(MID(AG$23,5,4)&$A31,Lista_Ubigeo!$J:$K,2,0)," ") ->  | AH31: =IFERROR(VLOOKUP(MID(AH$23,5,4)&$A31,Lista_Ubigeo!$J:$K,2,0)," ") -> RANRACANCHA | AI31: =IFERROR(VLOOKUP(MID(AI$23,5,4)&$A31,Lista_Ubigeo!$J:$K,2,0)," ") -> PROGRESO | AJ31: =IFERROR(VLOOKUP(MID(AJ$23,5,4)&$A31,Lista_Ubigeo!$J:$K,2,0)," ") -> LA JOYA | AK31: =IFERROR(VLOOKUP(MID(AK$23,5,4)&$A31,Lista_Ubigeo!$J:$K,2,0)," ") -> SAMUEL PASTOR | AL31: =IFERROR(VLOOKUP(MID(AL$23,5,4)&$A31,Lista_Ubigeo!$J:$K,2,0)," ") -> CHAPARRA | AM31: =IFERROR(VLOOKUP(MID(AM$23,5,4)&$A31,Lista_Ubigeo!$J:$K,2,0)," ") -> MACHAGUAY | AN31: =IFERROR(VLOOKUP(MID(AN$23,5,4)&$A31,Lista_Ubigeo!$J:$K,2,0)," ") -> HUANCA | AO31: =IFERROR(VLOOKUP(MID(AO$23,5,4)&$A31,Lista_Ubigeo!$J:$K,2,0)," ") -> YANAQUIHUA | AP31: =IFERROR(VLOOKUP(MID(AP$23,5,4)&$A31,Lista_Ubigeo!$J:$K,2,0)," ") ->  | AQ31: =IFERROR(VLOOKUP(MID(AQ$23,4,4)&$A31,Lista_Ubigeo!$J:$K,2,0)," ") -> SAYLA | AR31: =IFERROR(VLOOKUP(MID(AR$23,5,4)&$A31,Lista_Ubigeo!$J:$K,2,0)," ") -> QUINUA | AS31: =IFERROR(VLOOKUP(MID(AS$23,5,4)&$A31,Lista_Ubigeo!$J:$K,2,0)," ") ->  | AT31: =IFERROR(VLOOKUP(MID(AT$23,5,4)&$A31,Lista_Ubigeo!$J:$K,2,0)," ") ->  | AU31: =IFERROR(VLOOKUP(MID(AU$23,5,4)&$A31,Lista_Ubigeo!$J:$K,2,0)," ") -> LLOCHEGUA | AV31: =IFERROR(VLOOKUP(MID(AV$23,5,4)&$A31,Lista_Ubigeo!$J:$K,2,0)," ") -> TAMBO | AW31: =IFERROR(VLOOKUP(MID(AW$23,5,4)&$A31,Lista_Ubigeo!$J:$K,2,0)," ") -> LARAMATE | AX31: =IFERROR(VLOOKUP(MID(AX$23,5,4)&$A31,Lista_Ubigeo!$J:$K,2,0)," ") -> UPAHUACHO | AY31: =IFERROR(VLOOKUP(MID(AY$23,5,4)&$A31,Lista_Ubigeo!$J:$K,2,0)," ") -> SAN JAVIER DE ALPABAMBA | AZ31: =IFERROR(VLOOKUP(MID(AZ$23,5,4)&$A31,Lista_Ubigeo!$J:$K,2,0)," ") -> SAN PEDRO DE LARCAY | BA31: =IFERROR(VLOOKUP(MID(BA$23,5,4)&$A31,Lista_Ubigeo!$J:$K,2,0)," ") -> HUAMANQUIQUIA | BB31: =IFERROR(VLOOKUP(MID(BB$23,5,4)&$A31,Lista_Ubigeo!$J:$K,2,0)," ") -> VISCHONGO | BC31: =IFERROR(VLOOKUP(MID(BC$23,5,4)&$A31,Lista_Ubigeo!$J:$K,2,0)," ") -> LOS BAÑOS DEL INCA | BD31: =IFERROR(VLOOKUP(MID(BD$23,5,4)&$A31,Lista_Ubigeo!$J:$K,2,0)," ") ->  | BE31: =IFERROR(VLOOKUP(MID(BE$23,5,4)&$A31,Lista_Ubigeo!$J:$K,2,0)," ") -> OXAMARCA | BF31: =IFERROR(VLOOKUP(MID(BF$23,5,4)&$A31,Lista_Ubigeo!$J:$K,2,0)," ") -> CONCHAN | BG31: =IFERROR(VLOOKUP(MID(BG$23,5,4)&$A31,Lista_Ubigeo!$J:$K,2,0)," ") -> YONAN | BH31: =IFERROR(VLOOKUP(MID(BH$23,5,4)&$A31,Lista_Ubigeo!$J:$K,2,0)," ") -> SAN ANDRES DE CUTERVO | BI31: =IFERROR(VLOOKUP(MID(BI$23,5,4)&$A31,Lista_Ubigeo!$J:$K,2,0)," ") ->  | BJ31: =IFERROR(VLOOKUP(MID(BJ$23,5,4)&$A31,Lista_Ubigeo!$J:$K,2,0)," ") -> PUCARA | BK31: =IFERROR(VLOOKUP(MID(BK$23,5,4)&$A31,Lista_Ubigeo!$J:$K,2,0)," ") ->  | BL31: =IFERROR(VLOOKUP(MID(BL$23,5,4)&$A31,Lista_Ubigeo!$J:$K,2,0)," ") ->  | BM31: =IFERROR(VLOOKUP(MID(BM$23,5,4)&$A31,Lista_Ubigeo!$J:$K,2,0)," ") -> NANCHOC | BN31: =IFERROR(VLOOKUP(MID(BN$23,5,4)&$A31,Lista_Ubigeo!$J:$K,2,0)," ") ->  | BO31: =IFERROR(VLOOKUP(MID(BO$23,5,4)&$A31,Lista_Ubigeo!$J:$K,2,0)," ") -> SAUCEPAMPA | BP31: =IFERROR(VLOOKUP(MID(BP$23,5,4)&$A31,Lista_Ubigeo!$J:$K,2,0)," ") ->  | BQ31: =IFERROR(VLOOKUP(MID(BQ$23,5,4)&$A31,Lista_Ubigeo!$J:$K,2,0)," ") -> WANCHAQ | BR31: =IFERROR(VLOOKUP(MID(BR$23,5,4)&$A31,Lista_Ubigeo!$J:$K,2,0)," ") ->  | BS31: =IFERROR(VLOOKUP(MID(BS$23,5,4)&$A31,Lista_Ubigeo!$J:$K,2,0)," ") -> PUCYURA | BT31: =IFERROR(VLOOKUP(MID(BT$23,5,4)&$A31,Lista_Ubigeo!$J:$K,2,0)," ") -> YANATILE | BU31: =IFERROR(VLOOKUP(MID(BU$23,5,4)&$A31,Lista_Ubigeo!$J:$K,2,0)," ") -> TUPAC AMARU | BV31: =IFERROR(VLOOKUP(MID(BV$23,5,4)&$A31,Lista_Ubigeo!$J:$K,2,0)," ") -> TINTA | BW31: =IFERROR(VLOOKUP(MID(BW$23,5,4)&$A31,Lista_Ubigeo!$J:$K,2,0)," ") -> VELILLE | BX31: =IFERROR(VLOOKUP(MID(BX$23,5,4)&$A31,Lista_Ubigeo!$J:$K,2,0)," ") -> ALTO PICHIGUA | BY31: =IFERROR(VLOOKUP(MID(BY$23,4,4)&$A31,Lista_Ubigeo!$J:$K,2,0)," ") -> SANTA TERESA | BZ31: =IFERROR(VLOOKUP(MID(BZ$23,5,4)&$A31,Lista_Ubigeo!$J:$K,2,0)," ") -> PILLPINTO | CA31: =IFERROR(VLOOKUP(MID(CA$23,5,4)&$A31,Lista_Ubigeo!$J:$K,2,0)," ") ->  | CB31: =IFERROR(VLOOKUP(MID(CB$23,5,4)&$A31,Lista_Ubigeo!$J:$K,2,0)," ") -> LUCRE | CC31: =IFERROR(VLOOKUP(MID(CC$23,5,4)&$A31,Lista_Ubigeo!$J:$K,2,0)," ") ->  | CD31: =IFERROR(VLOOKUP(MID(CD$23,5,4)&$A31,Lista_Ubigeo!$J:$K,2,0)," ") -> IZCUCHACA | CE31: =IFERROR(VLOOKUP(MID(CE$23,5,4)&$A31,Lista_Ubigeo!$J:$K,2,0)," ") -> ROSARIO | CF31: =IFERROR(VLOOKUP(MID(CF$23,5,4)&$A31,Lista_Ubigeo!$J:$K,2,0)," ") -> HUAYLLAY GRANDE | CG31: =IFERROR(VLOOKUP(MID(CG$23,5,4)&$A31,Lista_Ubigeo!$J:$K,2,0)," ") -> HUAMATAMBO | CH31: =IFERROR(VLOOKUP(MID(CH$23,5,4)&$A31,Lista_Ubigeo!$J:$K,2,0)," ") -> SAN MIGUEL DE MAYOCC | CI31: =IFERROR(VLOOKUP(MID(CI$23,5,4)&$A31,Lista_Ubigeo!$J:$K,2,0)," ") -> QUERCO | CJ31: =IFERROR(VLOOKUP(MID(CJ$23,5,4)&$A31,Lista_Ubigeo!$J:$K,2,0)," ") ->  | CK31: =IFERROR(VLOOKUP(MID(CK$23,5,4)&$A31,Lista_Ubigeo!$J:$K,2,0)," ") -> SAN PEDRO DE CHAULAN | CL31: =IFERROR(VLOOKUP(MID(CL$23,5,4)&$A31,Lista_Ubigeo!$J:$K,2,0)," ") -> TOMAY KICHWA | CM31: =IFERROR(VLOOKUP(MID(CM$23,5,4)&$A42,Lista_Ubigeo!$J:$K,2,0)," ") ->  | CN31: =IFERROR(VLOOKUP(MID(CN$23,5,4)&$A31,Lista_Ubigeo!$J:$K,2,0)," ") ->  | CO31: =IFERROR(VLOOKUP(MID(CO$23,5,4)&$A31,Lista_Ubigeo!$J:$K,2,0)," ") -> PUNCHAO | CP31: =IFERROR(VLOOKUP(MID(CP$23,5,4)&$A31,Lista_Ubigeo!$J:$K,2,0)," ") -> CASTILLO GRANDE | CQ31: =IFERROR(VLOOKUP(MID(CQ$23,5,4)&$A31,Lista_Ubigeo!$J:$K,2,0)," ") ->  | CR31: =IFERROR(VLOOKUP(MID(CR$23,5,4)&$A31,Lista_Ubigeo!$J:$K,2,0)," ") ->  | CS31: =IFERROR(VLOOKUP(MID(CS$23,5,4)&$A31,Lista_Ubigeo!$J:$K,2,0)," ") ->  | CT31: =IFERROR(VLOOKUP(MID(CT$23,5,4)&$A31,Lista_Ubigeo!$J:$K,2,0)," ") ->  | CU31: =IFERROR(VLOOKUP(MID(CU$23,5,4)&$A31,Lista_Ubigeo!$J:$K,2,0)," ") -> CHORAS | CV31: =IFERROR(VLOOKUP(MID(CV$23,5,4)&$A31,Lista_Ubigeo!$J:$K,2,0)," ") -> SALAS | CW31: =IFERROR(VLOOKUP(MID(CW$23,5,4)&$A31,Lista_Ubigeo!$J:$K,2,0)," ") -> SAN JUAN DE YANAC | CX31: =IFERROR(VLOOKUP(MID(CX$23,5,4)&$A31,Lista_Ubigeo!$J:$K,2,0)," ") ->  | CY31: =IFERROR(VLOOKUP(MID(CY$23,5,4)&$A31,Lista_Ubigeo!$J:$K,2,0)," ") ->  | CZ31: =IFERROR(VLOOKUP(MID(CZ$23,5,4)&$A31,Lista_Ubigeo!$J:$K,2,0)," ") -> TUPAC AMARU INCA | DA31: =IFERROR(VLOOKUP(MID(DA$23,5,4)&$A31,Lista_Ubigeo!$J:$K,2,0)," ") -> CHONGOS ALTO | DB31: =IFERROR(VLOOKUP(MID(DB$23,5,4)&$A31,Lista_Ubigeo!$J:$K,2,0)," ") -> MANZANARES | DC31: =IFERROR(VLOOKUP(MID(DC$23,5,4)&$A31,Lista_Ubigeo!$J:$K,2,0)," ") ->  | DD31: =IFERROR(VLOOKUP(MID(DD$23,5,4)&$A31,Lista_Ubigeo!$J:$K,2,0)," ") -> HUAMALI | DE31: =IFERROR(VLOOKUP(MID(DE$23,5,4)&$A31,Lista_Ubigeo!$J:$K,2,0)," ") ->  | DF31: =IFERROR(VLOOKUP(MID(DF$23,5,4)&$A31,Lista_Ubigeo!$J:$K,2,0)," ") -> RIO TAMBO | DG31: =IFERROR(VLOOKUP(MID(DG$23,5,4)&$A31,Lista_Ubigeo!$J:$K,2,0)," ") -> SAN PEDRO DE CAJAS | DH31: =IFERROR(VLOOKUP(MID(DH$23,5,4)&$A31,Lista_Ubigeo!$J:$K,2,0)," ") -> SANTA ROSA DE SACCO | DI31: =IFERROR(VLOOKUP(MID(DI$23,5,4)&$A31,Lista_Ubigeo!$J:$K,2,0)," ") -> TRES DE DICIEMBRE | DJ31: =IFERROR(VLOOKUP(MID(DJ$23,5,4)&$A31,Lista_Ubigeo!$J:$K,2,0)," ") -> POROTO | DK31: =IFERROR(VLOOKUP(MID(DK$23,5,4)&$A31,Lista_Ubigeo!$J:$K,2,0)," ") -> CASA GRANDE | DL31: =IFERROR(VLOOKUP(MID(DL$23,5,4)&$A31,Lista_Ubigeo!$J:$K,2,0)," ") ->  | DM31: =IFERROR(VLOOKUP(MID(DM$23,5,4)&$A31,Lista_Ubigeo!$J:$K,2,0)," ") ->  | DN31: =IFERROR(VLOOKUP(MID(DN$23,5,4)&$A31,Lista_Ubigeo!$J:$K,2,0)," ") ->  | DO31: =IFERROR(VLOOKUP(MID(DO$23,5,4)&$A32,Lista_Ubigeo!$J:$K,2,0)," ") ->  | DP31: =IFERROR(VLOOKUP(MID(DP$23,5,4)&$A31,Lista_Ubigeo!$J:$K,2,0)," ") ->  | DQ31: =IFERROR(VLOOKUP(MID(DQ$23,5,4)&$A31,Lista_Ubigeo!$J:$K,2,0)," ") -> PARCOY | DR31: =IFERROR(VLOOKUP(MID(DR$23,5,4)&$A31,Lista_Ubigeo!$J:$K,2,0)," ") -> SARTIMBAMBA | DS31: =IFERROR(VLOOKUP(MID(DS$23,5,4)&$A31,Lista_Ubigeo!$J:$K,2,0)," ") -> SITABAMBA | DV31: =IFERROR(VLOOKUP(MID(DV$23,5,4)&$A31,Lista_Ubigeo!$J:$K,2,0)," ") -> MONSEFU | DW31: =IFERROR(VLOOKUP(MID(DW$23,5,4)&$A31,Lista_Ubigeo!$J:$K,2,0)," ") ->  | DX31: =IFERROR(VLOOKUP(MID(DX$23,5,4)&$A31,Lista_Ubigeo!$J:$K,2,0)," ") -> OLMOS | DY31: =IFERROR(VLOOKUP(MID(DY$23,5,4)&$A31,Lista_Ubigeo!$J:$K,2,0)," ") -> CHORRILLOS | DZ31: =IFERROR(VLOOKUP(MID(DZ$23,5,4)&$A31,Lista_Ubigeo!$J:$K,2,0)," ") ->  | EA31: =IFERROR(VLOOKUP(MID(EA$23,5,4)&$A31,Lista_Ubigeo!$J:$K,2,0)," ") ->  | EB31: =IFERROR(VLOOKUP(MID(EB$23,5,4)&$A31,Lista_Ubigeo!$J:$K,2,0)," ") ->  | EC31: =IFERROR(VLOOKUP(MID(EC$23,5,4)&$A31,Lista_Ubigeo!$J:$K,2,0)," ") -> LUNAHUANA | ED31: =IFERROR(VLOOKUP(MID(ED$23,5,4)&$A31,Lista_Ubigeo!$J:$K,2,0)," ") -> PACARAOS | EE31: =IFERROR(VLOOKUP(MID(EE$23,5,4)&$A31,Lista_Ubigeo!$J:$K,2,0)," ") -> HUANZA | EF31: =IFERROR(VLOOKUP(MID(EF$23,5,4)&$A31,Lista_Ubigeo!$J:$K,2,0)," ") -> PACCHO | EG31: =IFERROR(VLOOKUP(MID(EG$23,5,4)&$A31,Lista_Ubigeo!$J:$K,2,0)," ") ->  | EH31: =IFERROR(VLOOKUP(MID(EH$23,5,4)&$A31,Lista_Ubigeo!$J:$K,2,0)," ") -> CATAHUASI | EI31: =IFERROR(VLOOKUP(MID(EI$23,5,4)&$A31,Lista_Ubigeo!$J:$K,2,0)," ") -> PUNCHANA | EJ31: =IFERROR(VLOOKUP(MID(EJ$23,5,4)&$A36,Lista_Ubigeo!$J:$K,2,0)," ") ->  | EK31: =IFERROR(VLOOKUP(MID(EK$23,5,4)&$A31,Lista_Ubigeo!$J:$K,2,0)," ") ->  | EL31: =IFERROR(VLOOKUP(MID(EL$23,5,4)&$A31,Lista_Ubigeo!$J:$K,2,0)," ") ->  | EM31: =IFERROR(VLOOKUP(MID(EM$23,5,4)&$A31,Lista_Ubigeo!$J:$K,2,0)," ") -> SOPLIN | EN31: =IFERROR(VLOOKUP(MID(EN$23,5,4)&$A31,Lista_Ubigeo!$J:$K,2,0)," ") ->  | EO31: =IFERROR(VLOOKUP(MID(EO$23,5,4)&$A31,Lista_Ubigeo!$J:$K,2,0)," ") ->  | EP31: =IFERROR(VLOOKUP(MID(EP$23,5,4)&$A31,Lista_Ubigeo!$J:$K,2,0)," ") ->  | EQ31: =IFERROR(VLOOKUP(MID(EQ$23,5,4)&$A31,Lista_Ubigeo!$J:$K,2,0)," ") ->  | ER31: =IFERROR(VLOOKUP(MID(ER$23,5,4)&$A31,Lista_Ubigeo!$J:$K,2,0)," ") ->  | ES31: =IFERROR(VLOOKUP(MID(ES$23,5,4)&$A31,Lista_Ubigeo!$J:$K,2,0)," ") ->  | ET31: =IFERROR(VLOOKUP(MID(ET$23,5,4)&$A31,Lista_Ubigeo!$J:$K,2,0)," ") ->  | EU31: =IFERROR(VLOOKUP(MID(EU$23,5,4)&$A31,Lista_Ubigeo!$J:$K,2,0)," ") -> PUQUINA | EV31: =IFERROR(VLOOKUP(MID(EV$23,5,4)&$A31,Lista_Ubigeo!$J:$K,2,0)," ") ->  | EW31: =IFERROR(VLOOKUP(MID(EW$23,5,4)&$A31,Lista_Ubigeo!$J:$K,2,0)," ") -> SAN FRANCISCO DE ASIS DE YARUSYACAN | EX31: =IFERROR(VLOOKUP(MID(EX$23,5,4)&$A31,Lista_Ubigeo!$J:$K,2,0)," ") -> VILCABAMBA | EY31: =IFERROR(VLOOKUP(MID(EY$23,5,4)&$A31,Lista_Ubigeo!$J:$K,2,0)," ") -> CONSTITUCION | EZ31: =IFERROR(VLOOKUP(MID(EZ$23,5,4)&$A34,Lista_Ubigeo!$J:$K,2,0)," ") -> LAS LOMAS | FA31: =IFERROR(VLOOKUP(MID(FA$23,5,4)&$A31,Lista_Ubigeo!$J:$K,2,0)," ") -> SAPILLICA | FB31: =IFERROR(VLOOKUP(MID(FB$23,5,4)&$A31,Lista_Ubigeo!$J:$K,2,0)," ") -> SONDORILLO | FC31: =IFERROR(VLOOKUP(MID(FC$23,5,4)&$A31,Lista_Ubigeo!$J:$K,2,0)," ") -> SANTA CATALINA DE MOSSA | FD31: =IFERROR(VLOOKUP(MID(FD$23,5,4)&$A31,Lista_Ubigeo!$J:$K,2,0)," ") ->  | FE31: =IFERROR(VLOOKUP(MID(FE$23,5,4)&$A31,Lista_Ubigeo!$J:$K,2,0)," ") -> SALITRAL | FF31: =IFERROR(VLOOKUP(MID(FF$23,5,4)&$A31,Lista_Ubigeo!$J:$K,2,0)," ") ->  | FG31: =IFERROR(VLOOKUP(MID(FG$23,5,4)&$A31,Lista_Ubigeo!$J:$K,2,0)," ") ->  | FH31: =IFERROR(VLOOKUP(MID(FH$23,5,4)&$A31,Lista_Ubigeo!$J:$K,2,0)," ") -> HUATA | FI31: =IFERROR(VLOOKUP(MID(FI$23,5,4)&$A31,Lista_Ubigeo!$J:$K,2,0)," ") -> MUNANI | FJ31: =IFERROR(VLOOKUP(MID(FJ$23,5,4)&$A31,Lista_Ubigeo!$J:$K,2,0)," ") -> OLLACHEA | FK31: =IFERROR(VLOOKUP(MID(FK$23,5,4)&$A31,Lista_Ubigeo!$J:$K,2,0)," ") ->  | FL31: =IFERROR(VLOOKUP(MID(FL$23,5,4)&$A31,Lista_Ubigeo!$J:$K,2,0)," ") ->  | FM31: =IFERROR(VLOOKUP(MID(FM$23,5,4)&$A31,Lista_Ubigeo!$J:$K,2,0)," ") -> VILQUE CHICO | FN31: =IFERROR(VLOOKUP(MID(FN$23,5,4)&$A31,Lista_Ubigeo!$J:$K,2,0)," ") -> PUCARA | FO31: =IFERROR(VLOOKUP(MID(FO$23,5,4)&$A31,Lista_Ubigeo!$J:$K,2,0)," ") -> SANTA ROSA | FP31: =IFERROR(VLOOKUP(MID(FP$23,5,4)&$A31,Lista_Ubigeo!$J:$K,2,0)," ") ->  | FQ31: =IFERROR(VLOOKUP(MID(FQ$23,5,4)&$A31,Lista_Ubigeo!$J:$K,2,0)," ") ->  | FR31: =IFERROR(VLOOKUP(MID(FR$23,5,4)&$A31,Lista_Ubigeo!$J:$K,2,0)," ") ->  | FS31: =IFERROR(VLOOKUP(MID(FS$23,5,4)&$A31,Lista_Ubigeo!$J:$K,2,0)," ") -> YANAHUAYA | FT31: =IFERROR(VLOOKUP(MID(FT$23,5,4)&$A31,Lista_Ubigeo!$J:$K,2,0)," ") ->  | FU31: =IFERROR(VLOOKUP(MID(FU$23,5,4)&$A31,Lista_Ubigeo!$J:$K,2,0)," ") ->  | FV31: =IFERROR(VLOOKUP(MID(FV$23,5,4)&$A31,Lista_Ubigeo!$J:$K,2,0)," ") ->  | FW31: =IFERROR(VLOOKUP(MID(FW$23,5,4)&$A31,Lista_Ubigeo!$J:$K,2,0)," ") ->  | FX31: =IFERROR(VLOOKUP(MID(FX$23,5,4)&$A31,Lista_Ubigeo!$J:$K,2,0)," ") ->  | FY31: =IFERROR(VLOOKUP(MID(FY$23,5,4)&$A31,Lista_Ubigeo!$J:$K,2,0)," ") -> SAN ROQUE DE CUMBAZA | FZ31: =IFERROR(VLOOKUP(MID(FZ$23,5,4)&$A31,Lista_Ubigeo!$J:$K,2,0)," ") ->  | GA31: =IFERROR(VLOOKUP(MID(GA$23,5,4)&$A31,Lista_Ubigeo!$J:$K,2,0)," ") -> SHAMBOYACU | GB31: =IFERROR(VLOOKUP(MID(GB$23,5,4)&$A31,Lista_Ubigeo!$J:$K,2,0)," ") -> YORONGOS | GC31: =IFERROR(VLOOKUP(MID(GC$23,5,4)&$A31,Lista_Ubigeo!$J:$K,2,0)," ") -> JUAN GUERRA | GD31: =IFERROR(VLOOKUP(MID(GD$23,5,4)&$A31,Lista_Ubigeo!$J:$K,2,0)," ") ->  | GE31: =IFERROR(VLOOKUP(MID(GE$23,5,4)&$A31,Lista_Ubigeo!$J:$K,2,0)," ") -> POCOLLAY | GF31: =IFERROR(VLOOKUP(MID(GF$23,5,4)&$A31,Lista_Ubigeo!$J:$K,2,0)," ") ->  | GG31: =IFERROR(VLOOKUP(MID(GG$23,5,4)&$A31,Lista_Ubigeo!$J:$K,2,0)," ") ->  | GH31: =IFERROR(VLOOKUP(MID(GH$23,5,4)&$A31,Lista_Ubigeo!$J:$K,2,0)," ") -> TICACO | GI31: =IFERROR(VLOOKUP(MID(GI$23,5,4)&$A31,Lista_Ubigeo!$J:$K,2,0)," ") ->  | GJ31: =IFERROR(VLOOKUP(MID(GJ$23,5,4)&$A31,Lista_Ubigeo!$J:$K,2,0)," ") ->  | GK31: =IFERROR(VLOOKUP(MID(GK$23,5,4)&$A31,Lista_Ubigeo!$J:$K,2,0)," ") ->  | GL31: =IFERROR(VLOOKUP(MID(GL$23,5,4)&$A31,Lista_Ubigeo!$J:$K,2,0)," ") ->  | GM31: =IFERROR(VLOOKUP(MID(GM$23,5,4)&$A31,Lista_Ubigeo!$J:$K,2,0)," ") ->  | GN31: =IFERROR(VLOOKUP(MID(GN$23,5,4)&$A31,Lista_Ubigeo!$J:$K,2,0)," ") ->  | GO31: =IFERROR(VLOOKUP(MID(GO$23,5,4)&$A31,Lista_Ubigeo!$J:$K,2,0)," ") ->  | GP31: =IFERROR(VLOOKUP(MID(GP$23,5,4)&$A31,Lista_Ubigeo!$J:$K,2,0)," ") -> MUNANI
A32: 09 | B32: =IFERROR(VLOOKUP(MID(B$23,5,4)&$A32,Lista_Ubigeo!$J:$K,2,0)," ") -> LA JALCA | C32: =IFERROR(VLOOKUP(MID(C$23,5,4)&$A32,Lista_Ubigeo!$J:$K,2,0)," ") ->  | D32: =IFERROR(VLOOKUP(MID(D$23,5,4)&$A32,Lista_Ubigeo!$J:$K,2,0)," ") -> SAN CARLOS | E32: =IFERROR(VLOOKUP(MID(E$23,5,4)&$A32,Lista_Ubigeo!$J:$K,2,0)," ") ->  | F32: =IFERROR(VLOOKUP(MID(F$23,5,4)&$A32,Lista_Ubigeo!$J:$K,2,0)," ") -> LUYA | G32: =IFERROR(VLOOKUP(MID(G$23,5,4)&$A32,Lista_Ubigeo!$J:$K,2,0)," ") -> OMIA | H32: =IFERROR(VLOOKUP(MID(H$23,5,4)&$A32,Lista_Ubigeo!$J:$K,2,0)," ") ->  | I32: =IFERROR(VLOOKUP(MID(I$23,5,4)&$A32,Lista_Ubigeo!$J:$K,2,0)," ") -> PAMPAS GRANDE | J32: =IFERROR(VLOOKUP(MID(J$23,5,4)&$A32,Lista_Ubigeo!$J:$K,2,0)," ") ->  | K32: =IFERROR(VLOOKUP(MID(K$23,5,4)&$A32,Lista_Ubigeo!$J:$K,2,0)," ") ->  | L32: =IFERROR(VLOOKUP(MID(L$23,5,4)&$A32,Lista_Ubigeo!$J:$K,2,0)," ") ->  | M32: =IFERROR(VLOOKUP(MID(M$23,5,4)&$A32,Lista_Ubigeo!$J:$K,2,0)," ") -> HUASTA | N32: =IFERROR(VLOOKUP(MID(N$23,5,4)&$A32,Lista_Ubigeo!$J:$K,2,0)," ") -> SHILLA | O32: =IFERROR(VLOOKUP(MID(O$23,5,4)&$A32,Lista_Ubigeo!$J:$K,2,0)," ") ->  | P32: =IFERROR(VLOOKUP(MID(P$23,5,4)&$A32,Lista_Ubigeo!$J:$K,2,0)," ") ->  | Q32: =IFERROR(VLOOKUP(MID(Q$23,5,4)&$A32,Lista_Ubigeo!$J:$K,2,0)," ") ->  | R32: =IFERROR(VLOOKUP(MID(R$23,5,4)&$A32,Lista_Ubigeo!$J:$K,2,0)," ") -> MASIN | S32: =IFERROR(VLOOKUP(MID(S$23,5,4)&$A32,Lista_Ubigeo!$J:$K,2,0)," ") ->  | T32: =IFERROR(VLOOKUP(MID(T$23,5,4)&$A32,Lista_Ubigeo!$J:$K,2,0)," ") -> SANTO TORIBIO | U32: =IFERROR(VLOOKUP(MID(U$23,5,4)&$A32,Lista_Ubigeo!$J:$K,2,0)," ") ->  | V32: =IFERROR(VLOOKUP(MID(V$23,5,4)&$A32,Lista_Ubigeo!$J:$K,2,0)," ") -> SAN PEDRO | W32: =IFERROR(VLOOKUP(MID(W$23,5,4)&$A32,Lista_Ubigeo!$J:$K,2,0)," ") -> PAMPAS | X32: =IFERROR(VLOOKUP(MID(X$23,5,4)&$A32,Lista_Ubigeo!$J:$K,2,0)," ") ->  | Y32: =IFERROR(VLOOKUP(MID(Y$23,5,4)&$A32,Lista_Ubigeo!$J:$K,2,0)," ") -> TAPACOCHA | Z32: =IFERROR(VLOOKUP(MID(Z$23,5,4)&$A32,Lista_Ubigeo!$J:$K,2,0)," ") -> NUEVO CHIMBOTE | AA32: =IFERROR(VLOOKUP(MID(AA$23,5,4)&$A32,Lista_Ubigeo!$J:$K,2,0)," ") -> SAN JUAN | AB32: =IFERROR(VLOOKUP(MID(AB$23,5,4)&$A32,Lista_Ubigeo!$J:$K,2,0)," ") ->  | AC32: =IFERROR(VLOOKUP(MID(AC$23,5,4)&$A32,Lista_Ubigeo!$J:$K,2,0)," ") -> TAMBURCO | AD32: =IFERROR(VLOOKUP(MID(AD$23,5,4)&$A32,Lista_Ubigeo!$J:$K,2,0)," ") -> PACUCHA | AE32: =IFERROR(VLOOKUP(MID(AE$23,5,4)&$A32,Lista_Ubigeo!$J:$K,2,0)," ") ->  | AF32: =IFERROR(VLOOKUP(MID(AF$23,5,4)&$A32,Lista_Ubigeo!$J:$K,2,0)," ") -> LUCRE | AG32: =IFERROR(VLOOKUP(MID(AG$23,5,4)&$A32,Lista_Ubigeo!$J:$K,2,0)," ") ->  | AH32: =IFERROR(VLOOKUP(MID(AH$23,5,4)&$A32,Lista_Ubigeo!$J:$K,2,0)," ") -> ROCCHACC | AI32: =IFERROR(VLOOKUP(MID(AI$23,5,4)&$A32,Lista_Ubigeo!$J:$K,2,0)," ") -> SAN ANTONIO | AJ32: =IFERROR(VLOOKUP(MID(AJ$23,5,4)&$A32,Lista_Ubigeo!$J:$K,2,0)," ") -> MARIANO MELGAR | AK32: =IFERROR(VLOOKUP(MID(AK$23,5,4)&$A32,Lista_Ubigeo!$J:$K,2,0)," ") ->  | AL32: =IFERROR(VLOOKUP(MID(AL$23,5,4)&$A32,Lista_Ubigeo!$J:$K,2,0)," ") -> HUANUHUANU | AM32: =IFERROR(VLOOKUP(MID(AM$23,5,4)&$A32,Lista_Ubigeo!$J:$K,2,0)," ") -> ORCOPAMPA | AN32: =IFERROR(VLOOKUP(MID(AN$23,5,4)&$A32,Lista_Ubigeo!$J:$K,2,0)," ") -> ICHUPAMPA | AO32: =IFERROR(VLOOKUP(MID(AO$23,5,4)&$A32,Lista_Ubigeo!$J:$K,2,0)," ") ->  | AP32: =IFERROR(VLOOKUP(MID(AP$23,5,4)&$A32,Lista_Ubigeo!$J:$K,2,0)," ") ->  | AQ32: =IFERROR(VLOOKUP(MID(AQ$23,4,4)&$A32,Lista_Ubigeo!$J:$K,2,0)," ") -> TAURIA | AR32: =IFERROR(VLOOKUP(MID(AR$23,5,4)&$A32,Lista_Ubigeo!$J:$K,2,0)," ") -> SAN JOSE DE TICLLAS | AS32: =IFERROR(VLOOKUP(MID(AS$23,5,4)&$A32,Lista_Ubigeo!$J:$K,2,0)," ") ->  | AT32: =IFERROR(VLOOKUP(MID(AT$23,5,4)&$A32,Lista_Ubigeo!$J:$K,2,0)," ") ->  | AU32: =IFERROR(VLOOKUP(MID(AU$23,5,4)&$A32,Lista_Ubigeo!$J:$K,2,0)," ") -> CANAYRE | AV32: =IFERROR(VLOOKUP(MID(AV$23,5,4)&$A32,Lista_Ubigeo!$J:$K,2,0)," ") -> SAMUGARI | AW32: =IFERROR(VLOOKUP(MID(AW$23,5,4)&$A32,Lista_Ubigeo!$J:$K,2,0)," ") -> LEONCIO PRADO | AX32: =IFERROR(VLOOKUP(MID(AX$23,5,4)&$A32,Lista_Ubigeo!$J:$K,2,0)," ") ->  | AY32: =IFERROR(VLOOKUP(MID(AY$23,5,4)&$A32,Lista_Ubigeo!$J:$K,2,0)," ") -> SAN JOSE DE USHUA | AZ32: =IFERROR(VLOOKUP(MID(AZ$23,5,4)&$A32,Lista_Ubigeo!$J:$K,2,0)," ") -> SAN SALVADOR DE QUIJE | BA32: =IFERROR(VLOOKUP(MID(BA$23,5,4)&$A32,Lista_Ubigeo!$J:$K,2,0)," ") -> HUANCARAYLLA | BB32: =IFERROR(VLOOKUP(MID(BB$23,5,4)&$A32,Lista_Ubigeo!$J:$K,2,0)," ") ->  | BC32: =IFERROR(VLOOKUP(MID(BC$23,5,4)&$A32,Lista_Ubigeo!$J:$K,2,0)," ") -> MAGDALENA | BD32: =IFERROR(VLOOKUP(MID(BD$23,5,4)&$A32,Lista_Ubigeo!$J:$K,2,0)," ") ->  | BE32: =IFERROR(VLOOKUP(MID(BE$23,5,4)&$A32,Lista_Ubigeo!$J:$K,2,0)," ") -> SOROCHUCO | BF32: =IFERROR(VLOOKUP(MID(BF$23,5,4)&$A32,Lista_Ubigeo!$J:$K,2,0)," ") -> HUAMBOS | BG32: =IFERROR(VLOOKUP(MID(BG$23,5,4)&$A32,Lista_Ubigeo!$J:$K,2,0)," ") ->  | BH32: =IFERROR(VLOOKUP(MID(BH$23,5,4)&$A32,Lista_Ubigeo!$J:$K,2,0)," ") -> SAN JUAN DE CUTERVO | BI32: =IFERROR(VLOOKUP(MID(BI$23,5,4)&$A32,Lista_Ubigeo!$J:$K,2,0)," ") ->  | BJ32: =IFERROR(VLOOKUP(MID(BJ$23,5,4)&$A32,Lista_Ubigeo!$J:$K,2,0)," ") -> SALLIQUE | BK32: =IFERROR(VLOOKUP(MID(BK$23,5,4)&$A32,Lista_Ubigeo!$J:$K,2,0)," ") ->  | BL32: =IFERROR(VLOOKUP(MID(BL$23,5,4)&$A32,Lista_Ubigeo!$J:$K,2,0)," ") ->  | BM32: =IFERROR(VLOOKUP(MID(BM$23,5,4)&$A32,Lista_Ubigeo!$J:$K,2,0)," ") -> NIEPOS | BN32: =IFERROR(VLOOKUP(MID(BN$23,5,4)&$A32,Lista_Ubigeo!$J:$K,2,0)," ") ->  | BO32: =IFERROR(VLOOKUP(MID(BO$23,5,4)&$A32,Lista_Ubigeo!$J:$K,2,0)," ") -> SEXI | BP32: =IFERROR(VLOOKUP(MID(BP$23,5,4)&$A32,Lista_Ubigeo!$J:$K,2,0)," ") ->  | BQ32: =IFERROR(VLOOKUP(MID(BQ$23,5,4)&$A32,Lista_Ubigeo!$J:$K,2,0)," ") -> QUILLABAMBA | BR32: =IFERROR(VLOOKUP(MID(BR$23,5,4)&$A32,Lista_Ubigeo!$J:$K,2,0)," ") ->  | BS32: =IFERROR(VLOOKUP(MID(BS$23,5,4)&$A32,Lista_Ubigeo!$J:$K,2,0)," ") -> ZURITE | BT32: =IFERROR(VLOOKUP(MID(BT$23,5,4)&$A32,Lista_Ubigeo!$J:$K,2,0)," ") ->  | BU32: =IFERROR(VLOOKUP(MID(BU$23,5,4)&$A32,Lista_Ubigeo!$J:$K,2,0)," ") ->  | BV32: =IFERROR(VLOOKUP(MID(BV$23,5,4)&$A32,Lista_Ubigeo!$J:$K,2,0)," ") ->  | BW32: =IFERROR(VLOOKUP(MID(BW$23,5,4)&$A32,Lista_Ubigeo!$J:$K,2,0)," ") ->  | BX32: =IFERROR(VLOOKUP(MID(BX$23,5,4)&$A32,Lista_Ubigeo!$J:$K,2,0)," ") ->  | BY32: =IFERROR(VLOOKUP(MID(BY$23,4,4)&$A32,Lista_Ubigeo!$J:$K,2,0)," ") -> VILCABAMBA | BZ32: =IFERROR(VLOOKUP(MID(BZ$23,5,4)&$A32,Lista_Ubigeo!$J:$K,2,0)," ") -> YAURISQUE | CA32: =IFERROR(VLOOKUP(MID(CA$23,5,4)&$A32,Lista_Ubigeo!$J:$K,2,0)," ") ->  | CB32: =IFERROR(VLOOKUP(MID(CB$23,5,4)&$A32,Lista_Ubigeo!$J:$K,2,0)," ") -> MARCAPATA | CC32: =IFERROR(VLOOKUP(MID(CC$23,5,4)&$A32,Lista_Ubigeo!$J:$K,2,0)," ") ->  | CD32: =IFERROR(VLOOKUP(MID(CD$23,5,4)&$A32,Lista_Ubigeo!$J:$K,2,0)," ") -> LARIA | CE32: =IFERROR(VLOOKUP(MID(CE$23,5,4)&$A32,Lista_Ubigeo!$J:$K,2,0)," ") ->  | CF32: =IFERROR(VLOOKUP(MID(CF$23,5,4)&$A32,Lista_Ubigeo!$J:$K,2,0)," ") -> JULCAMARCA | CG32: =IFERROR(VLOOKUP(MID(CG$23,5,4)&$A32,Lista_Ubigeo!$J:$K,2,0)," ") -> MOLLEPAMPA | CH32: =IFERROR(VLOOKUP(MID(CH$23,5,4)&$A32,Lista_Ubigeo!$J:$K,2,0)," ") -> SAN PEDRO DE CORIS | CI32: =IFERROR(VLOOKUP(MID(CI$23,5,4)&$A32,Lista_Ubigeo!$J:$K,2,0)," ") -> QUITO-ARMA | CJ32: =IFERROR(VLOOKUP(MID(CJ$23,5,4)&$A32,Lista_Ubigeo!$J:$K,2,0)," ") -> HUARIBAMBA | CK32: =IFERROR(VLOOKUP(MID(CK$23,5,4)&$A32,Lista_Ubigeo!$J:$K,2,0)," ") -> SANTA MARIA DEL VALLE | CL32: =IFERROR(VLOOKUP(MID(CL$23,5,4)&$A32,Lista_Ubigeo!$J:$K,2,0)," ") ->  | CM32: =IFERROR(VLOOKUP(MID(CM$23,5,4)&$A43,Lista_Ubigeo!$J:$K,2,0)," ") ->  | CN32: =IFERROR(VLOOKUP(MID(CN$23,5,4)&$A32,Lista_Ubigeo!$J:$K,2,0)," ") ->  | CO32: =IFERROR(VLOOKUP(MID(CO$23,5,4)&$A32,Lista_Ubigeo!$J:$K,2,0)," ") -> PUÑOS | CP32: =IFERROR(VLOOKUP(MID(CP$23,5,4)&$A32,Lista_Ubigeo!$J:$K,2,0)," ") -> PUEBLO NUEVO | CQ32: =IFERROR(VLOOKUP(MID(CQ$23,5,4)&$A32,Lista_Ubigeo!$J:$K,2,0)," ") ->  | CR32: =IFERROR(VLOOKUP(MID(CR$23,5,4)&$A32,Lista_Ubigeo!$J:$K,2,0)," ") ->  | CS32: =IFERROR(VLOOKUP(MID(CS$23,5,4)&$A32,Lista_Ubigeo!$J:$K,2,0)," ") ->  | CT32: =IFERROR(VLOOKUP(MID(CT$23,5,4)&$A32,Lista_Ubigeo!$J:$K,2,0)," ") ->  | CU32: =IFERROR(VLOOKUP(MID(CU$23,5,4)&$A32,Lista_Ubigeo!$J:$K,2,0)," ") ->  | CV32: =IFERROR(VLOOKUP(MID(CV$23,5,4)&$A32,Lista_Ubigeo!$J:$K,2,0)," ") -> SAN JOSE DE LOS MOLINOS | CW32: =IFERROR(VLOOKUP(MID(CW$23,5,4)&$A32,Lista_Ubigeo!$J:$K,2,0)," ") -> SAN PEDRO DE HUACARPANA | CX32: =IFERROR(VLOOKUP(MID(CX$23,5,4)&$A32,Lista_Ubigeo!$J:$K,2,0)," ") ->  | CY32: =IFERROR(VLOOKUP(MID(CY$23,5,4)&$A32,Lista_Ubigeo!$J:$K,2,0)," ") ->  | CZ32: =IFERROR(VLOOKUP(MID(CZ$23,5,4)&$A32,Lista_Ubigeo!$J:$K,2,0)," ") ->  | DA32: =IFERROR(VLOOKUP(MID(DA$23,5,4)&$A32,Lista_Ubigeo!$J:$K,2,0)," ") ->  | DB32: =IFERROR(VLOOKUP(MID(DB$23,5,4)&$A32,Lista_Ubigeo!$J:$K,2,0)," ") -> MARISCAL CASTILLA | DC32: =IFERROR(VLOOKUP(MID(DC$23,5,4)&$A32,Lista_Ubigeo!$J:$K,2,0)," ") ->  | DD32: =IFERROR(VLOOKUP(MID(DD$23,5,4)&$A32,Lista_Ubigeo!$J:$K,2,0)," ") -> HUARIPAMPA | DE32: =IFERROR(VLOOKUP(MID(DE$23,5,4)&$A32,Lista_Ubigeo!$J:$K,2,0)," ") ->  | DF32: =IFERROR(VLOOKUP(MID(DF$23,5,4)&$A32,Lista_Ubigeo!$J:$K,2,0)," ") -> VIZCATAN DEL ENE | DG32: =IFERROR(VLOOKUP(MID(DG$23,5,4)&$A32,Lista_Ubigeo!$J:$K,2,0)," ") -> TAPO | DH32: =IFERROR(VLOOKUP(MID(DH$23,5,4)&$A32,Lista_Ubigeo!$J:$K,2,0)," ") -> SUITUCANCHA | DI32: =IFERROR(VLOOKUP(MID(DI$23,5,4)&$A32,Lista_Ubigeo!$J:$K,2,0)," ") -> YANACANCHA | DJ32: =IFERROR(VLOOKUP(MID(DJ$23,5,4)&$A32,Lista_Ubigeo!$J:$K,2,0)," ") -> SALAVERRY | DK32: =IFERROR(VLOOKUP(MID(DK$23,5,4)&$A32,Lista_Ubigeo!$J:$K,2,0)," ") ->  | DL32: =IFERROR(VLOOKUP(MID(DL$23,5,4)&$A32,Lista_Ubigeo!$J:$K,2,0)," ") ->  | DM32: =IFERROR(VLOOKUP(MID(DM$23,5,4)&$A32,Lista_Ubigeo!$J:$K,2,0)," ") ->  | DN32: =IFERROR(VLOOKUP(MID(DN$23,5,4)&$A32,Lista_Ubigeo!$J:$K,2,0)," ") ->  | DO32: =IFERROR(VLOOKUP(MID(DO$23,5,4)&$A33,Lista_Ubigeo!$J:$K,2,0)," ") -> PARANDAY | DP32: =IFERROR(VLOOKUP(MID(DP$23,5,4)&$A32,Lista_Ubigeo!$J:$K,2,0)," ") ->  | DQ32: =IFERROR(VLOOKUP(MID(DQ$23,5,4)&$A32,Lista_Ubigeo!$J:$K,2,0)," ") -> PATAZ | DR32: =IFERROR(VLOOKUP(MID(DR$23,5,4)&$A32,Lista_Ubigeo!$J:$K,2,0)," ") ->  | DS32: =IFERROR(VLOOKUP(MID(DS$23,5,4)&$A32,Lista_Ubigeo!$J:$K,2,0)," ") ->  | DV32: =IFERROR(VLOOKUP(MID(DV$23,5,4)&$A32,Lista_Ubigeo!$J:$K,2,0)," ") -> NUEVA ARICA | DW32: =IFERROR(VLOOKUP(MID(DW$23,5,4)&$A32,Lista_Ubigeo!$J:$K,2,0)," ") ->  | DX32: =IFERROR(VLOOKUP(MID(DX$23,5,4)&$A32,Lista_Ubigeo!$J:$K,2,0)," ") -> PACORA | DY32: =IFERROR(VLOOKUP(MID(DY$23,5,4)&$A32,Lista_Ubigeo!$J:$K,2,0)," ") -> CIENEGUILLA | DZ32: =IFERROR(VLOOKUP(MID(DZ$23,5,4)&$A32,Lista_Ubigeo!$J:$K,2,0)," ") ->  | EA32: =IFERROR(VLOOKUP(MID(EA$23,5,4)&$A32,Lista_Ubigeo!$J:$K,2,0)," ") ->  | EB32: =IFERROR(VLOOKUP(MID(EB$23,5,4)&$A32,Lista_Ubigeo!$J:$K,2,0)," ") ->  | EC32: =IFERROR(VLOOKUP(MID(EC$23,5,4)&$A32,Lista_Ubigeo!$J:$K,2,0)," ") -> MALA | ED32: =IFERROR(VLOOKUP(MID(ED$23,5,4)&$A32,Lista_Ubigeo!$J:$K,2,0)," ") -> SAN MIGUEL DE ACOS | EE32: =IFERROR(VLOOKUP(MID(EE$23,5,4)&$A32,Lista_Ubigeo!$J:$K,2,0)," ") -> HUAROCHIRI | EF32: =IFERROR(VLOOKUP(MID(EF$23,5,4)&$A32,Lista_Ubigeo!$J:$K,2,0)," ") -> SANTA LEONOR | EG32: =IFERROR(VLOOKUP(MID(EG$23,5,4)&$A32,Lista_Ubigeo!$J:$K,2,0)," ") ->  | EH32: =IFERROR(VLOOKUP(MID(EH$23,5,4)&$A32,Lista_Ubigeo!$J:$K,2,0)," ") -> CHOCOS | EI32: =IFERROR(VLOOKUP(MID(EI$23,5,4)&$A32,Lista_Ubigeo!$J:$K,2,0)," ") ->  | EJ32: =IFERROR(VLOOKUP(MID(EJ$23,5,4)&$A37,Lista_Ubigeo!$J:$K,2,0)," ") ->  | EK32: =IFERROR(VLOOKUP(MID(EK$23,5,4)&$A32,Lista_Ubigeo!$J:$K,2,0)," ") ->  | EL32: =IFERROR(VLOOKUP(MID(EL$23,5,4)&$A32,Lista_Ubigeo!$J:$K,2,0)," ") ->  | EM32: =IFERROR(VLOOKUP(MID(EM$23,5,4)&$A32,Lista_Ubigeo!$J:$K,2,0)," ") -> TAPICHE | EN32: =IFERROR(VLOOKUP(MID(EN$23,5,4)&$A32,Lista_Ubigeo!$J:$K,2,0)," ") ->  | EO32: =IFERROR(VLOOKUP(MID(EO$23,5,4)&$A32,Lista_Ubigeo!$J:$K,2,0)," ") ->  | EP32: =IFERROR(VLOOKUP(MID(EP$23,5,4)&$A32,Lista_Ubigeo!$J:$K,2,0)," ") ->  | EQ32: =IFERROR(VLOOKUP(MID(EQ$23,5,4)&$A32,Lista_Ubigeo!$J:$K,2,0)," ") ->  | ER32: =IFERROR(VLOOKUP(MID(ER$23,5,4)&$A32,Lista_Ubigeo!$J:$K,2,0)," ") ->  | ES32: =IFERROR(VLOOKUP(MID(ES$23,5,4)&$A32,Lista_Ubigeo!$J:$K,2,0)," ") ->  | ET32: =IFERROR(VLOOKUP(MID(ET$23,5,4)&$A32,Lista_Ubigeo!$J:$K,2,0)," ") ->  | EU32: =IFERROR(VLOOKUP(MID(EU$23,5,4)&$A32,Lista_Ubigeo!$J:$K,2,0)," ") -> QUINISTAQUILLAS | EV32: =IFERROR(VLOOKUP(MID(EV$23,5,4)&$A32,Lista_Ubigeo!$J:$K,2,0)," ") ->  | EW32: =IFERROR(VLOOKUP(MID(EW$23,5,4)&$A32,Lista_Ubigeo!$J:$K,2,0)," ") -> SIMON BOLIVAR | EX32: =IFERROR(VLOOKUP(MID(EX$23,5,4)&$A32,Lista_Ubigeo!$J:$K,2,0)," ") ->  | EY32: =IFERROR(VLOOKUP(MID(EY$23,5,4)&$A32,Lista_Ubigeo!$J:$K,2,0)," ") ->  | EZ32: =IFERROR(VLOOKUP(MID(EZ$23,5,4)&$A35,Lista_Ubigeo!$J:$K,2,0)," ") ->  | FA32: =IFERROR(VLOOKUP(MID(FA$23,5,4)&$A32,Lista_Ubigeo!$J:$K,2,0)," ") -> SICCHEZ | FB32: =IFERROR(VLOOKUP(MID(FB$23,5,4)&$A32,Lista_Ubigeo!$J:$K,2,0)," ") ->  | FC32: =IFERROR(VLOOKUP(MID(FC$23,5,4)&$A32,Lista_Ubigeo!$J:$K,2,0)," ") -> SANTO DOMINGO | FD32: =IFERROR(VLOOKUP(MID(FD$23,5,4)&$A32,Lista_Ubigeo!$J:$K,2,0)," ") ->  | FE32: =IFERROR(VLOOKUP(MID(FE$23,5,4)&$A32,Lista_Ubigeo!$J:$K,2,0)," ") ->  | FF32: =IFERROR(VLOOKUP(MID(FF$23,5,4)&$A32,Lista_Ubigeo!$J:$K,2,0)," ") ->  | FG32: =IFERROR(VLOOKUP(MID(FG$23,5,4)&$A32,Lista_Ubigeo!$J:$K,2,0)," ") ->  | FH32: =IFERROR(VLOOKUP(MID(FH$23,5,4)&$A32,Lista_Ubigeo!$J:$K,2,0)," ") -> MANAZO | FI32: =IFERROR(VLOOKUP(MID(FI$23,5,4)&$A32,Lista_Ubigeo!$J:$K,2,0)," ") -> POTONI | FJ32: =IFERROR(VLOOKUP(MID(FJ$23,5,4)&$A32,Lista_Ubigeo!$J:$K,2,0)," ") -> SAN GABAN | FK32: =IFERROR(VLOOKUP(MID(FK$23,5,4)&$A32,Lista_Ubigeo!$J:$K,2,0)," ") ->  | FL32: =IFERROR(VLOOKUP(MID(FL$23,5,4)&$A32,Lista_Ubigeo!$J:$K,2,0)," ") ->  | FM32: =IFERROR(VLOOKUP(MID(FM$23,5,4)&$A32,Lista_Ubigeo!$J:$K,2,0)," ") ->  | FN32: =IFERROR(VLOOKUP(MID(FN$23,5,4)&$A32,Lista_Ubigeo!$J:$K,2,0)," ") -> SANTA LUCIA | FO32: =IFERROR(VLOOKUP(MID(FO$23,5,4)&$A32,Lista_Ubigeo!$J:$K,2,0)," ") -> UMACHIRI | FP32: =IFERROR(VLOOKUP(MID(FP$23,5,4)&$A32,Lista_Ubigeo!$J:$K,2,0)," ") ->  | FQ32: =IFERROR(VLOOKUP(MID(FQ$23,5,4)&$A32,Lista_Ubigeo!$J:$K,2,0)," ") ->  | FR32: =IFERROR(VLOOKUP(MID(FR$23,5,4)&$A32,Lista_Ubigeo!$J:$K,2,0)," ") ->  | FS32: =IFERROR(VLOOKUP(MID(FS$23,5,4)&$A32,Lista_Ubigeo!$J:$K,2,0)," ") -> ALTO INAMBARI | FT32: =IFERROR(VLOOKUP(MID(FT$23,5,4)&$A32,Lista_Ubigeo!$J:$K,2,0)," ") ->  | FU32: =IFERROR(VLOOKUP(MID(FU$23,5,4)&$A32,Lista_Ubigeo!$J:$K,2,0)," ") ->  | FV32: =IFERROR(VLOOKUP(MID(FV$23,5,4)&$A32,Lista_Ubigeo!$J:$K,2,0)," ") ->  | FW32: =IFERROR(VLOOKUP(MID(FW$23,5,4)&$A32,Lista_Ubigeo!$J:$K,2,0)," ") ->  | FX32: =IFERROR(VLOOKUP(MID(FX$23,5,4)&$A32,Lista_Ubigeo!$J:$K,2,0)," ") ->  | FY32: =IFERROR(VLOOKUP(MID(FY$23,5,4)&$A32,Lista_Ubigeo!$J:$K,2,0)," ") -> SHANAO | FZ32: =IFERROR(VLOOKUP(MID(FZ$23,5,4)&$A32,Lista_Ubigeo!$J:$K,2,0)," ") ->  | GA32: =IFERROR(VLOOKUP(MID(GA$23,5,4)&$A32,Lista_Ubigeo!$J:$K,2,0)," ") -> TINGO DE PONASA | GB32: =IFERROR(VLOOKUP(MID(GB$23,5,4)&$A32,Lista_Ubigeo!$J:$K,2,0)," ") -> YURACYACU | GC32: =IFERROR(VLOOKUP(MID(GC$23,5,4)&$A32,Lista_Ubigeo!$J:$K,2,0)," ") -> LA BANDA DE SHILCAYO | GD32: =IFERROR(VLOOKUP(MID(GD$23,5,4)&$A32,Lista_Ubigeo!$J:$K,2,0)," ") ->  | GE32: =IFERROR(VLOOKUP(MID(GE$23,5,4)&$A32,Lista_Ubigeo!$J:$K,2,0)," ") -> SAMA | GF32: =IFERROR(VLOOKUP(MID(GF$23,5,4)&$A32,Lista_Ubigeo!$J:$K,2,0)," ") ->  | GG32: =IFERROR(VLOOKUP(MID(GG$23,5,4)&$A32,Lista_Ubigeo!$J:$K,2,0)," ") ->  | GH32: =IFERROR(VLOOKUP(MID(GH$23,5,4)&$A32,Lista_Ubigeo!$J:$K,2,0)," ") ->  | GI32: =IFERROR(VLOOKUP(MID(GI$23,5,4)&$A32,Lista_Ubigeo!$J:$K,2,0)," ") ->  | GJ32: =IFERROR(VLOOKUP(MID(GJ$23,5,4)&$A32,Lista_Ubigeo!$J:$K,2,0)," ") ->  | GK32: =IFERROR(VLOOKUP(MID(GK$23,5,4)&$A32,Lista_Ubigeo!$J:$K,2,0)," ") ->  | GL32: =IFERROR(VLOOKUP(MID(GL$23,5,4)&$A32,Lista_Ubigeo!$J:$K,2,0)," ") ->  | GM32: =IFERROR(VLOOKUP(MID(GM$23,5,4)&$A32,Lista_Ubigeo!$J:$K,2,0)," ") ->  | GN32: =IFERROR(VLOOKUP(MID(GN$23,5,4)&$A32,Lista_Ubigeo!$J:$K,2,0)," ") ->  | GO32: =IFERROR(VLOOKUP(MID(GO$23,5,4)&$A32,Lista_Ubigeo!$J:$K,2,0)," ") ->  | GP32: =IFERROR(VLOOKUP(MID(GP$23,5,4)&$A32,Lista_Ubigeo!$J:$K,2,0)," ") -> POTONI
A33: 10 | B33: =IFERROR(VLOOKUP(MID(B$23,5,4)&$A33,Lista_Ubigeo!$J:$K,2,0)," ") -> LEIMEBAMBA | C33: =IFERROR(VLOOKUP(MID(C$23,5,4)&$A33,Lista_Ubigeo!$J:$K,2,0)," ") ->  | D33: =IFERROR(VLOOKUP(MID(D$23,5,4)&$A33,Lista_Ubigeo!$J:$K,2,0)," ") -> SHIPASBAMBA | E33: =IFERROR(VLOOKUP(MID(E$23,5,4)&$A33,Lista_Ubigeo!$J:$K,2,0)," ") ->  | F33: =IFERROR(VLOOKUP(MID(F$23,5,4)&$A33,Lista_Ubigeo!$J:$K,2,0)," ") -> LUYA VIEJO | G33: =IFERROR(VLOOKUP(MID(G$23,5,4)&$A33,Lista_Ubigeo!$J:$K,2,0)," ") -> SANTA ROSA | H33: =IFERROR(VLOOKUP(MID(H$23,5,4)&$A33,Lista_Ubigeo!$J:$K,2,0)," ") ->  | I33: =IFERROR(VLOOKUP(MID(I$23,5,4)&$A33,Lista_Ubigeo!$J:$K,2,0)," ") -> PARIACOTO | J33: =IFERROR(VLOOKUP(MID(J$23,5,4)&$A33,Lista_Ubigeo!$J:$K,2,0)," ") ->  | K33: =IFERROR(VLOOKUP(MID(K$23,5,4)&$A33,Lista_Ubigeo!$J:$K,2,0)," ") ->  | L33: =IFERROR(VLOOKUP(MID(L$23,5,4)&$A33,Lista_Ubigeo!$J:$K,2,0)," ") ->  | M33: =IFERROR(VLOOKUP(MID(M$23,5,4)&$A33,Lista_Ubigeo!$J:$K,2,0)," ") -> HUAYLLACAYAN | N33: =IFERROR(VLOOKUP(MID(N$23,5,4)&$A33,Lista_Ubigeo!$J:$K,2,0)," ") -> TINCO | O33: =IFERROR(VLOOKUP(MID(O$23,5,4)&$A33,Lista_Ubigeo!$J:$K,2,0)," ") ->  | P33: =IFERROR(VLOOKUP(MID(P$23,5,4)&$A33,Lista_Ubigeo!$J:$K,2,0)," ") ->  | Q33: =IFERROR(VLOOKUP(MID(Q$23,5,4)&$A33,Lista_Ubigeo!$J:$K,2,0)," ") ->  | R33: =IFERROR(VLOOKUP(MID(R$23,5,4)&$A33,Lista_Ubigeo!$J:$K,2,0)," ") -> PAUCAS | S33: =IFERROR(VLOOKUP(MID(S$23,5,4)&$A33,Lista_Ubigeo!$J:$K,2,0)," ") ->  | T33: =IFERROR(VLOOKUP(MID(T$23,5,4)&$A33,Lista_Ubigeo!$J:$K,2,0)," ") -> YURACMARCA | U33: =IFERROR(VLOOKUP(MID(U$23,5,4)&$A33,Lista_Ubigeo!$J:$K,2,0)," ") ->  | V33: =IFERROR(VLOOKUP(MID(V$23,5,4)&$A33,Lista_Ubigeo!$J:$K,2,0)," ") -> SANTIAGO DE CHILCAS | W33: =IFERROR(VLOOKUP(MID(W$23,5,4)&$A33,Lista_Ubigeo!$J:$K,2,0)," ") -> SANTA ROSA | X33: =IFERROR(VLOOKUP(MID(X$23,5,4)&$A33,Lista_Ubigeo!$J:$K,2,0)," ") ->  | Y33: =IFERROR(VLOOKUP(MID(Y$23,5,4)&$A33,Lista_Ubigeo!$J:$K,2,0)," ") -> TICAPAMPA | Z33: =IFERROR(VLOOKUP(MID(Z$23,5,4)&$A33,Lista_Ubigeo!$J:$K,2,0)," ") ->  | AA33: =IFERROR(VLOOKUP(MID(AA$23,5,4)&$A33,Lista_Ubigeo!$J:$K,2,0)," ") -> SICSIBAMBA | AB33: =IFERROR(VLOOKUP(MID(AB$23,5,4)&$A33,Lista_Ubigeo!$J:$K,2,0)," ") ->  | AC33: =IFERROR(VLOOKUP(MID(AC$23,5,4)&$A33,Lista_Ubigeo!$J:$K,2,0)," ") ->  | AD33: =IFERROR(VLOOKUP(MID(AD$23,5,4)&$A33,Lista_Ubigeo!$J:$K,2,0)," ") -> PAMPACHIRI | AE33: =IFERROR(VLOOKUP(MID(AE$23,5,4)&$A33,Lista_Ubigeo!$J:$K,2,0)," ") ->  | AF33: =IFERROR(VLOOKUP(MID(AF$23,5,4)&$A33,Lista_Ubigeo!$J:$K,2,0)," ") -> POCOHUANCA | AG33: =IFERROR(VLOOKUP(MID(AG$23,5,4)&$A33,Lista_Ubigeo!$J:$K,2,0)," ") ->  | AH33: =IFERROR(VLOOKUP(MID(AH$23,5,4)&$A33,Lista_Ubigeo!$J:$K,2,0)," ") -> EL PORVENIR | AI33: =IFERROR(VLOOKUP(MID(AI$23,5,4)&$A33,Lista_Ubigeo!$J:$K,2,0)," ") -> SANTA ROSA | AJ33: =IFERROR(VLOOKUP(MID(AJ$23,5,4)&$A33,Lista_Ubigeo!$J:$K,2,0)," ") -> MIRAFLORES | AK33: =IFERROR(VLOOKUP(MID(AK$23,5,4)&$A33,Lista_Ubigeo!$J:$K,2,0)," ") ->  | AL33: =IFERROR(VLOOKUP(MID(AL$23,5,4)&$A33,Lista_Ubigeo!$J:$K,2,0)," ") -> JAQUI | AM33: =IFERROR(VLOOKUP(MID(AM$23,5,4)&$A33,Lista_Ubigeo!$J:$K,2,0)," ") -> PAMPACOLCA | AN33: =IFERROR(VLOOKUP(MID(AN$23,5,4)&$A33,Lista_Ubigeo!$J:$K,2,0)," ") -> LARI | AO33: =IFERROR(VLOOKUP(MID(AO$23,5,4)&$A33,Lista_Ubigeo!$J:$K,2,0)," ") ->  | AP33: =IFERROR(VLOOKUP(MID(AP$23,5,4)&$A33,Lista_Ubigeo!$J:$K,2,0)," ") ->  | AQ33: =IFERROR(VLOOKUP(MID(AQ$23,4,4)&$A33,Lista_Ubigeo!$J:$K,2,0)," ") -> TOMEPAMPA | AR33: =IFERROR(VLOOKUP(MID(AR$23,5,4)&$A33,Lista_Ubigeo!$J:$K,2,0)," ") -> SAN JUAN BAUTISTA | AS33: =IFERROR(VLOOKUP(MID(AS$23,5,4)&$A33,Lista_Ubigeo!$J:$K,2,0)," ") ->  | AT33: =IFERROR(VLOOKUP(MID(AT$23,5,4)&$A33,Lista_Ubigeo!$J:$K,2,0)," ") ->  | AU33: =IFERROR(VLOOKUP(MID(AU$23,5,4)&$A33,Lista_Ubigeo!$J:$K,2,0)," ") -> UCHURACCAY | AV33: =IFERROR(VLOOKUP(MID(AV$23,5,4)&$A33,Lista_Ubigeo!$J:$K,2,0)," ") -> ANCHIHUAY | AW33: =IFERROR(VLOOKUP(MID(AW$23,5,4)&$A33,Lista_Ubigeo!$J:$K,2,0)," ") -> LLAUTA | AX33: =IFERROR(VLOOKUP(MID(AX$23,5,4)&$A33,Lista_Ubigeo!$J:$K,2,0)," ") ->  | AY33: =IFERROR(VLOOKUP(MID(AY$23,5,4)&$A33,Lista_Ubigeo!$J:$K,2,0)," ") -> SARA SARA | AZ33: =IFERROR(VLOOKUP(MID(AZ$23,5,4)&$A33,Lista_Ubigeo!$J:$K,2,0)," ") -> SANTIAGO DE PAUCARAY | BA33: =IFERROR(VLOOKUP(MID(BA$23,5,4)&$A33,Lista_Ubigeo!$J:$K,2,0)," ") -> HUAYA | BB33: =IFERROR(VLOOKUP(MID(BB$23,5,4)&$A33,Lista_Ubigeo!$J:$K,2,0)," ") ->  | BC33: =IFERROR(VLOOKUP(MID(BC$23,5,4)&$A33,Lista_Ubigeo!$J:$K,2,0)," ") -> MATARA | BD33: =IFERROR(VLOOKUP(MID(BD$23,5,4)&$A33,Lista_Ubigeo!$J:$K,2,0)," ") ->  | BE33: =IFERROR(VLOOKUP(MID(BE$23,5,4)&$A33,Lista_Ubigeo!$J:$K,2,0)," ") -> SUCRE | BF33: =IFERROR(VLOOKUP(MID(BF$23,5,4)&$A33,Lista_Ubigeo!$J:$K,2,0)," ") -> LAJAS | BG33: =IFERROR(VLOOKUP(MID(BG$23,5,4)&$A33,Lista_Ubigeo!$J:$K,2,0)," ") ->  | BH33: =IFERROR(VLOOKUP(MID(BH$23,5,4)&$A33,Lista_Ubigeo!$J:$K,2,0)," ") -> SAN LUIS DE LUCMA | BI33: =IFERROR(VLOOKUP(MID(BI$23,5,4)&$A33,Lista_Ubigeo!$J:$K,2,0)," ") ->  | BJ33: =IFERROR(VLOOKUP(MID(BJ$23,5,4)&$A33,Lista_Ubigeo!$J:$K,2,0)," ") -> SAN FELIPE | BK33: =IFERROR(VLOOKUP(MID(BK$23,5,4)&$A33,Lista_Ubigeo!$J:$K,2,0)," ") ->  | BL33: =IFERROR(VLOOKUP(MID(BL$23,5,4)&$A33,Lista_Ubigeo!$J:$K,2,0)," ") ->  | BM33: =IFERROR(VLOOKUP(MID(BM$23,5,4)&$A33,Lista_Ubigeo!$J:$K,2,0)," ") -> SAN GREGORIO | BN33: =IFERROR(VLOOKUP(MID(BN$23,5,4)&$A33,Lista_Ubigeo!$J:$K,2,0)," ") ->  | BO33: =IFERROR(VLOOKUP(MID(BO$23,5,4)&$A33,Lista_Ubigeo!$J:$K,2,0)," ") -> UTICYACU | BP33: =IFERROR(VLOOKUP(MID(BP$23,5,4)&$A33,Lista_Ubigeo!$J:$K,2,0)," ") ->  | BQ33: =IFERROR(VLOOKUP(MID(BQ$23,5,4)&$A33,Lista_Ubigeo!$J:$K,2,0)," ") ->  | BR33: =IFERROR(VLOOKUP(MID(BR$23,5,4)&$A33,Lista_Ubigeo!$J:$K,2,0)," ") ->  | BS33: =IFERROR(VLOOKUP(MID(BS$23,5,4)&$A33,Lista_Ubigeo!$J:$K,2,0)," ") ->  | BT33: =IFERROR(VLOOKUP(MID(BT$23,5,4)&$A33,Lista_Ubigeo!$J:$K,2,0)," ") ->  | BU33: =IFERROR(VLOOKUP(MID(BU$23,5,4)&$A33,Lista_Ubigeo!$J:$K,2,0)," ") ->  | BV33: =IFERROR(VLOOKUP(MID(BV$23,5,4)&$A33,Lista_Ubigeo!$J:$K,2,0)," ") ->  | BW33: =IFERROR(VLOOKUP(MID(BW$23,5,4)&$A33,Lista_Ubigeo!$J:$K,2,0)," ") ->  | BX33: =IFERROR(VLOOKUP(MID(BX$23,5,4)&$A33,Lista_Ubigeo!$J:$K,2,0)," ") ->  | BY33: =IFERROR(VLOOKUP(MID(BY$23,4,4)&$A33,Lista_Ubigeo!$J:$K,2,0)," ") -> PICHARI | BZ33: =IFERROR(VLOOKUP(MID(BZ$23,5,4)&$A33,Lista_Ubigeo!$J:$K,2,0)," ") ->  | CA33: =IFERROR(VLOOKUP(MID(CA$23,5,4)&$A33,Lista_Ubigeo!$J:$K,2,0)," ") ->  | CB33: =IFERROR(VLOOKUP(MID(CB$23,5,4)&$A33,Lista_Ubigeo!$J:$K,2,0)," ") -> OCONGATE | CC33: =IFERROR(VLOOKUP(MID(CC$23,5,4)&$A33,Lista_Ubigeo!$J:$K,2,0)," ") ->  | CD33: =IFERROR(VLOOKUP(MID(CD$23,5,4)&$A33,Lista_Ubigeo!$J:$K,2,0)," ") -> MANTA | CE33: =IFERROR(VLOOKUP(MID(CE$23,5,4)&$A33,Lista_Ubigeo!$J:$K,2,0)," ") ->  | CF33: =IFERROR(VLOOKUP(MID(CF$23,5,4)&$A33,Lista_Ubigeo!$J:$K,2,0)," ") -> SAN ANTONIO DE ANTAPARCO | CG33: =IFERROR(VLOOKUP(MID(CG$23,5,4)&$A33,Lista_Ubigeo!$J:$K,2,0)," ") -> SAN JUAN | CH33: =IFERROR(VLOOKUP(MID(CH$23,5,4)&$A33,Lista_Ubigeo!$J:$K,2,0)," ") -> PACHAMARCA | CI33: =IFERROR(VLOOKUP(MID(CI$23,5,4)&$A33,Lista_Ubigeo!$J:$K,2,0)," ") -> SAN ANTONIO DE CUSICANCHA | CJ33: =IFERROR(VLOOKUP(MID(CJ$23,5,4)&$A33,Lista_Ubigeo!$J:$K,2,0)," ") -> ÑAHUIMPUQUIO | CK33: =IFERROR(VLOOKUP(MID(CK$23,5,4)&$A33,Lista_Ubigeo!$J:$K,2,0)," ") -> YARUMAYO | CL33: =IFERROR(VLOOKUP(MID(CL$23,5,4)&$A33,Lista_Ubigeo!$J:$K,2,0)," ") ->  | CM33: =IFERROR(VLOOKUP(MID(CM$23,5,4)&$A44,Lista_Ubigeo!$J:$K,2,0)," ") -> SHUNQUI | CN33: =IFERROR(VLOOKUP(MID(CN$23,5,4)&$A33,Lista_Ubigeo!$J:$K,2,0)," ") ->  | CO33: =IFERROR(VLOOKUP(MID(CO$23,5,4)&$A33,Lista_Ubigeo!$J:$K,2,0)," ") -> SINGA | CP33: =IFERROR(VLOOKUP(MID(CP$23,5,4)&$A33,Lista_Ubigeo!$J:$K,2,0)," ") -> SANTA DOMIENGO DE ANDA | CQ33: =IFERROR(VLOOKUP(MID(CQ$23,5,4)&$A33,Lista_Ubigeo!$J:$K,2,0)," ") ->  | CR33: =IFERROR(VLOOKUP(MID(CR$23,5,4)&$A33,Lista_Ubigeo!$J:$K,2,0)," ") ->  | CS33: =IFERROR(VLOOKUP(MID(CS$23,5,4)&$A33,Lista_Ubigeo!$J:$K,2,0)," ") ->  | CT33: =IFERROR(VLOOKUP(MID(CT$23,5,4)&$A33,Lista_Ubigeo!$J:$K,2,0)," ") ->  | CU33: =IFERROR(VLOOKUP(MID(CU$23,5,4)&$A33,Lista_Ubigeo!$J:$K,2,0)," ") ->  | CV33: =IFERROR(VLOOKUP(MID(CV$23,5,4)&$A33,Lista_Ubigeo!$J:$K,2,0)," ") -> SAN JUAN BAUTISTA | CW33: =IFERROR(VLOOKUP(MID(CW$23,5,4)&$A33,Lista_Ubigeo!$J:$K,2,0)," ") -> SUNAMPE | CX33: =IFERROR(VLOOKUP(MID(CX$23,5,4)&$A33,Lista_Ubigeo!$J:$K,2,0)," ") ->  | CY33: =IFERROR(VLOOKUP(MID(CY$23,5,4)&$A33,Lista_Ubigeo!$J:$K,2,0)," ") ->  | CZ33: =IFERROR(VLOOKUP(MID(CZ$23,5,4)&$A33,Lista_Ubigeo!$J:$K,2,0)," ") ->  | DA33: =IFERROR(VLOOKUP(MID(DA$23,5,4)&$A33,Lista_Ubigeo!$J:$K,2,0)," ") ->  | DB33: =IFERROR(VLOOKUP(MID(DB$23,5,4)&$A33,Lista_Ubigeo!$J:$K,2,0)," ") -> MATAHUASI | DC33: =IFERROR(VLOOKUP(MID(DC$23,5,4)&$A33,Lista_Ubigeo!$J:$K,2,0)," ") ->  | DD33: =IFERROR(VLOOKUP(MID(DD$23,5,4)&$A33,Lista_Ubigeo!$J:$K,2,0)," ") -> HUERTAS | DE33: =IFERROR(VLOOKUP(MID(DE$23,5,4)&$A33,Lista_Ubigeo!$J:$K,2,0)," ") ->  | DF33: =IFERROR(VLOOKUP(MID(DF$23,5,4)&$A33,Lista_Ubigeo!$J:$K,2,0)," ") ->  | DG33: =IFERROR(VLOOKUP(MID(DG$23,5,4)&$A33,Lista_Ubigeo!$J:$K,2,0)," ") ->  | DH33: =IFERROR(VLOOKUP(MID(DH$23,5,4)&$A33,Lista_Ubigeo!$J:$K,2,0)," ") -> YAULI | DI33: =IFERROR(VLOOKUP(MID(DI$23,5,4)&$A33,Lista_Ubigeo!$J:$K,2,0)," ") ->  | DJ33: =IFERROR(VLOOKUP(MID(DJ$23,5,4)&$A33,Lista_Ubigeo!$J:$K,2,0)," ") -> SIMBAL | DK33: =IFERROR(VLOOKUP(MID(DK$23,5,4)&$A33,Lista_Ubigeo!$J:$K,2,0)," ") ->  | DL33: =IFERROR(VLOOKUP(MID(DL$23,5,4)&$A33,Lista_Ubigeo!$J:$K,2,0)," ") ->  | DM33: =IFERROR(VLOOKUP(MID(DM$23,5,4)&$A33,Lista_Ubigeo!$J:$K,2,0)," ") ->  | DN33: =IFERROR(VLOOKUP(MID(DN$23,5,4)&$A33,Lista_Ubigeo!$J:$K,2,0)," ") ->  | DO33: =IFERROR(VLOOKUP(MID(DO$23,5,4)&$A34,Lista_Ubigeo!$J:$K,2,0)," ") -> SALPO | DP33: =IFERROR(VLOOKUP(MID(DP$23,5,4)&$A33,Lista_Ubigeo!$J:$K,2,0)," ") ->  | DQ33: =IFERROR(VLOOKUP(MID(DQ$23,5,4)&$A33,Lista_Ubigeo!$J:$K,2,0)," ") -> PIAS | DR33: =IFERROR(VLOOKUP(MID(DR$23,5,4)&$A33,Lista_Ubigeo!$J:$K,2,0)," ") ->  | DS33: =IFERROR(VLOOKUP(MID(DS$23,5,4)&$A33,Lista_Ubigeo!$J:$K,2,0)," ") ->  | DV33: =IFERROR(VLOOKUP(MID(DV$23,5,4)&$A33,Lista_Ubigeo!$J:$K,2,0)," ") -> OYOTUN | DW33: =IFERROR(VLOOKUP(MID(DW$23,5,4)&$A33,Lista_Ubigeo!$J:$K,2,0)," ") ->  | DX33: =IFERROR(VLOOKUP(MID(DX$23,5,4)&$A33,Lista_Ubigeo!$J:$K,2,0)," ") -> SALAS | DY33: =IFERROR(VLOOKUP(MID(DY$23,5,4)&$A33,Lista_Ubigeo!$J:$K,2,0)," ") -> COMAS | DZ33: =IFERROR(VLOOKUP(MID(DZ$23,5,4)&$A33,Lista_Ubigeo!$J:$K,2,0)," ") ->  | EA33: =IFERROR(VLOOKUP(MID(EA$23,5,4)&$A33,Lista_Ubigeo!$J:$K,2,0)," ") ->  | EB33: =IFERROR(VLOOKUP(MID(EB$23,5,4)&$A33,Lista_Ubigeo!$J:$K,2,0)," ") ->  | EC33: =IFERROR(VLOOKUP(MID(EC$23,5,4)&$A33,Lista_Ubigeo!$J:$K,2,0)," ") -> NUEVO IMPERIAL | ED33: =IFERROR(VLOOKUP(MID(ED$23,5,4)&$A33,Lista_Ubigeo!$J:$K,2,0)," ") -> SANTA CRUZ DE ANDAMARCA | EE33: =IFERROR(VLOOKUP(MID(EE$23,5,4)&$A33,Lista_Ubigeo!$J:$K,2,0)," ") -> LAHUAYTAMBO | EF33: =IFERROR(VLOOKUP(MID(EF$23,5,4)&$A33,Lista_Ubigeo!$J:$K,2,0)," ") -> SANTA MARIA | EG33: =IFERROR(VLOOKUP(MID(EG$23,5,4)&$A33,Lista_Ubigeo!$J:$K,2,0)," ") ->  | EH33: =IFERROR(VLOOKUP(MID(EH$23,5,4)&$A33,Lista_Ubigeo!$J:$K,2,0)," ") -> COCHAS | EI33: =IFERROR(VLOOKUP(MID(EI$23,5,4)&$A33,Lista_Ubigeo!$J:$K,2,0)," ") -> TORRES CAUSANA | EJ33: =IFERROR(VLOOKUP(MID(EJ$23,5,4)&$A38,Lista_Ubigeo!$J:$K,2,0)," ") ->  | EK33: =IFERROR(VLOOKUP(MID(EK$23,5,4)&$A33,Lista_Ubigeo!$J:$K,2,0)," ") ->  | EL33: =IFERROR(VLOOKUP(MID(EL$23,5,4)&$A33,Lista_Ubigeo!$J:$K,2,0)," ") ->  | EM33: =IFERROR(VLOOKUP(MID(EM$23,5,4)&$A33,Lista_Ubigeo!$J:$K,2,0)," ") -> JENARO HERRERA | EN33: =IFERROR(VLOOKUP(MID(EN$23,5,4)&$A33,Lista_Ubigeo!$J:$K,2,0)," ") ->  | EO33: =IFERROR(VLOOKUP(MID(EO$23,5,4)&$A33,Lista_Ubigeo!$J:$K,2,0)," ") ->  | EP33: =IFERROR(VLOOKUP(MID(EP$23,5,4)&$A33,Lista_Ubigeo!$J:$K,2,0)," ") ->  | EQ33: =IFERROR(VLOOKUP(MID(EQ$23,5,4)&$A33,Lista_Ubigeo!$J:$K,2,0)," ") ->  | ER33: =IFERROR(VLOOKUP(MID(ER$23,5,4)&$A33,Lista_Ubigeo!$J:$K,2,0)," ") ->  | ES33: =IFERROR(VLOOKUP(MID(ES$23,5,4)&$A33,Lista_Ubigeo!$J:$K,2,0)," ") ->  | ET33: =IFERROR(VLOOKUP(MID(ET$23,5,4)&$A33,Lista_Ubigeo!$J:$K,2,0)," ") ->  | EU33: =IFERROR(VLOOKUP(MID(EU$23,5,4)&$A33,Lista_Ubigeo!$J:$K,2,0)," ") -> UBINAS | EV33: =IFERROR(VLOOKUP(MID(EV$23,5,4)&$A33,Lista_Ubigeo!$J:$K,2,0)," ") ->  | EW33: =IFERROR(VLOOKUP(MID(EW$23,5,4)&$A33,Lista_Ubigeo!$J:$K,2,0)," ") -> TICLACAYAN | EX33: =IFERROR(VLOOKUP(MID(EX$23,5,4)&$A33,Lista_Ubigeo!$J:$K,2,0)," ") ->  | EY33: =IFERROR(VLOOKUP(MID(EY$23,5,4)&$A33,Lista_Ubigeo!$J:$K,2,0)," ") ->  | EZ33: =IFERROR(VLOOKUP(MID(EZ$23,5,4)&$A36,Lista_Ubigeo!$J:$K,2,0)," ") ->  | FA33: =IFERROR(VLOOKUP(MID(FA$23,5,4)&$A33,Lista_Ubigeo!$J:$K,2,0)," ") -> SUYO | FB33: =IFERROR(VLOOKUP(MID(FB$23,5,4)&$A33,Lista_Ubigeo!$J:$K,2,0)," ") ->  | FC33: =IFERROR(VLOOKUP(MID(FC$23,5,4)&$A33,Lista_Ubigeo!$J:$K,2,0)," ") -> YAMANGO | FD33: =IFERROR(VLOOKUP(MID(FD$23,5,4)&$A33,Lista_Ubigeo!$J:$K,2,0)," ") ->  | FE33: =IFERROR(VLOOKUP(MID(FE$23,5,4)&$A33,Lista_Ubigeo!$J:$K,2,0)," ") ->  | FF33: =IFERROR(VLOOKUP(MID(FF$23,5,4)&$A33,Lista_Ubigeo!$J:$K,2,0)," ") ->  | FG33: =IFERROR(VLOOKUP(MID(FG$23,5,4)&$A33,Lista_Ubigeo!$J:$K,2,0)," ") ->  | FH33: =IFERROR(VLOOKUP(MID(FH$23,5,4)&$A33,Lista_Ubigeo!$J:$K,2,0)," ") -> PAUCARCOLLA | FI33: =IFERROR(VLOOKUP(MID(FI$23,5,4)&$A33,Lista_Ubigeo!$J:$K,2,0)," ") -> SAMAN | FJ33: =IFERROR(VLOOKUP(MID(FJ$23,5,4)&$A33,Lista_Ubigeo!$J:$K,2,0)," ") -> USICAYOS | FK33: =IFERROR(VLOOKUP(MID(FK$23,5,4)&$A33,Lista_Ubigeo!$J:$K,2,0)," ") ->  | FL33: =IFERROR(VLOOKUP(MID(FL$23,5,4)&$A33,Lista_Ubigeo!$J:$K,2,0)," ") ->  | FM33: =IFERROR(VLOOKUP(MID(FM$23,5,4)&$A33,Lista_Ubigeo!$J:$K,2,0)," ") ->  | FN33: =IFERROR(VLOOKUP(MID(FN$23,5,4)&$A33,Lista_Ubigeo!$J:$K,2,0)," ") -> VILAVILA | FO33: =IFERROR(VLOOKUP(MID(FO$23,5,4)&$A33,Lista_Ubigeo!$J:$K,2,0)," ") ->  | FP33: =IFERROR(VLOOKUP(MID(FP$23,5,4)&$A33,Lista_Ubigeo!$J:$K,2,0)," ") ->  | FQ33: =IFERROR(VLOOKUP(MID(FQ$23,5,4)&$A33,Lista_Ubigeo!$J:$K,2,0)," ") ->  | FR33: =IFERROR(VLOOKUP(MID(FR$23,5,4)&$A33,Lista_Ubigeo!$J:$K,2,0)," ") ->  | FS33: =IFERROR(VLOOKUP(MID(FS$23,5,4)&$A33,Lista_Ubigeo!$J:$K,2,0)," ") -> SAN PEDRO DE PUTINA PUNCO | FT33: =IFERROR(VLOOKUP(MID(FT$23,5,4)&$A33,Lista_Ubigeo!$J:$K,2,0)," ") ->  | FU33: =IFERROR(VLOOKUP(MID(FU$23,5,4)&$A33,Lista_Ubigeo!$J:$K,2,0)," ") ->  | FV33: =IFERROR(VLOOKUP(MID(FV$23,5,4)&$A33,Lista_Ubigeo!$J:$K,2,0)," ") ->  | FW33: =IFERROR(VLOOKUP(MID(FW$23,5,4)&$A33,Lista_Ubigeo!$J:$K,2,0)," ") ->  | FX33: =IFERROR(VLOOKUP(MID(FX$23,5,4)&$A33,Lista_Ubigeo!$J:$K,2,0)," ") ->  | FY33: =IFERROR(VLOOKUP(MID(FY$23,5,4)&$A33,Lista_Ubigeo!$J:$K,2,0)," ") -> TABALOSOS | FZ33: =IFERROR(VLOOKUP(MID(FZ$23,5,4)&$A33,Lista_Ubigeo!$J:$K,2,0)," ") ->  | GA33: =IFERROR(VLOOKUP(MID(GA$23,5,4)&$A33,Lista_Ubigeo!$J:$K,2,0)," ") -> TRES UNIDOS | GB33: =IFERROR(VLOOKUP(MID(GB$23,5,4)&$A33,Lista_Ubigeo!$J:$K,2,0)," ") ->  | GC33: =IFERROR(VLOOKUP(MID(GC$23,5,4)&$A33,Lista_Ubigeo!$J:$K,2,0)," ") -> MORALES | GD33: =IFERROR(VLOOKUP(MID(GD$23,5,4)&$A33,Lista_Ubigeo!$J:$K,2,0)," ") ->  | GE33: =IFERROR(VLOOKUP(MID(GE$23,5,4)&$A33,Lista_Ubigeo!$J:$K,2,0)," ") -> CORONEL GREGORIO ALBARRACIN LANCHIPA | GF33: =IFERROR(VLOOKUP(MID(GF$23,5,4)&$A33,Lista_Ubigeo!$J:$K,2,0)," ") ->  | GG33: =IFERROR(VLOOKUP(MID(GG$23,5,4)&$A33,Lista_Ubigeo!$J:$K,2,0)," ") ->  | GH33: =IFERROR(VLOOKUP(MID(GH$23,5,4)&$A33,Lista_Ubigeo!$J:$K,2,0)," ") ->  | GI33: =IFERROR(VLOOKUP(MID(GI$23,5,4)&$A33,Lista_Ubigeo!$J:$K,2,0)," ") ->  | GJ33: =IFERROR(VLOOKUP(MID(GJ$23,5,4)&$A33,Lista_Ubigeo!$J:$K,2,0)," ") ->  | GK33: =IFERROR(VLOOKUP(MID(GK$23,5,4)&$A33,Lista_Ubigeo!$J:$K,2,0)," ") ->  | GL33: =IFERROR(VLOOKUP(MID(GL$23,5,4)&$A33,Lista_Ubigeo!$J:$K,2,0)," ") ->  | GM33: =IFERROR(VLOOKUP(MID(GM$23,5,4)&$A33,Lista_Ubigeo!$J:$K,2,0)," ") ->  | GN33: =IFERROR(VLOOKUP(MID(GN$23,5,4)&$A33,Lista_Ubigeo!$J:$K,2,0)," ") ->  | GO33: =IFERROR(VLOOKUP(MID(GO$23,5,4)&$A33,Lista_Ubigeo!$J:$K,2,0)," ") ->  | GP33: =IFERROR(VLOOKUP(MID(GP$23,5,4)&$A33,Lista_Ubigeo!$J:$K,2,0)," ") -> SAMAN
A34: 11 | B34: =IFERROR(VLOOKUP(MID(B$23,5,4)&$A34,Lista_Ubigeo!$J:$K,2,0)," ") -> LEVANTO | C34: =IFERROR(VLOOKUP(MID(C$23,5,4)&$A34,Lista_Ubigeo!$J:$K,2,0)," ") ->  | D34: =IFERROR(VLOOKUP(MID(D$23,5,4)&$A34,Lista_Ubigeo!$J:$K,2,0)," ") -> VALERA | E34: =IFERROR(VLOOKUP(MID(E$23,5,4)&$A34,Lista_Ubigeo!$J:$K,2,0)," ") ->  | F34: =IFERROR(VLOOKUP(MID(F$23,5,4)&$A34,Lista_Ubigeo!$J:$K,2,0)," ") -> MARIA | G34: =IFERROR(VLOOKUP(MID(G$23,5,4)&$A34,Lista_Ubigeo!$J:$K,2,0)," ") -> TOTORA | H34: =IFERROR(VLOOKUP(MID(H$23,5,4)&$A34,Lista_Ubigeo!$J:$K,2,0)," ") ->  | I34: =IFERROR(VLOOKUP(MID(I$23,5,4)&$A34,Lista_Ubigeo!$J:$K,2,0)," ") -> PIRA | J34: =IFERROR(VLOOKUP(MID(J$23,5,4)&$A34,Lista_Ubigeo!$J:$K,2,0)," ") ->  | K34: =IFERROR(VLOOKUP(MID(K$23,5,4)&$A34,Lista_Ubigeo!$J:$K,2,0)," ") ->  | L34: =IFERROR(VLOOKUP(MID(L$23,5,4)&$A34,Lista_Ubigeo!$J:$K,2,0)," ") ->  | M34: =IFERROR(VLOOKUP(MID(M$23,5,4)&$A34,Lista_Ubigeo!$J:$K,2,0)," ") -> LA PRIMAVERA | N34: =IFERROR(VLOOKUP(MID(N$23,5,4)&$A34,Lista_Ubigeo!$J:$K,2,0)," ") -> YUNGAR | O34: =IFERROR(VLOOKUP(MID(O$23,5,4)&$A34,Lista_Ubigeo!$J:$K,2,0)," ") ->  | P34: =IFERROR(VLOOKUP(MID(P$23,5,4)&$A34,Lista_Ubigeo!$J:$K,2,0)," ") ->  | Q34: =IFERROR(VLOOKUP(MID(Q$23,5,4)&$A34,Lista_Ubigeo!$J:$K,2,0)," ") ->  | R34: =IFERROR(VLOOKUP(MID(R$23,5,4)&$A34,Lista_Ubigeo!$J:$K,2,0)," ") -> PONTO | S34: =IFERROR(VLOOKUP(MID(S$23,5,4)&$A34,Lista_Ubigeo!$J:$K,2,0)," ") ->  | T34: =IFERROR(VLOOKUP(MID(T$23,5,4)&$A34,Lista_Ubigeo!$J:$K,2,0)," ") ->  | U34: =IFERROR(VLOOKUP(MID(U$23,5,4)&$A34,Lista_Ubigeo!$J:$K,2,0)," ") ->  | V34: =IFERROR(VLOOKUP(MID(V$23,5,4)&$A34,Lista_Ubigeo!$J:$K,2,0)," ") ->  | W34: =IFERROR(VLOOKUP(MID(W$23,5,4)&$A34,Lista_Ubigeo!$J:$K,2,0)," ") -> TAUCA | X34: =IFERROR(VLOOKUP(MID(X$23,5,4)&$A34,Lista_Ubigeo!$J:$K,2,0)," ") ->  | Y34: =IFERROR(VLOOKUP(MID(Y$23,5,4)&$A34,Lista_Ubigeo!$J:$K,2,0)," ") ->  | Z34: =IFERROR(VLOOKUP(MID(Z$23,5,4)&$A34,Lista_Ubigeo!$J:$K,2,0)," ") ->  | AA34: =IFERROR(VLOOKUP(MID(AA$23,5,4)&$A34,Lista_Ubigeo!$J:$K,2,0)," ") ->  | AB34: =IFERROR(VLOOKUP(MID(AB$23,5,4)&$A34,Lista_Ubigeo!$J:$K,2,0)," ") ->  | AC34: =IFERROR(VLOOKUP(MID(AC$23,5,4)&$A34,Lista_Ubigeo!$J:$K,2,0)," ") ->  | AD34: =IFERROR(VLOOKUP(MID(AD$23,5,4)&$A34,Lista_Ubigeo!$J:$K,2,0)," ") -> POMACOCHA | AE34: =IFERROR(VLOOKUP(MID(AE$23,5,4)&$A34,Lista_Ubigeo!$J:$K,2,0)," ") ->  | AF34: =IFERROR(VLOOKUP(MID(AF$23,5,4)&$A34,Lista_Ubigeo!$J:$K,2,0)," ") -> SAN JUAN DE CHACÑA | AG34: =IFERROR(VLOOKUP(MID(AG$23,5,4)&$A34,Lista_Ubigeo!$J:$K,2,0)," ") ->  | AH34: =IFERROR(VLOOKUP(MID(AH$23,5,4)&$A34,Lista_Ubigeo!$J:$K,2,0)," ") -> LOS CHANKAS | AI34: =IFERROR(VLOOKUP(MID(AI$23,5,4)&$A34,Lista_Ubigeo!$J:$K,2,0)," ") -> TURPAY | AJ34: =IFERROR(VLOOKUP(MID(AJ$23,5,4)&$A34,Lista_Ubigeo!$J:$K,2,0)," ") -> MOLLEBAYA | AK34: =IFERROR(VLOOKUP(MID(AK$23,5,4)&$A34,Lista_Ubigeo!$J:$K,2,0)," ") ->  | AL34: =IFERROR(VLOOKUP(MID(AL$23,5,4)&$A34,Lista_Ubigeo!$J:$K,2,0)," ") -> LOMAS | AM34: =IFERROR(VLOOKUP(MID(AM$23,5,4)&$A34,Lista_Ubigeo!$J:$K,2,0)," ") -> TIPAN | AN34: =IFERROR(VLOOKUP(MID(AN$23,5,4)&$A34,Lista_Ubigeo!$J:$K,2,0)," ") -> LLUTA | AO34: =IFERROR(VLOOKUP(MID(AO$23,5,4)&$A34,Lista_Ubigeo!$J:$K,2,0)," ") ->  | AP34: =IFERROR(VLOOKUP(MID(AP$23,5,4)&$A34,Lista_Ubigeo!$J:$K,2,0)," ") ->  | AQ34: =IFERROR(VLOOKUP(MID(AQ$23,4,4)&$A34,Lista_Ubigeo!$J:$K,2,0)," ") -> TORO | AR34: =IFERROR(VLOOKUP(MID(AR$23,5,4)&$A34,Lista_Ubigeo!$J:$K,2,0)," ") -> SANTIAGO DE PISCHA | AS34: =IFERROR(VLOOKUP(MID(AS$23,5,4)&$A34,Lista_Ubigeo!$J:$K,2,0)," ") ->  | AT34: =IFERROR(VLOOKUP(MID(AT$23,5,4)&$A34,Lista_Ubigeo!$J:$K,2,0)," ") ->  | AU34: =IFERROR(VLOOKUP(MID(AU$23,5,4)&$A34,Lista_Ubigeo!$J:$K,2,0)," ") -> PUCACOLPA | AV34: =IFERROR(VLOOKUP(MID(AV$23,5,4)&$A34,Lista_Ubigeo!$J:$K,2,0)," ") -> ORONCCOY | AW34: =IFERROR(VLOOKUP(MID(AW$23,5,4)&$A34,Lista_Ubigeo!$J:$K,2,0)," ") -> LUCANAS | AX34: =IFERROR(VLOOKUP(MID(AX$23,5,4)&$A34,Lista_Ubigeo!$J:$K,2,0)," ") ->  | AY34: =IFERROR(VLOOKUP(MID(AY$23,5,4)&$A34,Lista_Ubigeo!$J:$K,2,0)," ") ->  | AZ34: =IFERROR(VLOOKUP(MID(AZ$23,5,4)&$A34,Lista_Ubigeo!$J:$K,2,0)," ") -> SORAS | BA34: =IFERROR(VLOOKUP(MID(BA$23,5,4)&$A34,Lista_Ubigeo!$J:$K,2,0)," ") -> SARHUA | BB34: =IFERROR(VLOOKUP(MID(BB$23,5,4)&$A34,Lista_Ubigeo!$J:$K,2,0)," ") ->  | BC34: =IFERROR(VLOOKUP(MID(BC$23,5,4)&$A34,Lista_Ubigeo!$J:$K,2,0)," ") -> NAMORA | BD34: =IFERROR(VLOOKUP(MID(BD$23,5,4)&$A34,Lista_Ubigeo!$J:$K,2,0)," ") ->  | BE34: =IFERROR(VLOOKUP(MID(BE$23,5,4)&$A34,Lista_Ubigeo!$J:$K,2,0)," ") -> UTCO | BF34: =IFERROR(VLOOKUP(MID(BF$23,5,4)&$A34,Lista_Ubigeo!$J:$K,2,0)," ") -> LLAMA | BG34: =IFERROR(VLOOKUP(MID(BG$23,5,4)&$A34,Lista_Ubigeo!$J:$K,2,0)," ") ->  | BH34: =IFERROR(VLOOKUP(MID(BH$23,5,4)&$A34,Lista_Ubigeo!$J:$K,2,0)," ") -> SANTA CRUZ | BI34: =IFERROR(VLOOKUP(MID(BI$23,5,4)&$A34,Lista_Ubigeo!$J:$K,2,0)," ") ->  | BJ34: =IFERROR(VLOOKUP(MID(BJ$23,5,4)&$A34,Lista_Ubigeo!$J:$K,2,0)," ") -> SAN JOSE DEL ALTO | BK34: =IFERROR(VLOOKUP(MID(BK$23,5,4)&$A34,Lista_Ubigeo!$J:$K,2,0)," ") ->  | BL34: =IFERROR(VLOOKUP(MID(BL$23,5,4)&$A34,Lista_Ubigeo!$J:$K,2,0)," ") ->  | BM34: =IFERROR(VLOOKUP(MID(BM$23,5,4)&$A34,Lista_Ubigeo!$J:$K,2,0)," ") -> SAN SILVESTRE DE COCHAN | BN34: =IFERROR(VLOOKUP(MID(BN$23,5,4)&$A34,Lista_Ubigeo!$J:$K,2,0)," ") ->  | BO34: =IFERROR(VLOOKUP(MID(BO$23,5,4)&$A34,Lista_Ubigeo!$J:$K,2,0)," ") -> YAUYUCAN | BP34: =IFERROR(VLOOKUP(MID(BP$23,5,4)&$A34,Lista_Ubigeo!$J:$K,2,0)," ") ->  | BQ34: =IFERROR(VLOOKUP(MID(BQ$23,5,4)&$A34,Lista_Ubigeo!$J:$K,2,0)," ") ->  | BR34: =IFERROR(VLOOKUP(MID(BR$23,5,4)&$A34,Lista_Ubigeo!$J:$K,2,0)," ") ->  | BS34: =IFERROR(VLOOKUP(MID(BS$23,5,4)&$A34,Lista_Ubigeo!$J:$K,2,0)," ") ->  | BT34: =IFERROR(VLOOKUP(MID(BT$23,5,4)&$A34,Lista_Ubigeo!$J:$K,2,0)," ") ->  | BU34: =IFERROR(VLOOKUP(MID(BU$23,5,4)&$A34,Lista_Ubigeo!$J:$K,2,0)," ") ->  | BV34: =IFERROR(VLOOKUP(MID(BV$23,5,4)&$A34,Lista_Ubigeo!$J:$K,2,0)," ") ->  | BW34: =IFERROR(VLOOKUP(MID(BW$23,5,4)&$A34,Lista_Ubigeo!$J:$K,2,0)," ") ->  | BX34: =IFERROR(VLOOKUP(MID(BX$23,5,4)&$A34,Lista_Ubigeo!$J:$K,2,0)," ") ->  | BY34: =IFERROR(VLOOKUP(MID(BY$23,4,4)&$A34,Lista_Ubigeo!$J:$K,2,0)," ") -> INKAWASI | BZ34: =IFERROR(VLOOKUP(MID(BZ$23,5,4)&$A34,Lista_Ubigeo!$J:$K,2,0)," ") ->  | CA34: =IFERROR(VLOOKUP(MID(CA$23,5,4)&$A34,Lista_Ubigeo!$J:$K,2,0)," ") ->  | CB34: =IFERROR(VLOOKUP(MID(CB$23,5,4)&$A34,Lista_Ubigeo!$J:$K,2,0)," ") -> OROPESA | CC34: =IFERROR(VLOOKUP(MID(CC$23,5,4)&$A34,Lista_Ubigeo!$J:$K,2,0)," ") ->  | CD34: =IFERROR(VLOOKUP(MID(CD$23,5,4)&$A34,Lista_Ubigeo!$J:$K,2,0)," ") -> MARISCAL CACERES | CE34: =IFERROR(VLOOKUP(MID(CE$23,5,4)&$A34,Lista_Ubigeo!$J:$K,2,0)," ") ->  | CF34: =IFERROR(VLOOKUP(MID(CF$23,5,4)&$A34,Lista_Ubigeo!$J:$K,2,0)," ") -> SANTO TOMAS DE PATA | CG34: =IFERROR(VLOOKUP(MID(CG$23,5,4)&$A34,Lista_Ubigeo!$J:$K,2,0)," ") -> SANTA ANA | CH34: =IFERROR(VLOOKUP(MID(CH$23,5,4)&$A34,Lista_Ubigeo!$J:$K,2,0)," ") -> COSME | CI34: =IFERROR(VLOOKUP(MID(CI$23,5,4)&$A34,Lista_Ubigeo!$J:$K,2,0)," ") -> SAN FRANCISCO DE SANGAYAICO | CJ34: =IFERROR(VLOOKUP(MID(CJ$23,5,4)&$A34,Lista_Ubigeo!$J:$K,2,0)," ") -> PAZOS | CK34: =IFERROR(VLOOKUP(MID(CK$23,5,4)&$A34,Lista_Ubigeo!$J:$K,2,0)," ") -> PILLCO MARCA | CL34: =IFERROR(VLOOKUP(MID(CL$23,5,4)&$A34,Lista_Ubigeo!$J:$K,2,0)," ") ->  | CM34: =IFERROR(VLOOKUP(MID(CM$23,5,4)&$A45,Lista_Ubigeo!$J:$K,2,0)," ") -> SILLAPATA | CN34: =IFERROR(VLOOKUP(MID(CN$23,5,4)&$A34,Lista_Ubigeo!$J:$K,2,0)," ") ->  | CO34: =IFERROR(VLOOKUP(MID(CO$23,5,4)&$A34,Lista_Ubigeo!$J:$K,2,0)," ") -> TANTAMAYO | CP34: =IFERROR(VLOOKUP(MID(CP$23,5,4)&$A34,Lista_Ubigeo!$J:$K,2,0)," ") ->  | CQ34: =IFERROR(VLOOKUP(MID(CQ$23,5,4)&$A34,Lista_Ubigeo!$J:$K,2,0)," ") ->  | CR34: =IFERROR(VLOOKUP(MID(CR$23,5,4)&$A34,Lista_Ubigeo!$J:$K,2,0)," ") ->  | CS34: =IFERROR(VLOOKUP(MID(CS$23,5,4)&$A34,Lista_Ubigeo!$J:$K,2,0)," ") ->  | CT34: =IFERROR(VLOOKUP(MID(CT$23,5,4)&$A34,Lista_Ubigeo!$J:$K,2,0)," ") ->  | CU34: =IFERROR(VLOOKUP(MID(CU$23,5,4)&$A34,Lista_Ubigeo!$J:$K,2,0)," ") ->  | CV34: =IFERROR(VLOOKUP(MID(CV$23,5,4)&$A34,Lista_Ubigeo!$J:$K,2,0)," ") -> SANTIAGO | CW34: =IFERROR(VLOOKUP(MID(CW$23,5,4)&$A34,Lista_Ubigeo!$J:$K,2,0)," ") -> TAMBO DE MORA | CX34: =IFERROR(VLOOKUP(MID(CX$23,5,4)&$A34,Lista_Ubigeo!$J:$K,2,0)," ") ->  | CY34: =IFERROR(VLOOKUP(MID(CY$23,5,4)&$A34,Lista_Ubigeo!$J:$K,2,0)," ") ->  | CZ34: =IFERROR(VLOOKUP(MID(CZ$23,5,4)&$A34,Lista_Ubigeo!$J:$K,2,0)," ") ->  | DA34: =IFERROR(VLOOKUP(MID(DA$23,5,4)&$A34,Lista_Ubigeo!$J:$K,2,0)," ") -> CHUPURO | DB34: =IFERROR(VLOOKUP(MID(DB$23,5,4)&$A34,Lista_Ubigeo!$J:$K,2,0)," ") -> MITO | DC34: =IFERROR(VLOOKUP(MID(DC$23,5,4)&$A34,Lista_Ubigeo!$J:$K,2,0)," ") ->  | DD34: =IFERROR(VLOOKUP(MID(DD$23,5,4)&$A34,Lista_Ubigeo!$J:$K,2,0)," ") -> JANJAILLO | DE34: =IFERROR(VLOOKUP(MID(DE$23,5,4)&$A34,Lista_Ubigeo!$J:$K,2,0)," ") ->  | DF34: =IFERROR(VLOOKUP(MID(DF$23,5,4)&$A34,Lista_Ubigeo!$J:$K,2,0)," ") ->  | DG34: =IFERROR(VLOOKUP(MID(DG$23,5,4)&$A34,Lista_Ubigeo!$J:$K,2,0)," ") ->  | DH34: =IFERROR(VLOOKUP(MID(DH$23,5,4)&$A34,Lista_Ubigeo!$J:$K,2,0)," ") ->  | DI34: =IFERROR(VLOOKUP(MID(DI$23,5,4)&$A34,Lista_Ubigeo!$J:$K,2,0)," ") ->  | DJ34: =IFERROR(VLOOKUP(MID(DJ$23,5,4)&$A34,Lista_Ubigeo!$J:$K,2,0)," ") -> VICTOR LARCO HERRERA | DK34: =IFERROR(VLOOKUP(MID(DK$23,5,4)&$A34,Lista_Ubigeo!$J:$K,2,0)," ") ->  | DL34: =IFERROR(VLOOKUP(MID(DL$23,5,4)&$A34,Lista_Ubigeo!$J:$K,2,0)," ") ->  | DM34: =IFERROR(VLOOKUP(MID(DM$23,5,4)&$A34,Lista_Ubigeo!$J:$K,2,0)," ") ->  | DN34: =IFERROR(VLOOKUP(MID(DN$23,5,4)&$A34,Lista_Ubigeo!$J:$K,2,0)," ") ->  | DO34: =IFERROR(VLOOKUP(MID(DO$23,5,4)&$A35,Lista_Ubigeo!$J:$K,2,0)," ") ->  | DP34: =IFERROR(VLOOKUP(MID(DP$23,5,4)&$A34,Lista_Ubigeo!$J:$K,2,0)," ") ->  | DQ34: =IFERROR(VLOOKUP(MID(DQ$23,5,4)&$A34,Lista_Ubigeo!$J:$K,2,0)," ") -> SANTIAGO DE CHALLAS | DR34: =IFERROR(VLOOKUP(MID(DR$23,5,4)&$A34,Lista_Ubigeo!$J:$K,2,0)," ") ->  | DS34: =IFERROR(VLOOKUP(MID(DS$23,5,4)&$A34,Lista_Ubigeo!$J:$K,2,0)," ") ->  | DV34: =IFERROR(VLOOKUP(MID(DV$23,5,4)&$A34,Lista_Ubigeo!$J:$K,2,0)," ") -> PICSI | DW34: =IFERROR(VLOOKUP(MID(DW$23,5,4)&$A34,Lista_Ubigeo!$J:$K,2,0)," ") ->  | DX34: =IFERROR(VLOOKUP(MID(DX$23,5,4)&$A34,Lista_Ubigeo!$J:$K,2,0)," ") -> SAN JOSE | DY34: =IFERROR(VLOOKUP(MID(DY$23,5,4)&$A34,Lista_Ubigeo!$J:$K,2,0)," ") -> EL AGUSTINO | DZ34: =IFERROR(VLOOKUP(MID(DZ$23,5,4)&$A34,Lista_Ubigeo!$J:$K,2,0)," ") ->  | EA34: =IFERROR(VLOOKUP(MID(EA$23,5,4)&$A34,Lista_Ubigeo!$J:$K,2,0)," ") ->  | EB34: =IFERROR(VLOOKUP(MID(EB$23,5,4)&$A34,Lista_Ubigeo!$J:$K,2,0)," ") ->  | EC34: =IFERROR(VLOOKUP(MID(EC$23,5,4)&$A34,Lista_Ubigeo!$J:$K,2,0)," ") -> PACARAN | ED34: =IFERROR(VLOOKUP(MID(ED$23,5,4)&$A34,Lista_Ubigeo!$J:$K,2,0)," ") -> SUMBILCA | EE34: =IFERROR(VLOOKUP(MID(EE$23,5,4)&$A34,Lista_Ubigeo!$J:$K,2,0)," ") -> LANGA | EF34: =IFERROR(VLOOKUP(MID(EF$23,5,4)&$A34,Lista_Ubigeo!$J:$K,2,0)," ") -> SAYAN | EG34: =IFERROR(VLOOKUP(MID(EG$23,5,4)&$A34,Lista_Ubigeo!$J:$K,2,0)," ") ->  | EH34: =IFERROR(VLOOKUP(MID(EH$23,5,4)&$A34,Lista_Ubigeo!$J:$K,2,0)," ") -> COLONIA | EI34: =IFERROR(VLOOKUP(MID(EI$23,5,4)&$A34,Lista_Ubigeo!$J:$K,2,0)," ") ->  | EJ34: =IFERROR(VLOOKUP(MID(EJ$23,5,4)&$A39,Lista_Ubigeo!$J:$K,2,0)," ") ->  | EK34: =IFERROR(VLOOKUP(MID(EK$23,5,4)&$A34,Lista_Ubigeo!$J:$K,2,0)," ") ->  | EL34: =IFERROR(VLOOKUP(MID(EL$23,5,4)&$A34,Lista_Ubigeo!$J:$K,2,0)," ") ->  | EM34: =IFERROR(VLOOKUP(MID(EM$23,5,4)&$A34,Lista_Ubigeo!$J:$K,2,0)," ") -> YAQUERANA | EN34: =IFERROR(VLOOKUP(MID(EN$23,5,4)&$A34,Lista_Ubigeo!$J:$K,2,0)," ") ->  | EO34: =IFERROR(VLOOKUP(MID(EO$23,5,4)&$A34,Lista_Ubigeo!$J:$K,2,0)," ") ->  | EP34: =IFERROR(VLOOKUP(MID(EP$23,5,4)&$A34,Lista_Ubigeo!$J:$K,2,0)," ") ->  | EQ34: =IFERROR(VLOOKUP(MID(EQ$23,5,4)&$A34,Lista_Ubigeo!$J:$K,2,0)," ") ->  | ER34: =IFERROR(VLOOKUP(MID(ER$23,5,4)&$A34,Lista_Ubigeo!$J:$K,2,0)," ") ->  | ES34: =IFERROR(VLOOKUP(MID(ES$23,5,4)&$A34,Lista_Ubigeo!$J:$K,2,0)," ") ->  | ET34: =IFERROR(VLOOKUP(MID(ET$23,5,4)&$A34,Lista_Ubigeo!$J:$K,2,0)," ") ->  | EU34: =IFERROR(VLOOKUP(MID(EU$23,5,4)&$A34,Lista_Ubigeo!$J:$K,2,0)," ") -> YUNGA | EV34: =IFERROR(VLOOKUP(MID(EV$23,5,4)&$A34,Lista_Ubigeo!$J:$K,2,0)," ") ->  | EW34: =IFERROR(VLOOKUP(MID(EW$23,5,4)&$A34,Lista_Ubigeo!$J:$K,2,0)," ") -> TINYAHUARCO | EX34: =IFERROR(VLOOKUP(MID(EX$23,5,4)&$A34,Lista_Ubigeo!$J:$K,2,0)," ") ->  | EY34: =IFERROR(VLOOKUP(MID(EY$23,5,4)&$A34,Lista_Ubigeo!$J:$K,2,0)," ") ->  | EZ34: =IFERROR(VLOOKUP(MID(EZ$23,5,4)&$A37,Lista_Ubigeo!$J:$K,2,0)," ") -> TAMBO GRANDE | FA34: =IFERROR(VLOOKUP(MID(FA$23,5,4)&$A34,Lista_Ubigeo!$J:$K,2,0)," ") ->  | FB34: =IFERROR(VLOOKUP(MID(FB$23,5,4)&$A34,Lista_Ubigeo!$J:$K,2,0)," ") ->  | FC34: =IFERROR(VLOOKUP(MID(FC$23,5,4)&$A34,Lista_Ubigeo!$J:$K,2,0)," ") ->  | FD34: =IFERROR(VLOOKUP(MID(FD$23,5,4)&$A34,Lista_Ubigeo!$J:$K,2,0)," ") ->  | FE34: =IFERROR(VLOOKUP(MID(FE$23,5,4)&$A34,Lista_Ubigeo!$J:$K,2,0)," ") ->  | FF34: =IFERROR(VLOOKUP(MID(FF$23,5,4)&$A34,Lista_Ubigeo!$J:$K,2,0)," ") ->  | FG34: =IFERROR(VLOOKUP(MID(FG$23,5,4)&$A34,Lista_Ubigeo!$J:$K,2,0)," ") ->  | FH34: =IFERROR(VLOOKUP(MID(FH$23,5,4)&$A34,Lista_Ubigeo!$J:$K,2,0)," ") -> PICHACANI | FI34: =IFERROR(VLOOKUP(MID(FI$23,5,4)&$A34,Lista_Ubigeo!$J:$K,2,0)," ") -> SAN ANTON | FJ34: =IFERROR(VLOOKUP(MID(FJ$23,5,4)&$A34,Lista_Ubigeo!$J:$K,2,0)," ") ->  | FK34: =IFERROR(VLOOKUP(MID(FK$23,5,4)&$A34,Lista_Ubigeo!$J:$K,2,0)," ") ->  | FL34: =IFERROR(VLOOKUP(MID(FL$23,5,4)&$A34,Lista_Ubigeo!$J:$K,2,0)," ") ->  | FM34: =IFERROR(VLOOKUP(MID(FM$23,5,4)&$A34,Lista_Ubigeo!$J:$K,2,0)," ") ->  | FN34: =IFERROR(VLOOKUP(MID(FN$23,5,4)&$A34,Lista_Ubigeo!$J:$K,2,0)," ") ->  | FO34: =IFERROR(VLOOKUP(MID(FO$23,5,4)&$A34,Lista_Ubigeo!$J:$K,2,0)," ") ->  | FP34: =IFERROR(VLOOKUP(MID(FP$23,5,4)&$A34,Lista_Ubigeo!$J:$K,2,0)," ") ->  | FQ34: =IFERROR(VLOOKUP(MID(FQ$23,5,4)&$A34,Lista_Ubigeo!$J:$K,2,0)," ") ->  | FR34: =IFERROR(VLOOKUP(MID(FR$23,5,4)&$A34,Lista_Ubigeo!$J:$K,2,0)," ") ->  | FS34: =IFERROR(VLOOKUP(MID(FS$23,5,4)&$A34,Lista_Ubigeo!$J:$K,2,0)," ") ->  | FT34: =IFERROR(VLOOKUP(MID(FT$23,5,4)&$A34,Lista_Ubigeo!$J:$K,2,0)," ") ->  | FU34: =IFERROR(VLOOKUP(MID(FU$23,5,4)&$A34,Lista_Ubigeo!$J:$K,2,0)," ") ->  | FV34: =IFERROR(VLOOKUP(MID(FV$23,5,4)&$A34,Lista_Ubigeo!$J:$K,2,0)," ") ->  | FW34: =IFERROR(VLOOKUP(MID(FW$23,5,4)&$A34,Lista_Ubigeo!$J:$K,2,0)," ") ->  | FX34: =IFERROR(VLOOKUP(MID(FX$23,5,4)&$A34,Lista_Ubigeo!$J:$K,2,0)," ") ->  | FY34: =IFERROR(VLOOKUP(MID(FY$23,5,4)&$A34,Lista_Ubigeo!$J:$K,2,0)," ") -> ZAPATERO | FZ34: =IFERROR(VLOOKUP(MID(FZ$23,5,4)&$A34,Lista_Ubigeo!$J:$K,2,0)," ") ->  | GA34: =IFERROR(VLOOKUP(MID(GA$23,5,4)&$A34,Lista_Ubigeo!$J:$K,2,0)," ") ->  | GB34: =IFERROR(VLOOKUP(MID(GB$23,5,4)&$A34,Lista_Ubigeo!$J:$K,2,0)," ") ->  | GC34: =IFERROR(VLOOKUP(MID(GC$23,5,4)&$A34,Lista_Ubigeo!$J:$K,2,0)," ") -> PAPAPLAYA | GD34: =IFERROR(VLOOKUP(MID(GD$23,5,4)&$A34,Lista_Ubigeo!$J:$K,2,0)," ") ->  | GE34: =IFERROR(VLOOKUP(MID(GE$23,5,4)&$A34,Lista_Ubigeo!$J:$K,2,0)," ") -> LA YARADA-LOS PALOS | GF34: =IFERROR(VLOOKUP(MID(GF$23,5,4)&$A34,Lista_Ubigeo!$J:$K,2,0)," ") ->  | GG34: =IFERROR(VLOOKUP(MID(GG$23,5,4)&$A34,Lista_Ubigeo!$J:$K,2,0)," ") ->  | GH34: =IFERROR(VLOOKUP(MID(GH$23,5,4)&$A34,Lista_Ubigeo!$J:$K,2,0)," ") ->  | GI34: =IFERROR(VLOOKUP(MID(GI$23,5,4)&$A34,Lista_Ubigeo!$J:$K,2,0)," ") ->  | GJ34: =IFERROR(VLOOKUP(MID(GJ$23,5,4)&$A34,Lista_Ubigeo!$J:$K,2,0)," ") ->  | GK34: =IFERROR(VLOOKUP(MID(GK$23,5,4)&$A34,Lista_Ubigeo!$J:$K,2,0)," ") ->  | GL34: =IFERROR(VLOOKUP(MID(GL$23,5,4)&$A34,Lista_Ubigeo!$J:$K,2,0)," ") ->  | GM34: =IFERROR(VLOOKUP(MID(GM$23,5,4)&$A34,Lista_Ubigeo!$J:$K,2,0)," ") ->  | GN34: =IFERROR(VLOOKUP(MID(GN$23,5,4)&$A34,Lista_Ubigeo!$J:$K,2,0)," ") ->  | GO34: =IFERROR(VLOOKUP(MID(GO$23,5,4)&$A34,Lista_Ubigeo!$J:$K,2,0)," ") ->  | GP34: =IFERROR(VLOOKUP(MID(GP$23,5,4)&$A34,Lista_Ubigeo!$J:$K,2,0)," ") -> SAN ANTON
A35: 12 | B35: =IFERROR(VLOOKUP(MID(B$23,5,4)&$A35,Lista_Ubigeo!$J:$K,2,0)," ") -> MAGDALENA | C35: =IFERROR(VLOOKUP(MID(C$23,5,4)&$A35,Lista_Ubigeo!$J:$K,2,0)," ") ->  | D35: =IFERROR(VLOOKUP(MID(D$23,5,4)&$A35,Lista_Ubigeo!$J:$K,2,0)," ") -> YAMBRASBAMBA | E35: =IFERROR(VLOOKUP(MID(E$23,5,4)&$A35,Lista_Ubigeo!$J:$K,2,0)," ") ->  | F35: =IFERROR(VLOOKUP(MID(F$23,5,4)&$A35,Lista_Ubigeo!$J:$K,2,0)," ") -> OCALLI | G35: =IFERROR(VLOOKUP(MID(G$23,5,4)&$A35,Lista_Ubigeo!$J:$K,2,0)," ") -> VISTA ALEGRE | H35: =IFERROR(VLOOKUP(MID(H$23,5,4)&$A35,Lista_Ubigeo!$J:$K,2,0)," ") ->  | I35: =IFERROR(VLOOKUP(MID(I$23,5,4)&$A35,Lista_Ubigeo!$J:$K,2,0)," ") -> TARICA | J35: =IFERROR(VLOOKUP(MID(J$23,5,4)&$A35,Lista_Ubigeo!$J:$K,2,0)," ") ->  | K35: =IFERROR(VLOOKUP(MID(K$23,5,4)&$A35,Lista_Ubigeo!$J:$K,2,0)," ") ->  | L35: =IFERROR(VLOOKUP(MID(L$23,5,4)&$A35,Lista_Ubigeo!$J:$K,2,0)," ") ->  | M35: =IFERROR(VLOOKUP(MID(M$23,5,4)&$A35,Lista_Ubigeo!$J:$K,2,0)," ") -> MANGAS | N35: =IFERROR(VLOOKUP(MID(N$23,5,4)&$A35,Lista_Ubigeo!$J:$K,2,0)," ") ->  | O35: =IFERROR(VLOOKUP(MID(O$23,5,4)&$A35,Lista_Ubigeo!$J:$K,2,0)," ") ->  | P35: =IFERROR(VLOOKUP(MID(P$23,5,4)&$A35,Lista_Ubigeo!$J:$K,2,0)," ") ->  | Q35: =IFERROR(VLOOKUP(MID(Q$23,5,4)&$A35,Lista_Ubigeo!$J:$K,2,0)," ") ->  | R35: =IFERROR(VLOOKUP(MID(R$23,5,4)&$A35,Lista_Ubigeo!$J:$K,2,0)," ") -> RAHUAPAMPA | S35: =IFERROR(VLOOKUP(MID(S$23,5,4)&$A35,Lista_Ubigeo!$J:$K,2,0)," ") ->  | T35: =IFERROR(VLOOKUP(MID(T$23,5,4)&$A35,Lista_Ubigeo!$J:$K,2,0)," ") ->  | U35: =IFERROR(VLOOKUP(MID(U$23,5,4)&$A35,Lista_Ubigeo!$J:$K,2,0)," ") ->  | V35: =IFERROR(VLOOKUP(MID(V$23,5,4)&$A35,Lista_Ubigeo!$J:$K,2,0)," ") ->  | W35: =IFERROR(VLOOKUP(MID(W$23,5,4)&$A35,Lista_Ubigeo!$J:$K,2,0)," ") ->  | X35: =IFERROR(VLOOKUP(MID(X$23,5,4)&$A35,Lista_Ubigeo!$J:$K,2,0)," ") ->  | Y35: =IFERROR(VLOOKUP(MID(Y$23,5,4)&$A35,Lista_Ubigeo!$J:$K,2,0)," ") ->  | Z35: =IFERROR(VLOOKUP(MID(Z$23,5,4)&$A35,Lista_Ubigeo!$J:$K,2,0)," ") ->  | AA35: =IFERROR(VLOOKUP(MID(AA$23,5,4)&$A35,Lista_Ubigeo!$J:$K,2,0)," ") ->  | AB35: =IFERROR(VLOOKUP(MID(AB$23,5,4)&$A35,Lista_Ubigeo!$J:$K,2,0)," ") ->  | AC35: =IFERROR(VLOOKUP(MID(AC$23,5,4)&$A35,Lista_Ubigeo!$J:$K,2,0)," ") ->  | AD35: =IFERROR(VLOOKUP(MID(AD$23,5,4)&$A35,Lista_Ubigeo!$J:$K,2,0)," ") -> SAN ANTONIO DE CACHI | AE35: =IFERROR(VLOOKUP(MID(AE$23,5,4)&$A35,Lista_Ubigeo!$J:$K,2,0)," ") ->  | AF35: =IFERROR(VLOOKUP(MID(AF$23,5,4)&$A35,Lista_Ubigeo!$J:$K,2,0)," ") -> SAÑAYCA | AG35: =IFERROR(VLOOKUP(MID(AG$23,5,4)&$A35,Lista_Ubigeo!$J:$K,2,0)," ") ->  | AH35: =IFERROR(VLOOKUP(MID(AH$23,5,4)&$A35,Lista_Ubigeo!$J:$K,2,0)," ") ->  | AI35: =IFERROR(VLOOKUP(MID(AI$23,5,4)&$A35,Lista_Ubigeo!$J:$K,2,0)," ") -> VILCABAMBA | AJ35: =IFERROR(VLOOKUP(MID(AJ$23,5,4)&$A35,Lista_Ubigeo!$J:$K,2,0)," ") -> PAUCARPATA | AK35: =IFERROR(VLOOKUP(MID(AK$23,5,4)&$A35,Lista_Ubigeo!$J:$K,2,0)," ") ->  | AL35: =IFERROR(VLOOKUP(MID(AL$23,5,4)&$A35,Lista_Ubigeo!$J:$K,2,0)," ") -> QUICACHA | AM35: =IFERROR(VLOOKUP(MID(AM$23,5,4)&$A35,Lista_Ubigeo!$J:$K,2,0)," ") -> UÑON | AN35: =IFERROR(VLOOKUP(MID(AN$23,5,4)&$A35,Lista_Ubigeo!$J:$K,2,0)," ") -> MACA | AO35: =IFERROR(VLOOKUP(MID(AO$23,5,4)&$A35,Lista_Ubigeo!$J:$K,2,0)," ") ->  | AP35: =IFERROR(VLOOKUP(MID(AP$23,5,4)&$A35,Lista_Ubigeo!$J:$K,2,0)," ") ->  | AQ35: =IFERROR(VLOOKUP(MID(AQ$23,4,4)&$A35,Lista_Ubigeo!$J:$K,2,0)," ") ->  | AR35: =IFERROR(VLOOKUP(MID(AR$23,5,4)&$A35,Lista_Ubigeo!$J:$K,2,0)," ") -> SOCOS | AS35: =IFERROR(VLOOKUP(MID(AS$23,5,4)&$A35,Lista_Ubigeo!$J:$K,2,0)," ") ->  | AT35: =IFERROR(VLOOKUP(MID(AT$23,5,4)&$A35,Lista_Ubigeo!$J:$K,2,0)," ") ->  | AU35: =IFERROR(VLOOKUP(MID(AU$23,5,4)&$A35,Lista_Ubigeo!$J:$K,2,0)," ") -> CHACA | AV35: =IFERROR(VLOOKUP(MID(AV$23,5,4)&$A35,Lista_Ubigeo!$J:$K,2,0)," ") ->  | AW35: =IFERROR(VLOOKUP(MID(AW$23,5,4)&$A35,Lista_Ubigeo!$J:$K,2,0)," ") -> OCAÑA | AX35: =IFERROR(VLOOKUP(MID(AX$23,5,4)&$A35,Lista_Ubigeo!$J:$K,2,0)," ") ->  | AY35: =IFERROR(VLOOKUP(MID(AY$23,5,4)&$A35,Lista_Ubigeo!$J:$K,2,0)," ") ->  | AZ35: =IFERROR(VLOOKUP(MID(AZ$23,5,4)&$A35,Lista_Ubigeo!$J:$K,2,0)," ") ->  | BA35: =IFERROR(VLOOKUP(MID(BA$23,5,4)&$A35,Lista_Ubigeo!$J:$K,2,0)," ") -> VILCANCHOS | BB35: =IFERROR(VLOOKUP(MID(BB$23,5,4)&$A35,Lista_Ubigeo!$J:$K,2,0)," ") ->  | BC35: =IFERROR(VLOOKUP(MID(BC$23,5,4)&$A35,Lista_Ubigeo!$J:$K,2,0)," ") -> SAN JUAN | BD35: =IFERROR(VLOOKUP(MID(BD$23,5,4)&$A35,Lista_Ubigeo!$J:$K,2,0)," ") ->  | BE35: =IFERROR(VLOOKUP(MID(BE$23,5,4)&$A35,Lista_Ubigeo!$J:$K,2,0)," ") -> LA LIBERTAD DE PALLAN | BF35: =IFERROR(VLOOKUP(MID(BF$23,5,4)&$A35,Lista_Ubigeo!$J:$K,2,0)," ") -> MIRACOSTA | BG35: =IFERROR(VLOOKUP(MID(BG$23,5,4)&$A35,Lista_Ubigeo!$J:$K,2,0)," ") ->  | BH35: =IFERROR(VLOOKUP(MID(BH$23,5,4)&$A35,Lista_Ubigeo!$J:$K,2,0)," ") -> SANTO DOMINGO DE LA CAPILLA | BI35: =IFERROR(VLOOKUP(MID(BI$23,5,4)&$A35,Lista_Ubigeo!$J:$K,2,0)," ") ->  | BJ35: =IFERROR(VLOOKUP(MID(BJ$23,5,4)&$A35,Lista_Ubigeo!$J:$K,2,0)," ") -> SANTA ROSA | BK35: =IFERROR(VLOOKUP(MID(BK$23,5,4)&$A35,Lista_Ubigeo!$J:$K,2,0)," ") ->  | BL35: =IFERROR(VLOOKUP(MID(BL$23,5,4)&$A35,Lista_Ubigeo!$J:$K,2,0)," ") ->  | BM35: =IFERROR(VLOOKUP(MID(BM$23,5,4)&$A35,Lista_Ubigeo!$J:$K,2,0)," ") -> TONGOD | BN35: =IFERROR(VLOOKUP(MID(BN$23,5,4)&$A35,Lista_Ubigeo!$J:$K,2,0)," ") ->  | BO35: =IFERROR(VLOOKUP(MID(BO$23,5,4)&$A35,Lista_Ubigeo!$J:$K,2,0)," ") ->  | BP35: =IFERROR(VLOOKUP(MID(BP$23,5,4)&$A35,Lista_Ubigeo!$J:$K,2,0)," ") ->  | BQ35: =IFERROR(VLOOKUP(MID(BQ$23,5,4)&$A35,Lista_Ubigeo!$J:$K,2,0)," ") ->  | BR35: =IFERROR(VLOOKUP(MID(BR$23,5,4)&$A35,Lista_Ubigeo!$J:$K,2,0)," ") ->  | BS35: =IFERROR(VLOOKUP(MID(BS$23,5,4)&$A35,Lista_Ubigeo!$J:$K,2,0)," ") ->  | BT35: =IFERROR(VLOOKUP(MID(BT$23,5,4)&$A35,Lista_Ubigeo!$J:$K,2,0)," ") ->  | BU35: =IFERROR(VLOOKUP(MID(BU$23,5,4)&$A35,Lista_Ubigeo!$J:$K,2,0)," ") ->  | BV35: =IFERROR(VLOOKUP(MID(BV$23,5,4)&$A35,Lista_Ubigeo!$J:$K,2,0)," ") ->  | BW35: =IFERROR(VLOOKUP(MID(BW$23,5,4)&$A35,Lista_Ubigeo!$J:$K,2,0)," ") ->  | BX35: =IFERROR(VLOOKUP(MID(BX$23,5,4)&$A35,Lista_Ubigeo!$J:$K,2,0)," ") ->  | BY35: =IFERROR(VLOOKUP(MID(BY$23,4,4)&$A35,Lista_Ubigeo!$J:$K,2,0)," ") -> VILLA VIRGEN | BZ35: =IFERROR(VLOOKUP(MID(BZ$23,5,4)&$A35,Lista_Ubigeo!$J:$K,2,0)," ") ->  | CA35: =IFERROR(VLOOKUP(MID(CA$23,5,4)&$A35,Lista_Ubigeo!$J:$K,2,0)," ") ->  | CB35: =IFERROR(VLOOKUP(MID(CB$23,5,4)&$A35,Lista_Ubigeo!$J:$K,2,0)," ") -> QUIQUIJANA | CC35: =IFERROR(VLOOKUP(MID(CC$23,5,4)&$A35,Lista_Ubigeo!$J:$K,2,0)," ") ->  | CD35: =IFERROR(VLOOKUP(MID(CD$23,5,4)&$A35,Lista_Ubigeo!$J:$K,2,0)," ") -> MOYA | CE35: =IFERROR(VLOOKUP(MID(CE$23,5,4)&$A35,Lista_Ubigeo!$J:$K,2,0)," ") ->  | CF35: =IFERROR(VLOOKUP(MID(CF$23,5,4)&$A35,Lista_Ubigeo!$J:$K,2,0)," ") -> SECCLLA | CG35: =IFERROR(VLOOKUP(MID(CG$23,5,4)&$A35,Lista_Ubigeo!$J:$K,2,0)," ") -> TANTARA | CH35: =IFERROR(VLOOKUP(MID(CH$23,5,4)&$A35,Lista_Ubigeo!$J:$K,2,0)," ") ->  | CI35: =IFERROR(VLOOKUP(MID(CI$23,5,4)&$A35,Lista_Ubigeo!$J:$K,2,0)," ") -> SAN ISIDRO | CJ35: =IFERROR(VLOOKUP(MID(CJ$23,5,4)&$A35,Lista_Ubigeo!$J:$K,2,0)," ") ->  | CK35: =IFERROR(VLOOKUP(MID(CK$23,5,4)&$A35,Lista_Ubigeo!$J:$K,2,0)," ") -> YACUS | CL35: =IFERROR(VLOOKUP(MID(CL$23,5,4)&$A35,Lista_Ubigeo!$J:$K,2,0)," ") ->  | CM35: =IFERROR(VLOOKUP(MID(CM$23,5,4)&$A46,Lista_Ubigeo!$J:$K,2,0)," ") -> YANAS | CN35: =IFERROR(VLOOKUP(MID(CN$23,5,4)&$A35,Lista_Ubigeo!$J:$K,2,0)," ") ->  | CO35: =IFERROR(VLOOKUP(MID(CO$23,5,4)&$A35,Lista_Ubigeo!$J:$K,2,0)," ") ->  | CP35: =IFERROR(VLOOKUP(MID(CP$23,5,4)&$A35,Lista_Ubigeo!$J:$K,2,0)," ") ->  | CQ35: =IFERROR(VLOOKUP(MID(CQ$23,5,4)&$A35,Lista_Ubigeo!$J:$K,2,0)," ") ->  | CR35: =IFERROR(VLOOKUP(MID(CR$23,5,4)&$A35,Lista_Ubigeo!$J:$K,2,0)," ") ->  | CS35: =IFERROR(VLOOKUP(MID(CS$23,5,4)&$A35,Lista_Ubigeo!$J:$K,2,0)," ") ->  | CT35: =IFERROR(VLOOKUP(MID(CT$23,5,4)&$A35,Lista_Ubigeo!$J:$K,2,0)," ") ->  | CU35: =IFERROR(VLOOKUP(MID(CU$23,5,4)&$A35,Lista_Ubigeo!$J:$K,2,0)," ") ->  | CV35: =IFERROR(VLOOKUP(MID(CV$23,5,4)&$A35,Lista_Ubigeo!$J:$K,2,0)," ") -> SUBTANJALLA | CW35: =IFERROR(VLOOKUP(MID(CW$23,5,4)&$A35,Lista_Ubigeo!$J:$K,2,0)," ") ->  | CX35: =IFERROR(VLOOKUP(MID(CX$23,5,4)&$A35,Lista_Ubigeo!$J:$K,2,0)," ") ->  | CY35: =IFERROR(VLOOKUP(MID(CY$23,5,4)&$A35,Lista_Ubigeo!$J:$K,2,0)," ") ->  | CZ35: =IFERROR(VLOOKUP(MID(CZ$23,5,4)&$A35,Lista_Ubigeo!$J:$K,2,0)," ") ->  | DA35: =IFERROR(VLOOKUP(MID(DA$23,5,4)&$A35,Lista_Ubigeo!$J:$K,2,0)," ") -> COLCA | DB35: =IFERROR(VLOOKUP(MID(DB$23,5,4)&$A35,Lista_Ubigeo!$J:$K,2,0)," ") -> NUEVE DE JULIO | DC35: =IFERROR(VLOOKUP(MID(DC$23,5,4)&$A35,Lista_Ubigeo!$J:$K,2,0)," ") ->  | DD35: =IFERROR(VLOOKUP(MID(DD$23,5,4)&$A35,Lista_Ubigeo!$J:$K,2,0)," ") -> JULCAN | DE35: =IFERROR(VLOOKUP(MID(DE$23,5,4)&$A35,Lista_Ubigeo!$J:$K,2,0)," ") ->  | DF35: =IFERROR(VLOOKUP(MID(DF$23,5,4)&$A35,Lista_Ubigeo!$J:$K,2,0)," ") ->  | DG35: =IFERROR(VLOOKUP(MID(DG$23,5,4)&$A35,Lista_Ubigeo!$J:$K,2,0)," ") ->  | DH35: =IFERROR(VLOOKUP(MID(DH$23,5,4)&$A35,Lista_Ubigeo!$J:$K,2,0)," ") ->  | DI35: =IFERROR(VLOOKUP(MID(DI$23,5,4)&$A35,Lista_Ubigeo!$J:$K,2,0)," ") ->  | DJ35: =IFERROR(VLOOKUP(MID(DJ$23,5,4)&$A35,Lista_Ubigeo!$J:$K,2,0)," ") ->  | DK35: =IFERROR(VLOOKUP(MID(DK$23,5,4)&$A35,Lista_Ubigeo!$J:$K,2,0)," ") ->  | DL35: =IFERROR(VLOOKUP(MID(DL$23,5,4)&$A35,Lista_Ubigeo!$J:$K,2,0)," ") ->  | DM35: =IFERROR(VLOOKUP(MID(DM$23,5,4)&$A35,Lista_Ubigeo!$J:$K,2,0)," ") ->  | DN35: =IFERROR(VLOOKUP(MID(DN$23,5,4)&$A35,Lista_Ubigeo!$J:$K,2,0)," ") ->  | DO35: =IFERROR(VLOOKUP(MID(DO$23,5,4)&$A36,Lista_Ubigeo!$J:$K,2,0)," ") -> SINSICAP | DP35: =IFERROR(VLOOKUP(MID(DP$23,5,4)&$A35,Lista_Ubigeo!$J:$K,2,0)," ") ->  | DQ35: =IFERROR(VLOOKUP(MID(DQ$23,5,4)&$A35,Lista_Ubigeo!$J:$K,2,0)," ") -> TAURIJA | DR35: =IFERROR(VLOOKUP(MID(DR$23,5,4)&$A35,Lista_Ubigeo!$J:$K,2,0)," ") ->  | DS35: =IFERROR(VLOOKUP(MID(DS$23,5,4)&$A35,Lista_Ubigeo!$J:$K,2,0)," ") ->  | DV35: =IFERROR(VLOOKUP(MID(DV$23,5,4)&$A35,Lista_Ubigeo!$J:$K,2,0)," ") -> PIMENTEL | DW35: =IFERROR(VLOOKUP(MID(DW$23,5,4)&$A35,Lista_Ubigeo!$J:$K,2,0)," ") ->  | DX35: =IFERROR(VLOOKUP(MID(DX$23,5,4)&$A35,Lista_Ubigeo!$J:$K,2,0)," ") -> TUCUME | DY35: =IFERROR(VLOOKUP(MID(DY$23,5,4)&$A35,Lista_Ubigeo!$J:$K,2,0)," ") -> INDEPENDENCIA | DZ35: =IFERROR(VLOOKUP(MID(DZ$23,5,4)&$A35,Lista_Ubigeo!$J:$K,2,0)," ") ->  | EA35: =IFERROR(VLOOKUP(MID(EA$23,5,4)&$A35,Lista_Ubigeo!$J:$K,2,0)," ") ->  | EB35: =IFERROR(VLOOKUP(MID(EB$23,5,4)&$A35,Lista_Ubigeo!$J:$K,2,0)," ") ->  | EC35: =IFERROR(VLOOKUP(MID(EC$23,5,4)&$A35,Lista_Ubigeo!$J:$K,2,0)," ") -> QUILMANA | ED35: =IFERROR(VLOOKUP(MID(ED$23,5,4)&$A35,Lista_Ubigeo!$J:$K,2,0)," ") -> VEINTISIETE DE NOVIEMBRE | EE35: =IFERROR(VLOOKUP(MID(EE$23,5,4)&$A35,Lista_Ubigeo!$J:$K,2,0)," ") -> LARAOS | EF35: =IFERROR(VLOOKUP(MID(EF$23,5,4)&$A35,Lista_Ubigeo!$J:$K,2,0)," ") -> VEGUETA | EG35: =IFERROR(VLOOKUP(MID(EG$23,5,4)&$A35,Lista_Ubigeo!$J:$K,2,0)," ") ->  | EH35: =IFERROR(VLOOKUP(MID(EH$23,5,4)&$A35,Lista_Ubigeo!$J:$K,2,0)," ") -> HONGOS | EI35: =IFERROR(VLOOKUP(MID(EI$23,5,4)&$A35,Lista_Ubigeo!$J:$K,2,0)," ") -> BELEN | EJ35: =IFERROR(VLOOKUP(MID(EJ$23,5,4)&$A40,Lista_Ubigeo!$J:$K,2,0)," ") ->  | EK35: =IFERROR(VLOOKUP(MID(EK$23,5,4)&$A35,Lista_Ubigeo!$J:$K,2,0)," ") ->  | EL35: =IFERROR(VLOOKUP(MID(EL$23,5,4)&$A35,Lista_Ubigeo!$J:$K,2,0)," ") ->  | EM35: =IFERROR(VLOOKUP(MID(EM$23,5,4)&$A35,Lista_Ubigeo!$J:$K,2,0)," ") ->  | EN35: =IFERROR(VLOOKUP(MID(EN$23,5,4)&$A35,Lista_Ubigeo!$J:$K,2,0)," ") ->  | EO35: =IFERROR(VLOOKUP(MID(EO$23,5,4)&$A35,Lista_Ubigeo!$J:$K,2,0)," ") ->  | EP35: =IFERROR(VLOOKUP(MID(EP$23,5,4)&$A35,Lista_Ubigeo!$J:$K,2,0)," ") ->  | EQ35: =IFERROR(VLOOKUP(MID(EQ$23,5,4)&$A35,Lista_Ubigeo!$J:$K,2,0)," ") ->  | ER35: =IFERROR(VLOOKUP(MID(ER$23,5,4)&$A35,Lista_Ubigeo!$J:$K,2,0)," ") ->  | ES35: =IFERROR(VLOOKUP(MID(ES$23,5,4)&$A35,Lista_Ubigeo!$J:$K,2,0)," ") ->  | ET35: =IFERROR(VLOOKUP(MID(ET$23,5,4)&$A35,Lista_Ubigeo!$J:$K,2,0)," ") ->  | EU35: =IFERROR(VLOOKUP(MID(EU$23,5,4)&$A35,Lista_Ubigeo!$J:$K,2,0)," ") ->  | EV35: =IFERROR(VLOOKUP(MID(EV$23,5,4)&$A35,Lista_Ubigeo!$J:$K,2,0)," ") ->  | EW35: =IFERROR(VLOOKUP(MID(EW$23,5,4)&$A35,Lista_Ubigeo!$J:$K,2,0)," ") -> VICCO | EX35: =IFERROR(VLOOKUP(MID(EX$23,5,4)&$A35,Lista_Ubigeo!$J:$K,2,0)," ") ->  | EY35: =IFERROR(VLOOKUP(MID(EY$23,5,4)&$A35,Lista_Ubigeo!$J:$K,2,0)," ") ->  | EZ35: =IFERROR(VLOOKUP(MID(EZ$23,5,4)&$A38,Lista_Ubigeo!$J:$K,2,0)," ") -> 26 DE OCTUBRE | FA35: =IFERROR(VLOOKUP(MID(FA$23,5,4)&$A35,Lista_Ubigeo!$J:$K,2,0)," ") ->  | FB35: =IFERROR(VLOOKUP(MID(FB$23,5,4)&$A35,Lista_Ubigeo!$J:$K,2,0)," ") ->  | FC35: =IFERROR(VLOOKUP(MID(FC$23,5,4)&$A35,Lista_Ubigeo!$J:$K,2,0)," ") ->  | FD35: =IFERROR(VLOOKUP(MID(FD$23,5,4)&$A35,Lista_Ubigeo!$J:$K,2,0)," ") ->  | FE35: =IFERROR(VLOOKUP(MID(FE$23,5,4)&$A35,Lista_Ubigeo!$J:$K,2,0)," ") ->  | FF35: =IFERROR(VLOOKUP(MID(FF$23,5,4)&$A35,Lista_Ubigeo!$J:$K,2,0)," ") ->  | FG35: =IFERROR(VLOOKUP(MID(FG$23,5,4)&$A35,Lista_Ubigeo!$J:$K,2,0)," ") ->  | FH35: =IFERROR(VLOOKUP(MID(FH$23,5,4)&$A35,Lista_Ubigeo!$J:$K,2,0)," ") -> PLATERIA | FI35: =IFERROR(VLOOKUP(MID(FI$23,5,4)&$A35,Lista_Ubigeo!$J:$K,2,0)," ") -> SAN JOSE | FJ35: =IFERROR(VLOOKUP(MID(FJ$23,5,4)&$A35,Lista_Ubigeo!$J:$K,2,0)," ") ->  | FK35: =IFERROR(VLOOKUP(MID(FK$23,5,4)&$A35,Lista_Ubigeo!$J:$K,2,0)," ") ->  | FL35: =IFERROR(VLOOKUP(MID(FL$23,5,4)&$A35,Lista_Ubigeo!$J:$K,2,0)," ") ->  | FM35: =IFERROR(VLOOKUP(MID(FM$23,5,4)&$A35,Lista_Ubigeo!$J:$K,2,0)," ") ->  | FN35: =IFERROR(VLOOKUP(MID(FN$23,5,4)&$A35,Lista_Ubigeo!$J:$K,2,0)," ") ->  | FO35: =IFERROR(VLOOKUP(MID(FO$23,5,4)&$A35,Lista_Ubigeo!$J:$K,2,0)," ") ->  | FP35: =IFERROR(VLOOKUP(MID(FP$23,5,4)&$A35,Lista_Ubigeo!$J:$K,2,0)," ") ->  | FQ35: =IFERROR(VLOOKUP(MID(FQ$23,5,4)&$A35,Lista_Ubigeo!$J:$K,2,0)," ") ->  | FR35: =IFERROR(VLOOKUP(MID(FR$23,5,4)&$A35,Lista_Ubigeo!$J:$K,2,0)," ") ->  | FS35: =IFERROR(VLOOKUP(MID(FS$23,5,4)&$A35,Lista_Ubigeo!$J:$K,2,0)," ") ->  | FT35: =IFERROR(VLOOKUP(MID(FT$23,5,4)&$A35,Lista_Ubigeo!$J:$K,2,0)," ") ->  | FU35: =IFERROR(VLOOKUP(MID(FU$23,5,4)&$A35,Lista_Ubigeo!$J:$K,2,0)," ") ->  | FV35: =IFERROR(VLOOKUP(MID(FV$23,5,4)&$A35,Lista_Ubigeo!$J:$K,2,0)," ") ->  | FW35: =IFERROR(VLOOKUP(MID(FW$23,5,4)&$A35,Lista_Ubigeo!$J:$K,2,0)," ") ->  | FX35: =IFERROR(VLOOKUP(MID(FX$23,5,4)&$A35,Lista_Ubigeo!$J:$K,2,0)," ") ->  | FY35: =IFERROR(VLOOKUP(MID(FY$23,5,4)&$A35,Lista_Ubigeo!$J:$K,2,0)," ") ->  | FZ35: =IFERROR(VLOOKUP(MID(FZ$23,5,4)&$A35,Lista_Ubigeo!$J:$K,2,0)," ") ->  | GA35: =IFERROR(VLOOKUP(MID(GA$23,5,4)&$A35,Lista_Ubigeo!$J:$K,2,0)," ") ->  | GB35: =IFERROR(VLOOKUP(MID(GB$23,5,4)&$A35,Lista_Ubigeo!$J:$K,2,0)," ") ->  | GC35: =IFERROR(VLOOKUP(MID(GC$23,5,4)&$A35,Lista_Ubigeo!$J:$K,2,0)," ") -> SAN ANTONIO | GD35: =IFERROR(VLOOKUP(MID(GD$23,5,4)&$A35,Lista_Ubigeo!$J:$K,2,0)," ") ->  | GE35: =IFERROR(VLOOKUP(MID(GE$23,5,4)&$A35,Lista_Ubigeo!$J:$K,2,0)," ") ->  | GF35: =IFERROR(VLOOKUP(MID(GF$23,5,4)&$A35,Lista_Ubigeo!$J:$K,2,0)," ") ->  | GG35: =IFERROR(VLOOKUP(MID(GG$23,5,4)&$A35,Lista_Ubigeo!$J:$K,2,0)," ") ->  | GH35: =IFERROR(VLOOKUP(MID(GH$23,5,4)&$A35,Lista_Ubigeo!$J:$K,2,0)," ") ->  | GI35: =IFERROR(VLOOKUP(MID(GI$23,5,4)&$A35,Lista_Ubigeo!$J:$K,2,0)," ") ->  | GJ35: =IFERROR(VLOOKUP(MID(GJ$23,5,4)&$A35,Lista_Ubigeo!$J:$K,2,0)," ") ->  | GK35: =IFERROR(VLOOKUP(MID(GK$23,5,4)&$A35,Lista_Ubigeo!$J:$K,2,0)," ") ->  | GL35: =IFERROR(VLOOKUP(MID(GL$23,5,4)&$A35,Lista_Ubigeo!$J:$K,2,0)," ") ->  | GM35: =IFERROR(VLOOKUP(MID(GM$23,5,4)&$A35,Lista_Ubigeo!$J:$K,2,0)," ") ->  | GN35: =IFERROR(VLOOKUP(MID(GN$23,5,4)&$A35,Lista_Ubigeo!$J:$K,2,0)," ") ->  | GO35: =IFERROR(VLOOKUP(MID(GO$23,5,4)&$A35,Lista_Ubigeo!$J:$K,2,0)," ") ->  | GP35: =IFERROR(VLOOKUP(MID(GP$23,5,4)&$A35,Lista_Ubigeo!$J:$K,2,0)," ") -> SAN JOSE
A36: 13 | B36: =IFERROR(VLOOKUP(MID(B$23,5,4)&$A36,Lista_Ubigeo!$J:$K,2,0)," ") -> MARISCAL CASTILLA | C36: =IFERROR(VLOOKUP(MID(C$23,5,4)&$A36,Lista_Ubigeo!$J:$K,2,0)," ") ->  | D36: =IFERROR(VLOOKUP(MID(D$23,5,4)&$A36,Lista_Ubigeo!$J:$K,2,0)," ") ->  | E36: =IFERROR(VLOOKUP(MID(E$23,5,4)&$A36,Lista_Ubigeo!$J:$K,2,0)," ") ->  | F36: =IFERROR(VLOOKUP(MID(F$23,5,4)&$A36,Lista_Ubigeo!$J:$K,2,0)," ") -> OCUMAL | G36: =IFERROR(VLOOKUP(MID(G$23,5,4)&$A36,Lista_Ubigeo!$J:$K,2,0)," ") ->  | H36: =IFERROR(VLOOKUP(MID(H$23,5,4)&$A36,Lista_Ubigeo!$J:$K,2,0)," ") ->  | I36: =IFERROR(VLOOKUP(MID(I$23,5,4)&$A36,Lista_Ubigeo!$J:$K,2,0)," ") ->  | J36: =IFERROR(VLOOKUP(MID(J$23,5,4)&$A36,Lista_Ubigeo!$J:$K,2,0)," ") ->  | K36: =IFERROR(VLOOKUP(MID(K$23,5,4)&$A36,Lista_Ubigeo!$J:$K,2,0)," ") ->  | L36: =IFERROR(VLOOKUP(MID(L$23,5,4)&$A36,Lista_Ubigeo!$J:$K,2,0)," ") ->  | M36: =IFERROR(VLOOKUP(MID(M$23,5,4)&$A36,Lista_Ubigeo!$J:$K,2,0)," ") -> PACLLON | N36: =IFERROR(VLOOKUP(MID(N$23,5,4)&$A36,Lista_Ubigeo!$J:$K,2,0)," ") ->  | O36: =IFERROR(VLOOKUP(MID(O$23,5,4)&$A36,Lista_Ubigeo!$J:$K,2,0)," ") ->  | P36: =IFERROR(VLOOKUP(MID(P$23,5,4)&$A36,Lista_Ubigeo!$J:$K,2,0)," ") ->  | Q36: =IFERROR(VLOOKUP(MID(Q$23,5,4)&$A36,Lista_Ubigeo!$J:$K,2,0)," ") ->  | R36: =IFERROR(VLOOKUP(MID(R$23,5,4)&$A36,Lista_Ubigeo!$J:$K,2,0)," ") -> RAPAYAN | S36: =IFERROR(VLOOKUP(MID(S$23,5,4)&$A36,Lista_Ubigeo!$J:$K,2,0)," ") ->  | T36: =IFERROR(VLOOKUP(MID(T$23,5,4)&$A36,Lista_Ubigeo!$J:$K,2,0)," ") ->  | U36: =IFERROR(VLOOKUP(MID(U$23,5,4)&$A36,Lista_Ubigeo!$J:$K,2,0)," ") ->  | V36: =IFERROR(VLOOKUP(MID(V$23,5,4)&$A36,Lista_Ubigeo!$J:$K,2,0)," ") ->  | W36: =IFERROR(VLOOKUP(MID(W$23,5,4)&$A36,Lista_Ubigeo!$J:$K,2,0)," ") ->  | X36: =IFERROR(VLOOKUP(MID(X$23,5,4)&$A36,Lista_Ubigeo!$J:$K,2,0)," ") ->  | Y36: =IFERROR(VLOOKUP(MID(Y$23,5,4)&$A36,Lista_Ubigeo!$J:$K,2,0)," ") ->  | Z36: =IFERROR(VLOOKUP(MID(Z$23,5,4)&$A36,Lista_Ubigeo!$J:$K,2,0)," ") ->  | AA36: =IFERROR(VLOOKUP(MID(AA$23,5,4)&$A36,Lista_Ubigeo!$J:$K,2,0)," ") ->  | AB36: =IFERROR(VLOOKUP(MID(AB$23,5,4)&$A36,Lista_Ubigeo!$J:$K,2,0)," ") ->  | AC36: =IFERROR(VLOOKUP(MID(AC$23,5,4)&$A36,Lista_Ubigeo!$J:$K,2,0)," ") ->  | AD36: =IFERROR(VLOOKUP(MID(AD$23,5,4)&$A36,Lista_Ubigeo!$J:$K,2,0)," ") -> SAN JERONIMO | AE36: =IFERROR(VLOOKUP(MID(AE$23,5,4)&$A36,Lista_Ubigeo!$J:$K,2,0)," ") ->  | AF36: =IFERROR(VLOOKUP(MID(AF$23,5,4)&$A36,Lista_Ubigeo!$J:$K,2,0)," ") -> SORAYA | AG36: =IFERROR(VLOOKUP(MID(AG$23,5,4)&$A36,Lista_Ubigeo!$J:$K,2,0)," ") ->  | AH36: =IFERROR(VLOOKUP(MID(AH$23,5,4)&$A36,Lista_Ubigeo!$J:$K,2,0)," ") ->  | AI36: =IFERROR(VLOOKUP(MID(AI$23,5,4)&$A36,Lista_Ubigeo!$J:$K,2,0)," ") -> VIRUNDO | AJ36: =IFERROR(VLOOKUP(MID(AJ$23,5,4)&$A36,Lista_Ubigeo!$J:$K,2,0)," ") -> POCSI | AK36: =IFERROR(VLOOKUP(MID(AK$23,5,4)&$A36,Lista_Ubigeo!$J:$K,2,0)," ") ->  | AL36: =IFERROR(VLOOKUP(MID(AL$23,5,4)&$A36,Lista_Ubigeo!$J:$K,2,0)," ") -> YAUCA | AM36: =IFERROR(VLOOKUP(MID(AM$23,5,4)&$A36,Lista_Ubigeo!$J:$K,2,0)," ") -> URACA | AN36: =IFERROR(VLOOKUP(MID(AN$23,5,4)&$A36,Lista_Ubigeo!$J:$K,2,0)," ") -> MADRIGAL | AO36: =IFERROR(VLOOKUP(MID(AO$23,5,4)&$A36,Lista_Ubigeo!$J:$K,2,0)," ") ->  | AP36: =IFERROR(VLOOKUP(MID(AP$23,5,4)&$A36,Lista_Ubigeo!$J:$K,2,0)," ") ->  | AQ36: =IFERROR(VLOOKUP(MID(AQ$23,4,4)&$A36,Lista_Ubigeo!$J:$K,2,0)," ") ->  | AR36: =IFERROR(VLOOKUP(MID(AR$23,5,4)&$A36,Lista_Ubigeo!$J:$K,2,0)," ") -> TAMBILLO | AS36: =IFERROR(VLOOKUP(MID(AS$23,5,4)&$A36,Lista_Ubigeo!$J:$K,2,0)," ") ->  | AT36: =IFERROR(VLOOKUP(MID(AT$23,5,4)&$A36,Lista_Ubigeo!$J:$K,2,0)," ") ->  | AU36: =IFERROR(VLOOKUP(MID(AU$23,5,4)&$A36,Lista_Ubigeo!$J:$K,2,0)," ") ->  | AV36: =IFERROR(VLOOKUP(MID(AV$23,5,4)&$A36,Lista_Ubigeo!$J:$K,2,0)," ") ->  | AW36: =IFERROR(VLOOKUP(MID(AW$23,5,4)&$A36,Lista_Ubigeo!$J:$K,2,0)," ") -> OTOCA | AX36: =IFERROR(VLOOKUP(MID(AX$23,5,4)&$A36,Lista_Ubigeo!$J:$K,2,0)," ") ->  | AY36: =IFERROR(VLOOKUP(MID(AY$23,5,4)&$A36,Lista_Ubigeo!$J:$K,2,0)," ") ->  | AZ36: =IFERROR(VLOOKUP(MID(AZ$23,5,4)&$A36,Lista_Ubigeo!$J:$K,2,0)," ") ->  | BA36: =IFERROR(VLOOKUP(MID(BA$23,5,4)&$A36,Lista_Ubigeo!$J:$K,2,0)," ") ->  | BB36: =IFERROR(VLOOKUP(MID(BB$23,5,4)&$A36,Lista_Ubigeo!$J:$K,2,0)," ") ->  | BC36: =IFERROR(VLOOKUP(MID(BC$23,5,4)&$A36,Lista_Ubigeo!$J:$K,2,0)," ") ->  | BD36: =IFERROR(VLOOKUP(MID(BD$23,5,4)&$A36,Lista_Ubigeo!$J:$K,2,0)," ") ->  | BE36: =IFERROR(VLOOKUP(MID(BE$23,5,4)&$A36,Lista_Ubigeo!$J:$K,2,0)," ") ->  | BF36: =IFERROR(VLOOKUP(MID(BF$23,5,4)&$A36,Lista_Ubigeo!$J:$K,2,0)," ") -> PACCHA | BG36: =IFERROR(VLOOKUP(MID(BG$23,5,4)&$A36,Lista_Ubigeo!$J:$K,2,0)," ") ->  | BH36: =IFERROR(VLOOKUP(MID(BH$23,5,4)&$A36,Lista_Ubigeo!$J:$K,2,0)," ") -> SANTO TOMAS | BI36: =IFERROR(VLOOKUP(MID(BI$23,5,4)&$A36,Lista_Ubigeo!$J:$K,2,0)," ") ->  | BJ36: =IFERROR(VLOOKUP(MID(BJ$23,5,4)&$A36,Lista_Ubigeo!$J:$K,2,0)," ") ->  | BK36: =IFERROR(VLOOKUP(MID(BK$23,5,4)&$A36,Lista_Ubigeo!$J:$K,2,0)," ") ->  | BL36: =IFERROR(VLOOKUP(MID(BL$23,5,4)&$A36,Lista_Ubigeo!$J:$K,2,0)," ") ->  | BM36: =IFERROR(VLOOKUP(MID(BM$23,5,4)&$A36,Lista_Ubigeo!$J:$K,2,0)," ") -> UNION AGUA BLANCA | BN36: =IFERROR(VLOOKUP(MID(BN$23,5,4)&$A36,Lista_Ubigeo!$J:$K,2,0)," ") ->  | BO36: =IFERROR(VLOOKUP(MID(BO$23,5,4)&$A36,Lista_Ubigeo!$J:$K,2,0)," ") ->  | BP36: =IFERROR(VLOOKUP(MID(BP$23,5,4)&$A36,Lista_Ubigeo!$J:$K,2,0)," ") ->  | BQ36: =IFERROR(VLOOKUP(MID(BQ$23,5,4)&$A36,Lista_Ubigeo!$J:$K,2,0)," ") ->  | BR36: =IFERROR(VLOOKUP(MID(BR$23,5,4)&$A36,Lista_Ubigeo!$J:$K,2,0)," ") ->  | BS36: =IFERROR(VLOOKUP(MID(BS$23,5,4)&$A36,Lista_Ubigeo!$J:$K,2,0)," ") ->  | BT36: =IFERROR(VLOOKUP(MID(BT$23,5,4)&$A36,Lista_Ubigeo!$J:$K,2,0)," ") ->  | BU36: =IFERROR(VLOOKUP(MID(BU$23,5,4)&$A36,Lista_Ubigeo!$J:$K,2,0)," ") ->  | BV36: =IFERROR(VLOOKUP(MID(BV$23,5,4)&$A36,Lista_Ubigeo!$J:$K,2,0)," ") ->  | BW36: =IFERROR(VLOOKUP(MID(BW$23,5,4)&$A36,Lista_Ubigeo!$J:$K,2,0)," ") ->  | BX36: =IFERROR(VLOOKUP(MID(BX$23,5,4)&$A36,Lista_Ubigeo!$J:$K,2,0)," ") ->  | BY36: =IFERROR(VLOOKUP(MID(BY$23,4,4)&$A36,Lista_Ubigeo!$J:$K,2,0)," ") -> VILLA KINTIARINA | BZ36: =IFERROR(VLOOKUP(MID(BZ$23,5,4)&$A36,Lista_Ubigeo!$J:$K,2,0)," ") ->  | CA36: =IFERROR(VLOOKUP(MID(CA$23,5,4)&$A36,Lista_Ubigeo!$J:$K,2,0)," ") ->  | CB36: =IFERROR(VLOOKUP(MID(CB$23,5,4)&$A36,Lista_Ubigeo!$J:$K,2,0)," ") ->  | CC36: =IFERROR(VLOOKUP(MID(CC$23,5,4)&$A36,Lista_Ubigeo!$J:$K,2,0)," ") ->  | CD36: =IFERROR(VLOOKUP(MID(CD$23,5,4)&$A36,Lista_Ubigeo!$J:$K,2,0)," ") -> NUEVO OCCORO | CE36: =IFERROR(VLOOKUP(MID(CE$23,5,4)&$A36,Lista_Ubigeo!$J:$K,2,0)," ") ->  | CF36: =IFERROR(VLOOKUP(MID(CF$23,5,4)&$A36,Lista_Ubigeo!$J:$K,2,0)," ") ->  | CG36: =IFERROR(VLOOKUP(MID(CG$23,5,4)&$A36,Lista_Ubigeo!$J:$K,2,0)," ") -> TICRAPO | CH36: =IFERROR(VLOOKUP(MID(CH$23,5,4)&$A36,Lista_Ubigeo!$J:$K,2,0)," ") ->  | CI36: =IFERROR(VLOOKUP(MID(CI$23,5,4)&$A36,Lista_Ubigeo!$J:$K,2,0)," ") -> SANTIAGO DE CHOCORVOS | CJ36: =IFERROR(VLOOKUP(MID(CJ$23,5,4)&$A36,Lista_Ubigeo!$J:$K,2,0)," ") -> QUISHUAR | CK36: =IFERROR(VLOOKUP(MID(CK$23,5,4)&$A36,Lista_Ubigeo!$J:$K,2,0)," ") -> SAN PABLO DE PILLAO | CL36: =IFERROR(VLOOKUP(MID(CL$23,5,4)&$A36,Lista_Ubigeo!$J:$K,2,0)," ") ->  | CM36: =IFERROR(VLOOKUP(MID(CM$23,5,4)&$A47,Lista_Ubigeo!$J:$K,2,0)," ") ->  | CN36: =IFERROR(VLOOKUP(MID(CN$23,5,4)&$A36,Lista_Ubigeo!$J:$K,2,0)," ") ->  | CO36: =IFERROR(VLOOKUP(MID(CO$23,5,4)&$A36,Lista_Ubigeo!$J:$K,2,0)," ") ->  | CP36: =IFERROR(VLOOKUP(MID(CP$23,5,4)&$A36,Lista_Ubigeo!$J:$K,2,0)," ") ->  | CQ36: =IFERROR(VLOOKUP(MID(CQ$23,5,4)&$A36,Lista_Ubigeo!$J:$K,2,0)," ") ->  | CR36: =IFERROR(VLOOKUP(MID(CR$23,5,4)&$A36,Lista_Ubigeo!$J:$K,2,0)," ") ->  | CS36: =IFERROR(VLOOKUP(MID(CS$23,5,4)&$A36,Lista_Ubigeo!$J:$K,2,0)," ") ->  | CT36: =IFERROR(VLOOKUP(MID(CT$23,5,4)&$A36,Lista_Ubigeo!$J:$K,2,0)," ") ->  | CU36: =IFERROR(VLOOKUP(MID(CU$23,5,4)&$A36,Lista_Ubigeo!$J:$K,2,0)," ") ->  | CV36: =IFERROR(VLOOKUP(MID(CV$23,5,4)&$A36,Lista_Ubigeo!$J:$K,2,0)," ") -> TATE | CW36: =IFERROR(VLOOKUP(MID(CW$23,5,4)&$A36,Lista_Ubigeo!$J:$K,2,0)," ") ->  | CX36: =IFERROR(VLOOKUP(MID(CX$23,5,4)&$A36,Lista_Ubigeo!$J:$K,2,0)," ") ->  | CY36: =IFERROR(VLOOKUP(MID(CY$23,5,4)&$A36,Lista_Ubigeo!$J:$K,2,0)," ") ->  | CZ36: =IFERROR(VLOOKUP(MID(CZ$23,5,4)&$A36,Lista_Ubigeo!$J:$K,2,0)," ") ->  | DA36: =IFERROR(VLOOKUP(MID(DA$23,5,4)&$A36,Lista_Ubigeo!$J:$K,2,0)," ") -> CULLHUAS | DB36: =IFERROR(VLOOKUP(MID(DB$23,5,4)&$A36,Lista_Ubigeo!$J:$K,2,0)," ") -> ORCOTUNA | DC36: =IFERROR(VLOOKUP(MID(DC$23,5,4)&$A36,Lista_Ubigeo!$J:$K,2,0)," ") ->  | DD36: =IFERROR(VLOOKUP(MID(DD$23,5,4)&$A36,Lista_Ubigeo!$J:$K,2,0)," ") -> LEONOR ORDOÑEZ | DE36: =IFERROR(VLOOKUP(MID(DE$23,5,4)&$A36,Lista_Ubigeo!$J:$K,2,0)," ") ->  | DF36: =IFERROR(VLOOKUP(MID(DF$23,5,4)&$A36,Lista_Ubigeo!$J:$K,2,0)," ") ->  | DG36: =IFERROR(VLOOKUP(MID(DG$23,5,4)&$A36,Lista_Ubigeo!$J:$K,2,0)," ") ->  | DH36: =IFERROR(VLOOKUP(MID(DH$23,5,4)&$A36,Lista_Ubigeo!$J:$K,2,0)," ") ->  | DI36: =IFERROR(VLOOKUP(MID(DI$23,5,4)&$A36,Lista_Ubigeo!$J:$K,2,0)," ") ->  | DJ36: =IFERROR(VLOOKUP(MID(DJ$23,5,4)&$A36,Lista_Ubigeo!$J:$K,2,0)," ") ->  | DK36: =IFERROR(VLOOKUP(MID(DK$23,5,4)&$A36,Lista_Ubigeo!$J:$K,2,0)," ") ->  | DL36: =IFERROR(VLOOKUP(MID(DL$23,5,4)&$A36,Lista_Ubigeo!$J:$K,2,0)," ") ->  | DM36: =IFERROR(VLOOKUP(MID(DM$23,5,4)&$A36,Lista_Ubigeo!$J:$K,2,0)," ") ->  | DN36: =IFERROR(VLOOKUP(MID(DN$23,5,4)&$A36,Lista_Ubigeo!$J:$K,2,0)," ") ->  | DO36: =IFERROR(VLOOKUP(MID(DO$23,5,4)&$A37,Lista_Ubigeo!$J:$K,2,0)," ") -> USQUIL | DP36: =IFERROR(VLOOKUP(MID(DP$23,5,4)&$A36,Lista_Ubigeo!$J:$K,2,0)," ") ->  | DQ36: =IFERROR(VLOOKUP(MID(DQ$23,5,4)&$A36,Lista_Ubigeo!$J:$K,2,0)," ") -> URPAY | DR36: =IFERROR(VLOOKUP(MID(DR$23,5,4)&$A36,Lista_Ubigeo!$J:$K,2,0)," ") ->  | DS36: =IFERROR(VLOOKUP(MID(DS$23,5,4)&$A36,Lista_Ubigeo!$J:$K,2,0)," ") ->  | DV36: =IFERROR(VLOOKUP(MID(DV$23,5,4)&$A36,Lista_Ubigeo!$J:$K,2,0)," ") -> REQUE | DW36: =IFERROR(VLOOKUP(MID(DW$23,5,4)&$A36,Lista_Ubigeo!$J:$K,2,0)," ") ->  | DX36: =IFERROR(VLOOKUP(MID(DX$23,5,4)&$A36,Lista_Ubigeo!$J:$K,2,0)," ") ->  | DY36: =IFERROR(VLOOKUP(MID(DY$23,5,4)&$A36,Lista_Ubigeo!$J:$K,2,0)," ") -> JESUS MARIA | DZ36: =IFERROR(VLOOKUP(MID(DZ$23,5,4)&$A36,Lista_Ubigeo!$J:$K,2,0)," ") ->  | EA36: =IFERROR(VLOOKUP(MID(EA$23,5,4)&$A36,Lista_Ubigeo!$J:$K,2,0)," ") ->  | EB36: =IFERROR(VLOOKUP(MID(EB$23,5,4)&$A36,Lista_Ubigeo!$J:$K,2,0)," ") ->  | EC36: =IFERROR(VLOOKUP(MID(EC$23,5,4)&$A36,Lista_Ubigeo!$J:$K,2,0)," ") -> SAN ANTONIO | ED36: =IFERROR(VLOOKUP(MID(ED$23,5,4)&$A36,Lista_Ubigeo!$J:$K,2,0)," ") ->  | EE36: =IFERROR(VLOOKUP(MID(EE$23,5,4)&$A36,Lista_Ubigeo!$J:$K,2,0)," ") -> MARIATANA | EF36: =IFERROR(VLOOKUP(MID(EF$23,5,4)&$A36,Lista_Ubigeo!$J:$K,2,0)," ") ->  | EG36: =IFERROR(VLOOKUP(MID(EG$23,5,4)&$A36,Lista_Ubigeo!$J:$K,2,0)," ") ->  | EH36: =IFERROR(VLOOKUP(MID(EH$23,5,4)&$A36,Lista_Ubigeo!$J:$K,2,0)," ") -> HUAMPARA | EI36: =IFERROR(VLOOKUP(MID(EI$23,5,4)&$A36,Lista_Ubigeo!$J:$K,2,0)," ") -> SAN JUAN BAUTISTA | EJ36: =IFERROR(VLOOKUP(MID(EJ$23,5,4)&$A41,Lista_Ubigeo!$J:$K,2,0)," ") ->  | EK36: =IFERROR(VLOOKUP(MID(EK$23,5,4)&$A36,Lista_Ubigeo!$J:$K,2,0)," ") ->  | EL36: =IFERROR(VLOOKUP(MID(EL$23,5,4)&$A36,Lista_Ubigeo!$J:$K,2,0)," ") ->  | EM36: =IFERROR(VLOOKUP(MID(EM$23,5,4)&$A36,Lista_Ubigeo!$J:$K,2,0)," ") ->  | EN36: =IFERROR(VLOOKUP(MID(EN$23,5,4)&$A36,Lista_Ubigeo!$J:$K,2,0)," ") ->  | EO36: =IFERROR(VLOOKUP(MID(EO$23,5,4)&$A36,Lista_Ubigeo!$J:$K,2,0)," ") ->  | EP36: =IFERROR(VLOOKUP(MID(EP$23,5,4)&$A36,Lista_Ubigeo!$J:$K,2,0)," ") ->  | EQ36: =IFERROR(VLOOKUP(MID(EQ$23,5,4)&$A36,Lista_Ubigeo!$J:$K,2,0)," ") ->  | ER36: =IFERROR(VLOOKUP(MID(ER$23,5,4)&$A36,Lista_Ubigeo!$J:$K,2,0)," ") ->  | ES36: =IFERROR(VLOOKUP(MID(ES$23,5,4)&$A36,Lista_Ubigeo!$J:$K,2,0)," ") ->  | ET36: =IFERROR(VLOOKUP(MID(ET$23,5,4)&$A36,Lista_Ubigeo!$J:$K,2,0)," ") ->  | EU36: =IFERROR(VLOOKUP(MID(EU$23,5,4)&$A36,Lista_Ubigeo!$J:$K,2,0)," ") ->  | EV36: =IFERROR(VLOOKUP(MID(EV$23,5,4)&$A36,Lista_Ubigeo!$J:$K,2,0)," ") ->  | EW36: =IFERROR(VLOOKUP(MID(EW$23,5,4)&$A36,Lista_Ubigeo!$J:$K,2,0)," ") -> YANACANCHA | EX36: =IFERROR(VLOOKUP(MID(EX$23,5,4)&$A36,Lista_Ubigeo!$J:$K,2,0)," ") ->  | EY36: =IFERROR(VLOOKUP(MID(EY$23,5,4)&$A36,Lista_Ubigeo!$J:$K,2,0)," ") ->  | EZ36: =IFERROR(VLOOKUP(MID(EZ$23,5,4)&$A39,Lista_Ubigeo!$J:$K,2,0)," ") ->  | FA36: =IFERROR(VLOOKUP(MID(FA$23,5,4)&$A36,Lista_Ubigeo!$J:$K,2,0)," ") ->  | FB36: =IFERROR(VLOOKUP(MID(FB$23,5,4)&$A36,Lista_Ubigeo!$J:$K,2,0)," ") ->  | FC36: =IFERROR(VLOOKUP(MID(FC$23,5,4)&$A36,Lista_Ubigeo!$J:$K,2,0)," ") ->  | FD36: =IFERROR(VLOOKUP(MID(FD$23,5,4)&$A36,Lista_Ubigeo!$J:$K,2,0)," ") ->  | FE36: =IFERROR(VLOOKUP(MID(FE$23,5,4)&$A36,Lista_Ubigeo!$J:$K,2,0)," ") ->  | FF36: =IFERROR(VLOOKUP(MID(FF$23,5,4)&$A36,Lista_Ubigeo!$J:$K,2,0)," ") ->  | FG36: =IFERROR(VLOOKUP(MID(FG$23,5,4)&$A36,Lista_Ubigeo!$J:$K,2,0)," ") ->  | FH36: =IFERROR(VLOOKUP(MID(FH$23,5,4)&$A36,Lista_Ubigeo!$J:$K,2,0)," ") -> SAN ANTONIO | FI36: =IFERROR(VLOOKUP(MID(FI$23,5,4)&$A36,Lista_Ubigeo!$J:$K,2,0)," ") -> SAN JUAN DE SALINAS | FJ36: =IFERROR(VLOOKUP(MID(FJ$23,5,4)&$A36,Lista_Ubigeo!$J:$K,2,0)," ") ->  | FK36: =IFERROR(VLOOKUP(MID(FK$23,5,4)&$A36,Lista_Ubigeo!$J:$K,2,0)," ") ->  | FL36: =IFERROR(VLOOKUP(MID(FL$23,5,4)&$A36,Lista_Ubigeo!$J:$K,2,0)," ") ->  | FM36: =IFERROR(VLOOKUP(MID(FM$23,5,4)&$A36,Lista_Ubigeo!$J:$K,2,0)," ") ->  | FN36: =IFERROR(VLOOKUP(MID(FN$23,5,4)&$A36,Lista_Ubigeo!$J:$K,2,0)," ") ->  | FO36: =IFERROR(VLOOKUP(MID(FO$23,5,4)&$A36,Lista_Ubigeo!$J:$K,2,0)," ") ->  | FP36: =IFERROR(VLOOKUP(MID(FP$23,5,4)&$A36,Lista_Ubigeo!$J:$K,2,0)," ") ->  | FQ36: =IFERROR(VLOOKUP(MID(FQ$23,5,4)&$A36,Lista_Ubigeo!$J:$K,2,0)," ") ->  | FR36: =IFERROR(VLOOKUP(MID(FR$23,5,4)&$A36,Lista_Ubigeo!$J:$K,2,0)," ") ->  | FS36: =IFERROR(VLOOKUP(MID(FS$23,5,4)&$A36,Lista_Ubigeo!$J:$K,2,0)," ") ->  | FT36: =IFERROR(VLOOKUP(MID(FT$23,5,4)&$A36,Lista_Ubigeo!$J:$K,2,0)," ") ->  | FU36: =IFERROR(VLOOKUP(MID(FU$23,5,4)&$A36,Lista_Ubigeo!$J:$K,2,0)," ") ->  | FV36: =IFERROR(VLOOKUP(MID(FV$23,5,4)&$A36,Lista_Ubigeo!$J:$K,2,0)," ") ->  | FW36: =IFERROR(VLOOKUP(MID(FW$23,5,4)&$A36,Lista_Ubigeo!$J:$K,2,0)," ") ->  | FX36: =IFERROR(VLOOKUP(MID(FX$23,5,4)&$A36,Lista_Ubigeo!$J:$K,2,0)," ") ->  | FY36: =IFERROR(VLOOKUP(MID(FY$23,5,4)&$A36,Lista_Ubigeo!$J:$K,2,0)," ") ->  | FZ36: =IFERROR(VLOOKUP(MID(FZ$23,5,4)&$A36,Lista_Ubigeo!$J:$K,2,0)," ") ->  | GA36: =IFERROR(VLOOKUP(MID(GA$23,5,4)&$A36,Lista_Ubigeo!$J:$K,2,0)," ") ->  | GB36: =IFERROR(VLOOKUP(MID(GB$23,5,4)&$A36,Lista_Ubigeo!$J:$K,2,0)," ") ->  | GC36: =IFERROR(VLOOKUP(MID(GC$23,5,4)&$A36,Lista_Ubigeo!$J:$K,2,0)," ") -> SAUCE | GD36: =IFERROR(VLOOKUP(MID(GD$23,5,4)&$A36,Lista_Ubigeo!$J:$K,2,0)," ") ->  | GE36: =IFERROR(VLOOKUP(MID(GE$23,5,4)&$A36,Lista_Ubigeo!$J:$K,2,0)," ") ->  | GF36: =IFERROR(VLOOKUP(MID(GF$23,5,4)&$A36,Lista_Ubigeo!$J:$K,2,0)," ") ->  | GG36: =IFERROR(VLOOKUP(MID(GG$23,5,4)&$A36,Lista_Ubigeo!$J:$K,2,0)," ") ->  | GH36: =IFERROR(VLOOKUP(MID(GH$23,5,4)&$A36,Lista_Ubigeo!$J:$K,2,0)," ") ->  | GI36: =IFERROR(VLOOKUP(MID(GI$23,5,4)&$A36,Lista_Ubigeo!$J:$K,2,0)," ") ->  | GJ36: =IFERROR(VLOOKUP(MID(GJ$23,5,4)&$A36,Lista_Ubigeo!$J:$K,2,0)," ") ->  | GK36: =IFERROR(VLOOKUP(MID(GK$23,5,4)&$A36,Lista_Ubigeo!$J:$K,2,0)," ") ->  | GL36: =IFERROR(VLOOKUP(MID(GL$23,5,4)&$A36,Lista_Ubigeo!$J:$K,2,0)," ") ->  | GM36: =IFERROR(VLOOKUP(MID(GM$23,5,4)&$A36,Lista_Ubigeo!$J:$K,2,0)," ") ->  | GN36: =IFERROR(VLOOKUP(MID(GN$23,5,4)&$A36,Lista_Ubigeo!$J:$K,2,0)," ") ->  | GO36: =IFERROR(VLOOKUP(MID(GO$23,5,4)&$A36,Lista_Ubigeo!$J:$K,2,0)," ") ->  | GP36: =IFERROR(VLOOKUP(MID(GP$23,5,4)&$A36,Lista_Ubigeo!$J:$K,2,0)," ") -> SAN JUAN DE SALINAS
